Workbook

Sheet Info

Sheet Trial (hidden)

Sheet Instructions (hidden)
A1: Excel Skills | Basic Monthly Salary Template
A2: Instructions
A3: www.excel-skills.com
A5: This template is a simpler version of our very comprehensive monthly payroll template for customers who have less than 50 employees and only require basic earnings & deductions. Where the monthly payroll template requires users to enter monthly earnings for all 12 months in the tax year, this template automates the inclusion of earnings based on fixed monthly basic salaries, one annual bonus and one annual salary increase. The template is therefore very easy to use while still providing sufficient flexibility to accommodate most international payroll systems.
A7: Before we get into the guidance on the template functionality, please note the following important points regarding the suitability of the template to user requirements:
A8: ■ This template has been designed as a monthly payroll template and is only suitable if your employees are paid on a monthly basis. We can also not customize the template to incorporate employees paid based on any other payment interval (like weekly or bi-weekly).
A9: ■ The template has been designed for a 12-month period from the beginning to the end of the appropriate tax year. After the completion of the first tax year, a new version of the template needs to be saved for the next tax year and all rates & values which are subject to regulatory changes on an annual basis needs to be updated.
A10: ■ We have designed the template with as much flexibility as practically possible in order to be suitable for most of our customers in more than 100 countries. We do not however provide tax consulting services and cannot provide support for enquiries relating to the appropriate rates that need to be used for specific tax deductions or company contributions. Please do not contact us to request such assistance.
A11: ■ The flexible design of the template ensures that you should be able to use the template for multiple tax years. If the taxation or other regulatory requirements in your country changes in a way which is not provided for in the template design, you may need to purchase a new version of the template once the template design has been adapted & the new version released.
A12: ■ The purchase price of the template is once-off and does not include any annual updates. Our aim with the design of the template is to include sufficient flexibility so that customers are able to use the template for multiple years without having to purchase a new version annually. If regulations change in a way that the template design cannot accommodate, you would need to purchase a new version of the template if one has been released which can accommodate the regulatory changes. We will not provide a free update under these circumstances.
A13: ■ Please review these instructions carefully and only change or customize the template in accordance with the guidance provided in this document. Do not change any of the formulas, delete rows or columns in a way which is not provided for in the template design and only enter values in the yellow input cells or columns with yellow column headings otherwise the template calculations may become inaccurate. If you make changes outside of the scope of what is provided for in the template design, you will need to revert back to the downloaded version of the template!
A14: ■ Disclaimer: It is the responsibility of the user to check the accuracy of all monthly payroll calculations and to ensure that all payroll related payments are accurate. We recommend that all payroll payments are reviewed & recalculated before payments are processed. This template has been designed in such a way that the rates & values which are defined by the user has a significant influence on the accuracy of payments. We therefore do not accept any responsibility for payroll calculation errors.
A16: Which payroll template should I use?
A17: ■ This template is a simpler version of our monthly payroll template but it is also easier to use if your payroll requirements are relatively basic. The main difference in functionality is that the monthly payroll template requires users to enter (or copy & edit) earnings for all 12 months in the tax year while this template automates the inclusion of earnings for all 12 months.
A18: ■ The automation of earnings is however only possible if employee earnings are constant throughout the tax year. If you have earnings types which vary every month (like commission or overtime), this template is not recommended and you should use the monthly payroll template instead. The only variances in pay which is accommodated in this template is an annual bonus where the amount can be set and a single bonus month selected as well as one annual salary increase where the new salary amount can be set and an increase month can be selected.
A19: ■ If the salaries of all or some of your employees differ every month, you should use our more comprehensive monthly payroll template. If your employees' basic salaries are consistent throughout the tax year aside from an annual bonus and one annual salary increase, you can use this template.
A20: ■ This template also does not accommodate fringe benefits and bonuses paid on any other basis than annual (for example if you need to accommodate quarterly or bi-annual bonuses). If any of these are required, you also need to use the monthly payroll template instead of this one.
A22: Quick Start Guide
A23: Even though it is imperative that you review all of these instructions before you use this template to pay any employees, we can summarize the steps that need to be completed as follows:
A24: ■ Review all of the settings, rates & values on the Setup sheet.
A25: ■ Add your employees to the Emp sheet and enter all the required information. Monthly basic salary amounts should also be set on this sheet.
A26: ■ Review all the calculations for the first payroll period on the Payroll sheet and make sure that the Sheet Status at the top of the sheet is green (you may need to add rows if the status is red).
A27: ■ Pay slips can be viewed and printed individually by selecting the appropriate pay slip number from the list box in cell G3 on the PaySlip sheet.
A29: The template consists of the following sheets:
A30: Setup - all the business & payroll settings need to be included on this sheet. This includes the business details, tax year dates, income tax rates, medical tax credit rates, list of earnings, list of salary deductions, list of company contributions and the list of departments. A column & row matrix which highlights incorrect column or row counts is also included at the bottom of the sheet.
A31: Emp - add a unique employee code for each employee and enter data into all the employee information columns (columns B to K). Each employee needs to be linked to an income tax table and income tax rebate code which is used in the automated income tax calculations. The number of medical aid members is used in the automated medical tax credit calculations. The basic monthly salaries, annual bonus and salary increase amounts are used to automate the earnings calculations on the Payroll sheet. The deduction rate columns on this sheet can be used to override the rates on the Setup sheet for a particular employee. There is no limit on the number of employees that can be added to the template but the template has been designed for businesses with 50 or less monthly paid employees and due to the complexity of the calculations, the calculation speed of the template could slow down considerably if more than 50 employees are added.
A32: Payroll - all the calculations on this sheet are automated based on the data which is entered on the Setup, Emp and Override sheets. All you need to do is to ensure that the Excel table on this sheet contains sufficient rows to accommodate all the employees that you have added to the Emp sheet. The Sheet Status at the top of the sheet will be highlighted in red if you need to add additional rows to the table.
A33: Override - override any of the automatically calculated earnings, income tax, medical tax credits, salary deductions or company contributions values for any employee by adding the appropriate values to this sheet. You can override values for a single month or you can set the override end date in order to override values for multiple months or until the end of the tax year.
A34: PaySlip - this sheet contains an automated monthly pay slip. All the calculations on this sheet are automated and you only need to select the appropriate pay slip number in cell G3 in order to view the appropriate pay slip.
A35: Summary - this sheet contains a summary of all the monthly payroll data on the Payroll sheet. The sheet requires no user input and the data can even be filtered by department or individual employee by selecting the appropriate entries from the yellow cells at the top of the sheet.
A36: MonthEmp - this sheet contains a monthly summary of payroll data by employee. All the calculations are based on the Payroll sheet and the sheet requires no user input. The appropriate measurement on which the calculations should be based can be selected from the yellow cell at the top of the sheet. Available measurements include gross pay, income tax, total deductions, net pay, total company contributions, total deductions & company contributions and total cost to company.
A37: MonthDept - this sheet contains a monthly summary of payroll data by department. All the calculations are based on the Payroll sheet and the sheet requires no user input. The appropriate measurement on which the calculations should be based can be selected from the yellow cell at the top of the sheet. Available measurements include gross pay, income tax, total deductions, net pay, total company contributions, total deductions & company contributions and total cost to company.
A39: Setup
A41: The Setup sheet contains all the information & values which need to be set up on a business or company level. All input cells contain yellow cell backgrounds while the cells with light blue cell background contain formulas which should not be changed.
A43: The input section at the top of the Setup sheet contains input cells for some general business information like the business name, address, registration number, contact telephone number and contact e-mail. Most of this information is only included on the PaySlip sheet but the business name is also used as a heading on all the other sheets.
A45: The tax period end and the tax year needs to be selected from cells C10 and C12 respectively. The data in these two cells are combined in order to determine the current & prior tax year end dates and the current template start date.
A47: Note: This template has been designed to incorporate a 12-month tax period. After the end of the period, you need to save a new version of the template, change the date settings on this sheet & update the income tax and other rates that may have changed for the appropriate new tax year.
A49: You also need to set the salary payment day, annual bonus month and salary increase month. The salary payment day is used as the payroll run date on the Payroll sheet and can be any day of the month. If pay runs are not always scheduled on the same day, you can set the day of the month which is used most frequently. If you select 31, the payment run date will be set to the last day of each calendar month.
A51: The annual bonus month setting determines in which month the annual bonus amounts (which are specified on the Emp sheet) are included on the Payroll sheet. You can select any month from 1 to 12. If no annual bonuses are paid, you can select any month in this input cell and just include no values in the bonus column on the Emp sheet.
A53: The salary increase month setting determines in which month the salary increase amounts which are specified on the Emp sheet are included on the Payroll sheet. If you clear the selection from this input cell and you do not select any month, no annual salary increases will be included in the template.
A55: Note: Salary increases are not just applied to the selected month but to all remaining months in the tax year. We only provide for one general salary increase month with this setting - if any employee has had other salary increases during the tax year, those would need to be accommodated by using the Override sheet.
A57: Income Tax Rates & Rebates
A59: The template uses sliding scale tax tables for income tax calculation purposes and there are two separate income tax tables (A & B) which can be used if necessary. Each tax table contains 7 income tax brackets. At the beginning of each tax year, the user needs to update the bracket values in column C and the income tax rates in column D for both income tax tables.
A61: If you require more income tax brackets, you can insert the required number of additional rows anywhere in the middle of the table and then copy one of the existing rows before editing the tax bracket value & percentage for the new row. The bracket values in column A, equivalent values in column E and the effective rates in column F for all the tax brackets will be updated automatically.
A63: If you require less tax brackets, simple delete one of the existing rows from the middle of the table and adjust the bracket values & income tax rates in columns C and D accordingly.
A65: Each employee who is added to the Emp sheet needs to be linked to either income tax table A or B and it is this link which determines which income tax rates (which table) will be applied to the particular employee. You can also enter a percentage on the Emp sheet if you want the income tax for a specific employee to be calculated based on a fixed income tax percentage.
A67: Note: If all your income tax calculations need to be based on a single income tax scale, you do not need to delete table B. Simply ensure that the income tax rates in column D are all set to nil values. You can also use any tax bracket value structure because no employees will be linked to table B and no income tax will be calculated if the income tax rates are set to nil.
A69: The template also makes provision for the inclusion of a list of income tax rebates. The default rebates list contains 4 entries but you can add additional entries by selecting the "End of list" cell and inserting a new row. You then need to enter a new code in column A, a description in column B and a rebate value in column C.
A71: Column D contains a formula which calculates the total rebate value for the appropriate rebate code. In our default template design, the first 3 rebate codes are cumulative in nature and we have therefore added them together in the total column. The 4th rebate code is however a zero-rebate code and we have therefore used a different formula for this rebate code.
A73: Note: If you make changes to the income tax rebate codes, it is important that you include the correct rebate formula in column D because this is the value which will be included in the income tax calculations. The appropriate income tax rebate value is deducted from the income tax which is calculated based on the appropriate income tax table above. The rebate therefore represents an after-tax adjustment to the income tax calculation.
A75: Note: Each employee that is added to the Emp sheet also needs to be linked to an income tax rebate code as per the Income Tax Rebate table on the Setup sheet. This link will determine which rebate value is deducted in the income tax calculation.
A77: Medical Tax Credits
A79: The template makes provision for the deduction of medical tax credits in the calculation of monthly income tax. The calculated amounts are not deducted from taxable income as a salary deduction but from the income tax that is calculated and is based on a rate which is determined based on the number of medical aid members and a variable medical tax credit amount per member.
A81: The appropriate tax credit value per member needs to be entered in column B of the table and the cumulative monthly tax credit value is automatically calculated in column C. In the unlikely event that you need to include more than 10 medical aid members, you can insert the appropriate number of required rows above the "End of list" row, copy the formulas from the last row and enter the appropriate tax credit values in column B.
A83: Note: If medical tax credits are not applicable in your country, we suggest entering zero values for all the medical tax credit values in column B. This will effectively result in no medical tax credits being taken into account in the income tax calculations. Do not delete the table - if you do so, some of the formulas on the other sheets in this template could result in errors!
A85: The rates per dependent for calculation purposes is determined by the medical tax credit values that are entered on the Setup sheet but the number of dependents that are linked to each employee needs to be entered in column N on the Emp sheet (referred to as the number of medical aid members).
A87: If the number of medical aid members changes during the year, you can use the Override features to include the updated number in the calculation - refer to the Override section for guidance on how to update the number of medical aid members.
A89: Note: The tables and lists on the Setup sheet need to be customized based on your requirements (if necessary) before you start using the data on the Payroll sheet. Once the first pay period has been paid, you can still add new items to the lists but you should not change any of the rates that are included on the Setup sheet. If you do change any of the rates, it will also affect past pay periods which would then create differences between the payroll calculations and the amounts that have been paid for the elapsed months. If any of the rates on the Setup sheet need to be amended during the tax year, you need to use the Override feature to affect the required changes.
A91: Earnings
A93: An earnings code needs to be created for each type of earning which is paid to employees. These earnings codes need to be maintained in the Earnings list on the Setup sheet. The earnings list includes 5 user input fields - the following information is required in each of these fields for each type of earning:
A94: Code - you need to enter a code for each type of earning. We highly recommend sticking to the default template convention of using a single letter to represent each type of earning. Once you have linked an earning to a specific letter and you have completed your first payroll period, you should not change the letter.
A95: Description - enter a description for each earning. The earning description will be included on all employee pay slips.
A96: Short Name - enter a short name for the earning. The short name should not be more than 15 characters in length and is used as a column heading above the earnings columns that are included on the other sheets in the template. Use a short name that will make it easy to identify the type of earning that it refers to.
A97: Taxable % - if the earning type is not fully taxable, enter the percentage of the earning which is taxable. The default taxable % is 100% - if the earning is fully taxable, you do not need to enter anything.
A98: Basis - select whether the earning is payable on a monthly or annual basis. This selection is important especially for income tax calculation purposes. If no value is selected, the earning basis will be deemed to be monthly.
A100: Note: If none of your earnings are taxable, you can simply specify 0% as the taxable percentage. A 0% taxable percentage will also be applicable to earnings items such as loans or advances or reimbursements which are usually not taxable.
A102: The earnings list does not include any earnings values or calculation basis selections. This is because monthly basic salaries, annual bonuses and annual salary increases need to be entered on the Emp sheet for each employee. Monthly earnings values on the Payroll sheet are calculated automatically based on the earnings settings on the Setup sheet and the earnings values for each employee which are set on the Emp sheet.
A104: The default earnings list includes 5 earnings codes. You can customize this list by adding new earnings codes but you should not make any changes to the first 3 earnings codes because these contain unique formulas on the Payroll sheet. If you add additional earnings codes on the Setup sheet, you also need to insert new columns on the Payroll sheet by copying the formulas from the last default earnings code.
A106: Adding or removing list items
A108: The default earnings list includes 5 earnings codes and we do not recommend making any changes to the first 3 earnings codes (codes 4 and 5 can be deleted if not needed). If you require more than 5 earnings codes, additional earnings codes can be added to the list by inserting the required number of new rows above the "End of list" entry and entering the required information into each user input field.
A110: Note: If you add more entries to the list than the default number of entries, you also need to manually insert additional columns or rows on some of the other sheets in this template. Refer to the Column / Row Matrix section of these instructions for guidance on the steps that need to be completed - this is very important because if you add more than the default number of entries to the list and you do not complete these steps, the template calculations will not be accurate!
A112: Salary Deductions
A114: A salary deduction code needs to be created for each type of salary deduction which will be deducted from employee salaries. These salary deduction codes need to be added to the Salary Deductions list on the Setup sheet. The salary deductions list includes 9 user input fields - the following information is required in each of these fields for each type of salary deduction:
A115: Code - enter a code for each salary deduction and use a unique code which will make it easy to identify the appropriate salary deduction and to distinguish between the different types of salary deductions. The salary deduction codes are included above the column headings of all the sections on other sheets in this template where salary deductions are included.
A116: Description - enter a description for each salary deduction. The descriptions that are entered in this part of the salary deductions list are included on the monthly salary pay slips on the PaySlip sheet.
A117: Rate - enter the rate that needs to be used in the salary deduction calculation. The rate can be a value or percentage depending on the basis on which the deduction is calculated.
A118: Basis - enter the basis on which the salary deduction needs to be calculated. There are three options - gross, fixed or linking the salary deduction to the earnings code of the appropriate single earning type on which the deduction needs to be based. If nothing is entered in this field, the salary deduction will be calculated based on gross income.
A119: Earnings Inclusion - select the basis for including earnings in the salary deduction calculation. There are 2 options - full value if the full value of all earnings needs to be included and taxable if only the taxable value of earnings need to be included in the salary deduction calculation. The default option is full value which results in the full value of all the appropriate earning types being included in the salary deduction calculations.
A120: Earn Exclusion - enter the earnings codes of all earnings types which need to be excluded from the salary deduction calculation. The letters of the earnings codes need to be included in this section without any spaces or special characters in between.
A121: Earnings Max - if there is an annual ceiling (maximum) value which needs to be applied in the salary deduction calculation, this annual maximum earnings value needs to be entered in this field. All the values that are entered in this field therefore needs to be annual equivalents. The gross income which is used in the salary deduction calculation will then be limited to this amount.
A122: Tax % - enter the % of the salary deduction amount which is deductible for income tax purposes. If no percentage is specified, the salary deduction is assumed not to be deductible for income tax purposes.
A123: Annual Tax Limit - if the tax deductibility of the salary deduction is limited to a maximum annual limit (ceiling value), this maximum value needs to be entered in this field. If no value if entered, no limit is set for the tax deduction value. For example, pension fund contributions may be limited to say 350,000 per annum and this value therefore needs to be included for the pension fund salary deduction.
A125: The default salary deductions list includes 4 codes. You can customize this list by replacing the default data with your own. The sequence in which salary deductions are included in the list is important because the same sequence is used on the other sheets in this template. If user input values are entered in the Salary Deduction columns on one of the other sheets (as required on the Emp sheet) and you change the sequence of salary deductions, the user input values will not align to the correct salary deduction and the salary deduction calculations will in all probability become inaccurate. We therefore do not recommend that you change the sequence of salary deductions after you have entered data on the Emp sheet. New salary deduction codes can however still be added to the end of the list.
A127: Salary Deduction Rate, Basis & Earning Exclusions
A129: The salary deduction rates that are specified on the Setup sheet relate to the business as a whole and are not employee specific. These rates can however be overridden by the deduction rates that are specified on the Emp sheet (in the section from column R onwards). We therefore suggest that the rates that you include for each deduction in the Rate input field of the Salary Deductions List are rates that are applicable to most of your employees. Where some employees are subject to a different rate of deduction, these rates can then be added for the specific employees on the Emp sheet and will replace the business rates that are specified on the Setup sheet.
A131: Example: If your business has 20 employees and only 2 of them contribute 10% of their salaries to a pension fund, you should enter a rate of 0% in the Rate input field of the pension fund deduction in the Salary Deductions List (on the Setup sheet) and then add the 10% value only for the 2 employees in the appropriate pension fund salary deduction column on the Emp sheet.
A133: The type of rate that you specify on either the Setup or Emp sheet is also largely dependent on the basis that you specify in the next user input field. If the basis is "Gross", the rate would typically be a percentage which needs to be entered as a decimal value in the Rate user input field (for example 0.02 for 2%). If the basis is "Fixed", the rate would typically be an amount - for example a rate of 50.00 would result in an amount of 50.00 being deducted in the appropriate salary deduction calculation.
A135: If an earnings code has been entered as the basis for a salary deduction, the rate that needs to be specified is usually a percentage of the appropriate earning.
A137: Example: If say 1% of only the basic salary earning needs to be deducted from all employees' salaries, the salary deduction can be set up by entering a rate of 0.01 and then entering the earnings code for basic salaries ("A" in our standard template) in the Basis user input field. The salary deduction calculation will then be based on 1% of only earnings code A.
A139: The template has been designed with such flexibility that it is even possible to base a salary deduction on only say two or three earnings codes - simply select the "Gross" basis in order to base the salary deduction calculation on gross income (total of all earnings codes) and then exclude all but the required earnings codes in the Earn Exclusion input field (column I).
A141: Example: If we want to base a salary deduction calculation only on the basic salary (earnings code A) and leave pay (earnings code B) of employees, we can exclude all other earnings codes in column H. The entry in the Earn Exclusion input field would therefore be "CDE" and would result in the salary deduction only being calculated on earnings codes A and B.
A143: Taxable Values
A145: Some salary deductions may not require the full values of earnings to be included in the calculation of the appropriate salary deduction. We have therefore added functionality to the template in order to include the taxable values of earnings instead of the full values for tax calculation purposes.
A147: You can use taxable values of earnings instead of full values by selecting the "Taxable" option for the affected salary deductions in the Earn Inclusion input field (column G). Note that this setting will be applied to all earnings if the "Gross" basis is selected and to the individual earning if an earning code has been specified as the basis.
A149: Even though the taxable value setting is applied to all earnings, it may not affect all earning codes. Where no taxable % or a taxable % of 100% has been specified for a particular earning, the full value and taxable value for the earning will be the same. Setting the Earn Inclusion field to "Taxable" therefore only affects earnings which are not fully taxable. If an earning is not taxable (taxable % of 0%), setting the Earn Inclusion to "Taxable" effectively excludes the particular earning for the salary deduction calculation.
A151: Example: If the unemployment insurance fund (UIF) salary deduction calculation only needs to include a taxable % of 20% of the Travel Allowance earning type, you will need to set the UIF salary deduction to the taxable earnings setting (Earn Inclusion set to "Taxable"). Only 20% of travel allowances will then be included in the UIF calculation but the activation of the setting will also result in all earning types that are 0% taxable being excluded. This means that reimbursive travel allowances and loans / advances which are not taxable (taxable % of 0%) will also not be included in the UIF calculation.
A153: The tax % and annual tax limit settings in column J and K does not affect the salary deduction calculations and only affect how the salary deductions are included in the calculation of the monthly income tax salary deduction. If a salary deduction should not be deducted in the income tax calculations, a tax % of 0% needs to be specified. The default tax percentage is also 0% which means that salary deductions are not deductible for income tax purposes if a tax % is not entered in column J. For salary deductions that are fully deductible for income tax purposes, a setting of 100% needs to be entered in column J.
A155: Adding or removing list items
A157: The default list includes 4 items which can be customized by replacing the default template data with your own. If you require less than 4 salary deduction codes, you can delete the rows that are not required. If you require more than 4 salary deduction codes, additional codes can be added to the list by inserting the required number of new rows above the "End of list" entry and entering the required information into each user input field.
A159: Note: If you add more entries to the list than the default number of entries, you also need to manually insert additional columns or rows on some of the other sheets in this template. Refer to the Column / Row Matrix section of these instructions for guidance on the steps that need to be completed - this is very important because if you add more than the default number of entries to the list and you do not complete these steps, the template calculations will not be accurate!
A161: Company Contributions
A163: A company contribution code needs to be created for each type of company contribution which the employer contributes on behalf of employees. These company contribution codes need to be added to the Company Contributions List on the Setup sheet. The company contribution List includes 7 user input fields - the following information is required in each of these fields for each type of company contribution:
A164: Code - enter a code for each company contribution and use a unique code which will make it easy to identify the company contribution and to distinguish between the different types of company contributions. The company contribution codes are included above the column headings of all the sections on other sheets in this template where company contributions are included.
A165: Description - enter a description for each company contribution.
A166: Rate - enter the rate that needs to be used in the company contribution calculation. The rate can be a value or percentage depending on the basis on which the contribution is calculated.
A167: Basis - enter the basis on which the company contribution needs to be calculated. There are three options - gross, fixed or linking the company contribution to the salary deduction code of the single salary deduction on which the company contribution calculation needs to be based. If nothing is entered in this field, the company contribution will be calculated based on gross income.
A168: Earnings Inclusion - select the basis for including earnings in the company contribution calculation. There are 2 options - full value if the full value of all earnings needs to be included and taxable if only the taxable value of earnings need to be included in the company contribution calculation. The default option is full value which results in the full value of all the appropriate earning types being included in the company contribution calculations.
A169: Earn Exclusion - enter the earnings codes of all earnings types which need to be excluded from the company contribution calculations. The appropriate letters of the earnings codes need to be included in this section without any spaces or special characters in between.
A170: Earnings Max - if there is an annual ceiling (maximum) value which needs to be applied in the company contribution calculation, this annual maximum earnings value needs to be entered in this field. All the values that are entered in this field therefore needs to be annual equivalents. The gross income which is used in the company contribution calculation will then be limited to this amount.
A172: The default company contribution list includes 4 company contribution codes. You can customize this list by replacing the default data in the template with your own data.
A174: Company Contribution Rate, Basis & Earning Exclusions
A176: The company contribution rates that are specified on the Setup sheet relate to the business as a whole and are not employee specific. Where the contribution rates only need to be applied to specific employees, you will need to link the company contribution basis to the appropriate salary deduction code in order to use the salary deduction rates which have been specified on an employee level on the Emp sheet. The company contribution rate which is entered for the particular contribution can be used to adjust the salary deduction rates on the Emp sheet.
A178: If the contribution rates and salary deduction rates are not a consistent percentage, the Override feature needs to be used in order to apply the correct company contribution values for the affected employees. Refer to the Override section of the instructions for more guidance on this feature.
A180: The type of rate that you specify on the Setup sheet is largely dependent on the basis that you specify in the next user input field. If the basis is "Gross", the rate would typically be a percentage which needs to be entered as a decimal value in the Rate user input field (for example 0.02 for 2%). If the basis is "Fixed", the rate would typically be an amount - for example a rate of 50.00 would result in an amount of 50.00 being contributed in the appropriate company contribution calculation.
A182: If a salary deduction code has been entered as the basis for a company contribution, the rate that needs to be specified is usually a percentage of the appropriate salary deduction.
A184: Example: If a company contribution is related to a salary deduction and the contribution and deduction values are based on the same percentage of gross income with the same calculation parameters (which means that the salary deduction and company contribution will always be equal), the company contribution can be set up by entering a rate of 1 (or 100%) and then entering the salary deduction code of the salary deduction in the Basis user input field. The company contribution calculation will then be based on 100% of only the linked salary deduction.
A186: The template has been designed with such flexibility that it is even possible to base a company contribution on only say one, two or three earnings codes - simply select the "Gross" basis in order to base the company contribution calculation on gross income (total of all earnings codes) and then exclude all but the required earnings codes in the Earn Exclusion input field (column H).
A188: Example: If we want to base a company contribution calculation only on the basic salary (earnings code A) of employees, we can exclude all other earnings codes in column H. The entry in the Earn Exclusion input field would therefore be "BCDE" and would result in the company contribution only being calculated on earnings code A which in our default template data is for basic salary only.
A190: Example: The unemployment insurance fund (UIF) company contribution calculation needs to exclude commissions. If the earnings code for commissions is say "F", this letter needs to be included as the Earn Exclusion and the basis set to "Gross". The commission amounts included in gross income are then deducted when calculating the value of the company contribution. Alternatively, you can link the UIF company contribution to the UIF salary deduction and enter a rate of 100% if the salary deduction and company contribution values need to be equal.
A192: Taxable Values
A194: Some company contributions may not require the full values of earnings to be included in the calculation of the appropriate company contribution. We have therefore added functionality to the template in order to include the taxable values of earnings instead of the full values for tax calculation purposes.
A196: You can use taxable values of earnings instead of full values by selecting the "Taxable" option for the affected company contributions in the Earn Inclusion input field (column G). Note that this setting will be applied to all earnings if the "Gross" basis is selected (excluded earnings will however be deducted).
A198: Even though the taxable value setting is applied to all earnings, it may not affect all earnings codes. Where no taxable % or a taxable % of 100% has been specified for a particular earning, the full value and taxable value for the earning will be the same. Setting the Earn Inclusion field to "Taxable" only affects earnings which are not fully taxable. If an earning is not taxable (taxable % of 0%), setting the Earn Inclusion to "Taxable" effectively excludes the particular earning from the company contribution calculation.
A200: Example: If the unemployment insurance fund (UIF) company contribution calculation only needs to include a taxable % of 20% of the Travel Allowance earning type, you will need to set the UIF company contribution to the taxable earnings setting (Earn Inclusion set to "Taxable"). Only 20% of travel allowances will then be included in the UIF calculation but the activation of the setting will also result in all earning types that are 0% taxable being excluded. This means that reimbursive travel allowances and loans / advances which are not taxable (taxable % of 0%) will also not be included in the UIF calculation.
A202: Example: If a company contribution has been linked to a salary deduction, it is not necessary to specify values for any of the other settings. If we link our company contribution for UIF to the salary deduction for UIF, we do not need to enter anything in the earn inclusion, earn exclusion and earnings max input fields.
A204: Adding or removing list items
A206: The default list includes 4 items which can be customized by replacing the default template data with your own. If you require less than 4 company contribution codes, you can delete the rows that are not required. If you require more than 4 company contribution codes, additional codes can be added to the list by inserting the required number of new rows above the "End of list" entry and entering the required information into each user input field.
A208: Note: If you add more entries to the list than the default number of entries, you also need to manually insert additional columns or rows on some of the other sheets in this template. Refer to the Column / Row Matrix section of these instructions for guidance on the steps that need to be completed - this is very important because if you add more than the default number of entries to the list and you do not complete these steps, the template calculations will not be accurate!
A210: Departments
A212: Employees can be linked to departments in order to calculate departmental payroll costs which can be used to allocate payroll entries for accounting purposes. The department code is linked to individual employees in column C on the Emp sheet and only the department codes which have been included in the Departments list on the Setup sheet will be available for selection. The following information is required in the department list:
A213: Code - enter a unique code for each department which will make it easy to identify the appropriate department and to distinguish between different departments.
A214: Description - enter a description for each department.
A215: Cost Centre - enter the general ledger code which should be used for allocation of costs to departments.
A217: Note: The template only includes 3 departments but you can add additional departments by inserting the required number of rows above the "End of list" row and adding a department code, description and cost centre for each of the new departments.
A219: Note: A summary of payroll costs by department is included on the MonthDept sheet. All the calculations that are included on this sheet are automated and the only user input which is required on this sheet is selecting the appropriate payroll cost measurement at the top of the sheet.
A221: Column & Row Matrix
A223: The Column & Row Matrix at the bottom of the Setup sheet indicates whether the rows or columns on the other sheets in this template are consistent with the number of items which have been added to the lists on the Setup sheet. If rows or columns need to be added on any of the other sheets, the Status column in the matrix will be highlighted in red. If all the cells in the Status column are highlighted in green, it means that there are no inconsistencies and no additional rows or columns need to be added to the other sheets in the template.
A225: Note: If you do not add additional items to the lists on the Setup sheet, all the cells in the Status column will automatically contain green highlighting and you do not need to pay any further attention to the matrix. The matrix therefore only needs to be used if you add additional list items.
A227: Adding list items
A229: None of the lists on the Setup sheet are limited to the default number of entries which means that you can add as many additional items as required. When you add items to a list, you need to insert the required number of rows (one per additional list item) above the "End of list" entry and complete the user input in all the columns that form part of the list for all the new items.
A231: If the total number of list items are more than the number of default items that are provided for, the matrix at the bottom of the Setup sheet will indicate where on the other sheets in this template new rows or columns need to be inserted. The inconsistency between list items and columns is indicated by red highlighting in the Status column of the Column & Row Matrix.
A233: The Sheet & Section text in column A of the matrix indicates which sheet and which section of the sheet requires additional rows or columns to be inserted. The starting row or column indicates in which row or column the section starts and the difference between the sheet count and the list count indicates how many new rows or columns need to be inserted.
A235: You then need to go to the appropriate sheet and section and insert the required number of rows or columns in order to resolve the inconsistency. Note that if there are row or column inconsistencies, the template calculations may be inaccurate and it is therefore imperative that all of these errors are resolved!
A237: Inserting new rows or columns
A239: If any of the status cells in the matrix is highlighted in red, the start row or column text will indicate whether rows or columns need to be inserted in order to resolve the error. If the text contains letters, columns need to be inserted and if the text contains numbers, rows need to be inserted. The column or row number also indicates where on the appropriate sheet the section starts.
A241: If you need to insert columns, you need to go to the starting column of the appropriate section and select the first dark blue cell in the column heading at the end of the section. The section starts at the indicated column which will have a dark blue cell as the column heading followed by a number of light blue column headings which are then followed by a dark blue column heading. You therefore need to select the first column heading cell with a dark blue column heading at the end of the appropriate section and then insert the required number of columns.
A243: After you have inserted the required number of columns, you may need to change the column heading numbering so that the column heading names are consistent with the other columns in the section. This is not critical but may make it easier to determine which columns are part of the same section.
A245: You then need to copy & paste all the cells above the column headings of the new columns from one of the existing columns. Always copy from the left - the section ends where you inserted the new columns and you therefore need to copy the formulas from the left in order to ensure that the same formulas are applied to the new columns that you just inserted.
A247: Once you have done so, the last step is to copy the formulas from the section below the column headings in order to add calculations to the new columns. You should again copy from the left and you only need to copy & paste the formulas into the first cell below the column headings. The formulas will automatically be extended for all the other rows that form part of the new columns.
A249: Note: If you need to add columns to a sheet and the column headings are yellow instead of light blue, you do not need to copy the formulas below the column headings because the section of the sheet requires user input and there are therefore no formulas in these columns. The Deduction section on the Emp sheet is the only user input column section which may be affected. All the other column sections contain formulas that need to be copied.
A251: If you need to insert rows instead of columns, you only need to insert the new rows at the end of the appropriate section and copy the formulas from the last row that forms part of that section (which will be above the new rows). You may then also need to change some of the border formatting but there are no dark blue row headings that need to be taken into account.
A253: After making your row or column adjustments, you need to check whether the red highlighting in the Status column of the matrix on the Setup sheet has been replaced by green highlighting. If so, you have applied the changes correctly. If the Status cell is still highlighted in red, the error has not been resolved and you need to revisit the steps that you needed to take. If you fail to resolve the error, contact us for assistance.
A255: Deleting rows or columns
A257: If you do not use some of the list items that are included in each of the lists on the Setup sheet, you can delete the appropriate rows from the list in order to reduce the number of earnings, salary deductions or company contributions.
A259: The number of columns which have been included on the Emp, Payroll and Summary sheets have been determined based on the default number of list items that we have included on the Setup sheet. If you therefore remove some of the list items, some of these columns can also be deleted.
A261: Note: We recommend rather retaining unused columns instead of deleting them. If you delete the wrong columns it could result in errors. Only therefore delete columns if you are absolutely sure that the columns are not being used in any calculations.
A263: Employees
A265: All employees need to be added to the Emp sheet by adding a unique employee number in column A and entering employee data into all the user input columns on this sheet. The following columns require user input data:
A266: Employee Number - enter a unique employee number for each individual employee. We recommend using employee numbers which consist of a combination of letters and numbers.
A267: Employee Name - enter the name of the employee. You can use full names or surname & initials. The name as entered in this field will be included on the other sheets in the template including on the pay slip.
A268: Dept - select the appropriate department. Only departments which have been added to the department list on the Setup sheet will be available for selection.
A269: Date Employed - enter the date on which the employee commenced employment.
A270: 1st Payment Date - enter the date of the first payroll run which the employee should be included in. If the employee is added to a payroll run in any month which falls before the first day of the month in which this date falls, all payroll amounts will be set to nil values. The number of pay periods is also determined based on this date and an incorrect date can therefore lead to calculation inaccuracies. It is therefore imperative that the first payment dates of all employees are recorded accurately.
A271: Date Terminated - if the employee has left the employment of the company, enter the date of termination in this column. The employee will only be able to receive payment on a payroll run date up to the end of the month in which this date falls.
A272: Pay Period Override - select the "Yes" option if the employee pay periods need to be replaced by the business pay periods. This setting only has an effect if an employee has joined the company during the current tax year. See below for an example.
A273: Job Title - enter the employee job title (included on pay slip).
A274: ID Number - enter the employee identification or ID number (included on pay slip).
A275: Income Tax Number - enter the employee income tax number (included on pay slip).
A276: Residential Address - enter the residential address of the employee (included on pay slip).
A277: IT Rebate Code - enter the appropriate income tax rebate code for the employee. Refer to the income tax rebate list on the Setup sheet for the available rebate codes. It is important that the correct rebate codes are entered for each employee otherwise their income tax calculations may not be accurate.
A278: Income Tax Rate - select the appropriate income tax table code for the employee. There are two income tax tables on the Setup sheet - select A for the first table and B for the second table. You can also enter a percentage in this field if the income tax calculations for the employee need to be based on a fixed income tax percentage.
A279: Medical Aid Members - enter the number of medical aid members. The medical tax credits are based on the number of medical aid members and the rates that are specified in the Medical Tax Credits table on the Setup sheet.
A280: Basic Monthly Salary - enter the monthly basic salary of each employee in this column. The values in this column are included in the basic salary column (earnings code A) on the Payroll sheet for all months in which the employee is active. If the employee's basic salary changes (aside from the one salary increase month which is provided for), you should not change the value in this column but add an override entry to the Override sheet for the remaining pay periods. If you change the amount in this column, it will also change payroll data for past pay periods.
A281: Annual Bonus Amount - enter the annual bonus amount in this column. The amounts entered in this column are included in the annual bonus column (earnings code C) on the Payroll sheet based on the annual bonus month selection which is specified on the Setup sheet.
A282: One Increase Amount - enter the adjusted monthly salary amounts after the annual salary increase in this column. Note that it is not the amount of the increase which needs to be entered, it is the full adjusted salary amount. The basic monthly salaries (earnings code A) in all remaining pay periods will be adjusted to the amounts specified in this column and the annual salary increase month is set on the Setup sheet. If no annual salary increases need to be applied during the course of the tax year, you do not need to enter any values in this column.
A283: Deduction Rates - this section includes 4 columns, one for each of the 4 default items that are included in the Salary Deductions List on the Setup sheet. The rate field on the Setup sheet which is set up on a business level can be overridden by entering a rate for a particular employee in the appropriate salary deduction column in this section of the Emp sheet. The salary deduction code of each column is included above the column heading.
A284: Period Count - this column contains a formula which displays the number of pay periods which have been added to the Payroll sheet for the particular employee. All of the values in this column should be 12 - if the value for any employee is less than 12, it indicates that you need to add additional rows to the table on the Payroll sheet.
A286: Note: All the columns on the Emp sheet have been included in an Excel table. This feature is extremely useful when entering data in a table format because the table extends automatically when you enter data in the first blank row below the table. New employees should therefore be added to the sheet by entering an employee code in the first blank cell in column A.
A288: Note: The salary amounts and the rates in the Deduction section of the Emp sheet should not be changed once you have completed your first pay period because it will also affect past pay periods which would then result in differences between the payroll calculations and the amounts which have been paid during the elapsed months. If any of these salary amounts or deduction rates need to be amended during the course of the current tax year, you need to use the Override feature to affect the required changes.
A290: Pay Periods
A292: When an employee joins the company during the tax year and is therefore only employed for part of the year, the employee's pay periods are determined based on the date that the employee joined in order for the income tax calculations to be accurate based on the assumption that the employee had been employed elsewhere before joining the company.
A294: You can override this default calculation by selecting the "Yes" option in the Pay Period Override column on this sheet. The company pay periods are then used instead of the employee pay periods. This setting has no effect on employees who are employed for the full tax year.
A296: Example: If an employee joins the company in month 7 of the tax year, the employee pay period in month 7 will be 1 because it is the employee's first month of employment. This means that if the employee has a gross pay of 10,000 per month, the salary deductions (including income tax) will be calculated based on an annual gross remuneration of 120,000 (10,000 / 1 x 12).
A298: The effect of this default calculation is that for example income tax will be calculated & deducted from the employee's salary based on annual earnings of 120,000 therefore assuming that the employee was employed elsewhere at a similar remuneration level for the part of the tax year before joining the company. If this was indeed the case, the employee's annual income tax deductions should be similar to what will be included on the employee's tax return at the end of the tax year.
A300: If the employee was not employed during the part of the tax year that elapsed before joining the company, the above calculation method would result in an over deduction of income tax because the calculation is based on a full 12-month employment period. If you want to override this default calculation in order to calculate salary deductions like income tax based on only the part of the tax year that the employee was employed by the company, you simply need to select the "Yes" option for the particular employee in the Pay Period Override column.
A302: The income tax calculation will then be based on the company pay periods which in the above example will result in the deductions being based on an annual gross remuneration of 60,000 by the end of the tax year. Under the default rule, the employee would have had to pay a lot more income tax on a monthly basis and only have been able to claim the tax back at the end of the tax year. With the override activated, the income tax deduction would be a lot less and would be accurate by the end of the tax year with no need to claim any tax back.
A304: Monthly Salary Amounts
A306: The monthly salary amounts which are included on the Payroll sheet (and therefore also all other sheets in this template) are based on the monthly basic salary amounts which are specified on the Emp sheet. These monthly salary amounts are basically repeated for all 12 pay periods in the tax year and only adjusted based on the annual salary increase amounts that are also specified on the Emp sheet.
A308: While the annual bonus amounts on the Emp sheet are included in a separate earnings code (earnings code C) and therefore represent an additional salary payment, the basic monthly salary amounts and the annual salary increase amounts are both applied in earnings code A. The annual salary increase amounts therefore in fact replace the basic monthly salary amounts from the salary increase month (which is selected on the Setup sheet) until the end of the tax year. You can therefore select any month as a salary increase month for all employees and the increased salary amounts will be used from that point forward.
A310: The salary increase functionality has enabled us to provide for one company wide salary increase per year. But what if some employees receive more than one salary increase per year? Well, this is also accommodated for but you would need to record an override entry to be able to adjust the basic salary of the affected employee outside of the one annual salary increase for all employees. Refer to the Override section of the instructions for more info.
A312: Deductions Section
A314: The rates that are specified in the 4 columns which are included in the Deduction section effectively override the rates that are specified in the Salary Deductions List on the Setup sheet. The salary deduction rate which is used on the Payroll sheet for the specific employee is therefore included from the Emp sheet and if no rate has been included for the particular salary deduction for the particular employee, the rate on the Setup sheet will be included instead. You therefore only need to include a rate on the Emp sheet if you want to override the company rate on the Setup sheet for some of the employees.
A316: The Deduction section includes 4 columns which is the default number of list items in the Salary Deductions List on the Setup sheet. If you add items to the list on the Setup sheet, you also need to add columns at the end of this section on the Emp sheet.
A318: The columns should be added by selecting the dark blue column heading (after the end of the section) and inserting the required number of columns. You then also need to copy the formula above the column heading from one of the other cells in the section in order to display the deduction code above the column headings of the new columns. You may also need to rename the column headings if the default names in the new column headings are not consistent with the other column names in the section.
A320: Note: As we stated earlier on in these instructions, the sequence of the items in the lists on the Setup sheet should not be changed once you have added data to the Payroll sheet. If the sequence of the items in the Salary Deduction List is changed, the rates or values that have been added to the Emp sheet also needs to be changed to ensure that the correct rates or values are included in the correct columns.
A322: Payroll
A324: All the monthly payroll calculations in this template are performed on the Payroll sheet and all of these calculations are automated. The only user intervention that may be required is to ensure that there are sufficient rows in the Excel table on this sheet. The template is designed for businesses with up to 50 employees and we have added sufficient rows for 12 months' calculations for 50 employees but if you add more than 50 employees, you will need to add more rows to the table.
A326: If you've added less than 50 employees to the Emp sheet and you do not need 50 employees to be included on the Payroll sheet, you can delete some of the additional rows. The rows that are currently not used will not contain an employee code and you can therefore delete all rows that do not contain an employee code. If you subsequently add more employees, there may not be sufficient rows in the Excel table for all payroll calculations but the Sheet Status at the top of the Payroll sheet will be highlighted in red and indicate the number of rows that need to be added.
A328: If the Sheet Status is red, it means that your payroll calculations are not up to date and that you need to add rows to the table. You can select any cell in the table and insert the required number of rows into the table - the new rows will be populated automatically with the appropriate formulas because they now form part of the Excel table and calculated columns are automatically copied.
A330: Note: The area above the column headings also contain formulas which should not be edited, replaced or deleted otherwise the template calculations will not be accurate.
... 111 more rows

Sheet Setup (hidden)
A1: =$C$4 -> Example (Pty) Limited
A2: Setup
A3: © www.excel-skills.com
A4: Business Name | C4: Example (Pty) Limited
A5: Business Address | C5: Building Name, Street Address, Suburb, City, Code
A6: Business Reg Number | C6: 2017 000000 00
A7: Contact Tel Number | C7: +27 21 999 9999
A8: Contact E-mail | C8: hr@example.com
A10: Tax Period End | C10: 2020-02-01 | E10: =IF(ISBLANK($C$16),$D$12+1,IF($C$16>=MONTH($F$12),DATE(YEAR($F$12),$C$16,1),DATE(YEAR($F$12)+1,$C$16,1))) -> 45292 | F10: =IF(ISBLANK($C$15),12,$C$15) -> 12
D11: Current | E11: Prior | F11: Temp Start
A12: Tax Year | C12: 2024 | D12: =IF(ISBLANK($C$12)=TRUE,IF(ISBLANK($C$10)=TRUE,DATE(YEAR(TODAY())+1,2+1,0),DATE(YEAR(TODAY())+1,MONTH($C$10)+1,0)),IF(ISBLANK($C$10)=TRUE,DATE($C$12,2+1,0),DATE($C$12,MONTH($C$10)+1,0))) -> 45351 | E12: =DATE(YEAR($D$12)-1,MONTH($D$12)+1,0) -> 44985 | F12: =E12+1 -> 44986
A14: Salary Payment Day | C14: 25
A15: Annual Bonus Month | C15: 12
A16: Salary Increase Month | C16: 1
A18: Income Tax Rates - Table A
A20: Income Tax Brackets | C20: Tax Bracket Value | D20: Tax Rate | E20: Equivalent Value | F20: Effective Rate
A21: ="From 0 to "&FIXED(C21,0,0) -> From 0 to 237,100 | C21: 237100 | D21: 0.18 | E21: =C21*D21 -> 42678 | F21: =IF(C21=0,0,E21/C21) -> 0.18
A22: ="From "&FIXED(OFFSET($C$20,ROW(C22)-ROW(C$20)-1,0,1,1)+1,0,0)&" to "&FIXED(C22,0,0) -> From 237,101 to 370,500 | C22: 370500 | D22: 0.26 | E22: =((C22-OFFSET($C$20,ROW(C22)-ROW(C$20)-1,0,1,1))*D22)+OFFSET($E$20,ROW(C22)-ROW(C$20)-1,0,1,1) -> 77362 | F22: 0.2088043185
A23: ="From "&FIXED(OFFSET($C$20,ROW(C23)-ROW(C$20)-1,0,1,1)+1,0,0)&" to "&FIXED(C23,0,0) -> From 370,501 to 512,800 | C23: 512800 | D23: 0.31 | E23: =((C23-OFFSET($C$20,ROW(C23)-ROW(C$20)-1,0,1,1))*D23)+OFFSET($E$20,ROW(C23)-ROW(C$20)-1,0,1,1) -> 121475 | F23: 0.2368857254
A24: ="From "&FIXED(OFFSET($C$20,ROW(C24)-ROW(C$20)-1,0,1,1)+1,0,0)&" to "&FIXED(C24,0,0) -> From 512,801 to 673,000 | C24: 673000 | D24: 0.36 | E24: =((C24-OFFSET($C$20,ROW(C24)-ROW(C$20)-1,0,1,1))*D24)+OFFSET($E$20,ROW(C24)-ROW(C$20)-1,0,1,1) -> 179147 | F24: 0.266191679
A25: From 673,001 to 857,900 | C25: 857900 | D25: 0.39 | E25: =((C25-OFFSET($C$20,ROW(C25)-ROW(C$20)-1,0,1,1))*D25)+OFFSET($E$20,ROW(C25)-ROW(C$20)-1,0,1,1) -> 251258 | F25: 0.2928756265
A26: From 857,901 to 1,817,000 | C26: 1817000 | D26: 0.41 | E26: =((C26-OFFSET($C$20,ROW(C26)-ROW(C$20)-1,0,1,1))*D26)+OFFSET($E$20,ROW(C26)-ROW(C$20)-1,0,1,1) -> 644489 | F26: 0.3546995047
A27: ="From "&FIXED(OFFSET($C$20,ROW(C27)-ROW(C$20)-1,0,1,1)+1,0,0)&" and above" -> From 1,817,001 and above | D27: 0.45
A29: Income Tax Rates - Table B
A31: Income Tax Brackets | C31: Tax Bracket Value | D31: Tax Rate | E31: Equivalent Value | F31: Effective Rate
A32: ="From 0 to "&FIXED(C32,0,0) -> From 0 to 200,000 | C32: 200000 | D32: 0 | E32: =C32*D32 -> 0 | F32: =IF(C32=0,0,E32/C32) -> 0
A33: ="From "&FIXED(OFFSET($C$31,ROW(C33)-ROW(C$31)-1,0,1,1)+1,0,0)&" to "&FIXED(C33,0,0) -> From 200,001 to 300,000 | C33: 300000 | D33: 0 | E33: =((C33-OFFSET($C$20,ROW(C33)-ROW(C$20)-1,0,1,1))*D33)+OFFSET($E$20,ROW(C33)-ROW(C$20)-1,0,1,1) -> 0 | F33: 0
A34: ="From "&FIXED(OFFSET($C$31,ROW(C34)-ROW(C$31)-1,0,1,1)+1,0,0)&" to "&FIXED(C34,0,0) -> From 300,001 to 400,000 | C34: 400000 | D34: 0 | E34: =((C34-OFFSET($C$20,ROW(C34)-ROW(C$20)-1,0,1,1))*D34)+OFFSET($E$20,ROW(C34)-ROW(C$20)-1,0,1,1) -> 0 | F34: 0
A35: From 400,001 to 550,000 | C35: 550000 | D35: 0 | E35: =((C35-OFFSET($C$20,ROW(C35)-ROW(C$20)-1,0,1,1))*D35)+OFFSET($E$20,ROW(C35)-ROW(C$20)-1,0,1,1) -> 0 | F35: 0
A36: From 550,001 to 700,000 | C36: 700000 | D36: 0 | E36: =((C36-OFFSET($C$20,ROW(C36)-ROW(C$20)-1,0,1,1))*D36)+OFFSET($E$20,ROW(C36)-ROW(C$20)-1,0,1,1) -> 0 | F36: 0
A37: From 700,001 to 1,000,000 | C37: 1000000 | D37: 0 | E37: =((C37-OFFSET($C$20,ROW(C37)-ROW(C$20)-1,0,1,1))*D37)+OFFSET($E$20,ROW(C37)-ROW(C$20)-1,0,1,1) -> 0 | F37: 0
A38: ="From "&FIXED(OFFSET($C$31,ROW(C38)-ROW(C$31)-1,0,1,1)+1,0,0)&" and above" -> From 1,000,001 and above | D38: 0
A40: Income Tax Rebates
A41: Code | B41: Description | C41: Value | D41: Total
A42: A | B42: Primary Rebate | C42: 17235 | D42: =SUM(C$42:C42) -> 17235
A43: B | B43: Secondary | C43: 9444 | D43: =SUM(C$42:C43) -> 26679
A44: C | B44: Tertiary | C44: 3145 | D44: =SUM(C$42:C44) -> 29824
A45: D | B45: None | C45: 0 | D45: =C45 -> 0
A46: End of list
A48: Medical Tax Credits
A49: No | B49: Per Member | C49: Monthly Value
A50: 0 | B50: 0 | C50: =B50+IF(ISNUMBER(OFFSET(A50,-1,2,1,1)),OFFSET(A50,-1,2,1,1),0) -> 0
A51: 1 | B51: 364 | C51: =B51+IF(ISNUMBER(OFFSET(A51,-1,2,1,1)),OFFSET(A51,-1,2,1,1),0) -> 364
A52: =OFFSET(B52,-1,-1,1,1)+1 -> 2 | B52: 364 | C52: =B52+IF(ISNUMBER(OFFSET(A52,-1,2,1,1)),OFFSET(A52,-1,2,1,1),0) -> 728
A53: =OFFSET(B53,-1,-1,1,1)+1 -> 3 | B53: 246 | C53: =B53+IF(ISNUMBER(OFFSET(A53,-1,2,1,1)),OFFSET(A53,-1,2,1,1),0) -> 974
A54: 4 | B54: 246 | C54: 1220
A55: 5 | B55: 246 | C55: 1466
A56: 6 | B56: 246 | C56: 1712
A57: 7 | B57: 246 | C57: =B57+IF(ISNUMBER(OFFSET(A57,-1,2,1,1)),OFFSET(A57,-1,2,1,1),0) -> 1958
A58: 8 | B58: 246 | C58: 2204
A59: 9 | B59: 246 | C59: 2450
A60: 10 | B60: 246 | C60: 2696
A61: End of list
A63: Earnings List
A64: Code | B64: Description | D64: =COUNTA(OFFSET(A64,1,0,ROW($A$70)-ROW($A$64)-1,1)) -> 5 | E64: Short Name | F64: Taxable % | G64: Basis
A65: A | B65: Basic Salary | E65: Basic | G65: Monthly
A66: B | B66: Leave | E66: Leave | G66: Annual
A67: C | B67: Annual Bonus | E67: Bonus | G67: Annual
A68: D | B68: Loan / Advance | E68: Loan | F68: 0 | G68: Monthly
A69: E | B69: Not Used | E69: Not Used | F69: 0 | G69: Monthly
A70: End of list
A72: Salary Deductions List
A73: Code | B73: Description | D73: =COUNTA(OFFSET(A73,1,0,ROW($A$78)-ROW($A$73)-1,1)) -> 4 | E73: Rate | F73: Basis | G73: Earn Inclusion | H73: Earn Exclusion | I73: Earnings Max | J73: Tax % | K73: Annual Tax Limit
A74: UIF | B74: Unemployment Insurance | E74: 0.01 | F74: Gross | G74: Taxable | H74: D | I74: 212544 | J74: 0
A75: PENS | B75: Pension Fund | E75: 0 | F75: Gross | G75: Taxable | H75: D | J75: 1 | K75: 350000
A76: LOAN | B76: Loan / Advance | E76: 0 | F76: Fixed | G76: Full Value | J76: 0
A77: DED4 | B77: Not Used | E77: 0 | F77: Fixed | G77: Full Value
A78: End of list
A80: Company Contributions List
A81: Code | B81: Description | D81: =COUNTA(OFFSET(A81,1,0,ROW($A$86)-ROW($A$81)-1,1)) -> 4 | E81: Rate | F81: Basis | G81: Earn Inclusion | H81: Earn Exclusion | I81: Earnings Max
A82: UIF | B82: Unemployment Insurance | E82: 1 | F82: UIF | G82: Taxable
A83: SDL | B83: Skills Development | E83: 0.01 | F83: Gross | G83: Taxable | H83: D
A84: CO3 | B84: Not Used | E84: 0 | F84: Gross | G84: Taxable
A85: CO4 | B85: Not Used | E85: 0 | F85: Gross | G85: Taxable
A86: End of list
A88: Departments
A89: Code | B89: Description | D89: =COUNTA(OFFSET(A89,1,0,ROW($A$93)-ROW($A$89)-1,1)) -> 3 | E89: Cost Centre
A90: M | B90: Management | E90: IS-330
A91: S | B91: Sales | E91: IS-340
A92: A | B92: Admin | E92: IS-350
A93: End of list
B95: Month Names
B96: =DATE(YEAR(TODAY())+1,ROW(C96)-ROW($C$95),1) -> 2024-01-01
B97: 2024-02-01
B98: 2024-03-01
B99: 2024-04-01
B100: 2024-05-01
B101: 2024-06-01
B102: 2024-07-01
B103: 2024-08-01
B104: 2024-09-01
B105: 2024-10-01
B106: 2024-11-01
B107: 2024-12-01
B108: End of list
B110: Measurement List
B111: Gross Pay | C111: =COLUMN(Payroll!$L$2) -> 12
B112: Income Tax | C112: =COLUMN(Payroll!$M$2) -> 13
B113: Total Deductions | C113: =COLUMN(Payroll!$R$2) -> 18
B114: Net Pay | C114: =COLUMN(Payroll!$S$2) -> 19
B115: Total Co-Contributions | C115: =COLUMN(Payroll!$X$2) -> 24
B116: Deductions & Co-Contrib | C116: =COLUMN(Payroll!$Z$2) -> 26
B117: Cost to Company | C117: =COLUMN(Payroll!$Y$2) -> 25
B119: Payslip Fields
A120: 1 | B120: =IF(ROW($C120)-ROW($C$120)+1<=EarnListCount,OFFSET(Payroll!$G$2,0,ROW($C120)-ROW($C$120),1,1),"-") -> A | C120: =IF(B120="-",0,SUMIFS(OFFSET(Payroll!$G$6,1,ROW($C120)-ROW($C$120),PayCount,1),PayEmp,PaySlip!$C$11,PayDate,"<="&PaySlip!$G$4)) -> 1830000 | D120: =Payroll!$M$5 -> TAX | E120: =IF(D120="-",0,SUMIFS(PayTaxDeduct,PayEmp,PaySlip!$C$11,PayDate,"<="&PaySlip!$G$4)) -> 616187
A121: 2 | B121: =IF(ROW($C121)-ROW($C$120)+1<=EarnListCount,OFFSET(Payroll!$G$2,0,ROW($C121)-ROW($C$120),1,1),"-") -> B | C121: =IF(B121="-",0,SUMIFS(OFFSET(Payroll!$G$6,1,ROW($C121)-ROW($C$120),PayCount,1),PayEmp,PaySlip!$C$11,PayDate,"<="&PaySlip!$G$4)) -> 0 | D121: =IF(ROW($E121)-ROW($E$121)+1<=DedListCount,OFFSET(Payroll!$N$6,-1,ROW($C122)-ROW($C$122),1,1),"-") -> UIF | E121: =IF(D121="-",0,SUMIFS(OFFSET(Payroll!$N$6,1,ROW($C122)-ROW($C$122),PayCount,1),PayEmp,PaySlip!$C$11,PayDate,"<="&PaySlip!$G$4)) -> 2125.44
A122: 3 | B122: =IF(ROW($C122)-ROW($C$120)+1<=EarnListCount,OFFSET(Payroll!$G$2,0,ROW($C122)-ROW($C$120),1,1),"-") -> C | C122: =IF(B122="-",0,SUMIFS(OFFSET(Payroll!$G$6,1,ROW($C122)-ROW($C$120),PayCount,1),PayEmp,PaySlip!$C$11,PayDate,"<="&PaySlip!$G$4)) -> 150000 | D122: =IF(ROW($E122)-ROW($E$121)+1<=DedListCount,OFFSET(Payroll!$N$6,-1,ROW($C123)-ROW($C$122),1,1),"-") -> PENS | E122: =IF(D122="-",0,SUMIFS(OFFSET(Payroll!$N$6,1,ROW($C123)-ROW($C$122),PayCount,1),PayEmp,PaySlip!$C$11,PayDate,"<="&PaySlip!$G$4)) -> 148500
A123: 4 | B123: =IF(ROW($C123)-ROW($C$120)+1<=EarnListCount,OFFSET(Payroll!$G$2,0,ROW($C123)-ROW($C$120),1,1),"-") -> D | C123: =IF(B123="-",0,SUMIFS(OFFSET(Payroll!$G$6,1,ROW($C123)-ROW($C$120),PayCount,1),PayEmp,PaySlip!$C$11,PayDate,"<="&PaySlip!$G$4)) -> 0 | D123: =IF(ROW($E123)-ROW($E$121)+1<=DedListCount,OFFSET(Payroll!$N$6,-1,ROW($C124)-ROW($C$122),1,1),"-") -> LOAN | E123: =IF(D123="-",0,SUMIFS(OFFSET(Payroll!$N$6,1,ROW($C124)-ROW($C$122),PayCount,1),PayEmp,PaySlip!$C$11,PayDate,"<="&PaySlip!$G$4)) -> 0
A124: 5 | B124: =IF(ROW($C124)-ROW($C$120)+1<=EarnListCount,OFFSET(Payroll!$G$2,0,ROW($C124)-ROW($C$120),1,1),"-") -> E | C124: =IF(B124="-",0,SUMIFS(OFFSET(Payroll!$G$6,1,ROW($C124)-ROW($C$120),PayCount,1),PayEmp,PaySlip!$C$11,PayDate,"<="&PaySlip!$G$4)) -> 0 | D124: =IF(ROW($E124)-ROW($E$121)+1<=DedListCount,OFFSET(Payroll!$N$6,-1,ROW($C125)-ROW($C$122),1,1),"-") -> DED4 | E124: =IF(D124="-",0,SUMIFS(OFFSET(Payroll!$N$6,1,ROW($C125)-ROW($C$122),PayCount,1),PayEmp,PaySlip!$C$11,PayDate,"<="&PaySlip!$G$4)) -> 0
A125: 6 | B125: =IF(ROW($C125)-ROW($C$120)+1<=EarnListCount,OFFSET(Payroll!$G$2,0,ROW($C125)-ROW($C$120),1,1),"-") -> - | C125: =IF(B125="-",0,SUMIFS(OFFSET(Payroll!$G$6,1,ROW($C125)-ROW($C$120),PayCount,1),PayEmp,PaySlip!$C$11,PayDate,"<="&PaySlip!$G$4)) -> 0 | D125: =IF(ROW($E125)-ROW($E$121)+1<=DedListCount,OFFSET(Payroll!$N$6,-1,ROW($C126)-ROW($C$122),1,1),"-") -> - | E125: =IF(D125="-",0,SUMIFS(OFFSET(Payroll!$N$6,1,ROW($C126)-ROW($C$122),PayCount,1),PayEmp,PaySlip!$C$11,PayDate,"<="&PaySlip!$G$4)) -> 0
A126: 7 | B126: =IF(ROW($C126)-ROW($C$120)+1<=EarnListCount,OFFSET(Payroll!$G$2,0,ROW($C126)-ROW($C$120),1,1),"-") -> - | C126: =IF(B126="-",0,SUMIFS(OFFSET(Payroll!$G$6,1,ROW($C126)-ROW($C$120),PayCount,1),PayEmp,PaySlip!$C$11,PayDate,"<="&PaySlip!$G$4)) -> 0 | D126: =IF(ROW($E126)-ROW($E$121)+1<=DedListCount,OFFSET(Payroll!$N$6,-1,ROW($C127)-ROW($C$122),1,1),"-") -> - | E126: =IF(D126="-",0,SUMIFS(OFFSET(Payroll!$N$6,1,ROW($C127)-ROW($C$122),PayCount,1),PayEmp,PaySlip!$C$11,PayDate,"<="&PaySlip!$G$4)) -> 0
A127: 8 | B127: =IF(ROW($C127)-ROW($C$120)+1<=EarnListCount,OFFSET(Payroll!$G$2,0,ROW($C127)-ROW($C$120),1,1),"-") -> - | C127: =IF(B127="-",0,SUMIFS(OFFSET(Payroll!$G$6,1,ROW($C127)-ROW($C$120),PayCount,1),PayEmp,PaySlip!$C$11,PayDate,"<="&PaySlip!$G$4)) -> 0 | D127: =IF(ROW($E127)-ROW($E$121)+1<=DedListCount,OFFSET(Payroll!$N$6,-1,ROW($C128)-ROW($C$122),1,1),"-") -> - | E127: =IF(D127="-",0,SUMIFS(OFFSET(Payroll!$N$6,1,ROW($C128)-ROW($C$122),PayCount,1),PayEmp,PaySlip!$C$11,PayDate,"<="&PaySlip!$G$4)) -> 0
A128: 9 | B128: =IF(ROW($C128)-ROW($C$120)+1<=EarnListCount,OFFSET(Payroll!$G$2,0,ROW($C128)-ROW($C$120),1,1),"-") -> - | C128: =IF(B128="-",0,SUMIFS(OFFSET(Payroll!$G$6,1,ROW($C128)-ROW($C$120),PayCount,1),PayEmp,PaySlip!$C$11,PayDate,"<="&PaySlip!$G$4)) -> 0 | D128: =IF(ROW($E128)-ROW($E$121)+1<=DedListCount,OFFSET(Payroll!$N$6,-1,ROW($C129)-ROW($C$122),1,1),"-") -> - | E128: =IF(D128="-",0,SUMIFS(OFFSET(Payroll!$N$6,1,ROW($C129)-ROW($C$122),PayCount,1),PayEmp,PaySlip!$C$11,PayDate,"<="&PaySlip!$G$4)) -> 0
A129: 10 | B129: =IF(ROW($C129)-ROW($C$120)+1<=EarnListCount,OFFSET(Payroll!$G$2,0,ROW($C129)-ROW($C$120),1,1),"-") -> - | C129: =IF(B129="-",0,SUMIFS(OFFSET(Payroll!$G$6,1,ROW($C129)-ROW($C$120),PayCount,1),PayEmp,PaySlip!$C$11,PayDate,"<="&PaySlip!$G$4)) -> 0 | D129: =IF(ROW($E129)-ROW($E$121)+1<=DedListCount,OFFSET(Payroll!$N$6,-1,ROW($C130)-ROW($C$122),1,1),"-") -> - | E129: =IF(D129="-",0,SUMIFS(OFFSET(Payroll!$N$6,1,ROW($C130)-ROW($C$122),PayCount,1),PayEmp,PaySlip!$C$11,PayDate,"<="&PaySlip!$G$4)) -> 0
A130: 11 | B130: =IF(ROW($C130)-ROW($C$120)+1<=EarnListCount,OFFSET(Payroll!$G$2,0,ROW($C130)-ROW($C$120),1,1),"-") -> - | C130: =IF(B130="-",0,SUMIFS(OFFSET(Payroll!$G$6,1,ROW($C130)-ROW($C$120),PayCount,1),PayEmp,PaySlip!$C$11,PayDate,"<="&PaySlip!$G$4)) -> 0 | D130: =IF(ROW($E130)-ROW($E$121)+1<=DedListCount,OFFSET(Payroll!$N$6,-1,ROW($C131)-ROW($C$122),1,1),"-") -> - | E130: =IF(D130="-",0,SUMIFS(OFFSET(Payroll!$N$6,1,ROW($C131)-ROW($C$122),PayCount,1),PayEmp,PaySlip!$C$11,PayDate,"<="&PaySlip!$G$4)) -> 0
A131: 12 | B131: =IF(ROW($C131)-ROW($C$120)+1<=EarnListCount,OFFSET(Payroll!$G$2,0,ROW($C131)-ROW($C$120),1,1),"-") -> - | C131: =IF(B131="-",0,SUMIFS(OFFSET(Payroll!$G$6,1,ROW($C131)-ROW($C$120),PayCount,1),PayEmp,PaySlip!$C$11,PayDate,"<="&PaySlip!$G$4)) -> 0 | D131: =IF(ROW($E131)-ROW($E$121)+1<=DedListCount,OFFSET(Payroll!$N$6,-1,ROW($C132)-ROW($C$122),1,1),"-") -> - | E131: =IF(D131="-",0,SUMIFS(OFFSET(Payroll!$N$6,1,ROW($C132)-ROW($C$122),PayCount,1),PayEmp,PaySlip!$C$11,PayDate,"<="&PaySlip!$G$4)) -> 0
A132: 13 | B132: =IF(ROW($C132)-ROW($C$120)+1<=EarnListCount,OFFSET(Payroll!$G$2,0,ROW($C132)-ROW($C$120),1,1),"-") -> - | C132: =IF(B132="-",0,SUMIFS(OFFSET(Payroll!$G$6,1,ROW($C132)-ROW($C$120),PayCount,1),PayEmp,PaySlip!$C$11,PayDate,"<="&PaySlip!$G$4)) -> 0 | D132: =IF(ROW($E132)-ROW($E$121)+1<=DedListCount,OFFSET(Payroll!$N$6,-1,ROW($C133)-ROW($C$122),1,1),"-") -> - | E132: =IF(D132="-",0,SUMIFS(OFFSET(Payroll!$N$6,1,ROW($C133)-ROW($C$122),PayCount,1),PayEmp,PaySlip!$C$11,PayDate,"<="&PaySlip!$G$4)) -> 0
A133: 14 | B133: =IF(ROW($C133)-ROW($C$120)+1<=EarnListCount,OFFSET(Payroll!$G$2,0,ROW($C133)-ROW($C$120),1,1),"-") -> - | C133: =IF(B133="-",0,SUMIFS(OFFSET(Payroll!$G$6,1,ROW($C133)-ROW($C$120),PayCount,1),PayEmp,PaySlip!$C$11,PayDate,"<="&PaySlip!$G$4)) -> 0 | D133: =IF(ROW($E133)-ROW($E$121)+1<=DedListCount,OFFSET(Payroll!$N$6,-1,ROW($C134)-ROW($C$122),1,1),"-") -> - | E133: =IF(D133="-",0,SUMIFS(OFFSET(Payroll!$N$6,1,ROW($C134)-ROW($C$122),PayCount,1),PayEmp,PaySlip!$C$11,PayDate,"<="&PaySlip!$G$4)) -> 0
A134: 15 | B134: =IF(ROW($C134)-ROW($C$120)+1<=EarnListCount,OFFSET(Payroll!$G$2,0,ROW($C134)-ROW($C$120),1,1),"-") -> - | C134: =IF(B134="-",0,SUMIFS(OFFSET(Payroll!$G$6,1,ROW($C134)-ROW($C$120),PayCount,1),PayEmp,PaySlip!$C$11,PayDate,"<="&PaySlip!$G$4)) -> 0 | D134: =IF(ROW($E134)-ROW($E$121)+1<=DedListCount,OFFSET(Payroll!$N$6,-1,ROW($C135)-ROW($C$122),1,1),"-") -> - | E134: =IF(D134="-",0,SUMIFS(OFFSET(Payroll!$N$6,1,ROW($C135)-ROW($C$122),PayCount,1),PayEmp,PaySlip!$C$11,PayDate,"<="&PaySlip!$G$4)) -> 0
A135: 16 | B135: =IF(ROW($C135)-ROW($C$120)+1<=EarnListCount,OFFSET(Payroll!$G$2,0,ROW($C135)-ROW($C$120),1,1),"-") -> - | C135: =IF(B135="-",0,SUMIFS(OFFSET(Payroll!$G$6,1,ROW($C135)-ROW($C$120),PayCount,1),PayEmp,PaySlip!$C$11,PayDate,"<="&PaySlip!$G$4)) -> 0 | D135: =IF(ROW($E135)-ROW($E$121)+1<=DedListCount,OFFSET(Payroll!$N$6,-1,ROW($C136)-ROW($C$122),1,1),"-") -> - | E135: =IF(D135="-",0,SUMIFS(OFFSET(Payroll!$N$6,1,ROW($C136)-ROW($C$122),PayCount,1),PayEmp,PaySlip!$C$11,PayDate,"<="&PaySlip!$G$4)) -> 0
A136: 17 | B136: =IF(ROW($C136)-ROW($C$120)+1<=EarnListCount,OFFSET(Payroll!$G$2,0,ROW($C136)-ROW($C$120),1,1),"-") -> - | C136: =IF(B136="-",0,SUMIFS(OFFSET(Payroll!$G$6,1,ROW($C136)-ROW($C$120),PayCount,1),PayEmp,PaySlip!$C$11,PayDate,"<="&PaySlip!$G$4)) -> 0 | D136: =IF(ROW($E136)-ROW($E$121)+1<=DedListCount,OFFSET(Payroll!$N$6,-1,ROW($C137)-ROW($C$122),1,1),"-") -> - | E136: =IF(D136="-",0,SUMIFS(OFFSET(Payroll!$N$6,1,ROW($C137)-ROW($C$122),PayCount,1),PayEmp,PaySlip!$C$11,PayDate,"<="&PaySlip!$G$4)) -> 0
A137: 18 | B137: =IF(ROW($C137)-ROW($C$120)+1<=EarnListCount,OFFSET(Payroll!$G$2,0,ROW($C137)-ROW($C$120),1,1),"-") -> - | C137: =IF(B137="-",0,SUMIFS(OFFSET(Payroll!$G$6,1,ROW($C137)-ROW($C$120),PayCount,1),PayEmp,PaySlip!$C$11,PayDate,"<="&PaySlip!$G$4)) -> 0 | D137: =IF(ROW($E137)-ROW($E$121)+1<=DedListCount,OFFSET(Payroll!$N$6,-1,ROW($C138)-ROW($C$122),1,1),"-") -> - | E137: =IF(D137="-",0,SUMIFS(OFFSET(Payroll!$N$6,1,ROW($C138)-ROW($C$122),PayCount,1),PayEmp,PaySlip!$C$11,PayDate,"<="&PaySlip!$G$4)) -> 0
A138: 19 | B138: =IF(ROW($C138)-ROW($C$120)+1<=EarnListCount,OFFSET(Payroll!$G$2,0,ROW($C138)-ROW($C$120),1,1),"-") -> - | C138: =IF(B138="-",0,SUMIFS(OFFSET(Payroll!$G$6,1,ROW($C138)-ROW($C$120),PayCount,1),PayEmp,PaySlip!$C$11,PayDate,"<="&PaySlip!$G$4)) -> 0 | D138: =IF(ROW($E138)-ROW($E$121)+1<=DedListCount,OFFSET(Payroll!$N$6,-1,ROW($C139)-ROW($C$122),1,1),"-") -> - | E138: =IF(D138="-",0,SUMIFS(OFFSET(Payroll!$N$6,1,ROW($C139)-ROW($C$122),PayCount,1),PayEmp,PaySlip!$C$11,PayDate,"<="&PaySlip!$G$4)) -> 0
A139: 20 | B139: =IF(ROW($C139)-ROW($C$120)+1<=EarnListCount,OFFSET(Payroll!$G$2,0,ROW($C139)-ROW($C$120),1,1),"-") -> - | C139: =IF(B139="-",0,SUMIFS(OFFSET(Payroll!$G$6,1,ROW($C139)-ROW($C$120),PayCount,1),PayEmp,PaySlip!$C$11,PayDate,"<="&PaySlip!$G$4)) -> 0 | D139: =IF(ROW($E139)-ROW($E$121)+1<=DedListCount,OFFSET(Payroll!$N$6,-1,ROW(#REF!)-ROW($C$122),1,1),"-") -> - | E139: =IF(D139="-",0,SUMIFS(OFFSET(Payroll!$N$6,1,ROW($C140)-ROW($C$122),PayCount,1),PayEmp,PaySlip!$C$11,PayDate,"<="&PaySlip!$G$4)) -> 0
A141: Column & Row Matrix
A142: Sheet & Section | D142: Start Row / Col | E142: Sheet Count | F142: List Count | G142: Status
A143: Emp Sheet - Deductions Section | D143: =SUBSTITUTE(ADDRESS(1,COLUMN(Emp!$R$1),4),"1","") -> R | E143: =COUNTA(OFFSET(Emp!$R$4,0,0,1,COLUMN(Emp!$V$1)-COLUMN(Emp!$R$1))) -> 4 | F143: =DedListCount -> 4 | G143: =IF($F143>$E143,9,0) -> 0
A144: Payroll Sheet - Earnings Section | D144: =SUBSTITUTE(ADDRESS(1,COLUMN(Payroll!$G$2),4),"1","") -> G | E144: =COUNTA(OFFSET(Payroll!$G$6,0,0,1,COLUMN(Payroll!$L$6)-COLUMN(Payroll!$G$6))) -> 5 | F144: =EarnListCount -> 5 | G144: 0
A145: Payroll Sheet - Deduct Section | D145: =SUBSTITUTE(ADDRESS(1,COLUMN(Payroll!$N$2),4),"1","") -> N | E145: =COUNTA(OFFSET(Payroll!$N$6,0,0,1,COLUMN(Payroll!$R$6)-COLUMN(Payroll!$N$6))) -> 4 | F145: =DedListCount -> 4 | G145: 0
A146: Payroll Sheet - Annual Tax Deduct Section | D146: =SUBSTITUTE(ADDRESS(1,COLUMN(Payroll!$AN$2),4),"1","") -> AN | E146: =COUNTA(OFFSET(Payroll!$AN$6,0,0,1,COLUMN(Payroll!$AR$6)-COLUMN(Payroll!$AN$6))) -> 4 | F146: =DedListCount -> 4 | G146: 0
A147: Payroll Sheet - Monthly EQV Deduct Section | D147: =SUBSTITUTE(ADDRESS(1,COLUMN(Payroll!$AT$2),4),"1","") -> AT | E147: =COUNTA(OFFSET(Payroll!$AT$6,0,0,1,COLUMN(Payroll!$AX$6)-COLUMN(Payroll!$AT$6))) -> 4 | F147: =DedListCount -> 4 | G147: 0
A148: Payroll Sheet - Co-Contrib Section | D148: =SUBSTITUTE(ADDRESS(1,COLUMN(Payroll!$T$2),4),"1","") -> T | E148: =COUNTA(OFFSET(Payroll!$T$6,0,0,1,COLUMN(Payroll!$X$6)-COLUMN(Payroll!$T$6))) -> 4 | F148: =CompListCount -> 4 | G148: 0
A149: Payroll Sheet - Rows | D149: =ROW(Payroll!$A$6)+1 -> 7 | E149: =PayCount -> 240 | F149: =+EmpCount*12 -> 180 | G149: 0
A150: Payslip - Earnings Section | D150: =ROW(PaySlip!$B$16)+1 -> 17 | E150: =COUNTA(OFFSET(PaySlip!$B$16,1,0,ROW(PaySlip!$B$27)-ROW(PaySlip!$B$16)-1,1)) -> 10 | F150: =COUNTIFS(SlipEarnValue,">0") -> 2 | G150: 0
A151: Payslip - Deductions Section | D151: =ROW(PaySlip!$B$28)+1 -> 29 | E151: =COUNTA(OFFSET(PaySlip!$B$28,1,0,ROW(PaySlip!$B$39)-ROW(PaySlip!$B$28)-1,1)) -> 10 | F151: =COUNTIFS(SlipDeductValue,">0") -> 3 | G151: 0
A152: Summary - Earnings Section | D152: =SUBSTITUTE(ADDRESS(1,COLUMN(Summary!$B$5),4),"1","") -> B | E152: =COUNTA(OFFSET(Summary!$B$5,0,0,1,COLUMN(Summary!$G$5)-COLUMN(Summary!$B$5))) -> 5 | F152: =EarnListCount -> 5 | G152: 0
A153: Summary - Deduct Section | D153: =SUBSTITUTE(ADDRESS(1,COLUMN(Summary!$I$5),4),"1","") -> I | E153: =COUNTA(OFFSET(Summary!$I$5,0,0,1,COLUMN(Summary!$M$5)-COLUMN(Summary!$I$5))) -> 4 | F153: =DedListCount -> 4 | G153: 0
A154: Summary - Co-Contrib Section | D154: =SUBSTITUTE(ADDRESS(1,COLUMN(Summary!$O$5),4),"1","") -> O | E154: =COUNTA(OFFSET(Summary!$O$5,0,0,1,COLUMN(Summary!$S$5)-COLUMN(Summary!$O$5))) -> 4 | F154: =CompListCount -> 4 | G154: 0
A155: MonthEmp - Employees | D155: =ROW(MonthEmp!$A$5)+1 -> 6 | E155: =COUNTA(MonthlyEmp[[#Data],[Employee Number]]) -> 50 | F155: =EmpCount -> 15 | G155: 0
A156: MonthDept - Departments | D156: =ROW(MonthDept!$A$5)+1 -> 6 | E156: =COUNTA(MonthlyDept[[#Data],[Department Code]]) -> 15 | F156: =DeptCount -> 3 | G156: 0

Sheet Emp (hidden)
A1: =Setup!$C$4 -> Example (Pty) Limited | N1: =IF($M$1="Error!","Check number of deduction columns","") -> 
A2: Employee Setup
A3: © www.excel-skills.com | R3: =IF(COLUMN(R1)-COLUMN($R$1)+1<=DedListCount,OFFSET(Setup!$A$73,COLUMN(R1)-COLUMN($R$1)+1,0,1,1),"Not Used") -> UIF | S3: =IF(COLUMN(S1)-COLUMN($R$1)+1<=DedListCount,OFFSET(Setup!$A$73,COLUMN(S1)-COLUMN($R$1)+1,0,1,1),"Not Used") -> PENS | T3: =IF(COLUMN(T1)-COLUMN($R$1)+1<=DedListCount,OFFSET(Setup!$A$73,COLUMN(T1)-COLUMN($R$1)+1,0,1,1),"Not Used") -> LOAN | U3: =IF(COLUMN(U1)-COLUMN($R$1)+1<=DedListCount,OFFSET(Setup!$A$73,COLUMN(U1)-COLUMN($R$1)+1,0,1,1),"Not Used") -> DED4
A4: Employee Number | B4: Employee Name | C4: Dept | D4: Date Employed | E4: 1st Payment Date | F4: Date Terminated | G4: Pay Period Override | H4: Job Title | I4: ID Number | J4: Income Tax Number | K4: Residential Address | L4: IT Rebate Code | M4: Income Tax Rate | N4: Medical Aid Members | O4: Basic Monthly Salary | P4: Annual Bonus Amount | Q4: One Increase Amount | R4: Deduction 1 Rate | S4: Deduction 2 Rate | T4: Deduction 3 Rate | U4: Deduction 4 Rate | V4: Period Count
A5: EXS001 | B5: Taylor AE | C5: M | D5: 40603 | E5: 40627 | H5: CEO | I5: 111111 1111 001 | J5: 000 000 001 | K5: Building Name, Street Address, Suburb, City, Code | L5: A | M5: A | N5: 5 | O5: 150000 | P5: 150000 | Q5: 165000 | S5: 0.075 | V5: =COUNTIFS(PayEmp,$A5) -> 12
A6: EXS002 | B6: Smith F | C6: M | D6: 40603 | E6: 40627 | H6: CFO | I6: 111111 1111 002 | J6: 000 000 002 | K6: Building Name, Street Address, Suburb, City, Code | L6: A | M6: A | N6: 2 | O6: 120000 | P6: 120000 | Q6: 132000 | V6: 12
A7: EXS003 | B7: Wilson PG | C7: S | D7: 40603 | E7: 40627 | H7: Sales Representative | I7: 111111 1111 003 | J7: 000 000 003 | K7: Building Name, Street Address, Suburb, City, Code | L7: A | M7: A | N7: 1 | O7: 15000 | P7: 15000 | Q7: 16500 | V7: 12
A8: EXS004 | B8: Osborne S | C8: S | D8: 40969 | E8: 40993 | H8: Sales Representative | I8: 111111 1111 004 | J8: 000 000 004 | K8: Building Name, Street Address, Suburb, City, Code | L8: A | M8: A | N8: 1 | O8: 15000 | P8: 15000 | Q8: 16500 | T8: 500 | V8: 12
A9: EXS005 | B9: Miller R | C9: S | D9: 41122 | E9: 41146 | F9: 45291 | H9: Sales Representative | I9: 111111 1111 005 | J9: 000 000 005 | K9: Building Name, Street Address, Suburb, City, Code | L9: A | M9: A | N9: 1 | O9: 10000 | P9: 10000 | V9: 12
A10: EXS006 | B10: Andrews MS | C10: S | D10: 41122 | E10: 41146 | H10: Sales Representative | I10: 111111 1111 006 | J10: 000 000 006 | K10: Building Name, Street Address, Suburb, City, Code | L10: A | M10: A | N10: 1 | O10: 10000 | P10: 10000 | Q10: 11000 | V10: 12
A11: EXS007 | B11: Phillips KE | C11: A | D11: 41334 | E11: 41358 | F11: 45077 | H11: Accountant | I11: 111111 1111 007 | J11: 000 000 007 | K11: Building Name, Street Address, Suburb, City, Code | L11: A | M11: A | N11: 0 | O11: 25000 | P11: 25000 | V11: 12
A12: EXS008 | B12: Matthews B | C12: A | D12: 41334 | E12: 41358 | H12: Admin Assistant | I12: 111111 1111 008 | J12: 000 000 008 | K12: Building Name, Street Address, Suburb, City, Code | L12: A | M12: A | N12: 0 | O12: 9000 | P12: 9000 | Q12: 10000 | V12: 12
A13: EXS009 | B13: Brown JT | C13: A | D13: 41730 | E13: 41754 | H13: Admin Assistant | I13: 111111 1111 009 | J13: 000 000 009 | K13: Building Name, Street Address, Suburb, City, Code | L13: A | M13: A | N13: 0 | O13: 9000 | P13: 9000 | Q13: 10000 | V13: 12
A14: EXS010 | B14: Lewis I | C14: A | D14: 42248 | E14: 42272 | H14: Admin Assistant | I14: 111111 1111 010 | J14: 000 000 010 | K14: Building Name, Street Address, Suburb, City, Code | L14: A | M14: A | N14: 0 | O14: 9000 | P14: 9000 | Q14: 10000 | V14: 12
A15: EXS011 | B15: Newport GD | C15: A | D15: 42430 | E15: 42454 | H15: Admin Assistant | I15: 111111 1111 011 | J15: 000 000 011 | K15: Building Name, Street Address, Suburb, City, Code | L15: A | M15: A | N15: 0 | O15: 5000 | P15: 5000 | Q15: 6000 | V15: 12
A16: EXS012 | B16: Williams VS | C16: A | D16: 42736 | E16: 42760 | H16: Admin Assistant | I16: 111111 1111 012 | J16: 000 000 012 | K16: Building Name, Street Address, Suburb, City, Code | L16: A | M16: A | N16: 0 | O16: 5000 | P16: 5000 | Q16: 6000 | V16: 12
A17: EXS013 | B17: East WD | C17: A | D17: 42993 | E17: 43003 | H17: Admin Assistant | I17: 111111 1111 013 | J17: 000 000 013 | K17: Building Name, Street Address, Suburb, City, Code | L17: A | M17: A | N17: 0 | O17: 5000 | P17: 5000 | Q17: 6000 | V17: 12
A18: EXS014 | B18: Ross Q | C18: A | D18: 45078 | E18: 45102 | H18: Accountant | I18: 111111 1111 014 | J18: 000 000 014 | K18: Building Name, Street Address, Suburb, City, Code | L18: A | M18: A | N18: 0 | O18: 29150 | P18: 0 | Q18: 31000 | V18: 12
A19: EXS015 | B19: Graham L | C19: S | D19: 45292 | E19: 45316 | H19: Sales Representative | I19: 111111 1111 015 | J19: 000 000 015 | K19: Building Name, Street Address, Suburb, City, Code | L19: A | M19: A | N19: 1 | O19: 10000 | P19: 0 | Q19: 10500 | V19: 12

Sheet Payroll (hidden)
A1: =Setup!$C$4 -> Example (Pty) Limited | N1: =IF(COLUMN(N$1)-COLUMN($N$1)+1<=DedListCount,IF(OFFSET(Setup!$G$73,COLUMN(N$1)-COLUMN($N$1)+1,0,1,1)=0,"-",OFFSET(Setup!$G$73,COLUMN(N$1)-COLUMN($N$1)+1,0,1,1)),"Not Used") -> Taxable | O1: =IF(COLUMN(O$1)-COLUMN($N$1)+1<=DedListCount,IF(OFFSET(Setup!$G$73,COLUMN(O$1)-COLUMN($N$1)+1,0,1,1)=0,"-",OFFSET(Setup!$G$73,COLUMN(O$1)-COLUMN($N$1)+1,0,1,1)),"Not Used") -> Taxable | P1: =IF(COLUMN(P$1)-COLUMN($N$1)+1<=DedListCount,IF(OFFSET(Setup!$G$73,COLUMN(P$1)-COLUMN($N$1)+1,0,1,1)=0,"-",OFFSET(Setup!$G$73,COLUMN(P$1)-COLUMN($N$1)+1,0,1,1)),"Not Used") -> Full Value | Q1: =IF(COLUMN(Q$1)-COLUMN($N$1)+1<=DedListCount,IF(OFFSET(Setup!$G$73,COLUMN(Q$1)-COLUMN($N$1)+1,0,1,1)=0,"-",OFFSET(Setup!$G$73,COLUMN(Q$1)-COLUMN($N$1)+1,0,1,1)),"Not Used") -> Full Value | T1: =IF(COLUMN(T$1)-COLUMN($T$1)+1<=CompListCount,IF(OFFSET(Setup!$G$81,COLUMN(T$1)-COLUMN($T$1)+1,0,1,1)=0,"-",OFFSET(Setup!$G$81,COLUMN(T$1)-COLUMN($T$1)+1,0,1,1)),"Not Used") -> Taxable | U1: =IF(COLUMN(U$1)-COLUMN($T$1)+1<=CompListCount,IF(OFFSET(Setup!$G$81,COLUMN(U$1)-COLUMN($T$1)+1,0,1,1)=0,"-",OFFSET(Setup!$G$81,COLUMN(U$1)-COLUMN($T$1)+1,0,1,1)),"Not Used") -> Taxable | V1: =IF(COLUMN(V$1)-COLUMN($T$1)+1<=CompListCount,IF(OFFSET(Setup!$G$81,COLUMN(V$1)-COLUMN($T$1)+1,0,1,1)=0,"-",OFFSET(Setup!$G$81,COLUMN(V$1)-COLUMN($T$1)+1,0,1,1)),"Not Used") -> Taxable | W1: =IF(COLUMN(W$1)-COLUMN($T$1)+1<=CompListCount,IF(OFFSET(Setup!$G$81,COLUMN(W$1)-COLUMN($T$1)+1,0,1,1)=0,"-",OFFSET(Setup!$G$81,COLUMN(W$1)-COLUMN($T$1)+1,0,1,1)),"Not Used") -> Taxable | AN1: =IF(COLUMN(AN$2)-COLUMN($AN$2)+1<=DedListCount,IF(OFFSET(Setup!$F$73,COLUMN(AN$2)-COLUMN($AN$2)+1,0,1,1)=0,"-",OFFSET(Setup!$F$73,COLUMN(AN$2)-COLUMN($AN$2)+1,0,1,1)),"Not Used") -> Gross | AO1: =IF(COLUMN(AO$2)-COLUMN($AN$2)+1<=DedListCount,IF(OFFSET(Setup!$F$73,COLUMN(AO$2)-COLUMN($AN$2)+1,0,1,1)=0,"-",OFFSET(Setup!$F$73,COLUMN(AO$2)-COLUMN($AN$2)+1,0,1,1)),"Not Used") -> Gross | AP1: =IF(COLUMN(AP$2)-COLUMN($AN$2)+1<=DedListCount,IF(OFFSET(Setup!$F$73,COLUMN(AP$2)-COLUMN($AN$2)+1,0,1,1)=0,"-",OFFSET(Setup!$F$73,COLUMN(AP$2)-COLUMN($AN$2)+1,0,1,1)),"Not Used") -> Fixed | AQ1: =IF(COLUMN(AQ$2)-COLUMN($AN$2)+1<=DedListCount,IF(OFFSET(Setup!$F$73,COLUMN(AQ$2)-COLUMN($AN$2)+1,0,1,1)=0,"-",OFFSET(Setup!$F$73,COLUMN(AQ$2)-COLUMN($AN$2)+1,0,1,1)),"Not Used") -> Fixed | AT1: =IF(COLUMN(AT$2)-COLUMN($AT$2)+1<=DedListCount,IF(OFFSET(Setup!$F$73,COLUMN(AT$2)-COLUMN($AT$2)+1,0,1,1)=0,"-",OFFSET(Setup!$F$73,COLUMN(AT$2)-COLUMN($AT$2)+1,0,1,1)),"Not Used") -> Gross | AU1: =IF(COLUMN(AU$2)-COLUMN($AT$2)+1<=DedListCount,IF(OFFSET(Setup!$F$73,COLUMN(AU$2)-COLUMN($AT$2)+1,0,1,1)=0,"-",OFFSET(Setup!$F$73,COLUMN(AU$2)-COLUMN($AT$2)+1,0,1,1)),"Not Used") -> Gross | AV1: =IF(COLUMN(AV$2)-COLUMN($AT$2)+1<=DedListCount,IF(OFFSET(Setup!$F$73,COLUMN(AV$2)-COLUMN($AT$2)+1,0,1,1)=0,"-",OFFSET(Setup!$F$73,COLUMN(AV$2)-COLUMN($AT$2)+1,0,1,1)),"Not Used") -> Fixed | AW1: =IF(COLUMN(AW$2)-COLUMN($AT$2)+1<=DedListCount,IF(OFFSET(Setup!$F$73,COLUMN(AW$2)-COLUMN($AT$2)+1,0,1,1)=0,"-",OFFSET(Setup!$F$73,COLUMN(AW$2)-COLUMN($AT$2)+1,0,1,1)),"Not Used") -> Fixed
A2: Salary Payments | G2: =IF(COLUMN(G$2)-COLUMN($G$2)+1<=EarnListCount,OFFSET(Setup!$A$64,COLUMN(G$2)-COLUMN($G$2)+1,0,1,1),"Not Used") -> A | H2: =IF(COLUMN(H$2)-COLUMN($G$2)+1<=EarnListCount,OFFSET(Setup!$A$64,COLUMN(H$2)-COLUMN($G$2)+1,0,1,1),"Not Used") -> B | I2: =IF(COLUMN(I$2)-COLUMN($G$2)+1<=EarnListCount,OFFSET(Setup!$A$64,COLUMN(I$2)-COLUMN($G$2)+1,0,1,1),"Not Used") -> C | J2: =IF(COLUMN(J$2)-COLUMN($G$2)+1<=EarnListCount,OFFSET(Setup!$A$64,COLUMN(J$2)-COLUMN($G$2)+1,0,1,1),"Not Used") -> D | K2: =IF(COLUMN(K$2)-COLUMN($G$2)+1<=EarnListCount,OFFSET(Setup!$A$64,COLUMN(K$2)-COLUMN($G$2)+1,0,1,1),"Not Used") -> E | N2: =IF(COLUMN(N$1)-COLUMN($N$1)+1<=DedListCount,IF(OFFSET(Setup!$F$73,COLUMN(N$1)-COLUMN($N$1)+1,0,1,1)=0,"-",OFFSET(Setup!$F$73,COLUMN(N$1)-COLUMN($N$1)+1,0,1,1)),"Not Used") -> Gross | O2: =IF(COLUMN(O$1)-COLUMN($N$1)+1<=DedListCount,IF(OFFSET(Setup!$F$73,COLUMN(O$1)-COLUMN($N$1)+1,0,1,1)=0,"-",OFFSET(Setup!$F$73,COLUMN(O$1)-COLUMN($N$1)+1,0,1,1)),"Not Used") -> Gross | P2: =IF(COLUMN(P$1)-COLUMN($N$1)+1<=DedListCount,IF(OFFSET(Setup!$F$73,COLUMN(P$1)-COLUMN($N$1)+1,0,1,1)=0,"-",OFFSET(Setup!$F$73,COLUMN(P$1)-COLUMN($N$1)+1,0,1,1)),"Not Used") -> Fixed | Q2: =IF(COLUMN(Q$1)-COLUMN($N$1)+1<=DedListCount,IF(OFFSET(Setup!$F$73,COLUMN(Q$1)-COLUMN($N$1)+1,0,1,1)=0,"-",OFFSET(Setup!$F$73,COLUMN(Q$1)-COLUMN($N$1)+1,0,1,1)),"Not Used") -> Fixed | T2: =IF(COLUMN(T$2)-COLUMN($T$2)+1<=CompListCount,IF(OFFSET(Setup!$F$81,COLUMN(T$2)-COLUMN($T$2)+1,0,1,1)=0,"-",OFFSET(Setup!$F$81,COLUMN(T$2)-COLUMN($T$2)+1,0,1,1)),"Not Used") -> UIF | U2: =IF(COLUMN(U$2)-COLUMN($T$2)+1<=CompListCount,IF(OFFSET(Setup!$F$81,COLUMN(U$2)-COLUMN($T$2)+1,0,1,1)=0,"-",OFFSET(Setup!$F$81,COLUMN(U$2)-COLUMN($T$2)+1,0,1,1)),"Not Used") -> Gross | V2: =IF(COLUMN(V$2)-COLUMN($T$2)+1<=CompListCount,IF(OFFSET(Setup!$F$81,COLUMN(V$2)-COLUMN($T$2)+1,0,1,1)=0,"-",OFFSET(Setup!$F$81,COLUMN(V$2)-COLUMN($T$2)+1,0,1,1)),"Not Used") -> Gross | W2: =IF(COLUMN(W$2)-COLUMN($T$2)+1<=CompListCount,IF(OFFSET(Setup!$F$81,COLUMN(W$2)-COLUMN($T$2)+1,0,1,1)=0,"-",OFFSET(Setup!$F$81,COLUMN(W$2)-COLUMN($T$2)+1,0,1,1)),"Not Used") -> Gross | AN2: =IF(COLUMN(AN$2)-COLUMN($AN$2)+1<=DedListCount,OFFSET(Setup!$H$73,COLUMN(AN$2)-COLUMN($AN$2)+1,0,1,1),"") -> D | AO2: =IF(COLUMN(AO$2)-COLUMN($AN$2)+1<=DedListCount,OFFSET(Setup!$H$73,COLUMN(AO$2)-COLUMN($AN$2)+1,0,1,1),"") -> D | AP2: =IF(COLUMN(AP$2)-COLUMN($AN$2)+1<=DedListCount,OFFSET(Setup!$H$73,COLUMN(AP$2)-COLUMN($AN$2)+1,0,1,1),"") -> 0 | AQ2: =IF(COLUMN(AQ$2)-COLUMN($AN$2)+1<=DedListCount,OFFSET(Setup!$H$73,COLUMN(AQ$2)-COLUMN($AN$2)+1,0,1,1),"") -> 0 | AT2: =IF(COLUMN(AT$2)-COLUMN($AT$2)+1<=DedListCount,OFFSET(Setup!$H$73,COLUMN(AT$2)-COLUMN($AT$2)+1,0,1,1),"") -> D | AU2: =IF(COLUMN(AU$2)-COLUMN($AT$2)+1<=DedListCount,OFFSET(Setup!$H$73,COLUMN(AU$2)-COLUMN($AT$2)+1,0,1,1),"") -> D | AV2: =IF(COLUMN(AV$2)-COLUMN($AT$2)+1<=DedListCount,OFFSET(Setup!$H$73,COLUMN(AV$2)-COLUMN($AT$2)+1,0,1,1),"") -> 0 | AW2: =IF(COLUMN(AW$2)-COLUMN($AT$2)+1<=DedListCount,OFFSET(Setup!$H$73,COLUMN(AW$2)-COLUMN($AT$2)+1,0,1,1),"") -> 0
A3: © www.excel-skills.com | G3: =IF(COLUMN(G$2)-COLUMN($G$2)+1<=EarnListCount,IF(COUNTA(OFFSET(Setup!$F$64,COLUMN(G$2)-COLUMN($G$2)+1,0,1,1))=0,1,OFFSET(Setup!$F$64,COLUMN(G$2)-COLUMN($G$2)+1,0,1,1)),1) -> 1 | H3: =IF(COLUMN(H$2)-COLUMN($G$2)+1<=EarnListCount,IF(COUNTA(OFFSET(Setup!$F$64,COLUMN(H$2)-COLUMN($G$2)+1,0,1,1))=0,1,OFFSET(Setup!$F$64,COLUMN(H$2)-COLUMN($G$2)+1,0,1,1)),1) -> 1 | I3: =IF(COLUMN(I$2)-COLUMN($G$2)+1<=EarnListCount,IF(COUNTA(OFFSET(Setup!$F$64,COLUMN(I$2)-COLUMN($G$2)+1,0,1,1))=0,1,OFFSET(Setup!$F$64,COLUMN(I$2)-COLUMN($G$2)+1,0,1,1)),1) -> 1 | J3: =IF(COLUMN(J$2)-COLUMN($G$2)+1<=EarnListCount,IF(COUNTA(OFFSET(Setup!$F$64,COLUMN(J$2)-COLUMN($G$2)+1,0,1,1))=0,1,OFFSET(Setup!$F$64,COLUMN(J$2)-COLUMN($G$2)+1,0,1,1)),1) -> 0 | K3: =IF(COLUMN(K$2)-COLUMN($G$2)+1<=EarnListCount,IF(COUNTA(OFFSET(Setup!$F$64,COLUMN(K$2)-COLUMN($G$2)+1,0,1,1))=0,1,OFFSET(Setup!$F$64,COLUMN(K$2)-COLUMN($G$2)+1,0,1,1)),1) -> 0 | N3: =IF(COLUMN(N$1)-COLUMN($N$1)+1<=DedListCount,IF(OFFSET(Setup!$I$73,COLUMN(N$1)-COLUMN($N$1)+1,0,1,1)=0,"-",OFFSET(Setup!$I$73,COLUMN(N$1)-COLUMN($N$1)+1,0,1,1)),"Not Used") -> 212544 | O3: =IF(COLUMN(O$1)-COLUMN($N$1)+1<=DedListCount,IF(OFFSET(Setup!$I$73,COLUMN(O$1)-COLUMN($N$1)+1,0,1,1)=0,"-",OFFSET(Setup!$I$73,COLUMN(O$1)-COLUMN($N$1)+1,0,1,1)),"Not Used") -> - | P3: =IF(COLUMN(P$1)-COLUMN($N$1)+1<=DedListCount,IF(OFFSET(Setup!$I$73,COLUMN(P$1)-COLUMN($N$1)+1,0,1,1)=0,"-",OFFSET(Setup!$I$73,COLUMN(P$1)-COLUMN($N$1)+1,0,1,1)),"Not Used") -> - | Q3: =IF(COLUMN(Q$1)-COLUMN($N$1)+1<=DedListCount,IF(OFFSET(Setup!$I$73,COLUMN(Q$1)-COLUMN($N$1)+1,0,1,1)=0,"-",OFFSET(Setup!$I$73,COLUMN(Q$1)-COLUMN($N$1)+1,0,1,1)),"Not Used") -> - | T3: =IF(COLUMN(T$2)-COLUMN($T$2)+1<=CompListCount,IF(OFFSET(Setup!$I$81,COLUMN(T$2)-COLUMN($T$2)+1,0,1,1)=0,"-",OFFSET(Setup!$I$81,COLUMN(T$2)-COLUMN($T$2)+1,0,1,1)),"Not Used") -> - | U3: =IF(COLUMN(U$2)-COLUMN($T$2)+1<=CompListCount,IF(OFFSET(Setup!$I$81,COLUMN(U$2)-COLUMN($T$2)+1,0,1,1)=0,"-",OFFSET(Setup!$I$81,COLUMN(U$2)-COLUMN($T$2)+1,0,1,1)),"Not Used") -> - | V3: =IF(COLUMN(V$2)-COLUMN($T$2)+1<=CompListCount,IF(OFFSET(Setup!$I$81,COLUMN(V$2)-COLUMN($T$2)+1,0,1,1)=0,"-",OFFSET(Setup!$I$81,COLUMN(V$2)-COLUMN($T$2)+1,0,1,1)),"Not Used") -> - | W3: =IF(COLUMN(W$2)-COLUMN($T$2)+1<=CompListCount,IF(OFFSET(Setup!$I$81,COLUMN(W$2)-COLUMN($T$2)+1,0,1,1)=0,"-",OFFSET(Setup!$I$81,COLUMN(W$2)-COLUMN($T$2)+1,0,1,1)),"Not Used") -> - | AN3: =IF(COLUMN(AN$2)-COLUMN($AN$2)+1<=DedListCount,IF(COUNTA(OFFSET(Setup!$J$73,COLUMN(AN$2)-COLUMN($AN$2)+1,0,1,1))=0,0,OFFSET(Setup!$J$73,COLUMN(AN$2)-COLUMN($AN$2)+1,0,1,1)),1) -> 0 | AO3: =IF(COLUMN(AO$2)-COLUMN($AN$2)+1<=DedListCount,IF(COUNTA(OFFSET(Setup!$J$73,COLUMN(AO$2)-COLUMN($AN$2)+1,0,1,1))=0,0,OFFSET(Setup!$J$73,COLUMN(AO$2)-COLUMN($AN$2)+1,0,1,1)),1) -> 1 | AP3: =IF(COLUMN(AP$2)-COLUMN($AN$2)+1<=DedListCount,IF(COUNTA(OFFSET(Setup!$J$73,COLUMN(AP$2)-COLUMN($AN$2)+1,0,1,1))=0,0,OFFSET(Setup!$J$73,COLUMN(AP$2)-COLUMN($AN$2)+1,0,1,1)),1) -> 0 | AQ3: =IF(COLUMN(AQ$2)-COLUMN($AN$2)+1<=DedListCount,IF(COUNTA(OFFSET(Setup!$J$73,COLUMN(AQ$2)-COLUMN($AN$2)+1,0,1,1))=0,0,OFFSET(Setup!$J$73,COLUMN(AQ$2)-COLUMN($AN$2)+1,0,1,1)),1) -> 0 | AT3: =IF(COLUMN(AT$2)-COLUMN($AT$2)+1<=DedListCount,IF(COUNTA(OFFSET(Setup!$J$73,COLUMN(AT$2)-COLUMN($AT$2)+1,0,1,1))=0,1,OFFSET(Setup!$J$73,COLUMN(AT$2)-COLUMN($AT$2)+1,0,1,1)),1) -> 0 | AU3: =IF(COLUMN(AU$2)-COLUMN($AT$2)+1<=DedListCount,IF(COUNTA(OFFSET(Setup!$J$73,COLUMN(AU$2)-COLUMN($AT$2)+1,0,1,1))=0,1,OFFSET(Setup!$J$73,COLUMN(AU$2)-COLUMN($AT$2)+1,0,1,1)),1) -> 1 | AV3: =IF(COLUMN(AV$2)-COLUMN($AT$2)+1<=DedListCount,IF(COUNTA(OFFSET(Setup!$J$73,COLUMN(AV$2)-COLUMN($AT$2)+1,0,1,1))=0,1,OFFSET(Setup!$J$73,COLUMN(AV$2)-COLUMN($AT$2)+1,0,1,1)),1) -> 0 | AW3: =IF(COLUMN(AW$2)-COLUMN($AT$2)+1<=DedListCount,IF(COUNTA(OFFSET(Setup!$J$73,COLUMN(AW$2)-COLUMN($AT$2)+1,0,1,1))=0,1,OFFSET(Setup!$J$73,COLUMN(AW$2)-COLUMN($AT$2)+1,0,1,1)),1) -> 1
A4: Sheet Status | B4: =IF(PayCount<EmpCount*12,"add!","ok") -> ok | C4: =IF($B$4="add!","You need to add "&(EmpCount*12)-PayCount&" rows to the table","") ->  | G4: =IF(COLUMN(G$2)-COLUMN($G$2)+1<=EarnListCount,OFFSET(Setup!$G$64,COLUMN(G$2)-COLUMN($G$2)+1,0,1,1),"Not Used") -> Monthly | H4: =IF(COLUMN(H$2)-COLUMN($G$2)+1<=EarnListCount,OFFSET(Setup!$G$64,COLUMN(H$2)-COLUMN($G$2)+1,0,1,1),"Not Used") -> Annual | I4: =IF(COLUMN(I$2)-COLUMN($G$2)+1<=EarnListCount,OFFSET(Setup!$G$64,COLUMN(I$2)-COLUMN($G$2)+1,0,1,1),"Not Used") -> Annual | J4: =IF(COLUMN(J$2)-COLUMN($G$2)+1<=EarnListCount,OFFSET(Setup!$G$64,COLUMN(J$2)-COLUMN($G$2)+1,0,1,1),"Not Used") -> Monthly | K4: =IF(COLUMN(K$2)-COLUMN($G$2)+1<=EarnListCount,OFFSET(Setup!$G$64,COLUMN(K$2)-COLUMN($G$2)+1,0,1,1),"Not Used") -> Monthly | N4: =IF(COLUMN(N$1)-COLUMN($N$1)+1<=DedListCount,OFFSET(Setup!$H$73,COLUMN(N$1)-COLUMN($N$1)+1,0,1,1),"Not Used") -> D | O4: =IF(COLUMN(O$1)-COLUMN($N$1)+1<=DedListCount,OFFSET(Setup!$H$73,COLUMN(O$1)-COLUMN($N$1)+1,0,1,1),"Not Used") -> D | P4: =IF(COLUMN(P$1)-COLUMN($N$1)+1<=DedListCount,OFFSET(Setup!$H$73,COLUMN(P$1)-COLUMN($N$1)+1,0,1,1),"Not Used") -> 0 | Q4: =IF(COLUMN(Q$1)-COLUMN($N$1)+1<=DedListCount,OFFSET(Setup!$H$73,COLUMN(Q$1)-COLUMN($N$1)+1,0,1,1),"Not Used") -> 0 | T4: =IF(COLUMN(T$2)-COLUMN($T$2)+1>CompListCount,"Not Used",OFFSET(Setup!$H$81,COLUMN(T$2)-COLUMN($T$2)+1,0,1,1)) -> 0 | U4: =IF(COLUMN(U$2)-COLUMN($T$2)+1>CompListCount,"Not Used",OFFSET(Setup!$H$81,COLUMN(U$2)-COLUMN($T$2)+1,0,1,1)) -> D | V4: =IF(COLUMN(V$2)-COLUMN($T$2)+1>CompListCount,"Not Used",OFFSET(Setup!$H$81,COLUMN(V$2)-COLUMN($T$2)+1,0,1,1)) -> 0 | W4: =IF(COLUMN(W$2)-COLUMN($T$2)+1>CompListCount,"Not Used",OFFSET(Setup!$H$81,COLUMN(W$2)-COLUMN($T$2)+1,0,1,1)) -> 0 | AN4: =IF(COLUMN(AN$2)-COLUMN($AN$2)+1<=DedListCount,IF(COUNTA(OFFSET(Setup!$K$73,COLUMN(AN$2)-COLUMN($AN$2)+1,0,1,1))=0,"-",OFFSET(Setup!$K$73,COLUMN(AN$2)-COLUMN($AN$2)+1,0,1,1)),"-") -> - | AO4: =IF(COLUMN(AO$2)-COLUMN($AN$2)+1<=DedListCount,IF(COUNTA(OFFSET(Setup!$K$73,COLUMN(AO$2)-COLUMN($AN$2)+1,0,1,1))=0,"-",OFFSET(Setup!$K$73,COLUMN(AO$2)-COLUMN($AN$2)+1,0,1,1)),"-") -> 350000 | AP4: =IF(COLUMN(AP$2)-COLUMN($AN$2)+1<=DedListCount,IF(COUNTA(OFFSET(Setup!$K$73,COLUMN(AP$2)-COLUMN($AN$2)+1,0,1,1))=0,"-",OFFSET(Setup!$K$73,COLUMN(AP$2)-COLUMN($AN$2)+1,0,1,1)),"-") -> - | AQ4: =IF(COLUMN(AQ$2)-COLUMN($AN$2)+1<=DedListCount,IF(COUNTA(OFFSET(Setup!$K$73,COLUMN(AQ$2)-COLUMN($AN$2)+1,0,1,1))=0,"-",OFFSET(Setup!$K$73,COLUMN(AQ$2)-COLUMN($AN$2)+1,0,1,1)),"-") -> - | AT4: =IF(COLUMN(AT$2)-COLUMN($AT$2)+1<=DedListCount,IF(COUNTA(OFFSET(Setup!$K$73,COLUMN(AT$2)-COLUMN($AT$2)+1,0,1,1))=0,"-",OFFSET(Setup!$K$73,COLUMN(AT$2)-COLUMN($AT$2)+1,0,1,1)),"-") -> - | AU4: =IF(COLUMN(AU$2)-COLUMN($AT$2)+1<=DedListCount,IF(COUNTA(OFFSET(Setup!$K$73,COLUMN(AU$2)-COLUMN($AT$2)+1,0,1,1))=0,"-",OFFSET(Setup!$K$73,COLUMN(AU$2)-COLUMN($AT$2)+1,0,1,1)),"-") -> 350000 | AV4: =IF(COLUMN(AV$2)-COLUMN($AT$2)+1<=DedListCount,IF(COUNTA(OFFSET(Setup!$K$73,COLUMN(AV$2)-COLUMN($AT$2)+1,0,1,1))=0,"-",OFFSET(Setup!$K$73,COLUMN(AV$2)-COLUMN($AT$2)+1,0,1,1)),"-") -> - | AW4: =IF(COLUMN(AW$2)-COLUMN($AT$2)+1<=DedListCount,IF(COUNTA(OFFSET(Setup!$K$73,COLUMN(AW$2)-COLUMN($AT$2)+1,0,1,1))=0,"-",OFFSET(Setup!$K$73,COLUMN(AW$2)-COLUMN($AT$2)+1,0,1,1)),"-") -> -
G5: =IF(COLUMN(G$2)-COLUMN($G$2)+1<=EarnListCount,OFFSET(Setup!$E$64,COLUMN(G$2)-COLUMN($G$2)+1,0,1,1),"Not Used") -> Basic | H5: =IF(COLUMN(H$2)-COLUMN($G$2)+1<=EarnListCount,OFFSET(Setup!$E$64,COLUMN(H$2)-COLUMN($G$2)+1,0,1,1),"Not Used") -> Leave | I5: =IF(COLUMN(I$2)-COLUMN($G$2)+1<=EarnListCount,OFFSET(Setup!$E$64,COLUMN(I$2)-COLUMN($G$2)+1,0,1,1),"Not Used") -> Bonus | J5: =IF(COLUMN(J$2)-COLUMN($G$2)+1<=EarnListCount,OFFSET(Setup!$E$64,COLUMN(J$2)-COLUMN($G$2)+1,0,1,1),"Not Used") -> Loan | K5: =IF(COLUMN(K$2)-COLUMN($G$2)+1<=EarnListCount,OFFSET(Setup!$E$64,COLUMN(K$2)-COLUMN($G$2)+1,0,1,1),"Not Used") -> Not Used | L5: Total | M5: TAX | N5: =IF(COLUMN(N$1)-COLUMN($N$1)+1>DedListCount,"Not Used",OFFSET(Setup!$A$73,COLUMN(N$1)-COLUMN($N$1)+1,0,1,1)) -> UIF | O5: =IF(COLUMN(O$1)-COLUMN($N$1)+1>DedListCount,"Not Used",OFFSET(Setup!$A$73,COLUMN(O$1)-COLUMN($N$1)+1,0,1,1)) -> PENS | P5: =IF(COLUMN(P$1)-COLUMN($N$1)+1>DedListCount,"Not Used",OFFSET(Setup!$A$73,COLUMN(P$1)-COLUMN($N$1)+1,0,1,1)) -> LOAN | Q5: =IF(COLUMN(Q$1)-COLUMN($N$1)+1>DedListCount,"Not Used",OFFSET(Setup!$A$73,COLUMN(Q$1)-COLUMN($N$1)+1,0,1,1)) -> DED4 | R5: Total | S5: Net | T5: =IF(COLUMN(T$2)-COLUMN($T$2)+1>CompListCount,"Not Used",OFFSET(Setup!$A$81,COLUMN(T$2)-COLUMN($T$2)+1,0,1,1)) -> UIF | U5: =IF(COLUMN(U$2)-COLUMN($T$2)+1>CompListCount,"Not Used",OFFSET(Setup!$A$81,COLUMN(U$2)-COLUMN($T$2)+1,0,1,1)) -> SDL | V5: =IF(COLUMN(V$2)-COLUMN($T$2)+1>CompListCount,"Not Used",OFFSET(Setup!$A$81,COLUMN(V$2)-COLUMN($T$2)+1,0,1,1)) -> CO3 | W5: =IF(COLUMN(W$2)-COLUMN($T$2)+1>CompListCount,"Not Used",OFFSET(Setup!$A$81,COLUMN(W$2)-COLUMN($T$2)+1,0,1,1)) -> CO4 | X5: Total | Y5: Total | Z5: Total | AM5: TAX | AN5: =IF(COLUMN(AN3)-COLUMN($AN$3)+1<=DedListCount,OFFSET(Setup!$A$73,COLUMN(AN3)-COLUMN($AN$3)+1,0,1,1),"Not Used") -> UIF | AO5: =IF(COLUMN(AO3)-COLUMN($AN$3)+1<=DedListCount,OFFSET(Setup!$A$73,COLUMN(AO3)-COLUMN($AN$3)+1,0,1,1),"Not Used") -> PENS | AP5: =IF(COLUMN(AP3)-COLUMN($AN$3)+1<=DedListCount,OFFSET(Setup!$A$73,COLUMN(AP3)-COLUMN($AN$3)+1,0,1,1),"Not Used") -> LOAN | AQ5: =IF(COLUMN(AQ3)-COLUMN($AN$3)+1<=DedListCount,OFFSET(Setup!$A$73,COLUMN(AQ3)-COLUMN($AN$3)+1,0,1,1),"Not Used") -> DED4 | AR5: Tax Calc | AS5: Tax Calc | AT5: =IF(COLUMN(AT2)-COLUMN($AT$2)+1<=DedListCount,OFFSET(Setup!$A$73,COLUMN(AT2)-COLUMN($AT$2)+1,0,1,1),"Not Used") -> UIF | AU5: =IF(COLUMN(AU2)-COLUMN($AT$2)+1<=DedListCount,OFFSET(Setup!$A$73,COLUMN(AU2)-COLUMN($AT$2)+1,0,1,1),"Not Used") -> PENS | AV5: =IF(COLUMN(AV2)-COLUMN($AT$2)+1<=DedListCount,OFFSET(Setup!$A$73,COLUMN(AV2)-COLUMN($AT$2)+1,0,1,1),"Not Used") -> LOAN | AW5: =IF(COLUMN(AW2)-COLUMN($AT$2)+1<=DedListCount,OFFSET(Setup!$A$73,COLUMN(AW2)-COLUMN($AT$2)+1,0,1,1),"Not Used") -> DED4 | AX5: Tax Calc | AY5: Tax Calc | AZ5: Tax Calc | BA5: Tax Calc | BB5: Tax Calc | BC5: Deduct | BD5: Deduct | BE5: Deduct
A6: Pay Slip Reference No | B6: Payment Run Date | C6: Employee Number | D6: Employee Name | E6: Dept | F6: Status | G6: Earnings1 | H6: Earnings2 | I6: Earnings3 | J6: Earnings4 | K6: Earnings5 | L6: Gross Pay | M6: Income Tax (PAYE) | N6: Deduct1 | O6: Deduct2 | P6: Deduct3 | Q6: Deduct4 | R6: Total Deductions | S6: Net Pay | T6: Co-Contrib1 | U6: Co-Contrib2 | V6: Co-Contrib3 | W6: Co-Contrib4 | X6: Total Co Contributions | Y6: Total Cost To Company | Z6: Deductions & Co-Contrib | AA6: Employee Pay Period | AB6: Business Pay Period | AC6: Unique Pay Date | AD6: 1st Pay Period | AE6: Pay Period Override | AF6: PaySlip Status | AG6: Medical Aid Members | AH6: MedTaxCredit Monthly | AI6: MedTaxCredit Annual | AJ6: IT Rebate Code | AK6: IT Rebate Value | AL6: IT Rate | AM6: Annual Gross Tax Income | AN6: Annual Tax Deduct1 | AO6: Annual Tax Deduct2 | AP6: Annual Tax Deduct3 | AQ6: Annual Tax Deduct4 | AR6: Annual Taxable Income | AS6: Tax Monthly EQV | AT6: Monthly EQV Deduct1 | AU6: Monthly EQV Deduct2 | AV6: Monthly EQV Deduct3 | AW6: Monthly EQV Deduct4 | AX6: Taxable Income Monthly EQV | AY6: Taxable Income Non-Monthly | AZ6: Total Annual Taxation | BA6: Tax On Monthly Income | BB6: Tax On Non-Monthly Inc | BC6: Earnings % Month | BD6: Earnings % Annual | BE6: Earnings Total Amount
A7: =IF(ROW($A7)-ROW($A$6)>EmpCount*12,"-",TEXT($B7,"yyyy")&TEXT($B7,"mm")&"-"&$C7) -> 202303-EXS001 | B7: =IF(ROW($A7)-ROW($A$6)>EmpCount*12,Setup!$D$12,DATE(YEAR(Setup!$F$12),MONTH(Setup!$F$12)+ROUNDDOWN((ROW($A7)-ROW($A$6)-1)/EmpCount,0),IF(Setup!$C$14>DAY(DATE(YEAR(Setup!$F$12),MONTH(Setup!$F$12)+ROUNDDOWN((ROW($A7)-ROW($A$6)-1)/EmpCount,0)+1,0)),DAY(DATE(YEAR(Setup!$F$12),MONTH(Setup!$F$12)+ROUNDDOWN((ROW($A7)-ROW($A$6)-1)/EmpCount,0)+1,0)),Setup!$C$14))) -> 45010 | C7: =IF(ROW($A7)-ROW($A$6)>EmpCount*12,"-",OFFSET(Emp!$A$4,ROW($A7)-ROW($A$6)-IF(ROW($A7)-ROW($A$6)>EmpCount,ROUNDDOWN((ROW($A7)-ROW($A$6)-1)/EmpCount,0)*EmpCount,0),0,1,1)) -> EXS001 | D7: =IF(ISNA(VLOOKUP($C7,EmpAll,COLUMN(Emp!$B$4),0)),"-",VLOOKUP($C7,EmpAll,COLUMN(Emp!$B$4),0)) -> Taylor AE | E7: =IF(ISNA(VLOOKUP($C7,EmpAll,COLUMN(Emp!$C$4),0)),"-",VLOOKUP($C7,EmpAll,COLUMN(Emp!$C$4),0)) -> M | F7: =IF(ISNA(VLOOKUP($C7,EmpAll,COLUMN(Emp!$A$4),0)),"-",IF(AND(VLOOKUP($C7,EmpAll,COLUMN(Emp!$E$4),0)<>0,VLOOKUP($C7,EmpAll,COLUMN(Emp!$E$4),0)>=DATE(YEAR($AC7),MONTH($AC7)+1,0)),"Inactive",IF(AND(VLOOKUP($C7,EmpAll,COLUMN(Emp!$F$4),0)<>0,VLOOKUP($C7,EmpAll,COLUMN(Emp!$F$4),0)<=DATE(YEAR($AC7),MONTH($AC7),0)),"Terminated","Active"))) -> Active | G7: =IF($F7<>"Active",0,IF(COUNTIFS(OverEmp,$C7,OverEarn,G$2,OverDate,"<"&DATE(YEAR($AC7),MONTH($AC7)+1,1),OverEnd,">="&DATE(YEAR($AC7),MONTH($AC7),1))>0,SUMIFS(OverValue,OverEmp,$C7,OverEarn,G$2,OverDate,"<"&DATE(YEAR($AC7),MONTH($AC7)+1,1),OverEnd,">="&DATE(YEAR($AC7),MONTH($AC7),1)),IF(AND($AC7>=Setup!$E$10,SUMIFS(EmpIncrease,EmpCode,$C7)>0),SUMIFS(EmpIncrease,EmpCode,$C7),SUMIFS(EmpSalary,EmpCode,$C7)))) -> 150000 | H7: =IF($F7<>"Active",0,IF(COUNTIFS(OverEmp,$C7,OverEarn,H$2,OverDate,"<"&DATE(YEAR($AC7),MONTH($AC7)+1,1),OverEnd,">="&DATE(YEAR($AC7),MONTH($AC7),1))>0,SUMIFS(OverValue,OverEmp,$C7,OverEarn,H$2,OverDate,"<"&DATE(YEAR($AC7),MONTH($AC7)+1,1),OverEnd,">="&DATE(YEAR($AC7),MONTH($AC7),1)),0)) -> 0 | I7: =IF($F7<>"Active",0,IF(COUNTIFS(OverEmp,$C7,OverEarn,I$2,OverDate,"<"&DATE(YEAR($AC7),MONTH($AC7)+1,1),OverEnd,">="&DATE(YEAR($AC7),MONTH($AC7),1))>0,SUMIFS(OverValue,OverEmp,$C7,OverEarn,I$2,OverDate,"<"&DATE(YEAR($AC7),MONTH($AC7)+1,1),OverEnd,">="&DATE(YEAR($AC7),MONTH($AC7),1)),IF(MONTH(B7)=Setup!$C$15,SUMIFS(EmpBonus,EmpCode,$C7),0))) -> 0 | J7: =IF($F7<>"Active",0,IF(COUNTIFS(OverEmp,$C7,OverEarn,J$2,OverDate,"<"&DATE(YEAR($AC7),MONTH($AC7)+1,1),OverEnd,">="&DATE(YEAR($AC7),MONTH($AC7),1))>0,SUMIFS(OverValue,OverEmp,$C7,OverEarn,J$2,OverDate,"<"&DATE(YEAR($AC7),MONTH($AC7)+1,1),OverEnd,">="&DATE(YEAR($AC7),MONTH($AC7),1)),0)) -> 0 | K7: =IF($F7<>"Active",0,IF(COUNTIFS(OverEmp,$C7,OverEarn,K$2,OverDate,"<"&DATE(YEAR($AC7),MONTH($AC7)+1,1),OverEnd,">="&DATE(YEAR($AC7),MONTH($AC7),1))>0,SUMIFS(OverValue,OverEmp,$C7,OverEarn,K$2,OverDate,"<"&DATE(YEAR($AC7),MONTH($AC7)+1,1),OverEnd,">="&DATE(YEAR($AC7),MONTH($AC7),1)),0)) -> 0 | L7: =IF($AA7=0,0,SUM(OFFSET($G7,0,0,1,COLUMN($L$6)-COLUMN($G$6)))) -> 150000 | M7: =IF(COUNTIFS(OverEmp,$C7,OverTax,M$5,OverDate,"<"&DATE(YEAR($AC7),MONTH($AC7)+1,1),OverEnd,">="&DATE(YEAR($AC7),MONTH($AC7),1))>0,SUMIFS(OverValue,OverEmp,$C7,OverTax,M$5,OverDate,"<"&DATE(YEAR($AC7),MONTH($AC7)+1,1),OverEnd,">="&DATE(YEAR($AC7),MONTH($AC7),1)),(($BA7/12*$AA7)+(BB7*IF(1-$BC7=0,0,BD7/(1-$BC7))))-IF($F7="Terminated",0,SUMIFS(PayTaxDeduct,PayDate,"<"&$AC7,PayEmp,$C7))) -> 45611.83333 | N7: =IF($F7="Terminated",0,IF($AA7=0,0,IF(ISNA(MATCH(N$5,DedListItem,0)),0,IF(COUNTIFS(OverEmp,$C7,OverDeduct,N$5,OverDate,"<"&DATE(YEAR($AC7),MONTH($AC7)+1,1),OverEnd,">="&DATE(YEAR($AC7),MONTH($AC7),1))>0,SUMIFS(OverValue,OverEmp,$C7,OverDeduct,N$5,OverDate,"<"&DATE(YEAR($AC7),MONTH($AC7)+1,1),OverEnd,">="&DATE(YEAR($AC7),MONTH($AC7),1)),IF(OR(N$2="Fixed",N$2="Not Used"),(IF(COUNTIFS(EmpNo,$C7,OFFSET(Emp!$R$4,1,MATCH(N$5,DedListItem,0)-1,EmpCount,1),"<>")>0,VLOOKUP($C7,EmpAll,COLUMN(Emp!$R$4)+MATCH(N$5,DedListItem,0)-1,0),OFFSET(Setup!$E$73,MATCH(N$5,DedListItem,0),0,1,1))*$AA7)-SUMIFS(OFFSET(N$6,1,0,PayCount,1),PayDate,"<"&$AC7,PayEmp,$C7),IF(ISNA(MATCH(N$2,EarnListItem,0))=FALSE,IF(OFFSET(Setup!$G$73,MATCH(N$5,DedListItem,0),0,1,1)="Taxable",SUMPRODUCT((PayEmp=$C7)*(PayDate<=$AC7)*(PayEarnCode=N$2)*(PayEarnTax)*(PayEarnValues)),SUMPRODUCT((PayEmp=$C7)*(PayDate<=$AC7)*(PayEarnCode=N$2)*(PayEarnValues)))*IF(COUNTIFS(EmpNo,$C7,OFFSET(Emp!$R$4,1,MATCH(N$5,DedListItem,0)-1,EmpCount,1),"<>")>0,VLOOKUP($C7,EmpAll,COLUMN(Emp!$R$4)+MATCH(N$5,DedListItem,0)-1,0),OFFSET(Setup!$E$73,MATCH(N$5,DedListItem,0),0,1,1)),(MIN(IF(OFFSET(Setup!$G$73,MATCH(N$5,DedListItem,0),0,1,1)="Taxable",SUMPRODUCT((PayEmp=$C7)*(PayDate<=$AC7)*(ISERROR(SEARCH(PayEarnCode,N$4)))*(PayEarnTax)*(PayEarnValues)),SUMPRODUCT((PayEmp=$C7)*(PayDate<=$AC7)*(ISERROR(SEARCH(PayEarnCode,N$4)))*(PayEarnValues))),IF(ISNUMBER(N$3),N$3/12*$AA7,IgnoreMin)))*IF(COUNTIFS(EmpNo,$C7,OFFSET(Emp!$R$4,1,MATCH(N$5,DedListItem,0)-1,EmpCount,1),"<>")>0,VLOOKUP($C7,EmpAll,COLUMN(Emp!$R$4)+MATCH(N$5,DedListItem,0)-1,0),OFFSET(Setup!$E$73,MATCH(N$5,DedListItem,0),0,1,1)))-SUMIFS(OFFSET(N$6,1,0,PayCount,1),PayDate,"<"&$AC7,PayEmp,$C7)))))) -> 177.12 | O7: =IF($F7="Terminated",0,IF($AA7=0,0,IF(ISNA(MATCH(O$5,DedListItem,0)),0,IF(COUNTIFS(OverEmp,$C7,OverDeduct,O$5,OverDate,"<"&DATE(YEAR($AC7),MONTH($AC7)+1,1),OverEnd,">="&DATE(YEAR($AC7),MONTH($AC7),1))>0,SUMIFS(OverValue,OverEmp,$C7,OverDeduct,O$5,OverDate,"<"&DATE(YEAR($AC7),MONTH($AC7)+1,1),OverEnd,">="&DATE(YEAR($AC7),MONTH($AC7),1)),IF(OR(O$2="Fixed",O$2="Not Used"),(IF(COUNTIFS(EmpNo,$C7,OFFSET(Emp!$R$4,1,MATCH(O$5,DedListItem,0)-1,EmpCount,1),"<>")>0,VLOOKUP($C7,EmpAll,COLUMN(Emp!$R$4)+MATCH(O$5,DedListItem,0)-1,0),OFFSET(Setup!$E$73,MATCH(O$5,DedListItem,0),0,1,1))*$AA7)-SUMIFS(OFFSET(O$6,1,0,PayCount,1),PayDate,"<"&$AC7,PayEmp,$C7),IF(ISNA(MATCH(O$2,EarnListItem,0))=FALSE,IF(OFFSET(Setup!$G$73,MATCH(O$5,DedListItem,0),0,1,1)="Taxable",SUMPRODUCT((PayEmp=$C7)*(PayDate<=$AC7)*(PayEarnCode=O$2)*(PayEarnTax)*(PayEarnValues)),SUMPRODUCT((PayEmp=$C7)*(PayDate<=$AC7)*(PayEarnCode=O$2)*(PayEarnValues)))*IF(COUNTIFS(EmpNo,$C7,OFFSET(Emp!$R$4,1,MATCH(O$5,DedListItem,0)-1,EmpCount,1),"<>")>0,VLOOKUP($C7,EmpAll,COLUMN(Emp!$R$4)+MATCH(O$5,DedListItem,0)-1,0),OFFSET(Setup!$E$73,MATCH(O$5,DedListItem,0),0,1,1)),(MIN(IF(OFFSET(Setup!$G$73,MATCH(O$5,DedListItem,0),0,1,1)="Taxable",SUMPRODUCT((PayEmp=$C7)*(PayDate<=$AC7)*(ISERROR(SEARCH(PayEarnCode,O$4)))*(PayEarnTax)*(PayEarnValues)),SUMPRODUCT((PayEmp=$C7)*(PayDate<=$AC7)*(ISERROR(SEARCH(PayEarnCode,O$4)))*(PayEarnValues))),IF(ISNUMBER(O$3),O$3/12*$AA7,IgnoreMin)))*IF(COUNTIFS(EmpNo,$C7,OFFSET(Emp!$R$4,1,MATCH(O$5,DedListItem,0)-1,EmpCount,1),"<>")>0,VLOOKUP($C7,EmpAll,COLUMN(Emp!$R$4)+MATCH(O$5,DedListItem,0)-1,0),OFFSET(Setup!$E$73,MATCH(O$5,DedListItem,0),0,1,1)))-SUMIFS(OFFSET(O$6,1,0,PayCount,1),PayDate,"<"&$AC7,PayEmp,$C7)))))) -> 11250 | P7: =IF($F7="Terminated",0,IF($AA7=0,0,IF(ISNA(MATCH(P$5,DedListItem,0)),0,IF(COUNTIFS(OverEmp,$C7,OverDeduct,P$5,OverDate,"<"&DATE(YEAR($AC7),MONTH($AC7)+1,1),OverEnd,">="&DATE(YEAR($AC7),MONTH($AC7),1))>0,SUMIFS(OverValue,OverEmp,$C7,OverDeduct,P$5,OverDate,"<"&DATE(YEAR($AC7),MONTH($AC7)+1,1),OverEnd,">="&DATE(YEAR($AC7),MONTH($AC7),1)),IF(OR(P$2="Fixed",P$2="Not Used"),(IF(COUNTIFS(EmpNo,$C7,OFFSET(Emp!$R$4,1,MATCH(P$5,DedListItem,0)-1,EmpCount,1),"<>")>0,VLOOKUP($C7,EmpAll,COLUMN(Emp!$R$4)+MATCH(P$5,DedListItem,0)-1,0),OFFSET(Setup!$E$73,MATCH(P$5,DedListItem,0),0,1,1))*$AA7)-SUMIFS(OFFSET(P$6,1,0,PayCount,1),PayDate,"<"&$AC7,PayEmp,$C7),IF(ISNA(MATCH(P$2,EarnListItem,0))=FALSE,IF(OFFSET(Setup!$G$73,MATCH(P$5,DedListItem,0),0,1,1)="Taxable",SUMPRODUCT((PayEmp=$C7)*(PayDate<=$AC7)*(PayEarnCode=P$2)*(PayEarnTax)*(PayEarnValues)),SUMPRODUCT((PayEmp=$C7)*(PayDate<=$AC7)*(PayEarnCode=P$2)*(PayEarnValues)))*IF(COUNTIFS(EmpNo,$C7,OFFSET(Emp!$R$4,1,MATCH(P$5,DedListItem,0)-1,EmpCount,1),"<>")>0,VLOOKUP($C7,EmpAll,COLUMN(Emp!$R$4)+MATCH(P$5,DedListItem,0)-1,0),OFFSET(Setup!$E$73,MATCH(P$5,DedListItem,0),0,1,1)),(MIN(IF(OFFSET(Setup!$G$73,MATCH(P$5,DedListItem,0),0,1,1)="Taxable",SUMPRODUCT((PayEmp=$C7)*(PayDate<=$AC7)*(ISERROR(SEARCH(PayEarnCode,P$4)))*(PayEarnTax)*(PayEarnValues)),SUMPRODUCT((PayEmp=$C7)*(PayDate<=$AC7)*(ISERROR(SEARCH(PayEarnCode,P$4)))*(PayEarnValues))),IF(ISNUMBER(P$3),P$3/12*$AA7,IgnoreMin)))*IF(COUNTIFS(EmpNo,$C7,OFFSET(Emp!$R$4,1,MATCH(P$5,DedListItem,0)-1,EmpCount,1),"<>")>0,VLOOKUP($C7,EmpAll,COLUMN(Emp!$R$4)+MATCH(P$5,DedListItem,0)-1,0),OFFSET(Setup!$E$73,MATCH(P$5,DedListItem,0),0,1,1)))-SUMIFS(OFFSET(P$6,1,0,PayCount,1),PayDate,"<"&$AC7,PayEmp,$C7)))))) -> 0 | Q7: =IF($F7="Terminated",0,IF($AA7=0,0,IF(ISNA(MATCH(Q$5,DedListItem,0)),0,IF(COUNTIFS(OverEmp,$C7,OverDeduct,Q$5,OverDate,"<"&DATE(YEAR($AC7),MONTH($AC7)+1,1),OverEnd,">="&DATE(YEAR($AC7),MONTH($AC7),1))>0,SUMIFS(OverValue,OverEmp,$C7,OverDeduct,Q$5,OverDate,"<"&DATE(YEAR($AC7),MONTH($AC7)+1,1),OverEnd,">="&DATE(YEAR($AC7),MONTH($AC7),1)),IF(OR(Q$2="Fixed",Q$2="Not Used"),(IF(COUNTIFS(EmpNo,$C7,OFFSET(Emp!$R$4,1,MATCH(Q$5,DedListItem,0)-1,EmpCount,1),"<>")>0,VLOOKUP($C7,EmpAll,COLUMN(Emp!$R$4)+MATCH(Q$5,DedListItem,0)-1,0),OFFSET(Setup!$E$73,MATCH(Q$5,DedListItem,0),0,1,1))*$AA7)-SUMIFS(OFFSET(Q$6,1,0,PayCount,1),PayDate,"<"&$AC7,PayEmp,$C7),IF(ISNA(MATCH(Q$2,EarnListItem,0))=FALSE,IF(OFFSET(Setup!$G$73,MATCH(Q$5,DedListItem,0),0,1,1)="Taxable",SUMPRODUCT((PayEmp=$C7)*(PayDate<=$AC7)*(PayEarnCode=Q$2)*(PayEarnTax)*(PayEarnValues)),SUMPRODUCT((PayEmp=$C7)*(PayDate<=$AC7)*(PayEarnCode=Q$2)*(PayEarnValues)))*IF(COUNTIFS(EmpNo,$C7,OFFSET(Emp!$R$4,1,MATCH(Q$5,DedListItem,0)-1,EmpCount,1),"<>")>0,VLOOKUP($C7,EmpAll,COLUMN(Emp!$R$4)+MATCH(Q$5,DedListItem,0)-1,0),OFFSET(Setup!$E$73,MATCH(Q$5,DedListItem,0),0,1,1)),(MIN(IF(OFFSET(Setup!$G$73,MATCH(Q$5,DedListItem,0),0,1,1)="Taxable",SUMPRODUCT((PayEmp=$C7)*(PayDate<=$AC7)*(ISERROR(SEARCH(PayEarnCode,Q$4)))*(PayEarnTax)*(PayEarnValues)),SUMPRODUCT((PayEmp=$C7)*(PayDate<=$AC7)*(ISERROR(SEARCH(PayEarnCode,Q$4)))*(PayEarnValues))),IF(ISNUMBER(Q$3),Q$3/12*$AA7,IgnoreMin)))*IF(COUNTIFS(EmpNo,$C7,OFFSET(Emp!$R$4,1,MATCH(Q$5,DedListItem,0)-1,EmpCount,1),"<>")>0,VLOOKUP($C7,EmpAll,COLUMN(Emp!$R$4)+MATCH(Q$5,DedListItem,0)-1,0),OFFSET(Setup!$E$73,MATCH(Q$5,DedListItem,0),0,1,1)))-SUMIFS(OFFSET(Q$6,1,0,PayCount,1),PayDate,"<"&$AC7,PayEmp,$C7)))))) -> 0 | R7: =SUM(OFFSET(M7,0,0,1,COLUMN($R$6)-COLUMN($M$6))) -> 57038.95333 | S7: =ROUND(SUM(L7,-R7),2) -> 92961.05 | T7: =IF($F7="Terminated",0,IF($AA7=0,0,IF(ISNA(MATCH(T$5,CompListItem,0)),0,IF(COUNTIFS(OverEmp,$C7,OverComp,T$5,OverDate,"<"&DATE(YEAR($AC7),MONTH($AC7)+1,1),OverEnd,">="&DATE(YEAR($AC7),MONTH($AC7),1))>0,SUMIFS(OverValue,OverEmp,$C7,OverComp,T$5,OverDate,"<"&DATE(YEAR($AC7),MONTH($AC7)+1,1),OverEnd,">="&DATE(YEAR($AC7),MONTH($AC7),1)),IF(OR(T$2="Fixed",T$2="Not Used"),(OFFSET(Setup!$E$81,MATCH(T$5,CompListItem,0),0,1,1)*$AA7)-SUMIFS(OFFSET(T$6,1,0,PayCount,1),PayDate,"<"&$AC7,PayEmp,$C7),IF(ISNA(MATCH(T$2,DedListItem,0))=FALSE,(SUMPRODUCT((PayEmp=$C7)*(PayDate<=$AC7)*(PayDedList=T$2)*(PayDedValues))*OFFSET(Setup!$E$81,MATCH(T$5,CompListItem,0),0,1,1))-SUMIFS(OFFSET(T$6,1,0,PayCount,1),PayDate,"<"&$AC7,PayEmp,$C7),(MIN(IF(OFFSET(Setup!$G$81,MATCH(T$5,CompListItem,0),0,1,1)="Taxable",SUMPRODUCT((PayEmp=$C7)*(PayDate<=$AC7)*(ISERROR(SEARCH(PayEarnCode,T$4)))*(PayEarnTax)*(PayEarnValues)),SUMPRODUCT((PayEmp=$C7)*(PayDate<=$AC7)*(ISERROR(SEARCH(PayEarnCode,T$4)))*(PayEarnValues))),IF(ISNUMBER(T$3),T$3/12*$AA7,IgnoreMin)))*OFFSET(Setup!$E$81,MATCH(T$5,CompListItem,0),0,1,1)-SUMIFS(OFFSET(T$6,1,0,PayCount,1),PayDate,"<"&$AC7,PayEmp,$C7))))))) -> 177.12 | U7: =IF($F7="Terminated",0,IF($AA7=0,0,IF(ISNA(MATCH(U$5,CompListItem,0)),0,IF(COUNTIFS(OverEmp,$C7,OverComp,U$5,OverDate,"<"&DATE(YEAR($AC7),MONTH($AC7)+1,1),OverEnd,">="&DATE(YEAR($AC7),MONTH($AC7),1))>0,SUMIFS(OverValue,OverEmp,$C7,OverComp,U$5,OverDate,"<"&DATE(YEAR($AC7),MONTH($AC7)+1,1),OverEnd,">="&DATE(YEAR($AC7),MONTH($AC7),1)),IF(OR(U$2="Fixed",U$2="Not Used"),(OFFSET(Setup!$E$81,MATCH(U$5,CompListItem,0),0,1,1)*$AA7)-SUMIFS(OFFSET(U$6,1,0,PayCount,1),PayDate,"<"&$AC7,PayEmp,$C7),IF(ISNA(MATCH(U$2,DedListItem,0))=FALSE,(SUMPRODUCT((PayEmp=$C7)*(PayDate<=$AC7)*(PayDedList=U$2)*(PayDedValues))*OFFSET(Setup!$E$81,MATCH(U$5,CompListItem,0),0,1,1))-SUMIFS(OFFSET(U$6,1,0,PayCount,1),PayDate,"<"&$AC7,PayEmp,$C7),(MIN(IF(OFFSET(Setup!$G$81,MATCH(U$5,CompListItem,0),0,1,1)="Taxable",SUMPRODUCT((PayEmp=$C7)*(PayDate<=$AC7)*(ISERROR(SEARCH(PayEarnCode,U$4)))*(PayEarnTax)*(PayEarnValues)),SUMPRODUCT((PayEmp=$C7)*(PayDate<=$AC7)*(ISERROR(SEARCH(PayEarnCode,U$4)))*(PayEarnValues))),IF(ISNUMBER(U$3),U$3/12*$AA7,IgnoreMin)))*OFFSET(Setup!$E$81,MATCH(U$5,CompListItem,0),0,1,1)-SUMIFS(OFFSET(U$6,1,0,PayCount,1),PayDate,"<"&$AC7,PayEmp,$C7))))))) -> 1500 | V7: =IF($F7="Terminated",0,IF($AA7=0,0,IF(ISNA(MATCH(V$5,CompListItem,0)),0,IF(COUNTIFS(OverEmp,$C7,OverComp,V$5,OverDate,"<"&DATE(YEAR($AC7),MONTH($AC7)+1,1),OverEnd,">="&DATE(YEAR($AC7),MONTH($AC7),1))>0,SUMIFS(OverValue,OverEmp,$C7,OverComp,V$5,OverDate,"<"&DATE(YEAR($AC7),MONTH($AC7)+1,1),OverEnd,">="&DATE(YEAR($AC7),MONTH($AC7),1)),IF(OR(V$2="Fixed",V$2="Not Used"),(OFFSET(Setup!$E$81,MATCH(V$5,CompListItem,0),0,1,1)*$AA7)-SUMIFS(OFFSET(V$6,1,0,PayCount,1),PayDate,"<"&$AC7,PayEmp,$C7),IF(ISNA(MATCH(V$2,DedListItem,0))=FALSE,(SUMPRODUCT((PayEmp=$C7)*(PayDate<=$AC7)*(PayDedList=V$2)*(PayDedValues))*OFFSET(Setup!$E$81,MATCH(V$5,CompListItem,0),0,1,1))-SUMIFS(OFFSET(V$6,1,0,PayCount,1),PayDate,"<"&$AC7,PayEmp,$C7),(MIN(IF(OFFSET(Setup!$G$81,MATCH(V$5,CompListItem,0),0,1,1)="Taxable",SUMPRODUCT((PayEmp=$C7)*(PayDate<=$AC7)*(ISERROR(SEARCH(PayEarnCode,V$4)))*(PayEarnTax)*(PayEarnValues)),SUMPRODUCT((PayEmp=$C7)*(PayDate<=$AC7)*(ISERROR(SEARCH(PayEarnCode,V$4)))*(PayEarnValues))),IF(ISNUMBER(V$3),V$3/12*$AA7,IgnoreMin)))*OFFSET(Setup!$E$81,MATCH(V$5,CompListItem,0),0,1,1)-SUMIFS(OFFSET(V$6,1,0,PayCount,1),PayDate,"<"&$AC7,PayEmp,$C7))))))) -> 0 | W7: =IF($F7="Terminated",0,IF($AA7=0,0,IF(ISNA(MATCH(W$5,CompListItem,0)),0,IF(COUNTIFS(OverEmp,$C7,OverComp,W$5,OverDate,"<"&DATE(YEAR($AC7),MONTH($AC7)+1,1),OverEnd,">="&DATE(YEAR($AC7),MONTH($AC7),1))>0,SUMIFS(OverValue,OverEmp,$C7,OverComp,W$5,OverDate,"<"&DATE(YEAR($AC7),MONTH($AC7)+1,1),OverEnd,">="&DATE(YEAR($AC7),MONTH($AC7),1)),IF(OR(W$2="Fixed",W$2="Not Used"),(OFFSET(Setup!$E$81,MATCH(W$5,CompListItem,0),0,1,1)*$AA7)-SUMIFS(OFFSET(W$6,1,0,PayCount,1),PayDate,"<"&$AC7,PayEmp,$C7),IF(ISNA(MATCH(W$2,DedListItem,0))=FALSE,(SUMPRODUCT((PayEmp=$C7)*(PayDate<=$AC7)*(PayDedList=W$2)*(PayDedValues))*OFFSET(Setup!$E$81,MATCH(W$5,CompListItem,0),0,1,1))-SUMIFS(OFFSET(W$6,1,0,PayCount,1),PayDate,"<"&$AC7,PayEmp,$C7),(MIN(IF(OFFSET(Setup!$G$81,MATCH(W$5,CompListItem,0),0,1,1)="Taxable",SUMPRODUCT((PayEmp=$C7)*(PayDate<=$AC7)*(ISERROR(SEARCH(PayEarnCode,W$4)))*(PayEarnTax)*(PayEarnValues)),SUMPRODUCT((PayEmp=$C7)*(PayDate<=$AC7)*(ISERROR(SEARCH(PayEarnCode,W$4)))*(PayEarnValues))),IF(ISNUMBER(W$3),W$3/12*$AA7,IgnoreMin)))*OFFSET(Setup!$E$81,MATCH(W$5,CompListItem,0),0,1,1)-SUMIFS(OFFSET(W$6,1,0,PayCount,1),PayDate,"<"&$AC7,PayEmp,$C7))))))) -> 0 | X7: =SUM(OFFSET($T7,0,0,1,COLUMN($X$6)-COLUMN($T$7))) -> 1677.12 | Y7: =L7+X7 -> 151677.12 | Z7: =ROUND(SUM(R7,X7),2) -> 58716.07 | AA7: =IF(OR($B7<=Setup!$E$12,$B7>=Setup!$D$12+1),0,IF($F7<>"Active",0,IF($AE7="Yes",$AB7,((YEAR($AC7)*12)+MONTH($AC7))-((YEAR($AD7)*12)+MONTH($AD7)-1)))) -> 1 | AB7: =IF(OR($B7<=Setup!$E$12,$B7>=Setup!$D$12+1),0,((YEAR($AC7)*12)+MONTH($AC7))-((YEAR(Setup!$E$12)*12)+MONTH(Setup!$E$12))) -> 1 | AC7: =DATE(YEAR($B7),MONTH($B7),DAY($B7)) -> 45010 | AD7: =IF(ISNA(VLOOKUP($C7,EmpAll,COLUMN(Emp!$E$4),0)),$AC7,IF(VLOOKUP($C7,EmpAll,COLUMN(Emp!$E$4),0)<=Setup!$E$12,DATE(YEAR(Setup!$E$12),MONTH(Setup!$E$12)+1,1),VLOOKUP($C7,EmpAll,COLUMN(Emp!$E$4),0))) -> 2023-03-01 | AE7: =IF(ISNA(VLOOKUP($C7,EmpAll,COLUMN(Emp!$G$1),0)),"-",IF(VLOOKUP($C7,EmpAll,COLUMN(Emp!$G$1),0)=0,"-",VLOOKUP($C7,EmpAll,COLUMN(Emp!$G$1),0))) -> - | AF7: =IF(A7=PaySlip!$G$3,1,0) -> 0 | AG7: =IF(COUNTIFS(OverEmp,$C7,OverMed,"MED",OverDate,"<"&DATE(YEAR($AC7),MONTH($AC7)+1,1),OverEnd,">="&DATE(YEAR($AC7),MONTH($AC7),1))>0,SUMIFS(OverValue,OverEmp,$C7,OverMed,"MED",OverDate,"<"&DATE(YEAR($AC7),MONTH($AC7)+1,1),OverEnd,">="&DATE(YEAR($AC7),MONTH($AC7),1)),IF(ISNA(VLOOKUP($C7,EmpAll,COLUMN(Emp!$N$4),0)),0,VLOOKUP($C7,EmpAll,COLUMN(Emp!$N$4),0))) -> 5 | AH7: =VLOOKUP($AG7,MedList,COLUMN(Setup!$C$49),1) -> 1466 | AI7: =SUMIFS(PayMedDeduct,PayDate,"<"&$AC7,PayEmp,$C7)+$AH7+($AH7*(12-$AA7)) -> 17592 | AJ7: =IF(ISNA(VLOOKUP($C7,EmpAll,COLUMN(Emp!$L$4),0)),"None!",VLOOKUP($C7,EmpAll,COLUMN(Emp!$L$4),0)) -> A | AK7: =IF(ISNA(VLOOKUP($AJ7,RebateList,4,0)),VLOOKUP("A",RebateList,3,0),VLOOKUP($AJ7,RebateList,4,0)) -> 17235 | AL7: =IF(ISNA(VLOOKUP($C7,Employees[],COLUMN(Emp!$M$4),0))=TRUE,"Error!",IF(VLOOKUP($C7,Employees[],COLUMN(Emp!$M$4),0)=0,"Yes",VLOOKUP($C7,Employees[],COLUMN(Emp!$M$4),0))) -> A | AM7: =IF($AA7=0,0,((SUMPRODUCT((PayEmp=$C7)*(PayDate<=$AC7)*(PayEarnType="Monthly")*(PayEarnTax)*(PayEarnValues))/$AA7*12)+(SUMPRODUCT((PayEmp=$C7)*(PayDate<=$AC7)*(PayEarnType="Quarterly")*(PayEarnTax)*(PayEarnValues))/MAX(1,ROUNDDOWN($AB7/3,0))*4)+(SUMPRODUCT((PayEmp=$C7)*(PayDate<=$AC7)*(PayEarnType="Bi-Annual")*(PayEarnTax)*(PayEarnValues))/MAX(1,ROUNDDOWN($AB7/6,0))*2)+(SUMPRODUCT((PayEmp=$C7)*(PayDate<=$AC7)*(PayEarnType="Annual")*(PayEarnTax)*(PayEarnValues))))) -> 1800000 | AN7: =-IF($F7="Terminated",0,IF($AA7=0,0,IF(ISNA(MATCH(AN$5,PayDedList,0)),0,MIN(IF(COUNTIFS(OverEmp,$C7,OverDeduct,AN$5,OverDate,"<"&DATE(YEAR($AC7),MONTH($AC7)+1,1),OverEnd,">="&DATE(YEAR($AC7),MONTH($AC7),1))>0,SUMPRODUCT((PayEmp=$C7)*(PayDate<=$AC7)*(OFFSET($N$6,1,MATCH(AN$5,PayDedList,0)-1,PayCount,1)))/$AA7*12*AN$3,IF(OR(AN$1="Fixed",AN$1="Not Used"),SUMPRODUCT((PayEmp=$C7)*(PayDate<=$AC7)*(OFFSET($N$6,1,MATCH(AN$5,PayDedList,0)-1,PayCount,1)))/$AA7*12*AN$3,IF(ISNA(MATCH(AN$1,EarnListItem,0))=FALSE,SUMPRODUCT((PayEmp=$C7)*(PayDate<=$AC7)*(OFFSET($N$6,1,MATCH(AN$5,PayDedList,0)-1,PayCount,1)))/$AA7*12*AN$3,(MIN(((SUMPRODUCT((PayEmp=$C7)*(PayDate<=$AC7)*(ISERROR(SEARCH(PayEarnCode,AN$2)))*(PayEarnType="Monthly")*(PayEarnValues))/$AA7*12)+(SUMPRODUCT((PayEmp=$C7)*(PayDate<=$AC7)*(ISERROR(SEARCH(PayEarnCode,AN$2)))*(PayEarnType="Quarterly")*(PayEarnValues))/MAX(1,ROUNDDOWN($AB7/3,0))*4)+(SUMPRODUCT((PayEmp=$C7)*(PayDate<=$AC7)*(ISERROR(SEARCH(PayEarnCode,AN$2)))*(PayEarnType="Bi-Annual")*(PayEarnValues))/MAX(1,ROUNDDOWN($AB7/6,0))*2)+(SUMPRODUCT((PayEmp=$C7)*(PayDate<=$AC7)*(ISERROR(SEARCH(PayEarnCode,AN$2)))*(PayEarnType="Annual")*(PayEarnValues)))),IF(ISNUMBER(OFFSET($N$3,0,MATCH(AN$5,PayDedList,0)-1,1,1)),OFFSET($N$3,0,MATCH(AN$5,PayDedList,0)-1,1,1),IgnoreMin)))*IF(COUNTIFS(EmpNo,$C7,OFFSET(Emp!$R$4,1,MATCH(AN$5,DedListItem,0)-1,EmpCount,1),"<>")>0,VLOOKUP($C7,EmpAll,COLUMN(Emp!$R$4)+MATCH(AN$5,DedListItem,0)-1,0),OFFSET(Setup!$E$73,MATCH(AN$5,DedListItem,0),0,1,1))*AN$3))),IF(ISNUMBER(AN$4),AN$4,IgnoreMin))))) -> 0 | AO7: =-IF($F7="Terminated",0,IF($AA7=0,0,IF(ISNA(MATCH(AO$5,PayDedList,0)),0,MIN(IF(COUNTIFS(OverEmp,$C7,OverDeduct,AO$5,OverDate,"<"&DATE(YEAR($AC7),MONTH($AC7)+1,1),OverEnd,">="&DATE(YEAR($AC7),MONTH($AC7),1))>0,SUMPRODUCT((PayEmp=$C7)*(PayDate<=$AC7)*(OFFSET($N$6,1,MATCH(AO$5,PayDedList,0)-1,PayCount,1)))/$AA7*12*AO$3,IF(OR(AO$1="Fixed",AO$1="Not Used"),SUMPRODUCT((PayEmp=$C7)*(PayDate<=$AC7)*(OFFSET($N$6,1,MATCH(AO$5,PayDedList,0)-1,PayCount,1)))/$AA7*12*AO$3,IF(ISNA(MATCH(AO$1,EarnListItem,0))=FALSE,SUMPRODUCT((PayEmp=$C7)*(PayDate<=$AC7)*(OFFSET($N$6,1,MATCH(AO$5,PayDedList,0)-1,PayCount,1)))/$AA7*12*AO$3,(MIN(((SUMPRODUCT((PayEmp=$C7)*(PayDate<=$AC7)*(ISERROR(SEARCH(PayEarnCode,AO$2)))*(PayEarnType="Monthly")*(PayEarnValues))/$AA7*12)+(SUMPRODUCT((PayEmp=$C7)*(PayDate<=$AC7)*(ISERROR(SEARCH(PayEarnCode,AO$2)))*(PayEarnType="Quarterly")*(PayEarnValues))/MAX(1,ROUNDDOWN($AB7/3,0))*4)+(SUMPRODUCT((PayEmp=$C7)*(PayDate<=$AC7)*(ISERROR(SEARCH(PayEarnCode,AO$2)))*(PayEarnType="Bi-Annual")*(PayEarnValues))/MAX(1,ROUNDDOWN($AB7/6,0))*2)+(SUMPRODUCT((PayEmp=$C7)*(PayDate<=$AC7)*(ISERROR(SEARCH(PayEarnCode,AO$2)))*(PayEarnType="Annual")*(PayEarnValues)))),IF(ISNUMBER(OFFSET($N$3,0,MATCH(AO$5,PayDedList,0)-1,1,1)),OFFSET($N$3,0,MATCH(AO$5,PayDedList,0)-1,1,1),IgnoreMin)))*IF(COUNTIFS(EmpNo,$C7,OFFSET(Emp!$R$4,1,MATCH(AO$5,DedListItem,0)-1,EmpCount,1),"<>")>0,VLOOKUP($C7,EmpAll,COLUMN(Emp!$R$4)+MATCH(AO$5,DedListItem,0)-1,0),OFFSET(Setup!$E$73,MATCH(AO$5,DedListItem,0),0,1,1))*AO$3))),IF(ISNUMBER(AO$4),AO$4,IgnoreMin))))) -> -135000 | AP7: =-IF($F7="Terminated",0,IF($AA7=0,0,IF(ISNA(MATCH(AP$5,PayDedList,0)),0,MIN(IF(COUNTIFS(OverEmp,$C7,OverDeduct,AP$5,OverDate,"<"&DATE(YEAR($AC7),MONTH($AC7)+1,1),OverEnd,">="&DATE(YEAR($AC7),MONTH($AC7),1))>0,SUMPRODUCT((PayEmp=$C7)*(PayDate<=$AC7)*(OFFSET($N$6,1,MATCH(AP$5,PayDedList,0)-1,PayCount,1)))/$AA7*12*AP$3,IF(OR(AP$1="Fixed",AP$1="Not Used"),SUMPRODUCT((PayEmp=$C7)*(PayDate<=$AC7)*(OFFSET($N$6,1,MATCH(AP$5,PayDedList,0)-1,PayCount,1)))/$AA7*12*AP$3,IF(ISNA(MATCH(AP$1,EarnListItem,0))=FALSE,SUMPRODUCT((PayEmp=$C7)*(PayDate<=$AC7)*(OFFSET($N$6,1,MATCH(AP$5,PayDedList,0)-1,PayCount,1)))/$AA7*12*AP$3,(MIN(((SUMPRODUCT((PayEmp=$C7)*(PayDate<=$AC7)*(ISERROR(SEARCH(PayEarnCode,AP$2)))*(PayEarnType="Monthly")*(PayEarnValues))/$AA7*12)+(SUMPRODUCT((PayEmp=$C7)*(PayDate<=$AC7)*(ISERROR(SEARCH(PayEarnCode,AP$2)))*(PayEarnType="Quarterly")*(PayEarnValues))/MAX(1,ROUNDDOWN($AB7/3,0))*4)+(SUMPRODUCT((PayEmp=$C7)*(PayDate<=$AC7)*(ISERROR(SEARCH(PayEarnCode,AP$2)))*(PayEarnType="Bi-Annual")*(PayEarnValues))/MAX(1,ROUNDDOWN($AB7/6,0))*2)+(SUMPRODUCT((PayEmp=$C7)*(PayDate<=$AC7)*(ISERROR(SEARCH(PayEarnCode,AP$2)))*(PayEarnType="Annual")*(PayEarnValues)))),IF(ISNUMBER(OFFSET($N$3,0,MATCH(AP$5,PayDedList,0)-1,1,1)),OFFSET($N$3,0,MATCH(AP$5,PayDedList,0)-1,1,1),IgnoreMin)))*IF(COUNTIFS(EmpNo,$C7,OFFSET(Emp!$R$4,1,MATCH(AP$5,DedListItem,0)-1,EmpCount,1),"<>")>0,VLOOKUP($C7,EmpAll,COLUMN(Emp!$R$4)+MATCH(AP$5,DedListItem,0)-1,0),OFFSET(Setup!$E$73,MATCH(AP$5,DedListItem,0),0,1,1))*AP$3))),IF(ISNUMBER(AP$4),AP$4,IgnoreMin))))) -> 0 | AQ7: =-IF($F7="Terminated",0,IF($AA7=0,0,IF(ISNA(MATCH(AQ$5,PayDedList,0)),0,MIN(IF(COUNTIFS(OverEmp,$C7,OverDeduct,AQ$5,OverDate,"<"&DATE(YEAR($AC7),MONTH($AC7)+1,1),OverEnd,">="&DATE(YEAR($AC7),MONTH($AC7),1))>0,SUMPRODUCT((PayEmp=$C7)*(PayDate<=$AC7)*(OFFSET($N$6,1,MATCH(AQ$5,PayDedList,0)-1,PayCount,1)))/$AA7*12*AQ$3,IF(OR(AQ$1="Fixed",AQ$1="Not Used"),SUMPRODUCT((PayEmp=$C7)*(PayDate<=$AC7)*(OFFSET($N$6,1,MATCH(AQ$5,PayDedList,0)-1,PayCount,1)))/$AA7*12*AQ$3,IF(ISNA(MATCH(AQ$1,EarnListItem,0))=FALSE,SUMPRODUCT((PayEmp=$C7)*(PayDate<=$AC7)*(OFFSET($N$6,1,MATCH(AQ$5,PayDedList,0)-1,PayCount,1)))/$AA7*12*AQ$3,(MIN(((SUMPRODUCT((PayEmp=$C7)*(PayDate<=$AC7)*(ISERROR(SEARCH(PayEarnCode,AQ$2)))*(PayEarnType="Monthly")*(PayEarnValues))/$AA7*12)+(SUMPRODUCT((PayEmp=$C7)*(PayDate<=$AC7)*(ISERROR(SEARCH(PayEarnCode,AQ$2)))*(PayEarnType="Quarterly")*(PayEarnValues))/MAX(1,ROUNDDOWN($AB7/3,0))*4)+(SUMPRODUCT((PayEmp=$C7)*(PayDate<=$AC7)*(ISERROR(SEARCH(PayEarnCode,AQ$2)))*(PayEarnType="Bi-Annual")*(PayEarnValues))/MAX(1,ROUNDDOWN($AB7/6,0))*2)+(SUMPRODUCT((PayEmp=$C7)*(PayDate<=$AC7)*(ISERROR(SEARCH(PayEarnCode,AQ$2)))*(PayEarnType="Annual")*(PayEarnValues)))),IF(ISNUMBER(OFFSET($N$3,0,MATCH(AQ$5,PayDedList,0)-1,1,1)),OFFSET($N$3,0,MATCH(AQ$5,PayDedList,0)-1,1,1),IgnoreMin)))*IF(COUNTIFS(EmpNo,$C7,OFFSET(Emp!$R$4,1,MATCH(AQ$5,DedListItem,0)-1,EmpCount,1),"<>")>0,VLOOKUP($C7,EmpAll,COLUMN(Emp!$R$4)+MATCH(AQ$5,DedListItem,0)-1,0),OFFSET(Setup!$E$73,MATCH(AQ$5,DedListItem,0),0,1,1))*AQ$3))),IF(ISNUMBER(AQ$4),AQ$4,IgnoreMin))))) -> 0 | AR7: =$AM7+SUM(OFFSET($AM7,0,1,1,COLUMN($AR$2)-COLUMN($AM$2)-1)) -> 1665000 | AS7: =IF($AA7=0,0,(SUMPRODUCT((PayEmp=$C7)*(PayDate<=$AC7)*(PayEarnType="Monthly")*(PayEarnTax)*(PayEarnValues))/$AA7*12)) -> 1800000 | AT7: =-IF($F7="Terminated",0,IF($AA7=0,0,IF(ISNA(MATCH(AT$5,PayDedList,0)),0,MIN(IF(COUNTIFS(OverEmp,$C7,OverDeduct,AT$5,OverDate,"<"&DATE(YEAR($AC7),MONTH($AC7)+1,1),OverEnd,">="&DATE(YEAR($AC7),MONTH($AC7),1))>0,SUMPRODUCT((PayEmp=$C7)*(PayDate<=$AC7)*(OFFSET($N$6,1,MATCH(AT$5,PayDedList,0)-1,PayCount,1)))/$AA7*12*AT$3,IF(OR(AT$1="Fixed",AT$1="Not Used"),SUMPRODUCT((PayEmp=$C7)*(PayDate<=$AC7)*(OFFSET($N$6,1,MATCH(AT$5,PayDedList,0)-1,PayCount,1)))/$AA7*12*AT$3,IF(ISNA(MATCH(OFFSET($N$2,0,MATCH(AT$5,PayDedList,0)-1,1,1),EarnListItem,0))=FALSE,SUMPRODUCT((PayEmp=$C7)*(PayDate<=$AC7)*(OFFSET($N$6,1,MATCH(AT$5,PayDedList,0)-1,PayCount,1)))/$AA7*12*AT$3,(MIN(SUMPRODUCT((PayEmp=$C7)*(PayDate<=$AC7)*(ISERROR(SEARCH(PayEarnCode,AT$2)))*(PayEarnType="Monthly")*(PayEarnValues))/$AA7*12,IF(ISNUMBER(OFFSET($N$3,0,MATCH(AT$5,PayDedList,0)-1,1,1)),OFFSET($N$3,0,MATCH(AT$5,PayDedList,0)-1,1,1),IgnoreMin)))*IF(COUNTIFS(EmpNo,$C7,OFFSET(Emp!$R$4,1,MATCH(AT$5,DedListItem,0)-1,EmpCount,1),"<>")>0,VLOOKUP($C7,EmpAll,COLUMN(Emp!$R$4)+MATCH(AT$5,DedListItem,0)-1,0),OFFSET(Setup!$E$73,MATCH(AT$5,DedListItem,0),0,1,1))*AT$3))),IF(ISNUMBER(AT$4),AT$4,IgnoreMin))))) -> 0 | AU7: =-IF($F7="Terminated",0,IF($AA7=0,0,IF(ISNA(MATCH(AU$5,PayDedList,0)),0,MIN(IF(COUNTIFS(OverEmp,$C7,OverDeduct,AU$5,OverDate,"<"&DATE(YEAR($AC7),MONTH($AC7)+1,1),OverEnd,">="&DATE(YEAR($AC7),MONTH($AC7),1))>0,SUMPRODUCT((PayEmp=$C7)*(PayDate<=$AC7)*(OFFSET($N$6,1,MATCH(AU$5,PayDedList,0)-1,PayCount,1)))/$AA7*12*AU$3,IF(OR(AU$1="Fixed",AU$1="Not Used"),SUMPRODUCT((PayEmp=$C7)*(PayDate<=$AC7)*(OFFSET($N$6,1,MATCH(AU$5,PayDedList,0)-1,PayCount,1)))/$AA7*12*AU$3,IF(ISNA(MATCH(OFFSET($N$2,0,MATCH(AU$5,PayDedList,0)-1,1,1),EarnListItem,0))=FALSE,SUMPRODUCT((PayEmp=$C7)*(PayDate<=$AC7)*(OFFSET($N$6,1,MATCH(AU$5,PayDedList,0)-1,PayCount,1)))/$AA7*12*AU$3,(MIN(SUMPRODUCT((PayEmp=$C7)*(PayDate<=$AC7)*(ISERROR(SEARCH(PayEarnCode,AU$2)))*(PayEarnType="Monthly")*(PayEarnValues))/$AA7*12,IF(ISNUMBER(OFFSET($N$3,0,MATCH(AU$5,PayDedList,0)-1,1,1)),OFFSET($N$3,0,MATCH(AU$5,PayDedList,0)-1,1,1),IgnoreMin)))*IF(COUNTIFS(EmpNo,$C7,OFFSET(Emp!$R$4,1,MATCH(AU$5,DedListItem,0)-1,EmpCount,1),"<>")>0,VLOOKUP($C7,EmpAll,COLUMN(Emp!$R$4)+MATCH(AU$5,DedListItem,0)-1,0),OFFSET(Setup!$E$73,MATCH(AU$5,DedListItem,0),0,1,1))*AU$3))),IF(ISNUMBER(AU$4),AU$4,IgnoreMin))))) -> -135000 | AV7: =-IF($F7="Terminated",0,IF($AA7=0,0,IF(ISNA(MATCH(AV$5,PayDedList,0)),0,MIN(IF(COUNTIFS(OverEmp,$C7,OverDeduct,AV$5,OverDate,"<"&DATE(YEAR($AC7),MONTH($AC7)+1,1),OverEnd,">="&DATE(YEAR($AC7),MONTH($AC7),1))>0,SUMPRODUCT((PayEmp=$C7)*(PayDate<=$AC7)*(OFFSET($N$6,1,MATCH(AV$5,PayDedList,0)-1,PayCount,1)))/$AA7*12*AV$3,IF(OR(AV$1="Fixed",AV$1="Not Used"),SUMPRODUCT((PayEmp=$C7)*(PayDate<=$AC7)*(OFFSET($N$6,1,MATCH(AV$5,PayDedList,0)-1,PayCount,1)))/$AA7*12*AV$3,IF(ISNA(MATCH(OFFSET($N$2,0,MATCH(AV$5,PayDedList,0)-1,1,1),EarnListItem,0))=FALSE,SUMPRODUCT((PayEmp=$C7)*(PayDate<=$AC7)*(OFFSET($N$6,1,MATCH(AV$5,PayDedList,0)-1,PayCount,1)))/$AA7*12*AV$3,(MIN(SUMPRODUCT((PayEmp=$C7)*(PayDate<=$AC7)*(ISERROR(SEARCH(PayEarnCode,AV$2)))*(PayEarnType="Monthly")*(PayEarnValues))/$AA7*12,IF(ISNUMBER(OFFSET($N$3,0,MATCH(AV$5,PayDedList,0)-1,1,1)),OFFSET($N$3,0,MATCH(AV$5,PayDedList,0)-1,1,1),IgnoreMin)))*IF(COUNTIFS(EmpNo,$C7,OFFSET(Emp!$R$4,1,MATCH(AV$5,DedListItem,0)-1,EmpCount,1),"<>")>0,VLOOKUP($C7,EmpAll,COLUMN(Emp!$R$4)+MATCH(AV$5,DedListItem,0)-1,0),OFFSET(Setup!$E$73,MATCH(AV$5,DedListItem,0),0,1,1))*AV$3))),IF(ISNUMBER(AV$4),AV$4,IgnoreMin))))) -> 0 | AW7: =-IF($F7="Terminated",0,IF($AA7=0,0,IF(ISNA(MATCH(AW$5,PayDedList,0)),0,MIN(IF(COUNTIFS(OverEmp,$C7,OverDeduct,AW$5,OverDate,"<"&DATE(YEAR($AC7),MONTH($AC7)+1,1),OverEnd,">="&DATE(YEAR($AC7),MONTH($AC7),1))>0,SUMPRODUCT((PayEmp=$C7)*(PayDate<=$AC7)*(OFFSET($N$6,1,MATCH(AW$5,PayDedList,0)-1,PayCount,1)))/$AA7*12*AW$3,IF(OR(AW$1="Fixed",AW$1="Not Used"),SUMPRODUCT((PayEmp=$C7)*(PayDate<=$AC7)*(OFFSET($N$6,1,MATCH(AW$5,PayDedList,0)-1,PayCount,1)))/$AA7*12*AW$3,IF(ISNA(MATCH(OFFSET($N$2,0,MATCH(AW$5,PayDedList,0)-1,1,1),EarnListItem,0))=FALSE,SUMPRODUCT((PayEmp=$C7)*(PayDate<=$AC7)*(OFFSET($N$6,1,MATCH(AW$5,PayDedList,0)-1,PayCount,1)))/$AA7*12*AW$3,(MIN(SUMPRODUCT((PayEmp=$C7)*(PayDate<=$AC7)*(ISERROR(SEARCH(PayEarnCode,AW$2)))*(PayEarnType="Monthly")*(PayEarnValues))/$AA7*12,IF(ISNUMBER(OFFSET($N$3,0,MATCH(AW$5,PayDedList,0)-1,1,1)),OFFSET($N$3,0,MATCH(AW$5,PayDedList,0)-1,1,1),IgnoreMin)))*IF(COUNTIFS(EmpNo,$C7,OFFSET(Emp!$R$4,1,MATCH(AW$5,DedListItem,0)-1,EmpCount,1),"<>")>0,VLOOKUP($C7,EmpAll,COLUMN(Emp!$R$4)+MATCH(AW$5,DedListItem,0)-1,0),OFFSET(Setup!$E$73,MATCH(AW$5,DedListItem,0),0,1,1))*AW$3))),IF(ISNUMBER(AW$4),AW$4,IgnoreMin))))) -> 0 | AX7: =$AS7+SUM(OFFSET($AT7,0,0,1,COLUMN($AX$2)-COLUMN($AT$2))) -> 1665000 | AY7: =AR7-AX7 -> 0 | AZ7: =IF(ISNUMBER($AL7),($AR7*$AL7)-$AI7-$AK7,MAX(0,IF($AL7="B",IF($AR7<Setup!$C$32,($AR7*Setup!$D$32)-$AI7-$AK7,(($AR7-VLOOKUP($AR7,TaxAll2,1,1))*OFFSET(Setup!$D$32,MATCH($AR7,TaxBracket2,1),0,1,1))+OFFSET(Setup!$E$31,MATCH($AR7,TaxBracket2,1),0,1,1)-$AI7-$AK7),IF($AR7<Setup!$C$21,($AR7*Setup!$D$21)-$AI7-$AK7,(($AR7-VLOOKUP($AR7,TaxAll1,1,1))*OFFSET(Setup!$D$21,MATCH($AR7,TaxBracket1,1),0,1,1))+OFFSET(Setup!$E$20,MATCH($AR7,TaxBracket1,1),0,1,1)-$AI7-$AK7)))) -> 547342 | BA7: =IF(ISNUMBER($AL7),($AX7*$AL7)-$AI7-$AK7,MAX(0,IF($AL7="B",IF($AX7<Setup!$C$32,($AX7*Setup!$D$32)-$AI7-$AK7,(($AX7-VLOOKUP($AX7,TaxAll2,1,1))*OFFSET(Setup!$D$32,MATCH($AX7,TaxBracket2,1),0,1,1))+OFFSET(Setup!$E$31,MATCH($AX7,TaxBracket2,1),0,1,1)-$AI7-$AK7),IF($AX7<Setup!$C$21,($AX7*Setup!$D$21)-$AI7-$AK7,(($AX7-VLOOKUP($AX7,TaxAll1,1,1))*OFFSET(Setup!$D$21,MATCH($AX7,TaxBracket1,1),0,1,1))+OFFSET(Setup!$E$20,MATCH($AX7,TaxBracket1,1),0,1,1)-$AI7-$AK7)))) -> 547342 | BB7: =AZ7-BA7 -> 0 | BC7: =IF($AA7=0,0,IF($BE7=0,0,(SUMPRODUCT((PayEmp=$C7)*(PayDate<=$AC7)*(ISERROR(SEARCH(PayEarnCode,O$4)))*(PayEarnType="Monthly")*(PayEarnValues))/$AA7*12)/$BE7)) -> 1 | BD7: =IF($BE7=0,0,(SUMPRODUCT((PayEmp=$C7)*(PayDate<=$AC7)*(ISERROR(SEARCH(PayEarnCode,N$4)))*(PayEarnType="Annual")*(PayEarnValues)))/$BE7) -> 0 | BE7: =IF($AA7=0,0,((SUMPRODUCT((PayEmp=$C7)*(PayDate<=$AC7)*(ISERROR(SEARCH(PayEarnCode,O$4)))*(PayEarnType="Monthly")*(PayEarnValues))/$AA7*12)+(SUMPRODUCT((PayEmp=$C7)*(PayDate<=$AC7)*(ISERROR(SEARCH(PayEarnCode,N$4)))*(PayEarnType="Annual")*(PayEarnValues))))) -> 1800000
A8: =IF(ROW($A8)-ROW($A$6)>EmpCount*12,"-",TEXT($B8,"yyyy")&TEXT($B8,"mm")&"-"&$C8) -> 202303-EXS002 | B8: =IF(ROW($A8)-ROW($A$6)>EmpCount*12,Setup!$D$12,DATE(YEAR(Setup!$F$12),MONTH(Setup!$F$12)+ROUNDDOWN((ROW($A8)-ROW($A$6)-1)/EmpCount,0),IF(Setup!$C$14>DAY(DATE(YEAR(Setup!$F$12),MONTH(Setup!$F$12)+ROUNDDOWN((ROW($A8)-ROW($A$6)-1)/EmpCount,0)+1,0)),DAY(DATE(YEAR(Setup!$F$12),MONTH(Setup!$F$12)+ROUNDDOWN((ROW($A8)-ROW($A$6)-1)/EmpCount,0)+1,0)),Setup!$C$14))) -> 45010 | C8: =IF(ROW($A8)-ROW($A$6)>EmpCount*12,"-",OFFSET(Emp!$A$4,ROW($A8)-ROW($A$6)-IF(ROW($A8)-ROW($A$6)>EmpCount,ROUNDDOWN((ROW($A8)-ROW($A$6)-1)/EmpCount,0)*EmpCount,0),0,1,1)) -> EXS002 | D8: =IF(ISNA(VLOOKUP($C8,EmpAll,COLUMN(Emp!$B$4),0)),"-",VLOOKUP($C8,EmpAll,COLUMN(Emp!$B$4),0)) -> Smith F | E8: =IF(ISNA(VLOOKUP($C8,EmpAll,COLUMN(Emp!$C$4),0)),"-",VLOOKUP($C8,EmpAll,COLUMN(Emp!$C$4),0)) -> M | F8: =IF(ISNA(VLOOKUP($C8,EmpAll,COLUMN(Emp!$A$4),0)),"-",IF(AND(VLOOKUP($C8,EmpAll,COLUMN(Emp!$E$4),0)<>0,VLOOKUP($C8,EmpAll,COLUMN(Emp!$E$4),0)>=DATE(YEAR($AC8),MONTH($AC8)+1,0)),"Inactive",IF(AND(VLOOKUP($C8,EmpAll,COLUMN(Emp!$F$4),0)<>0,VLOOKUP($C8,EmpAll,COLUMN(Emp!$F$4),0)<=DATE(YEAR($AC8),MONTH($AC8),0)),"Terminated","Active"))) -> Active | G8: =IF($F8<>"Active",0,IF(COUNTIFS(OverEmp,$C8,OverEarn,G$2,OverDate,"<"&DATE(YEAR($AC8),MONTH($AC8)+1,1),OverEnd,">="&DATE(YEAR($AC8),MONTH($AC8),1))>0,SUMIFS(OverValue,OverEmp,$C8,OverEarn,G$2,OverDate,"<"&DATE(YEAR($AC8),MONTH($AC8)+1,1),OverEnd,">="&DATE(YEAR($AC8),MONTH($AC8),1)),IF(AND($AC8>=Setup!$E$10,SUMIFS(EmpIncrease,EmpCode,$C8)>0),SUMIFS(EmpIncrease,EmpCode,$C8),SUMIFS(EmpSalary,EmpCode,$C8)))) -> 120000 | H8: =IF($F8<>"Active",0,IF(COUNTIFS(OverEmp,$C8,OverEarn,H$2,OverDate,"<"&DATE(YEAR($AC8),MONTH($AC8)+1,1),OverEnd,">="&DATE(YEAR($AC8),MONTH($AC8),1))>0,SUMIFS(OverValue,OverEmp,$C8,OverEarn,H$2,OverDate,"<"&DATE(YEAR($AC8),MONTH($AC8)+1,1),OverEnd,">="&DATE(YEAR($AC8),MONTH($AC8),1)),0)) -> 0 | I8: =IF($F8<>"Active",0,IF(COUNTIFS(OverEmp,$C8,OverEarn,I$2,OverDate,"<"&DATE(YEAR($AC8),MONTH($AC8)+1,1),OverEnd,">="&DATE(YEAR($AC8),MONTH($AC8),1))>0,SUMIFS(OverValue,OverEmp,$C8,OverEarn,I$2,OverDate,"<"&DATE(YEAR($AC8),MONTH($AC8)+1,1),OverEnd,">="&DATE(YEAR($AC8),MONTH($AC8),1)),IF(MONTH(B8)=Setup!$C$15,SUMIFS(EmpBonus,EmpCode,$C8),0))) -> 0 | J8: =IF($F8<>"Active",0,IF(COUNTIFS(OverEmp,$C8,OverEarn,J$2,OverDate,"<"&DATE(YEAR($AC8),MONTH($AC8)+1,1),OverEnd,">="&DATE(YEAR($AC8),MONTH($AC8),1))>0,SUMIFS(OverValue,OverEmp,$C8,OverEarn,J$2,OverDate,"<"&DATE(YEAR($AC8),MONTH($AC8)+1,1),OverEnd,">="&DATE(YEAR($AC8),MONTH($AC8),1)),0)) -> 0 | K8: =IF($F8<>"Active",0,IF(COUNTIFS(OverEmp,$C8,OverEarn,K$2,OverDate,"<"&DATE(YEAR($AC8),MONTH($AC8)+1,1),OverEnd,">="&DATE(YEAR($AC8),MONTH($AC8),1))>0,SUMIFS(OverValue,OverEmp,$C8,OverEarn,K$2,OverDate,"<"&DATE(YEAR($AC8),MONTH($AC8)+1,1),OverEnd,">="&DATE(YEAR($AC8),MONTH($AC8),1)),0)) -> 0 | L8: 120000 | M8: =IF(COUNTIFS(OverEmp,$C8,OverTax,M$5,OverDate,"<"&DATE(YEAR($AC8),MONTH($AC8)+1,1),OverEnd,">="&DATE(YEAR($AC8),MONTH($AC8),1))>0,SUMIFS(OverValue,OverEmp,$C8,OverTax,M$5,OverDate,"<"&DATE(YEAR($AC8),MONTH($AC8)+1,1),OverEnd,">="&DATE(YEAR($AC8),MONTH($AC8),1)),(($BA8/12*$AA8)+(BB8*IF(1-$BC8=0,0,BD8/(1-$BC8))))-IF($F8="Terminated",0,SUMIFS(PayTaxDeduct,PayDate,"<"&$AC8,PayEmp,$C8))) -> 38662.33333 | N8: =IF($F8="Terminated",0,IF($AA8=0,0,IF(ISNA(MATCH(N$5,DedListItem,0)),0,IF(COUNTIFS(OverEmp,$C8,OverDeduct,N$5,OverDate,"<"&DATE(YEAR($AC8),MONTH($AC8)+1,1),OverEnd,">="&DATE(YEAR($AC8),MONTH($AC8),1))>0,SUMIFS(OverValue,OverEmp,$C8,OverDeduct,N$5,OverDate,"<"&DATE(YEAR($AC8),MONTH($AC8)+1,1),OverEnd,">="&DATE(YEAR($AC8),MONTH($AC8),1)),IF(OR(N$2="Fixed",N$2="Not Used"),(IF(COUNTIFS(EmpNo,$C8,OFFSET(Emp!$R$4,1,MATCH(N$5,DedListItem,0)-1,EmpCount,1),"<>")>0,VLOOKUP($C8,EmpAll,COLUMN(Emp!$R$4)+MATCH(N$5,DedListItem,0)-1,0),OFFSET(Setup!$E$73,MATCH(N$5,DedListItem,0),0,1,1))*$AA8)-SUMIFS(OFFSET(N$6,1,0,PayCount,1),PayDate,"<"&$AC8,PayEmp,$C8),IF(ISNA(MATCH(N$2,EarnListItem,0))=FALSE,IF(OFFSET(Setup!$G$73,MATCH(N$5,DedListItem,0),0,1,1)="Taxable",SUMPRODUCT((PayEmp=$C8)*(PayDate<=$AC8)*(PayEarnCode=N$2)*(PayEarnTax)*(PayEarnValues)),SUMPRODUCT((PayEmp=$C8)*(PayDate<=$AC8)*(PayEarnCode=N$2)*(PayEarnValues)))*IF(COUNTIFS(EmpNo,$C8,OFFSET(Emp!$R$4,1,MATCH(N$5,DedListItem,0)-1,EmpCount,1),"<>")>0,VLOOKUP($C8,EmpAll,COLUMN(Emp!$R$4)+MATCH(N$5,DedListItem,0)-1,0),OFFSET(Setup!$E$73,MATCH(N$5,DedListItem,0),0,1,1)),(MIN(IF(OFFSET(Setup!$G$73,MATCH(N$5,DedListItem,0),0,1,1)="Taxable",SUMPRODUCT((PayEmp=$C8)*(PayDate<=$AC8)*(ISERROR(SEARCH(PayEarnCode,N$4)))*(PayEarnTax)*(PayEarnValues)),SUMPRODUCT((PayEmp=$C8)*(PayDate<=$AC8)*(ISERROR(SEARCH(PayEarnCode,N$4)))*(PayEarnValues))),IF(ISNUMBER(N$3),N$3/12*$AA8,IgnoreMin)))*IF(COUNTIFS(EmpNo,$C8,OFFSET(Emp!$R$4,1,MATCH(N$5,DedListItem,0)-1,EmpCount,1),"<>")>0,VLOOKUP($C8,EmpAll,COLUMN(Emp!$R$4)+MATCH(N$5,DedListItem,0)-1,0),OFFSET(Setup!$E$73,MATCH(N$5,DedListItem,0),0,1,1)))-SUMIFS(OFFSET(N$6,1,0,PayCount,1),PayDate,"<"&$AC8,PayEmp,$C8)))))) -> 177.12 | O8: =IF($F8="Terminated",0,IF($AA8=0,0,IF(ISNA(MATCH(O$5,DedListItem,0)),0,IF(COUNTIFS(OverEmp,$C8,OverDeduct,O$5,OverDate,"<"&DATE(YEAR($AC8),MONTH($AC8)+1,1),OverEnd,">="&DATE(YEAR($AC8),MONTH($AC8),1))>0,SUMIFS(OverValue,OverEmp,$C8,OverDeduct,O$5,OverDate,"<"&DATE(YEAR($AC8),MONTH($AC8)+1,1),OverEnd,">="&DATE(YEAR($AC8),MONTH($AC8),1)),IF(OR(O$2="Fixed",O$2="Not Used"),(IF(COUNTIFS(EmpNo,$C8,OFFSET(Emp!$R$4,1,MATCH(O$5,DedListItem,0)-1,EmpCount,1),"<>")>0,VLOOKUP($C8,EmpAll,COLUMN(Emp!$R$4)+MATCH(O$5,DedListItem,0)-1,0),OFFSET(Setup!$E$73,MATCH(O$5,DedListItem,0),0,1,1))*$AA8)-SUMIFS(OFFSET(O$6,1,0,PayCount,1),PayDate,"<"&$AC8,PayEmp,$C8),IF(ISNA(MATCH(O$2,EarnListItem,0))=FALSE,IF(OFFSET(Setup!$G$73,MATCH(O$5,DedListItem,0),0,1,1)="Taxable",SUMPRODUCT((PayEmp=$C8)*(PayDate<=$AC8)*(PayEarnCode=O$2)*(PayEarnTax)*(PayEarnValues)),SUMPRODUCT((PayEmp=$C8)*(PayDate<=$AC8)*(PayEarnCode=O$2)*(PayEarnValues)))*IF(COUNTIFS(EmpNo,$C8,OFFSET(Emp!$R$4,1,MATCH(O$5,DedListItem,0)-1,EmpCount,1),"<>")>0,VLOOKUP($C8,EmpAll,COLUMN(Emp!$R$4)+MATCH(O$5,DedListItem,0)-1,0),OFFSET(Setup!$E$73,MATCH(O$5,DedListItem,0),0,1,1)),(MIN(IF(OFFSET(Setup!$G$73,MATCH(O$5,DedListItem,0),0,1,1)="Taxable",SUMPRODUCT((PayEmp=$C8)*(PayDate<=$AC8)*(ISERROR(SEARCH(PayEarnCode,O$4)))*(PayEarnTax)*(PayEarnValues)),SUMPRODUCT((PayEmp=$C8)*(PayDate<=$AC8)*(ISERROR(SEARCH(PayEarnCode,O$4)))*(PayEarnValues))),IF(ISNUMBER(O$3),O$3/12*$AA8,IgnoreMin)))*IF(COUNTIFS(EmpNo,$C8,OFFSET(Emp!$R$4,1,MATCH(O$5,DedListItem,0)-1,EmpCount,1),"<>")>0,VLOOKUP($C8,EmpAll,COLUMN(Emp!$R$4)+MATCH(O$5,DedListItem,0)-1,0),OFFSET(Setup!$E$73,MATCH(O$5,DedListItem,0),0,1,1)))-SUMIFS(OFFSET(O$6,1,0,PayCount,1),PayDate,"<"&$AC8,PayEmp,$C8)))))) -> 0 | P8: =IF($F8="Terminated",0,IF($AA8=0,0,IF(ISNA(MATCH(P$5,DedListItem,0)),0,IF(COUNTIFS(OverEmp,$C8,OverDeduct,P$5,OverDate,"<"&DATE(YEAR($AC8),MONTH($AC8)+1,1),OverEnd,">="&DATE(YEAR($AC8),MONTH($AC8),1))>0,SUMIFS(OverValue,OverEmp,$C8,OverDeduct,P$5,OverDate,"<"&DATE(YEAR($AC8),MONTH($AC8)+1,1),OverEnd,">="&DATE(YEAR($AC8),MONTH($AC8),1)),IF(OR(P$2="Fixed",P$2="Not Used"),(IF(COUNTIFS(EmpNo,$C8,OFFSET(Emp!$R$4,1,MATCH(P$5,DedListItem,0)-1,EmpCount,1),"<>")>0,VLOOKUP($C8,EmpAll,COLUMN(Emp!$R$4)+MATCH(P$5,DedListItem,0)-1,0),OFFSET(Setup!$E$73,MATCH(P$5,DedListItem,0),0,1,1))*$AA8)-SUMIFS(OFFSET(P$6,1,0,PayCount,1),PayDate,"<"&$AC8,PayEmp,$C8),IF(ISNA(MATCH(P$2,EarnListItem,0))=FALSE,IF(OFFSET(Setup!$G$73,MATCH(P$5,DedListItem,0),0,1,1)="Taxable",SUMPRODUCT((PayEmp=$C8)*(PayDate<=$AC8)*(PayEarnCode=P$2)*(PayEarnTax)*(PayEarnValues)),SUMPRODUCT((PayEmp=$C8)*(PayDate<=$AC8)*(PayEarnCode=P$2)*(PayEarnValues)))*IF(COUNTIFS(EmpNo,$C8,OFFSET(Emp!$R$4,1,MATCH(P$5,DedListItem,0)-1,EmpCount,1),"<>")>0,VLOOKUP($C8,EmpAll,COLUMN(Emp!$R$4)+MATCH(P$5,DedListItem,0)-1,0),OFFSET(Setup!$E$73,MATCH(P$5,DedListItem,0),0,1,1)),(MIN(IF(OFFSET(Setup!$G$73,MATCH(P$5,DedListItem,0),0,1,1)="Taxable",SUMPRODUCT((PayEmp=$C8)*(PayDate<=$AC8)*(ISERROR(SEARCH(PayEarnCode,P$4)))*(PayEarnTax)*(PayEarnValues)),SUMPRODUCT((PayEmp=$C8)*(PayDate<=$AC8)*(ISERROR(SEARCH(PayEarnCode,P$4)))*(PayEarnValues))),IF(ISNUMBER(P$3),P$3/12*$AA8,IgnoreMin)))*IF(COUNTIFS(EmpNo,$C8,OFFSET(Emp!$R$4,1,MATCH(P$5,DedListItem,0)-1,EmpCount,1),"<>")>0,VLOOKUP($C8,EmpAll,COLUMN(Emp!$R$4)+MATCH(P$5,DedListItem,0)-1,0),OFFSET(Setup!$E$73,MATCH(P$5,DedListItem,0),0,1,1)))-SUMIFS(OFFSET(P$6,1,0,PayCount,1),PayDate,"<"&$AC8,PayEmp,$C8)))))) -> 0 | Q8: =IF($F8="Terminated",0,IF($AA8=0,0,IF(ISNA(MATCH(Q$5,DedListItem,0)),0,IF(COUNTIFS(OverEmp,$C8,OverDeduct,Q$5,OverDate,"<"&DATE(YEAR($AC8),MONTH($AC8)+1,1),OverEnd,">="&DATE(YEAR($AC8),MONTH($AC8),1))>0,SUMIFS(OverValue,OverEmp,$C8,OverDeduct,Q$5,OverDate,"<"&DATE(YEAR($AC8),MONTH($AC8)+1,1),OverEnd,">="&DATE(YEAR($AC8),MONTH($AC8),1)),IF(OR(Q$2="Fixed",Q$2="Not Used"),(IF(COUNTIFS(EmpNo,$C8,OFFSET(Emp!$R$4,1,MATCH(Q$5,DedListItem,0)-1,EmpCount,1),"<>")>0,VLOOKUP($C8,EmpAll,COLUMN(Emp!$R$4)+MATCH(Q$5,DedListItem,0)-1,0),OFFSET(Setup!$E$73,MATCH(Q$5,DedListItem,0),0,1,1))*$AA8)-SUMIFS(OFFSET(Q$6,1,0,PayCount,1),PayDate,"<"&$AC8,PayEmp,$C8),IF(ISNA(MATCH(Q$2,EarnListItem,0))=FALSE,IF(OFFSET(Setup!$G$73,MATCH(Q$5,DedListItem,0),0,1,1)="Taxable",SUMPRODUCT((PayEmp=$C8)*(PayDate<=$AC8)*(PayEarnCode=Q$2)*(PayEarnTax)*(PayEarnValues)),SUMPRODUCT((PayEmp=$C8)*(PayDate<=$AC8)*(PayEarnCode=Q$2)*(PayEarnValues)))*IF(COUNTIFS(EmpNo,$C8,OFFSET(Emp!$R$4,1,MATCH(Q$5,DedListItem,0)-1,EmpCount,1),"<>")>0,VLOOKUP($C8,EmpAll,COLUMN(Emp!$R$4)+MATCH(Q$5,DedListItem,0)-1,0),OFFSET(Setup!$E$73,MATCH(Q$5,DedListItem,0),0,1,1)),(MIN(IF(OFFSET(Setup!$G$73,MATCH(Q$5,DedListItem,0),0,1,1)="Taxable",SUMPRODUCT((PayEmp=$C8)*(PayDate<=$AC8)*(ISERROR(SEARCH(PayEarnCode,Q$4)))*(PayEarnTax)*(PayEarnValues)),SUMPRODUCT((PayEmp=$C8)*(PayDate<=$AC8)*(ISERROR(SEARCH(PayEarnCode,Q$4)))*(PayEarnValues))),IF(ISNUMBER(Q$3),Q$3/12*$AA8,IgnoreMin)))*IF(COUNTIFS(EmpNo,$C8,OFFSET(Emp!$R$4,1,MATCH(Q$5,DedListItem,0)-1,EmpCount,1),"<>")>0,VLOOKUP($C8,EmpAll,COLUMN(Emp!$R$4)+MATCH(Q$5,DedListItem,0)-1,0),OFFSET(Setup!$E$73,MATCH(Q$5,DedListItem,0),0,1,1)))-SUMIFS(OFFSET(Q$6,1,0,PayCount,1),PayDate,"<"&$AC8,PayEmp,$C8)))))) -> 0 | R8: 38839.45333 | S8: 81160.55 | T8: =IF($F8="Terminated",0,IF($AA8=0,0,IF(ISNA(MATCH(T$5,CompListItem,0)),0,IF(COUNTIFS(OverEmp,$C8,OverComp,T$5,OverDate,"<"&DATE(YEAR($AC8),MONTH($AC8)+1,1),OverEnd,">="&DATE(YEAR($AC8),MONTH($AC8),1))>0,SUMIFS(OverValue,OverEmp,$C8,OverComp,T$5,OverDate,"<"&DATE(YEAR($AC8),MONTH($AC8)+1,1),OverEnd,">="&DATE(YEAR($AC8),MONTH($AC8),1)),IF(OR(T$2="Fixed",T$2="Not Used"),(OFFSET(Setup!$E$81,MATCH(T$5,CompListItem,0),0,1,1)*$AA8)-SUMIFS(OFFSET(T$6,1,0,PayCount,1),PayDate,"<"&$AC8,PayEmp,$C8),IF(ISNA(MATCH(T$2,DedListItem,0))=FALSE,(SUMPRODUCT((PayEmp=$C8)*(PayDate<=$AC8)*(PayDedList=T$2)*(PayDedValues))*OFFSET(Setup!$E$81,MATCH(T$5,CompListItem,0),0,1,1))-SUMIFS(OFFSET(T$6,1,0,PayCount,1),PayDate,"<"&$AC8,PayEmp,$C8),(MIN(IF(OFFSET(Setup!$G$81,MATCH(T$5,CompListItem,0),0,1,1)="Taxable",SUMPRODUCT((PayEmp=$C8)*(PayDate<=$AC8)*(ISERROR(SEARCH(PayEarnCode,T$4)))*(PayEarnTax)*(PayEarnValues)),SUMPRODUCT((PayEmp=$C8)*(PayDate<=$AC8)*(ISERROR(SEARCH(PayEarnCode,T$4)))*(PayEarnValues))),IF(ISNUMBER(T$3),T$3/12*$AA8,IgnoreMin)))*OFFSET(Setup!$E$81,MATCH(T$5,CompListItem,0),0,1,1)-SUMIFS(OFFSET(T$6,1,0,PayCount,1),PayDate,"<"&$AC8,PayEmp,$C8))))))) -> 177.12 | U8: =IF($F8="Terminated",0,IF($AA8=0,0,IF(ISNA(MATCH(U$5,CompListItem,0)),0,IF(COUNTIFS(OverEmp,$C8,OverComp,U$5,OverDate,"<"&DATE(YEAR($AC8),MONTH($AC8)+1,1),OverEnd,">="&DATE(YEAR($AC8),MONTH($AC8),1))>0,SUMIFS(OverValue,OverEmp,$C8,OverComp,U$5,OverDate,"<"&DATE(YEAR($AC8),MONTH($AC8)+1,1),OverEnd,">="&DATE(YEAR($AC8),MONTH($AC8),1)),IF(OR(U$2="Fixed",U$2="Not Used"),(OFFSET(Setup!$E$81,MATCH(U$5,CompListItem,0),0,1,1)*$AA8)-SUMIFS(OFFSET(U$6,1,0,PayCount,1),PayDate,"<"&$AC8,PayEmp,$C8),IF(ISNA(MATCH(U$2,DedListItem,0))=FALSE,(SUMPRODUCT((PayEmp=$C8)*(PayDate<=$AC8)*(PayDedList=U$2)*(PayDedValues))*OFFSET(Setup!$E$81,MATCH(U$5,CompListItem,0),0,1,1))-SUMIFS(OFFSET(U$6,1,0,PayCount,1),PayDate,"<"&$AC8,PayEmp,$C8),(MIN(IF(OFFSET(Setup!$G$81,MATCH(U$5,CompListItem,0),0,1,1)="Taxable",SUMPRODUCT((PayEmp=$C8)*(PayDate<=$AC8)*(ISERROR(SEARCH(PayEarnCode,U$4)))*(PayEarnTax)*(PayEarnValues)),SUMPRODUCT((PayEmp=$C8)*(PayDate<=$AC8)*(ISERROR(SEARCH(PayEarnCode,U$4)))*(PayEarnValues))),IF(ISNUMBER(U$3),U$3/12*$AA8,IgnoreMin)))*OFFSET(Setup!$E$81,MATCH(U$5,CompListItem,0),0,1,1)-SUMIFS(OFFSET(U$6,1,0,PayCount,1),PayDate,"<"&$AC8,PayEmp,$C8))))))) -> 1200 | V8: =IF($F8="Terminated",0,IF($AA8=0,0,IF(ISNA(MATCH(V$5,CompListItem,0)),0,IF(COUNTIFS(OverEmp,$C8,OverComp,V$5,OverDate,"<"&DATE(YEAR($AC8),MONTH($AC8)+1,1),OverEnd,">="&DATE(YEAR($AC8),MONTH($AC8),1))>0,SUMIFS(OverValue,OverEmp,$C8,OverComp,V$5,OverDate,"<"&DATE(YEAR($AC8),MONTH($AC8)+1,1),OverEnd,">="&DATE(YEAR($AC8),MONTH($AC8),1)),IF(OR(V$2="Fixed",V$2="Not Used"),(OFFSET(Setup!$E$81,MATCH(V$5,CompListItem,0),0,1,1)*$AA8)-SUMIFS(OFFSET(V$6,1,0,PayCount,1),PayDate,"<"&$AC8,PayEmp,$C8),IF(ISNA(MATCH(V$2,DedListItem,0))=FALSE,(SUMPRODUCT((PayEmp=$C8)*(PayDate<=$AC8)*(PayDedList=V$2)*(PayDedValues))*OFFSET(Setup!$E$81,MATCH(V$5,CompListItem,0),0,1,1))-SUMIFS(OFFSET(V$6,1,0,PayCount,1),PayDate,"<"&$AC8,PayEmp,$C8),(MIN(IF(OFFSET(Setup!$G$81,MATCH(V$5,CompListItem,0),0,1,1)="Taxable",SUMPRODUCT((PayEmp=$C8)*(PayDate<=$AC8)*(ISERROR(SEARCH(PayEarnCode,V$4)))*(PayEarnTax)*(PayEarnValues)),SUMPRODUCT((PayEmp=$C8)*(PayDate<=$AC8)*(ISERROR(SEARCH(PayEarnCode,V$4)))*(PayEarnValues))),IF(ISNUMBER(V$3),V$3/12*$AA8,IgnoreMin)))*OFFSET(Setup!$E$81,MATCH(V$5,CompListItem,0),0,1,1)-SUMIFS(OFFSET(V$6,1,0,PayCount,1),PayDate,"<"&$AC8,PayEmp,$C8))))))) -> 0 | W8: =IF($F8="Terminated",0,IF($AA8=0,0,IF(ISNA(MATCH(W$5,CompListItem,0)),0,IF(COUNTIFS(OverEmp,$C8,OverComp,W$5,OverDate,"<"&DATE(YEAR($AC8),MONTH($AC8)+1,1),OverEnd,">="&DATE(YEAR($AC8),MONTH($AC8),1))>0,SUMIFS(OverValue,OverEmp,$C8,OverComp,W$5,OverDate,"<"&DATE(YEAR($AC8),MONTH($AC8)+1,1),OverEnd,">="&DATE(YEAR($AC8),MONTH($AC8),1)),IF(OR(W$2="Fixed",W$2="Not Used"),(OFFSET(Setup!$E$81,MATCH(W$5,CompListItem,0),0,1,1)*$AA8)-SUMIFS(OFFSET(W$6,1,0,PayCount,1),PayDate,"<"&$AC8,PayEmp,$C8),IF(ISNA(MATCH(W$2,DedListItem,0))=FALSE,(SUMPRODUCT((PayEmp=$C8)*(PayDate<=$AC8)*(PayDedList=W$2)*(PayDedValues))*OFFSET(Setup!$E$81,MATCH(W$5,CompListItem,0),0,1,1))-SUMIFS(OFFSET(W$6,1,0,PayCount,1),PayDate,"<"&$AC8,PayEmp,$C8),(MIN(IF(OFFSET(Setup!$G$81,MATCH(W$5,CompListItem,0),0,1,1)="Taxable",SUMPRODUCT((PayEmp=$C8)*(PayDate<=$AC8)*(ISERROR(SEARCH(PayEarnCode,W$4)))*(PayEarnTax)*(PayEarnValues)),SUMPRODUCT((PayEmp=$C8)*(PayDate<=$AC8)*(ISERROR(SEARCH(PayEarnCode,W$4)))*(PayEarnValues))),IF(ISNUMBER(W$3),W$3/12*$AA8,IgnoreMin)))*OFFSET(Setup!$E$81,MATCH(W$5,CompListItem,0),0,1,1)-SUMIFS(OFFSET(W$6,1,0,PayCount,1),PayDate,"<"&$AC8,PayEmp,$C8))))))) -> 0 | X8: 1377.12 | Y8: 121377.12 | Z8: 40216.57 | AA8: =IF(OR($B8<=Setup!$E$12,$B8>=Setup!$D$12+1),0,IF($F8<>"Active",0,IF($AE8="Yes",$AB8,((YEAR($AC8)*12)+MONTH($AC8))-((YEAR($AD8)*12)+MONTH($AD8)-1)))) -> 1 | AB8: =IF(OR($B8<=Setup!$E$12,$B8>=Setup!$D$12+1),0,((YEAR($AC8)*12)+MONTH($AC8))-((YEAR(Setup!$E$12)*12)+MONTH(Setup!$E$12))) -> 1 | AC8: 45010 | AD8: =IF(ISNA(VLOOKUP($C8,EmpAll,COLUMN(Emp!$E$4),0)),$AC8,IF(VLOOKUP($C8,EmpAll,COLUMN(Emp!$E$4),0)<=Setup!$E$12,DATE(YEAR(Setup!$E$12),MONTH(Setup!$E$12)+1,1),VLOOKUP($C8,EmpAll,COLUMN(Emp!$E$4),0))) -> 2023-03-01 | AE8: =IF(ISNA(VLOOKUP($C8,EmpAll,COLUMN(Emp!$G$1),0)),"-",IF(VLOOKUP($C8,EmpAll,COLUMN(Emp!$G$1),0)=0,"-",VLOOKUP($C8,EmpAll,COLUMN(Emp!$G$1),0))) -> - | AF8: =IF(A8=PaySlip!$G$3,1,0) -> 0 | AG8: =IF(COUNTIFS(OverEmp,$C8,OverMed,"MED",OverDate,"<"&DATE(YEAR($AC8),MONTH($AC8)+1,1),OverEnd,">="&DATE(YEAR($AC8),MONTH($AC8),1))>0,SUMIFS(OverValue,OverEmp,$C8,OverMed,"MED",OverDate,"<"&DATE(YEAR($AC8),MONTH($AC8)+1,1),OverEnd,">="&DATE(YEAR($AC8),MONTH($AC8),1)),IF(ISNA(VLOOKUP($C8,EmpAll,COLUMN(Emp!$N$4),0)),0,VLOOKUP($C8,EmpAll,COLUMN(Emp!$N$4),0))) -> 2 | AH8: =VLOOKUP($AG8,MedList,COLUMN(Setup!$C$49),1) -> 728 | AI8: 8736 | AJ8: =IF(ISNA(VLOOKUP($C8,EmpAll,COLUMN(Emp!$L$4),0)),"None!",VLOOKUP($C8,EmpAll,COLUMN(Emp!$L$4),0)) -> A | AK8: 17235 | AL8: =IF(ISNA(VLOOKUP($C8,Employees[],COLUMN(Emp!$M$4),0))=TRUE,"Error!",IF(VLOOKUP($C8,Employees[],COLUMN(Emp!$M$4),0)=0,"Yes",VLOOKUP($C8,Employees[],COLUMN(Emp!$M$4),0))) -> A | AM8: 1440000 | AN8: =-IF($F8="Terminated",0,IF($AA8=0,0,IF(ISNA(MATCH(AN$5,PayDedList,0)),0,MIN(IF(COUNTIFS(OverEmp,$C8,OverDeduct,AN$5,OverDate,"<"&DATE(YEAR($AC8),MONTH($AC8)+1,1),OverEnd,">="&DATE(YEAR($AC8),MONTH($AC8),1))>0,SUMPRODUCT((PayEmp=$C8)*(PayDate<=$AC8)*(OFFSET($N$6,1,MATCH(AN$5,PayDedList,0)-1,PayCount,1)))/$AA8*12*AN$3,IF(OR(AN$1="Fixed",AN$1="Not Used"),SUMPRODUCT((PayEmp=$C8)*(PayDate<=$AC8)*(OFFSET($N$6,1,MATCH(AN$5,PayDedList,0)-1,PayCount,1)))/$AA8*12*AN$3,IF(ISNA(MATCH(AN$1,EarnListItem,0))=FALSE,SUMPRODUCT((PayEmp=$C8)*(PayDate<=$AC8)*(OFFSET($N$6,1,MATCH(AN$5,PayDedList,0)-1,PayCount,1)))/$AA8*12*AN$3,(MIN(((SUMPRODUCT((PayEmp=$C8)*(PayDate<=$AC8)*(ISERROR(SEARCH(PayEarnCode,AN$2)))*(PayEarnType="Monthly")*(PayEarnValues))/$AA8*12)+(SUMPRODUCT((PayEmp=$C8)*(PayDate<=$AC8)*(ISERROR(SEARCH(PayEarnCode,AN$2)))*(PayEarnType="Quarterly")*(PayEarnValues))/MAX(1,ROUNDDOWN($AB8/3,0))*4)+(SUMPRODUCT((PayEmp=$C8)*(PayDate<=$AC8)*(ISERROR(SEARCH(PayEarnCode,AN$2)))*(PayEarnType="Bi-Annual")*(PayEarnValues))/MAX(1,ROUNDDOWN($AB8/6,0))*2)+(SUMPRODUCT((PayEmp=$C8)*(PayDate<=$AC8)*(ISERROR(SEARCH(PayEarnCode,AN$2)))*(PayEarnType="Annual")*(PayEarnValues)))),IF(ISNUMBER(OFFSET($N$3,0,MATCH(AN$5,PayDedList,0)-1,1,1)),OFFSET($N$3,0,MATCH(AN$5,PayDedList,0)-1,1,1),IgnoreMin)))*IF(COUNTIFS(EmpNo,$C8,OFFSET(Emp!$R$4,1,MATCH(AN$5,DedListItem,0)-1,EmpCount,1),"<>")>0,VLOOKUP($C8,EmpAll,COLUMN(Emp!$R$4)+MATCH(AN$5,DedListItem,0)-1,0),OFFSET(Setup!$E$73,MATCH(AN$5,DedListItem,0),0,1,1))*AN$3))),IF(ISNUMBER(AN$4),AN$4,IgnoreMin))))) -> 0 | AO8: =-IF($F8="Terminated",0,IF($AA8=0,0,IF(ISNA(MATCH(AO$5,PayDedList,0)),0,MIN(IF(COUNTIFS(OverEmp,$C8,OverDeduct,AO$5,OverDate,"<"&DATE(YEAR($AC8),MONTH($AC8)+1,1),OverEnd,">="&DATE(YEAR($AC8),MONTH($AC8),1))>0,SUMPRODUCT((PayEmp=$C8)*(PayDate<=$AC8)*(OFFSET($N$6,1,MATCH(AO$5,PayDedList,0)-1,PayCount,1)))/$AA8*12*AO$3,IF(OR(AO$1="Fixed",AO$1="Not Used"),SUMPRODUCT((PayEmp=$C8)*(PayDate<=$AC8)*(OFFSET($N$6,1,MATCH(AO$5,PayDedList,0)-1,PayCount,1)))/$AA8*12*AO$3,IF(ISNA(MATCH(AO$1,EarnListItem,0))=FALSE,SUMPRODUCT((PayEmp=$C8)*(PayDate<=$AC8)*(OFFSET($N$6,1,MATCH(AO$5,PayDedList,0)-1,PayCount,1)))/$AA8*12*AO$3,(MIN(((SUMPRODUCT((PayEmp=$C8)*(PayDate<=$AC8)*(ISERROR(SEARCH(PayEarnCode,AO$2)))*(PayEarnType="Monthly")*(PayEarnValues))/$AA8*12)+(SUMPRODUCT((PayEmp=$C8)*(PayDate<=$AC8)*(ISERROR(SEARCH(PayEarnCode,AO$2)))*(PayEarnType="Quarterly")*(PayEarnValues))/MAX(1,ROUNDDOWN($AB8/3,0))*4)+(SUMPRODUCT((PayEmp=$C8)*(PayDate<=$AC8)*(ISERROR(SEARCH(PayEarnCode,AO$2)))*(PayEarnType="Bi-Annual")*(PayEarnValues))/MAX(1,ROUNDDOWN($AB8/6,0))*2)+(SUMPRODUCT((PayEmp=$C8)*(PayDate<=$AC8)*(ISERROR(SEARCH(PayEarnCode,AO$2)))*(PayEarnType="Annual")*(PayEarnValues)))),IF(ISNUMBER(OFFSET($N$3,0,MATCH(AO$5,PayDedList,0)-1,1,1)),OFFSET($N$3,0,MATCH(AO$5,PayDedList,0)-1,1,1),IgnoreMin)))*IF(COUNTIFS(EmpNo,$C8,OFFSET(Emp!$R$4,1,MATCH(AO$5,DedListItem,0)-1,EmpCount,1),"<>")>0,VLOOKUP($C8,EmpAll,COLUMN(Emp!$R$4)+MATCH(AO$5,DedListItem,0)-1,0),OFFSET(Setup!$E$73,MATCH(AO$5,DedListItem,0),0,1,1))*AO$3))),IF(ISNUMBER(AO$4),AO$4,IgnoreMin))))) -> 0 | AP8: =-IF($F8="Terminated",0,IF($AA8=0,0,IF(ISNA(MATCH(AP$5,PayDedList,0)),0,MIN(IF(COUNTIFS(OverEmp,$C8,OverDeduct,AP$5,OverDate,"<"&DATE(YEAR($AC8),MONTH($AC8)+1,1),OverEnd,">="&DATE(YEAR($AC8),MONTH($AC8),1))>0,SUMPRODUCT((PayEmp=$C8)*(PayDate<=$AC8)*(OFFSET($N$6,1,MATCH(AP$5,PayDedList,0)-1,PayCount,1)))/$AA8*12*AP$3,IF(OR(AP$1="Fixed",AP$1="Not Used"),SUMPRODUCT((PayEmp=$C8)*(PayDate<=$AC8)*(OFFSET($N$6,1,MATCH(AP$5,PayDedList,0)-1,PayCount,1)))/$AA8*12*AP$3,IF(ISNA(MATCH(AP$1,EarnListItem,0))=FALSE,SUMPRODUCT((PayEmp=$C8)*(PayDate<=$AC8)*(OFFSET($N$6,1,MATCH(AP$5,PayDedList,0)-1,PayCount,1)))/$AA8*12*AP$3,(MIN(((SUMPRODUCT((PayEmp=$C8)*(PayDate<=$AC8)*(ISERROR(SEARCH(PayEarnCode,AP$2)))*(PayEarnType="Monthly")*(PayEarnValues))/$AA8*12)+(SUMPRODUCT((PayEmp=$C8)*(PayDate<=$AC8)*(ISERROR(SEARCH(PayEarnCode,AP$2)))*(PayEarnType="Quarterly")*(PayEarnValues))/MAX(1,ROUNDDOWN($AB8/3,0))*4)+(SUMPRODUCT((PayEmp=$C8)*(PayDate<=$AC8)*(ISERROR(SEARCH(PayEarnCode,AP$2)))*(PayEarnType="Bi-Annual")*(PayEarnValues))/MAX(1,ROUNDDOWN($AB8/6,0))*2)+(SUMPRODUCT((PayEmp=$C8)*(PayDate<=$AC8)*(ISERROR(SEARCH(PayEarnCode,AP$2)))*(PayEarnType="Annual")*(PayEarnValues)))),IF(ISNUMBER(OFFSET($N$3,0,MATCH(AP$5,PayDedList,0)-1,1,1)),OFFSET($N$3,0,MATCH(AP$5,PayDedList,0)-1,1,1),IgnoreMin)))*IF(COUNTIFS(EmpNo,$C8,OFFSET(Emp!$R$4,1,MATCH(AP$5,DedListItem,0)-1,EmpCount,1),"<>")>0,VLOOKUP($C8,EmpAll,COLUMN(Emp!$R$4)+MATCH(AP$5,DedListItem,0)-1,0),OFFSET(Setup!$E$73,MATCH(AP$5,DedListItem,0),0,1,1))*AP$3))),IF(ISNUMBER(AP$4),AP$4,IgnoreMin))))) -> 0 | AQ8: =-IF($F8="Terminated",0,IF($AA8=0,0,IF(ISNA(MATCH(AQ$5,PayDedList,0)),0,MIN(IF(COUNTIFS(OverEmp,$C8,OverDeduct,AQ$5,OverDate,"<"&DATE(YEAR($AC8),MONTH($AC8)+1,1),OverEnd,">="&DATE(YEAR($AC8),MONTH($AC8),1))>0,SUMPRODUCT((PayEmp=$C8)*(PayDate<=$AC8)*(OFFSET($N$6,1,MATCH(AQ$5,PayDedList,0)-1,PayCount,1)))/$AA8*12*AQ$3,IF(OR(AQ$1="Fixed",AQ$1="Not Used"),SUMPRODUCT((PayEmp=$C8)*(PayDate<=$AC8)*(OFFSET($N$6,1,MATCH(AQ$5,PayDedList,0)-1,PayCount,1)))/$AA8*12*AQ$3,IF(ISNA(MATCH(AQ$1,EarnListItem,0))=FALSE,SUMPRODUCT((PayEmp=$C8)*(PayDate<=$AC8)*(OFFSET($N$6,1,MATCH(AQ$5,PayDedList,0)-1,PayCount,1)))/$AA8*12*AQ$3,(MIN(((SUMPRODUCT((PayEmp=$C8)*(PayDate<=$AC8)*(ISERROR(SEARCH(PayEarnCode,AQ$2)))*(PayEarnType="Monthly")*(PayEarnValues))/$AA8*12)+(SUMPRODUCT((PayEmp=$C8)*(PayDate<=$AC8)*(ISERROR(SEARCH(PayEarnCode,AQ$2)))*(PayEarnType="Quarterly")*(PayEarnValues))/MAX(1,ROUNDDOWN($AB8/3,0))*4)+(SUMPRODUCT((PayEmp=$C8)*(PayDate<=$AC8)*(ISERROR(SEARCH(PayEarnCode,AQ$2)))*(PayEarnType="Bi-Annual")*(PayEarnValues))/MAX(1,ROUNDDOWN($AB8/6,0))*2)+(SUMPRODUCT((PayEmp=$C8)*(PayDate<=$AC8)*(ISERROR(SEARCH(PayEarnCode,AQ$2)))*(PayEarnType="Annual")*(PayEarnValues)))),IF(ISNUMBER(OFFSET($N$3,0,MATCH(AQ$5,PayDedList,0)-1,1,1)),OFFSET($N$3,0,MATCH(AQ$5,PayDedList,0)-1,1,1),IgnoreMin)))*IF(COUNTIFS(EmpNo,$C8,OFFSET(Emp!$R$4,1,MATCH(AQ$5,DedListItem,0)-1,EmpCount,1),"<>")>0,VLOOKUP($C8,EmpAll,COLUMN(Emp!$R$4)+MATCH(AQ$5,DedListItem,0)-1,0),OFFSET(Setup!$E$73,MATCH(AQ$5,DedListItem,0),0,1,1))*AQ$3))),IF(ISNUMBER(AQ$4),AQ$4,IgnoreMin))))) -> 0 | AR8: 1440000 | AS8: 1440000 | AT8: =-IF($F8="Terminated",0,IF($AA8=0,0,IF(ISNA(MATCH(AT$5,PayDedList,0)),0,MIN(IF(COUNTIFS(OverEmp,$C8,OverDeduct,AT$5,OverDate,"<"&DATE(YEAR($AC8),MONTH($AC8)+1,1),OverEnd,">="&DATE(YEAR($AC8),MONTH($AC8),1))>0,SUMPRODUCT((PayEmp=$C8)*(PayDate<=$AC8)*(OFFSET($N$6,1,MATCH(AT$5,PayDedList,0)-1,PayCount,1)))/$AA8*12*AT$3,IF(OR(AT$1="Fixed",AT$1="Not Used"),SUMPRODUCT((PayEmp=$C8)*(PayDate<=$AC8)*(OFFSET($N$6,1,MATCH(AT$5,PayDedList,0)-1,PayCount,1)))/$AA8*12*AT$3,IF(ISNA(MATCH(OFFSET($N$2,0,MATCH(AT$5,PayDedList,0)-1,1,1),EarnListItem,0))=FALSE,SUMPRODUCT((PayEmp=$C8)*(PayDate<=$AC8)*(OFFSET($N$6,1,MATCH(AT$5,PayDedList,0)-1,PayCount,1)))/$AA8*12*AT$3,(MIN(SUMPRODUCT((PayEmp=$C8)*(PayDate<=$AC8)*(ISERROR(SEARCH(PayEarnCode,AT$2)))*(PayEarnType="Monthly")*(PayEarnValues))/$AA8*12,IF(ISNUMBER(OFFSET($N$3,0,MATCH(AT$5,PayDedList,0)-1,1,1)),OFFSET($N$3,0,MATCH(AT$5,PayDedList,0)-1,1,1),IgnoreMin)))*IF(COUNTIFS(EmpNo,$C8,OFFSET(Emp!$R$4,1,MATCH(AT$5,DedListItem,0)-1,EmpCount,1),"<>")>0,VLOOKUP($C8,EmpAll,COLUMN(Emp!$R$4)+MATCH(AT$5,DedListItem,0)-1,0),OFFSET(Setup!$E$73,MATCH(AT$5,DedListItem,0),0,1,1))*AT$3))),IF(ISNUMBER(AT$4),AT$4,IgnoreMin))))) -> 0 | AU8: =-IF($F8="Terminated",0,IF($AA8=0,0,IF(ISNA(MATCH(AU$5,PayDedList,0)),0,MIN(IF(COUNTIFS(OverEmp,$C8,OverDeduct,AU$5,OverDate,"<"&DATE(YEAR($AC8),MONTH($AC8)+1,1),OverEnd,">="&DATE(YEAR($AC8),MONTH($AC8),1))>0,SUMPRODUCT((PayEmp=$C8)*(PayDate<=$AC8)*(OFFSET($N$6,1,MATCH(AU$5,PayDedList,0)-1,PayCount,1)))/$AA8*12*AU$3,IF(OR(AU$1="Fixed",AU$1="Not Used"),SUMPRODUCT((PayEmp=$C8)*(PayDate<=$AC8)*(OFFSET($N$6,1,MATCH(AU$5,PayDedList,0)-1,PayCount,1)))/$AA8*12*AU$3,IF(ISNA(MATCH(OFFSET($N$2,0,MATCH(AU$5,PayDedList,0)-1,1,1),EarnListItem,0))=FALSE,SUMPRODUCT((PayEmp=$C8)*(PayDate<=$AC8)*(OFFSET($N$6,1,MATCH(AU$5,PayDedList,0)-1,PayCount,1)))/$AA8*12*AU$3,(MIN(SUMPRODUCT((PayEmp=$C8)*(PayDate<=$AC8)*(ISERROR(SEARCH(PayEarnCode,AU$2)))*(PayEarnType="Monthly")*(PayEarnValues))/$AA8*12,IF(ISNUMBER(OFFSET($N$3,0,MATCH(AU$5,PayDedList,0)-1,1,1)),OFFSET($N$3,0,MATCH(AU$5,PayDedList,0)-1,1,1),IgnoreMin)))*IF(COUNTIFS(EmpNo,$C8,OFFSET(Emp!$R$4,1,MATCH(AU$5,DedListItem,0)-1,EmpCount,1),"<>")>0,VLOOKUP($C8,EmpAll,COLUMN(Emp!$R$4)+MATCH(AU$5,DedListItem,0)-1,0),OFFSET(Setup!$E$73,MATCH(AU$5,DedListItem,0),0,1,1))*AU$3))),IF(ISNUMBER(AU$4),AU$4,IgnoreMin))))) -> 0 | AV8: =-IF($F8="Terminated",0,IF($AA8=0,0,IF(ISNA(MATCH(AV$5,PayDedList,0)),0,MIN(IF(COUNTIFS(OverEmp,$C8,OverDeduct,AV$5,OverDate,"<"&DATE(YEAR($AC8),MONTH($AC8)+1,1),OverEnd,">="&DATE(YEAR($AC8),MONTH($AC8),1))>0,SUMPRODUCT((PayEmp=$C8)*(PayDate<=$AC8)*(OFFSET($N$6,1,MATCH(AV$5,PayDedList,0)-1,PayCount,1)))/$AA8*12*AV$3,IF(OR(AV$1="Fixed",AV$1="Not Used"),SUMPRODUCT((PayEmp=$C8)*(PayDate<=$AC8)*(OFFSET($N$6,1,MATCH(AV$5,PayDedList,0)-1,PayCount,1)))/$AA8*12*AV$3,IF(ISNA(MATCH(OFFSET($N$2,0,MATCH(AV$5,PayDedList,0)-1,1,1),EarnListItem,0))=FALSE,SUMPRODUCT((PayEmp=$C8)*(PayDate<=$AC8)*(OFFSET($N$6,1,MATCH(AV$5,PayDedList,0)-1,PayCount,1)))/$AA8*12*AV$3,(MIN(SUMPRODUCT((PayEmp=$C8)*(PayDate<=$AC8)*(ISERROR(SEARCH(PayEarnCode,AV$2)))*(PayEarnType="Monthly")*(PayEarnValues))/$AA8*12,IF(ISNUMBER(OFFSET($N$3,0,MATCH(AV$5,PayDedList,0)-1,1,1)),OFFSET($N$3,0,MATCH(AV$5,PayDedList,0)-1,1,1),IgnoreMin)))*IF(COUNTIFS(EmpNo,$C8,OFFSET(Emp!$R$4,1,MATCH(AV$5,DedListItem,0)-1,EmpCount,1),"<>")>0,VLOOKUP($C8,EmpAll,COLUMN(Emp!$R$4)+MATCH(AV$5,DedListItem,0)-1,0),OFFSET(Setup!$E$73,MATCH(AV$5,DedListItem,0),0,1,1))*AV$3))),IF(ISNUMBER(AV$4),AV$4,IgnoreMin))))) -> 0 | AW8: =-IF($F8="Terminated",0,IF($AA8=0,0,IF(ISNA(MATCH(AW$5,PayDedList,0)),0,MIN(IF(COUNTIFS(OverEmp,$C8,OverDeduct,AW$5,OverDate,"<"&DATE(YEAR($AC8),MONTH($AC8)+1,1),OverEnd,">="&DATE(YEAR($AC8),MONTH($AC8),1))>0,SUMPRODUCT((PayEmp=$C8)*(PayDate<=$AC8)*(OFFSET($N$6,1,MATCH(AW$5,PayDedList,0)-1,PayCount,1)))/$AA8*12*AW$3,IF(OR(AW$1="Fixed",AW$1="Not Used"),SUMPRODUCT((PayEmp=$C8)*(PayDate<=$AC8)*(OFFSET($N$6,1,MATCH(AW$5,PayDedList,0)-1,PayCount,1)))/$AA8*12*AW$3,IF(ISNA(MATCH(OFFSET($N$2,0,MATCH(AW$5,PayDedList,0)-1,1,1),EarnListItem,0))=FALSE,SUMPRODUCT((PayEmp=$C8)*(PayDate<=$AC8)*(OFFSET($N$6,1,MATCH(AW$5,PayDedList,0)-1,PayCount,1)))/$AA8*12*AW$3,(MIN(SUMPRODUCT((PayEmp=$C8)*(PayDate<=$AC8)*(ISERROR(SEARCH(PayEarnCode,AW$2)))*(PayEarnType="Monthly")*(PayEarnValues))/$AA8*12,IF(ISNUMBER(OFFSET($N$3,0,MATCH(AW$5,PayDedList,0)-1,1,1)),OFFSET($N$3,0,MATCH(AW$5,PayDedList,0)-1,1,1),IgnoreMin)))*IF(COUNTIFS(EmpNo,$C8,OFFSET(Emp!$R$4,1,MATCH(AW$5,DedListItem,0)-1,EmpCount,1),"<>")>0,VLOOKUP($C8,EmpAll,COLUMN(Emp!$R$4)+MATCH(AW$5,DedListItem,0)-1,0),OFFSET(Setup!$E$73,MATCH(AW$5,DedListItem,0),0,1,1))*AW$3))),IF(ISNUMBER(AW$4),AW$4,IgnoreMin))))) -> 0 | AX8: 1440000 | AY8: 0 | AZ8: =IF(ISNUMBER($AL8),($AR8*$AL8)-$AI8-$AK8,MAX(0,IF($AL8="B",IF($AR8<Setup!$C$32,($AR8*Setup!$D$32)-$AI8-$AK8,(($AR8-VLOOKUP($AR8,TaxAll2,1,1))*OFFSET(Setup!$D$32,MATCH($AR8,TaxBracket2,1),0,1,1))+OFFSET(Setup!$E$31,MATCH($AR8,TaxBracket2,1),0,1,1)-$AI8-$AK8),IF($AR8<Setup!$C$21,($AR8*Setup!$D$21)-$AI8-$AK8,(($AR8-VLOOKUP($AR8,TaxAll1,1,1))*OFFSET(Setup!$D$21,MATCH($AR8,TaxBracket1,1),0,1,1))+OFFSET(Setup!$E$20,MATCH($AR8,TaxBracket1,1),0,1,1)-$AI8-$AK8)))) -> 463948 | BA8: =IF(ISNUMBER($AL8),($AX8*$AL8)-$AI8-$AK8,MAX(0,IF($AL8="B",IF($AX8<Setup!$C$32,($AX8*Setup!$D$32)-$AI8-$AK8,(($AX8-VLOOKUP($AX8,TaxAll2,1,1))*OFFSET(Setup!$D$32,MATCH($AX8,TaxBracket2,1),0,1,1))+OFFSET(Setup!$E$31,MATCH($AX8,TaxBracket2,1),0,1,1)-$AI8-$AK8),IF($AX8<Setup!$C$21,($AX8*Setup!$D$21)-$AI8-$AK8,(($AX8-VLOOKUP($AX8,TaxAll1,1,1))*OFFSET(Setup!$D$21,MATCH($AX8,TaxBracket1,1),0,1,1))+OFFSET(Setup!$E$20,MATCH($AX8,TaxBracket1,1),0,1,1)-$AI8-$AK8)))) -> 463948 | BB8: 0 | BC8: 1 | BD8: 0 | BE8: 1440000
A9: =IF(ROW($A9)-ROW($A$6)>EmpCount*12,"-",TEXT($B9,"yyyy")&TEXT($B9,"mm")&"-"&$C9) -> 202303-EXS003 | B9: =IF(ROW($A9)-ROW($A$6)>EmpCount*12,Setup!$D$12,DATE(YEAR(Setup!$F$12),MONTH(Setup!$F$12)+ROUNDDOWN((ROW($A9)-ROW($A$6)-1)/EmpCount,0),IF(Setup!$C$14>DAY(DATE(YEAR(Setup!$F$12),MONTH(Setup!$F$12)+ROUNDDOWN((ROW($A9)-ROW($A$6)-1)/EmpCount,0)+1,0)),DAY(DATE(YEAR(Setup!$F$12),MONTH(Setup!$F$12)+ROUNDDOWN((ROW($A9)-ROW($A$6)-1)/EmpCount,0)+1,0)),Setup!$C$14))) -> 45010 | C9: =IF(ROW($A9)-ROW($A$6)>EmpCount*12,"-",OFFSET(Emp!$A$4,ROW($A9)-ROW($A$6)-IF(ROW($A9)-ROW($A$6)>EmpCount,ROUNDDOWN((ROW($A9)-ROW($A$6)-1)/EmpCount,0)*EmpCount,0),0,1,1)) -> EXS003 | D9: =IF(ISNA(VLOOKUP($C9,EmpAll,COLUMN(Emp!$B$4),0)),"-",VLOOKUP($C9,EmpAll,COLUMN(Emp!$B$4),0)) -> Wilson PG | E9: =IF(ISNA(VLOOKUP($C9,EmpAll,COLUMN(Emp!$C$4),0)),"-",VLOOKUP($C9,EmpAll,COLUMN(Emp!$C$4),0)) -> S | F9: =IF(ISNA(VLOOKUP($C9,EmpAll,COLUMN(Emp!$A$4),0)),"-",IF(AND(VLOOKUP($C9,EmpAll,COLUMN(Emp!$E$4),0)<>0,VLOOKUP($C9,EmpAll,COLUMN(Emp!$E$4),0)>=DATE(YEAR($AC9),MONTH($AC9)+1,0)),"Inactive",IF(AND(VLOOKUP($C9,EmpAll,COLUMN(Emp!$F$4),0)<>0,VLOOKUP($C9,EmpAll,COLUMN(Emp!$F$4),0)<=DATE(YEAR($AC9),MONTH($AC9),0)),"Terminated","Active"))) -> Active | G9: =IF($F9<>"Active",0,IF(COUNTIFS(OverEmp,$C9,OverEarn,G$2,OverDate,"<"&DATE(YEAR($AC9),MONTH($AC9)+1,1),OverEnd,">="&DATE(YEAR($AC9),MONTH($AC9),1))>0,SUMIFS(OverValue,OverEmp,$C9,OverEarn,G$2,OverDate,"<"&DATE(YEAR($AC9),MONTH($AC9)+1,1),OverEnd,">="&DATE(YEAR($AC9),MONTH($AC9),1)),IF(AND($AC9>=Setup!$E$10,SUMIFS(EmpIncrease,EmpCode,$C9)>0),SUMIFS(EmpIncrease,EmpCode,$C9),SUMIFS(EmpSalary,EmpCode,$C9)))) -> 15000 | H9: =IF($F9<>"Active",0,IF(COUNTIFS(OverEmp,$C9,OverEarn,H$2,OverDate,"<"&DATE(YEAR($AC9),MONTH($AC9)+1,1),OverEnd,">="&DATE(YEAR($AC9),MONTH($AC9),1))>0,SUMIFS(OverValue,OverEmp,$C9,OverEarn,H$2,OverDate,"<"&DATE(YEAR($AC9),MONTH($AC9)+1,1),OverEnd,">="&DATE(YEAR($AC9),MONTH($AC9),1)),0)) -> 0 | I9: =IF($F9<>"Active",0,IF(COUNTIFS(OverEmp,$C9,OverEarn,I$2,OverDate,"<"&DATE(YEAR($AC9),MONTH($AC9)+1,1),OverEnd,">="&DATE(YEAR($AC9),MONTH($AC9),1))>0,SUMIFS(OverValue,OverEmp,$C9,OverEarn,I$2,OverDate,"<"&DATE(YEAR($AC9),MONTH($AC9)+1,1),OverEnd,">="&DATE(YEAR($AC9),MONTH($AC9),1)),IF(MONTH(B9)=Setup!$C$15,SUMIFS(EmpBonus,EmpCode,$C9),0))) -> 0 | J9: =IF($F9<>"Active",0,IF(COUNTIFS(OverEmp,$C9,OverEarn,J$2,OverDate,"<"&DATE(YEAR($AC9),MONTH($AC9)+1,1),OverEnd,">="&DATE(YEAR($AC9),MONTH($AC9),1))>0,SUMIFS(OverValue,OverEmp,$C9,OverEarn,J$2,OverDate,"<"&DATE(YEAR($AC9),MONTH($AC9)+1,1),OverEnd,">="&DATE(YEAR($AC9),MONTH($AC9),1)),0)) -> 0 | K9: =IF($F9<>"Active",0,IF(COUNTIFS(OverEmp,$C9,OverEarn,K$2,OverDate,"<"&DATE(YEAR($AC9),MONTH($AC9)+1,1),OverEnd,">="&DATE(YEAR($AC9),MONTH($AC9),1))>0,SUMIFS(OverValue,OverEmp,$C9,OverEarn,K$2,OverDate,"<"&DATE(YEAR($AC9),MONTH($AC9)+1,1),OverEnd,">="&DATE(YEAR($AC9),MONTH($AC9),1)),0)) -> 0 | L9: 15000 | M9: =IF(COUNTIFS(OverEmp,$C9,OverTax,M$5,OverDate,"<"&DATE(YEAR($AC9),MONTH($AC9)+1,1),OverEnd,">="&DATE(YEAR($AC9),MONTH($AC9),1))>0,SUMIFS(OverValue,OverEmp,$C9,OverTax,M$5,OverDate,"<"&DATE(YEAR($AC9),MONTH($AC9)+1,1),OverEnd,">="&DATE(YEAR($AC9),MONTH($AC9),1)),(($BA9/12*$AA9)+(BB9*IF(1-$BC9=0,0,BD9/(1-$BC9))))-IF($F9="Terminated",0,SUMIFS(PayTaxDeduct,PayDate,"<"&$AC9,PayEmp,$C9))) -> 899.75 | N9: =IF($F9="Terminated",0,IF($AA9=0,0,IF(ISNA(MATCH(N$5,DedListItem,0)),0,IF(COUNTIFS(OverEmp,$C9,OverDeduct,N$5,OverDate,"<"&DATE(YEAR($AC9),MONTH($AC9)+1,1),OverEnd,">="&DATE(YEAR($AC9),MONTH($AC9),1))>0,SUMIFS(OverValue,OverEmp,$C9,OverDeduct,N$5,OverDate,"<"&DATE(YEAR($AC9),MONTH($AC9)+1,1),OverEnd,">="&DATE(YEAR($AC9),MONTH($AC9),1)),IF(OR(N$2="Fixed",N$2="Not Used"),(IF(COUNTIFS(EmpNo,$C9,OFFSET(Emp!$R$4,1,MATCH(N$5,DedListItem,0)-1,EmpCount,1),"<>")>0,VLOOKUP($C9,EmpAll,COLUMN(Emp!$R$4)+MATCH(N$5,DedListItem,0)-1,0),OFFSET(Setup!$E$73,MATCH(N$5,DedListItem,0),0,1,1))*$AA9)-SUMIFS(OFFSET(N$6,1,0,PayCount,1),PayDate,"<"&$AC9,PayEmp,$C9),IF(ISNA(MATCH(N$2,EarnListItem,0))=FALSE,IF(OFFSET(Setup!$G$73,MATCH(N$5,DedListItem,0),0,1,1)="Taxable",SUMPRODUCT((PayEmp=$C9)*(PayDate<=$AC9)*(PayEarnCode=N$2)*(PayEarnTax)*(PayEarnValues)),SUMPRODUCT((PayEmp=$C9)*(PayDate<=$AC9)*(PayEarnCode=N$2)*(PayEarnValues)))*IF(COUNTIFS(EmpNo,$C9,OFFSET(Emp!$R$4,1,MATCH(N$5,DedListItem,0)-1,EmpCount,1),"<>")>0,VLOOKUP($C9,EmpAll,COLUMN(Emp!$R$4)+MATCH(N$5,DedListItem,0)-1,0),OFFSET(Setup!$E$73,MATCH(N$5,DedListItem,0),0,1,1)),(MIN(IF(OFFSET(Setup!$G$73,MATCH(N$5,DedListItem,0),0,1,1)="Taxable",SUMPRODUCT((PayEmp=$C9)*(PayDate<=$AC9)*(ISERROR(SEARCH(PayEarnCode,N$4)))*(PayEarnTax)*(PayEarnValues)),SUMPRODUCT((PayEmp=$C9)*(PayDate<=$AC9)*(ISERROR(SEARCH(PayEarnCode,N$4)))*(PayEarnValues))),IF(ISNUMBER(N$3),N$3/12*$AA9,IgnoreMin)))*IF(COUNTIFS(EmpNo,$C9,OFFSET(Emp!$R$4,1,MATCH(N$5,DedListItem,0)-1,EmpCount,1),"<>")>0,VLOOKUP($C9,EmpAll,COLUMN(Emp!$R$4)+MATCH(N$5,DedListItem,0)-1,0),OFFSET(Setup!$E$73,MATCH(N$5,DedListItem,0),0,1,1)))-SUMIFS(OFFSET(N$6,1,0,PayCount,1),PayDate,"<"&$AC9,PayEmp,$C9)))))) -> 150 | O9: =IF($F9="Terminated",0,IF($AA9=0,0,IF(ISNA(MATCH(O$5,DedListItem,0)),0,IF(COUNTIFS(OverEmp,$C9,OverDeduct,O$5,OverDate,"<"&DATE(YEAR($AC9),MONTH($AC9)+1,1),OverEnd,">="&DATE(YEAR($AC9),MONTH($AC9),1))>0,SUMIFS(OverValue,OverEmp,$C9,OverDeduct,O$5,OverDate,"<"&DATE(YEAR($AC9),MONTH($AC9)+1,1),OverEnd,">="&DATE(YEAR($AC9),MONTH($AC9),1)),IF(OR(O$2="Fixed",O$2="Not Used"),(IF(COUNTIFS(EmpNo,$C9,OFFSET(Emp!$R$4,1,MATCH(O$5,DedListItem,0)-1,EmpCount,1),"<>")>0,VLOOKUP($C9,EmpAll,COLUMN(Emp!$R$4)+MATCH(O$5,DedListItem,0)-1,0),OFFSET(Setup!$E$73,MATCH(O$5,DedListItem,0),0,1,1))*$AA9)-SUMIFS(OFFSET(O$6,1,0,PayCount,1),PayDate,"<"&$AC9,PayEmp,$C9),IF(ISNA(MATCH(O$2,EarnListItem,0))=FALSE,IF(OFFSET(Setup!$G$73,MATCH(O$5,DedListItem,0),0,1,1)="Taxable",SUMPRODUCT((PayEmp=$C9)*(PayDate<=$AC9)*(PayEarnCode=O$2)*(PayEarnTax)*(PayEarnValues)),SUMPRODUCT((PayEmp=$C9)*(PayDate<=$AC9)*(PayEarnCode=O$2)*(PayEarnValues)))*IF(COUNTIFS(EmpNo,$C9,OFFSET(Emp!$R$4,1,MATCH(O$5,DedListItem,0)-1,EmpCount,1),"<>")>0,VLOOKUP($C9,EmpAll,COLUMN(Emp!$R$4)+MATCH(O$5,DedListItem,0)-1,0),OFFSET(Setup!$E$73,MATCH(O$5,DedListItem,0),0,1,1)),(MIN(IF(OFFSET(Setup!$G$73,MATCH(O$5,DedListItem,0),0,1,1)="Taxable",SUMPRODUCT((PayEmp=$C9)*(PayDate<=$AC9)*(ISERROR(SEARCH(PayEarnCode,O$4)))*(PayEarnTax)*(PayEarnValues)),SUMPRODUCT((PayEmp=$C9)*(PayDate<=$AC9)*(ISERROR(SEARCH(PayEarnCode,O$4)))*(PayEarnValues))),IF(ISNUMBER(O$3),O$3/12*$AA9,IgnoreMin)))*IF(COUNTIFS(EmpNo,$C9,OFFSET(Emp!$R$4,1,MATCH(O$5,DedListItem,0)-1,EmpCount,1),"<>")>0,VLOOKUP($C9,EmpAll,COLUMN(Emp!$R$4)+MATCH(O$5,DedListItem,0)-1,0),OFFSET(Setup!$E$73,MATCH(O$5,DedListItem,0),0,1,1)))-SUMIFS(OFFSET(O$6,1,0,PayCount,1),PayDate,"<"&$AC9,PayEmp,$C9)))))) -> 0 | P9: =IF($F9="Terminated",0,IF($AA9=0,0,IF(ISNA(MATCH(P$5,DedListItem,0)),0,IF(COUNTIFS(OverEmp,$C9,OverDeduct,P$5,OverDate,"<"&DATE(YEAR($AC9),MONTH($AC9)+1,1),OverEnd,">="&DATE(YEAR($AC9),MONTH($AC9),1))>0,SUMIFS(OverValue,OverEmp,$C9,OverDeduct,P$5,OverDate,"<"&DATE(YEAR($AC9),MONTH($AC9)+1,1),OverEnd,">="&DATE(YEAR($AC9),MONTH($AC9),1)),IF(OR(P$2="Fixed",P$2="Not Used"),(IF(COUNTIFS(EmpNo,$C9,OFFSET(Emp!$R$4,1,MATCH(P$5,DedListItem,0)-1,EmpCount,1),"<>")>0,VLOOKUP($C9,EmpAll,COLUMN(Emp!$R$4)+MATCH(P$5,DedListItem,0)-1,0),OFFSET(Setup!$E$73,MATCH(P$5,DedListItem,0),0,1,1))*$AA9)-SUMIFS(OFFSET(P$6,1,0,PayCount,1),PayDate,"<"&$AC9,PayEmp,$C9),IF(ISNA(MATCH(P$2,EarnListItem,0))=FALSE,IF(OFFSET(Setup!$G$73,MATCH(P$5,DedListItem,0),0,1,1)="Taxable",SUMPRODUCT((PayEmp=$C9)*(PayDate<=$AC9)*(PayEarnCode=P$2)*(PayEarnTax)*(PayEarnValues)),SUMPRODUCT((PayEmp=$C9)*(PayDate<=$AC9)*(PayEarnCode=P$2)*(PayEarnValues)))*IF(COUNTIFS(EmpNo,$C9,OFFSET(Emp!$R$4,1,MATCH(P$5,DedListItem,0)-1,EmpCount,1),"<>")>0,VLOOKUP($C9,EmpAll,COLUMN(Emp!$R$4)+MATCH(P$5,DedListItem,0)-1,0),OFFSET(Setup!$E$73,MATCH(P$5,DedListItem,0),0,1,1)),(MIN(IF(OFFSET(Setup!$G$73,MATCH(P$5,DedListItem,0),0,1,1)="Taxable",SUMPRODUCT((PayEmp=$C9)*(PayDate<=$AC9)*(ISERROR(SEARCH(PayEarnCode,P$4)))*(PayEarnTax)*(PayEarnValues)),SUMPRODUCT((PayEmp=$C9)*(PayDate<=$AC9)*(ISERROR(SEARCH(PayEarnCode,P$4)))*(PayEarnValues))),IF(ISNUMBER(P$3),P$3/12*$AA9,IgnoreMin)))*IF(COUNTIFS(EmpNo,$C9,OFFSET(Emp!$R$4,1,MATCH(P$5,DedListItem,0)-1,EmpCount,1),"<>")>0,VLOOKUP($C9,EmpAll,COLUMN(Emp!$R$4)+MATCH(P$5,DedListItem,0)-1,0),OFFSET(Setup!$E$73,MATCH(P$5,DedListItem,0),0,1,1)))-SUMIFS(OFFSET(P$6,1,0,PayCount,1),PayDate,"<"&$AC9,PayEmp,$C9)))))) -> 0 | Q9: =IF($F9="Terminated",0,IF($AA9=0,0,IF(ISNA(MATCH(Q$5,DedListItem,0)),0,IF(COUNTIFS(OverEmp,$C9,OverDeduct,Q$5,OverDate,"<"&DATE(YEAR($AC9),MONTH($AC9)+1,1),OverEnd,">="&DATE(YEAR($AC9),MONTH($AC9),1))>0,SUMIFS(OverValue,OverEmp,$C9,OverDeduct,Q$5,OverDate,"<"&DATE(YEAR($AC9),MONTH($AC9)+1,1),OverEnd,">="&DATE(YEAR($AC9),MONTH($AC9),1)),IF(OR(Q$2="Fixed",Q$2="Not Used"),(IF(COUNTIFS(EmpNo,$C9,OFFSET(Emp!$R$4,1,MATCH(Q$5,DedListItem,0)-1,EmpCount,1),"<>")>0,VLOOKUP($C9,EmpAll,COLUMN(Emp!$R$4)+MATCH(Q$5,DedListItem,0)-1,0),OFFSET(Setup!$E$73,MATCH(Q$5,DedListItem,0),0,1,1))*$AA9)-SUMIFS(OFFSET(Q$6,1,0,PayCount,1),PayDate,"<"&$AC9,PayEmp,$C9),IF(ISNA(MATCH(Q$2,EarnListItem,0))=FALSE,IF(OFFSET(Setup!$G$73,MATCH(Q$5,DedListItem,0),0,1,1)="Taxable",SUMPRODUCT((PayEmp=$C9)*(PayDate<=$AC9)*(PayEarnCode=Q$2)*(PayEarnTax)*(PayEarnValues)),SUMPRODUCT((PayEmp=$C9)*(PayDate<=$AC9)*(PayEarnCode=Q$2)*(PayEarnValues)))*IF(COUNTIFS(EmpNo,$C9,OFFSET(Emp!$R$4,1,MATCH(Q$5,DedListItem,0)-1,EmpCount,1),"<>")>0,VLOOKUP($C9,EmpAll,COLUMN(Emp!$R$4)+MATCH(Q$5,DedListItem,0)-1,0),OFFSET(Setup!$E$73,MATCH(Q$5,DedListItem,0),0,1,1)),(MIN(IF(OFFSET(Setup!$G$73,MATCH(Q$5,DedListItem,0),0,1,1)="Taxable",SUMPRODUCT((PayEmp=$C9)*(PayDate<=$AC9)*(ISERROR(SEARCH(PayEarnCode,Q$4)))*(PayEarnTax)*(PayEarnValues)),SUMPRODUCT((PayEmp=$C9)*(PayDate<=$AC9)*(ISERROR(SEARCH(PayEarnCode,Q$4)))*(PayEarnValues))),IF(ISNUMBER(Q$3),Q$3/12*$AA9,IgnoreMin)))*IF(COUNTIFS(EmpNo,$C9,OFFSET(Emp!$R$4,1,MATCH(Q$5,DedListItem,0)-1,EmpCount,1),"<>")>0,VLOOKUP($C9,EmpAll,COLUMN(Emp!$R$4)+MATCH(Q$5,DedListItem,0)-1,0),OFFSET(Setup!$E$73,MATCH(Q$5,DedListItem,0),0,1,1)))-SUMIFS(OFFSET(Q$6,1,0,PayCount,1),PayDate,"<"&$AC9,PayEmp,$C9)))))) -> 0 | R9: 1049.75 | S9: 13950.25 | T9: =IF($F9="Terminated",0,IF($AA9=0,0,IF(ISNA(MATCH(T$5,CompListItem,0)),0,IF(COUNTIFS(OverEmp,$C9,OverComp,T$5,OverDate,"<"&DATE(YEAR($AC9),MONTH($AC9)+1,1),OverEnd,">="&DATE(YEAR($AC9),MONTH($AC9),1))>0,SUMIFS(OverValue,OverEmp,$C9,OverComp,T$5,OverDate,"<"&DATE(YEAR($AC9),MONTH($AC9)+1,1),OverEnd,">="&DATE(YEAR($AC9),MONTH($AC9),1)),IF(OR(T$2="Fixed",T$2="Not Used"),(OFFSET(Setup!$E$81,MATCH(T$5,CompListItem,0),0,1,1)*$AA9)-SUMIFS(OFFSET(T$6,1,0,PayCount,1),PayDate,"<"&$AC9,PayEmp,$C9),IF(ISNA(MATCH(T$2,DedListItem,0))=FALSE,(SUMPRODUCT((PayEmp=$C9)*(PayDate<=$AC9)*(PayDedList=T$2)*(PayDedValues))*OFFSET(Setup!$E$81,MATCH(T$5,CompListItem,0),0,1,1))-SUMIFS(OFFSET(T$6,1,0,PayCount,1),PayDate,"<"&$AC9,PayEmp,$C9),(MIN(IF(OFFSET(Setup!$G$81,MATCH(T$5,CompListItem,0),0,1,1)="Taxable",SUMPRODUCT((PayEmp=$C9)*(PayDate<=$AC9)*(ISERROR(SEARCH(PayEarnCode,T$4)))*(PayEarnTax)*(PayEarnValues)),SUMPRODUCT((PayEmp=$C9)*(PayDate<=$AC9)*(ISERROR(SEARCH(PayEarnCode,T$4)))*(PayEarnValues))),IF(ISNUMBER(T$3),T$3/12*$AA9,IgnoreMin)))*OFFSET(Setup!$E$81,MATCH(T$5,CompListItem,0),0,1,1)-SUMIFS(OFFSET(T$6,1,0,PayCount,1),PayDate,"<"&$AC9,PayEmp,$C9))))))) -> 150 | U9: =IF($F9="Terminated",0,IF($AA9=0,0,IF(ISNA(MATCH(U$5,CompListItem,0)),0,IF(COUNTIFS(OverEmp,$C9,OverComp,U$5,OverDate,"<"&DATE(YEAR($AC9),MONTH($AC9)+1,1),OverEnd,">="&DATE(YEAR($AC9),MONTH($AC9),1))>0,SUMIFS(OverValue,OverEmp,$C9,OverComp,U$5,OverDate,"<"&DATE(YEAR($AC9),MONTH($AC9)+1,1),OverEnd,">="&DATE(YEAR($AC9),MONTH($AC9),1)),IF(OR(U$2="Fixed",U$2="Not Used"),(OFFSET(Setup!$E$81,MATCH(U$5,CompListItem,0),0,1,1)*$AA9)-SUMIFS(OFFSET(U$6,1,0,PayCount,1),PayDate,"<"&$AC9,PayEmp,$C9),IF(ISNA(MATCH(U$2,DedListItem,0))=FALSE,(SUMPRODUCT((PayEmp=$C9)*(PayDate<=$AC9)*(PayDedList=U$2)*(PayDedValues))*OFFSET(Setup!$E$81,MATCH(U$5,CompListItem,0),0,1,1))-SUMIFS(OFFSET(U$6,1,0,PayCount,1),PayDate,"<"&$AC9,PayEmp,$C9),(MIN(IF(OFFSET(Setup!$G$81,MATCH(U$5,CompListItem,0),0,1,1)="Taxable",SUMPRODUCT((PayEmp=$C9)*(PayDate<=$AC9)*(ISERROR(SEARCH(PayEarnCode,U$4)))*(PayEarnTax)*(PayEarnValues)),SUMPRODUCT((PayEmp=$C9)*(PayDate<=$AC9)*(ISERROR(SEARCH(PayEarnCode,U$4)))*(PayEarnValues))),IF(ISNUMBER(U$3),U$3/12*$AA9,IgnoreMin)))*OFFSET(Setup!$E$81,MATCH(U$5,CompListItem,0),0,1,1)-SUMIFS(OFFSET(U$6,1,0,PayCount,1),PayDate,"<"&$AC9,PayEmp,$C9))))))) -> 150 | V9: =IF($F9="Terminated",0,IF($AA9=0,0,IF(ISNA(MATCH(V$5,CompListItem,0)),0,IF(COUNTIFS(OverEmp,$C9,OverComp,V$5,OverDate,"<"&DATE(YEAR($AC9),MONTH($AC9)+1,1),OverEnd,">="&DATE(YEAR($AC9),MONTH($AC9),1))>0,SUMIFS(OverValue,OverEmp,$C9,OverComp,V$5,OverDate,"<"&DATE(YEAR($AC9),MONTH($AC9)+1,1),OverEnd,">="&DATE(YEAR($AC9),MONTH($AC9),1)),IF(OR(V$2="Fixed",V$2="Not Used"),(OFFSET(Setup!$E$81,MATCH(V$5,CompListItem,0),0,1,1)*$AA9)-SUMIFS(OFFSET(V$6,1,0,PayCount,1),PayDate,"<"&$AC9,PayEmp,$C9),IF(ISNA(MATCH(V$2,DedListItem,0))=FALSE,(SUMPRODUCT((PayEmp=$C9)*(PayDate<=$AC9)*(PayDedList=V$2)*(PayDedValues))*OFFSET(Setup!$E$81,MATCH(V$5,CompListItem,0),0,1,1))-SUMIFS(OFFSET(V$6,1,0,PayCount,1),PayDate,"<"&$AC9,PayEmp,$C9),(MIN(IF(OFFSET(Setup!$G$81,MATCH(V$5,CompListItem,0),0,1,1)="Taxable",SUMPRODUCT((PayEmp=$C9)*(PayDate<=$AC9)*(ISERROR(SEARCH(PayEarnCode,V$4)))*(PayEarnTax)*(PayEarnValues)),SUMPRODUCT((PayEmp=$C9)*(PayDate<=$AC9)*(ISERROR(SEARCH(PayEarnCode,V$4)))*(PayEarnValues))),IF(ISNUMBER(V$3),V$3/12*$AA9,IgnoreMin)))*OFFSET(Setup!$E$81,MATCH(V$5,CompListItem,0),0,1,1)-SUMIFS(OFFSET(V$6,1,0,PayCount,1),PayDate,"<"&$AC9,PayEmp,$C9))))))) -> 0 | W9: =IF($F9="Terminated",0,IF($AA9=0,0,IF(ISNA(MATCH(W$5,CompListItem,0)),0,IF(COUNTIFS(OverEmp,$C9,OverComp,W$5,OverDate,"<"&DATE(YEAR($AC9),MONTH($AC9)+1,1),OverEnd,">="&DATE(YEAR($AC9),MONTH($AC9),1))>0,SUMIFS(OverValue,OverEmp,$C9,OverComp,W$5,OverDate,"<"&DATE(YEAR($AC9),MONTH($AC9)+1,1),OverEnd,">="&DATE(YEAR($AC9),MONTH($AC9),1)),IF(OR(W$2="Fixed",W$2="Not Used"),(OFFSET(Setup!$E$81,MATCH(W$5,CompListItem,0),0,1,1)*$AA9)-SUMIFS(OFFSET(W$6,1,0,PayCount,1),PayDate,"<"&$AC9,PayEmp,$C9),IF(ISNA(MATCH(W$2,DedListItem,0))=FALSE,(SUMPRODUCT((PayEmp=$C9)*(PayDate<=$AC9)*(PayDedList=W$2)*(PayDedValues))*OFFSET(Setup!$E$81,MATCH(W$5,CompListItem,0),0,1,1))-SUMIFS(OFFSET(W$6,1,0,PayCount,1),PayDate,"<"&$AC9,PayEmp,$C9),(MIN(IF(OFFSET(Setup!$G$81,MATCH(W$5,CompListItem,0),0,1,1)="Taxable",SUMPRODUCT((PayEmp=$C9)*(PayDate<=$AC9)*(ISERROR(SEARCH(PayEarnCode,W$4)))*(PayEarnTax)*(PayEarnValues)),SUMPRODUCT((PayEmp=$C9)*(PayDate<=$AC9)*(ISERROR(SEARCH(PayEarnCode,W$4)))*(PayEarnValues))),IF(ISNUMBER(W$3),W$3/12*$AA9,IgnoreMin)))*OFFSET(Setup!$E$81,MATCH(W$5,CompListItem,0),0,1,1)-SUMIFS(OFFSET(W$6,1,0,PayCount,1),PayDate,"<"&$AC9,PayEmp,$C9))))))) -> 0 | X9: 300 | Y9: 15300 | Z9: 1349.75 | AA9: =IF(OR($B9<=Setup!$E$12,$B9>=Setup!$D$12+1),0,IF($F9<>"Active",0,IF($AE9="Yes",$AB9,((YEAR($AC9)*12)+MONTH($AC9))-((YEAR($AD9)*12)+MONTH($AD9)-1)))) -> 1 | AB9: =IF(OR($B9<=Setup!$E$12,$B9>=Setup!$D$12+1),0,((YEAR($AC9)*12)+MONTH($AC9))-((YEAR(Setup!$E$12)*12)+MONTH(Setup!$E$12))) -> 1 | AC9: 45010 | AD9: =IF(ISNA(VLOOKUP($C9,EmpAll,COLUMN(Emp!$E$4),0)),$AC9,IF(VLOOKUP($C9,EmpAll,COLUMN(Emp!$E$4),0)<=Setup!$E$12,DATE(YEAR(Setup!$E$12),MONTH(Setup!$E$12)+1,1),VLOOKUP($C9,EmpAll,COLUMN(Emp!$E$4),0))) -> 2023-03-01 | AE9: =IF(ISNA(VLOOKUP($C9,EmpAll,COLUMN(Emp!$G$1),0)),"-",IF(VLOOKUP($C9,EmpAll,COLUMN(Emp!$G$1),0)=0,"-",VLOOKUP($C9,EmpAll,COLUMN(Emp!$G$1),0))) -> - | AF9: =IF(A9=PaySlip!$G$3,1,0) -> 0 | AG9: =IF(COUNTIFS(OverEmp,$C9,OverMed,"MED",OverDate,"<"&DATE(YEAR($AC9),MONTH($AC9)+1,1),OverEnd,">="&DATE(YEAR($AC9),MONTH($AC9),1))>0,SUMIFS(OverValue,OverEmp,$C9,OverMed,"MED",OverDate,"<"&DATE(YEAR($AC9),MONTH($AC9)+1,1),OverEnd,">="&DATE(YEAR($AC9),MONTH($AC9),1)),IF(ISNA(VLOOKUP($C9,EmpAll,COLUMN(Emp!$N$4),0)),0,VLOOKUP($C9,EmpAll,COLUMN(Emp!$N$4),0))) -> 1 | AH9: =VLOOKUP($AG9,MedList,COLUMN(Setup!$C$49),1) -> 364 | AI9: 4368 | AJ9: =IF(ISNA(VLOOKUP($C9,EmpAll,COLUMN(Emp!$L$4),0)),"None!",VLOOKUP($C9,EmpAll,COLUMN(Emp!$L$4),0)) -> A | AK9: 17235 | AL9: =IF(ISNA(VLOOKUP($C9,Employees[],COLUMN(Emp!$M$4),0))=TRUE,"Error!",IF(VLOOKUP($C9,Employees[],COLUMN(Emp!$M$4),0)=0,"Yes",VLOOKUP($C9,Employees[],COLUMN(Emp!$M$4),0))) -> A | AM9: 180000 | AN9: =-IF($F9="Terminated",0,IF($AA9=0,0,IF(ISNA(MATCH(AN$5,PayDedList,0)),0,MIN(IF(COUNTIFS(OverEmp,$C9,OverDeduct,AN$5,OverDate,"<"&DATE(YEAR($AC9),MONTH($AC9)+1,1),OverEnd,">="&DATE(YEAR($AC9),MONTH($AC9),1))>0,SUMPRODUCT((PayEmp=$C9)*(PayDate<=$AC9)*(OFFSET($N$6,1,MATCH(AN$5,PayDedList,0)-1,PayCount,1)))/$AA9*12*AN$3,IF(OR(AN$1="Fixed",AN$1="Not Used"),SUMPRODUCT((PayEmp=$C9)*(PayDate<=$AC9)*(OFFSET($N$6,1,MATCH(AN$5,PayDedList,0)-1,PayCount,1)))/$AA9*12*AN$3,IF(ISNA(MATCH(AN$1,EarnListItem,0))=FALSE,SUMPRODUCT((PayEmp=$C9)*(PayDate<=$AC9)*(OFFSET($N$6,1,MATCH(AN$5,PayDedList,0)-1,PayCount,1)))/$AA9*12*AN$3,(MIN(((SUMPRODUCT((PayEmp=$C9)*(PayDate<=$AC9)*(ISERROR(SEARCH(PayEarnCode,AN$2)))*(PayEarnType="Monthly")*(PayEarnValues))/$AA9*12)+(SUMPRODUCT((PayEmp=$C9)*(PayDate<=$AC9)*(ISERROR(SEARCH(PayEarnCode,AN$2)))*(PayEarnType="Quarterly")*(PayEarnValues))/MAX(1,ROUNDDOWN($AB9/3,0))*4)+(SUMPRODUCT((PayEmp=$C9)*(PayDate<=$AC9)*(ISERROR(SEARCH(PayEarnCode,AN$2)))*(PayEarnType="Bi-Annual")*(PayEarnValues))/MAX(1,ROUNDDOWN($AB9/6,0))*2)+(SUMPRODUCT((PayEmp=$C9)*(PayDate<=$AC9)*(ISERROR(SEARCH(PayEarnCode,AN$2)))*(PayEarnType="Annual")*(PayEarnValues)))),IF(ISNUMBER(OFFSET($N$3,0,MATCH(AN$5,PayDedList,0)-1,1,1)),OFFSET($N$3,0,MATCH(AN$5,PayDedList,0)-1,1,1),IgnoreMin)))*IF(COUNTIFS(EmpNo,$C9,OFFSET(Emp!$R$4,1,MATCH(AN$5,DedListItem,0)-1,EmpCount,1),"<>")>0,VLOOKUP($C9,EmpAll,COLUMN(Emp!$R$4)+MATCH(AN$5,DedListItem,0)-1,0),OFFSET(Setup!$E$73,MATCH(AN$5,DedListItem,0),0,1,1))*AN$3))),IF(ISNUMBER(AN$4),AN$4,IgnoreMin))))) -> 0 | AO9: =-IF($F9="Terminated",0,IF($AA9=0,0,IF(ISNA(MATCH(AO$5,PayDedList,0)),0,MIN(IF(COUNTIFS(OverEmp,$C9,OverDeduct,AO$5,OverDate,"<"&DATE(YEAR($AC9),MONTH($AC9)+1,1),OverEnd,">="&DATE(YEAR($AC9),MONTH($AC9),1))>0,SUMPRODUCT((PayEmp=$C9)*(PayDate<=$AC9)*(OFFSET($N$6,1,MATCH(AO$5,PayDedList,0)-1,PayCount,1)))/$AA9*12*AO$3,IF(OR(AO$1="Fixed",AO$1="Not Used"),SUMPRODUCT((PayEmp=$C9)*(PayDate<=$AC9)*(OFFSET($N$6,1,MATCH(AO$5,PayDedList,0)-1,PayCount,1)))/$AA9*12*AO$3,IF(ISNA(MATCH(AO$1,EarnListItem,0))=FALSE,SUMPRODUCT((PayEmp=$C9)*(PayDate<=$AC9)*(OFFSET($N$6,1,MATCH(AO$5,PayDedList,0)-1,PayCount,1)))/$AA9*12*AO$3,(MIN(((SUMPRODUCT((PayEmp=$C9)*(PayDate<=$AC9)*(ISERROR(SEARCH(PayEarnCode,AO$2)))*(PayEarnType="Monthly")*(PayEarnValues))/$AA9*12)+(SUMPRODUCT((PayEmp=$C9)*(PayDate<=$AC9)*(ISERROR(SEARCH(PayEarnCode,AO$2)))*(PayEarnType="Quarterly")*(PayEarnValues))/MAX(1,ROUNDDOWN($AB9/3,0))*4)+(SUMPRODUCT((PayEmp=$C9)*(PayDate<=$AC9)*(ISERROR(SEARCH(PayEarnCode,AO$2)))*(PayEarnType="Bi-Annual")*(PayEarnValues))/MAX(1,ROUNDDOWN($AB9/6,0))*2)+(SUMPRODUCT((PayEmp=$C9)*(PayDate<=$AC9)*(ISERROR(SEARCH(PayEarnCode,AO$2)))*(PayEarnType="Annual")*(PayEarnValues)))),IF(ISNUMBER(OFFSET($N$3,0,MATCH(AO$5,PayDedList,0)-1,1,1)),OFFSET($N$3,0,MATCH(AO$5,PayDedList,0)-1,1,1),IgnoreMin)))*IF(COUNTIFS(EmpNo,$C9,OFFSET(Emp!$R$4,1,MATCH(AO$5,DedListItem,0)-1,EmpCount,1),"<>")>0,VLOOKUP($C9,EmpAll,COLUMN(Emp!$R$4)+MATCH(AO$5,DedListItem,0)-1,0),OFFSET(Setup!$E$73,MATCH(AO$5,DedListItem,0),0,1,1))*AO$3))),IF(ISNUMBER(AO$4),AO$4,IgnoreMin))))) -> 0 | AP9: =-IF($F9="Terminated",0,IF($AA9=0,0,IF(ISNA(MATCH(AP$5,PayDedList,0)),0,MIN(IF(COUNTIFS(OverEmp,$C9,OverDeduct,AP$5,OverDate,"<"&DATE(YEAR($AC9),MONTH($AC9)+1,1),OverEnd,">="&DATE(YEAR($AC9),MONTH($AC9),1))>0,SUMPRODUCT((PayEmp=$C9)*(PayDate<=$AC9)*(OFFSET($N$6,1,MATCH(AP$5,PayDedList,0)-1,PayCount,1)))/$AA9*12*AP$3,IF(OR(AP$1="Fixed",AP$1="Not Used"),SUMPRODUCT((PayEmp=$C9)*(PayDate<=$AC9)*(OFFSET($N$6,1,MATCH(AP$5,PayDedList,0)-1,PayCount,1)))/$AA9*12*AP$3,IF(ISNA(MATCH(AP$1,EarnListItem,0))=FALSE,SUMPRODUCT((PayEmp=$C9)*(PayDate<=$AC9)*(OFFSET($N$6,1,MATCH(AP$5,PayDedList,0)-1,PayCount,1)))/$AA9*12*AP$3,(MIN(((SUMPRODUCT((PayEmp=$C9)*(PayDate<=$AC9)*(ISERROR(SEARCH(PayEarnCode,AP$2)))*(PayEarnType="Monthly")*(PayEarnValues))/$AA9*12)+(SUMPRODUCT((PayEmp=$C9)*(PayDate<=$AC9)*(ISERROR(SEARCH(PayEarnCode,AP$2)))*(PayEarnType="Quarterly")*(PayEarnValues))/MAX(1,ROUNDDOWN($AB9/3,0))*4)+(SUMPRODUCT((PayEmp=$C9)*(PayDate<=$AC9)*(ISERROR(SEARCH(PayEarnCode,AP$2)))*(PayEarnType="Bi-Annual")*(PayEarnValues))/MAX(1,ROUNDDOWN($AB9/6,0))*2)+(SUMPRODUCT((PayEmp=$C9)*(PayDate<=$AC9)*(ISERROR(SEARCH(PayEarnCode,AP$2)))*(PayEarnType="Annual")*(PayEarnValues)))),IF(ISNUMBER(OFFSET($N$3,0,MATCH(AP$5,PayDedList,0)-1,1,1)),OFFSET($N$3,0,MATCH(AP$5,PayDedList,0)-1,1,1),IgnoreMin)))*IF(COUNTIFS(EmpNo,$C9,OFFSET(Emp!$R$4,1,MATCH(AP$5,DedListItem,0)-1,EmpCount,1),"<>")>0,VLOOKUP($C9,EmpAll,COLUMN(Emp!$R$4)+MATCH(AP$5,DedListItem,0)-1,0),OFFSET(Setup!$E$73,MATCH(AP$5,DedListItem,0),0,1,1))*AP$3))),IF(ISNUMBER(AP$4),AP$4,IgnoreMin))))) -> 0 | AQ9: =-IF($F9="Terminated",0,IF($AA9=0,0,IF(ISNA(MATCH(AQ$5,PayDedList,0)),0,MIN(IF(COUNTIFS(OverEmp,$C9,OverDeduct,AQ$5,OverDate,"<"&DATE(YEAR($AC9),MONTH($AC9)+1,1),OverEnd,">="&DATE(YEAR($AC9),MONTH($AC9),1))>0,SUMPRODUCT((PayEmp=$C9)*(PayDate<=$AC9)*(OFFSET($N$6,1,MATCH(AQ$5,PayDedList,0)-1,PayCount,1)))/$AA9*12*AQ$3,IF(OR(AQ$1="Fixed",AQ$1="Not Used"),SUMPRODUCT((PayEmp=$C9)*(PayDate<=$AC9)*(OFFSET($N$6,1,MATCH(AQ$5,PayDedList,0)-1,PayCount,1)))/$AA9*12*AQ$3,IF(ISNA(MATCH(AQ$1,EarnListItem,0))=FALSE,SUMPRODUCT((PayEmp=$C9)*(PayDate<=$AC9)*(OFFSET($N$6,1,MATCH(AQ$5,PayDedList,0)-1,PayCount,1)))/$AA9*12*AQ$3,(MIN(((SUMPRODUCT((PayEmp=$C9)*(PayDate<=$AC9)*(ISERROR(SEARCH(PayEarnCode,AQ$2)))*(PayEarnType="Monthly")*(PayEarnValues))/$AA9*12)+(SUMPRODUCT((PayEmp=$C9)*(PayDate<=$AC9)*(ISERROR(SEARCH(PayEarnCode,AQ$2)))*(PayEarnType="Quarterly")*(PayEarnValues))/MAX(1,ROUNDDOWN($AB9/3,0))*4)+(SUMPRODUCT((PayEmp=$C9)*(PayDate<=$AC9)*(ISERROR(SEARCH(PayEarnCode,AQ$2)))*(PayEarnType="Bi-Annual")*(PayEarnValues))/MAX(1,ROUNDDOWN($AB9/6,0))*2)+(SUMPRODUCT((PayEmp=$C9)*(PayDate<=$AC9)*(ISERROR(SEARCH(PayEarnCode,AQ$2)))*(PayEarnType="Annual")*(PayEarnValues)))),IF(ISNUMBER(OFFSET($N$3,0,MATCH(AQ$5,PayDedList,0)-1,1,1)),OFFSET($N$3,0,MATCH(AQ$5,PayDedList,0)-1,1,1),IgnoreMin)))*IF(COUNTIFS(EmpNo,$C9,OFFSET(Emp!$R$4,1,MATCH(AQ$5,DedListItem,0)-1,EmpCount,1),"<>")>0,VLOOKUP($C9,EmpAll,COLUMN(Emp!$R$4)+MATCH(AQ$5,DedListItem,0)-1,0),OFFSET(Setup!$E$73,MATCH(AQ$5,DedListItem,0),0,1,1))*AQ$3))),IF(ISNUMBER(AQ$4),AQ$4,IgnoreMin))))) -> 0 | AR9: 180000 | AS9: 180000 | AT9: =-IF($F9="Terminated",0,IF($AA9=0,0,IF(ISNA(MATCH(AT$5,PayDedList,0)),0,MIN(IF(COUNTIFS(OverEmp,$C9,OverDeduct,AT$5,OverDate,"<"&DATE(YEAR($AC9),MONTH($AC9)+1,1),OverEnd,">="&DATE(YEAR($AC9),MONTH($AC9),1))>0,SUMPRODUCT((PayEmp=$C9)*(PayDate<=$AC9)*(OFFSET($N$6,1,MATCH(AT$5,PayDedList,0)-1,PayCount,1)))/$AA9*12*AT$3,IF(OR(AT$1="Fixed",AT$1="Not Used"),SUMPRODUCT((PayEmp=$C9)*(PayDate<=$AC9)*(OFFSET($N$6,1,MATCH(AT$5,PayDedList,0)-1,PayCount,1)))/$AA9*12*AT$3,IF(ISNA(MATCH(OFFSET($N$2,0,MATCH(AT$5,PayDedList,0)-1,1,1),EarnListItem,0))=FALSE,SUMPRODUCT((PayEmp=$C9)*(PayDate<=$AC9)*(OFFSET($N$6,1,MATCH(AT$5,PayDedList,0)-1,PayCount,1)))/$AA9*12*AT$3,(MIN(SUMPRODUCT((PayEmp=$C9)*(PayDate<=$AC9)*(ISERROR(SEARCH(PayEarnCode,AT$2)))*(PayEarnType="Monthly")*(PayEarnValues))/$AA9*12,IF(ISNUMBER(OFFSET($N$3,0,MATCH(AT$5,PayDedList,0)-1,1,1)),OFFSET($N$3,0,MATCH(AT$5,PayDedList,0)-1,1,1),IgnoreMin)))*IF(COUNTIFS(EmpNo,$C9,OFFSET(Emp!$R$4,1,MATCH(AT$5,DedListItem,0)-1,EmpCount,1),"<>")>0,VLOOKUP($C9,EmpAll,COLUMN(Emp!$R$4)+MATCH(AT$5,DedListItem,0)-1,0),OFFSET(Setup!$E$73,MATCH(AT$5,DedListItem,0),0,1,1))*AT$3))),IF(ISNUMBER(AT$4),AT$4,IgnoreMin))))) -> 0 | AU9: =-IF($F9="Terminated",0,IF($AA9=0,0,IF(ISNA(MATCH(AU$5,PayDedList,0)),0,MIN(IF(COUNTIFS(OverEmp,$C9,OverDeduct,AU$5,OverDate,"<"&DATE(YEAR($AC9),MONTH($AC9)+1,1),OverEnd,">="&DATE(YEAR($AC9),MONTH($AC9),1))>0,SUMPRODUCT((PayEmp=$C9)*(PayDate<=$AC9)*(OFFSET($N$6,1,MATCH(AU$5,PayDedList,0)-1,PayCount,1)))/$AA9*12*AU$3,IF(OR(AU$1="Fixed",AU$1="Not Used"),SUMPRODUCT((PayEmp=$C9)*(PayDate<=$AC9)*(OFFSET($N$6,1,MATCH(AU$5,PayDedList,0)-1,PayCount,1)))/$AA9*12*AU$3,IF(ISNA(MATCH(OFFSET($N$2,0,MATCH(AU$5,PayDedList,0)-1,1,1),EarnListItem,0))=FALSE,SUMPRODUCT((PayEmp=$C9)*(PayDate<=$AC9)*(OFFSET($N$6,1,MATCH(AU$5,PayDedList,0)-1,PayCount,1)))/$AA9*12*AU$3,(MIN(SUMPRODUCT((PayEmp=$C9)*(PayDate<=$AC9)*(ISERROR(SEARCH(PayEarnCode,AU$2)))*(PayEarnType="Monthly")*(PayEarnValues))/$AA9*12,IF(ISNUMBER(OFFSET($N$3,0,MATCH(AU$5,PayDedList,0)-1,1,1)),OFFSET($N$3,0,MATCH(AU$5,PayDedList,0)-1,1,1),IgnoreMin)))*IF(COUNTIFS(EmpNo,$C9,OFFSET(Emp!$R$4,1,MATCH(AU$5,DedListItem,0)-1,EmpCount,1),"<>")>0,VLOOKUP($C9,EmpAll,COLUMN(Emp!$R$4)+MATCH(AU$5,DedListItem,0)-1,0),OFFSET(Setup!$E$73,MATCH(AU$5,DedListItem,0),0,1,1))*AU$3))),IF(ISNUMBER(AU$4),AU$4,IgnoreMin))))) -> 0 | AV9: =-IF($F9="Terminated",0,IF($AA9=0,0,IF(ISNA(MATCH(AV$5,PayDedList,0)),0,MIN(IF(COUNTIFS(OverEmp,$C9,OverDeduct,AV$5,OverDate,"<"&DATE(YEAR($AC9),MONTH($AC9)+1,1),OverEnd,">="&DATE(YEAR($AC9),MONTH($AC9),1))>0,SUMPRODUCT((PayEmp=$C9)*(PayDate<=$AC9)*(OFFSET($N$6,1,MATCH(AV$5,PayDedList,0)-1,PayCount,1)))/$AA9*12*AV$3,IF(OR(AV$1="Fixed",AV$1="Not Used"),SUMPRODUCT((PayEmp=$C9)*(PayDate<=$AC9)*(OFFSET($N$6,1,MATCH(AV$5,PayDedList,0)-1,PayCount,1)))/$AA9*12*AV$3,IF(ISNA(MATCH(OFFSET($N$2,0,MATCH(AV$5,PayDedList,0)-1,1,1),EarnListItem,0))=FALSE,SUMPRODUCT((PayEmp=$C9)*(PayDate<=$AC9)*(OFFSET($N$6,1,MATCH(AV$5,PayDedList,0)-1,PayCount,1)))/$AA9*12*AV$3,(MIN(SUMPRODUCT((PayEmp=$C9)*(PayDate<=$AC9)*(ISERROR(SEARCH(PayEarnCode,AV$2)))*(PayEarnType="Monthly")*(PayEarnValues))/$AA9*12,IF(ISNUMBER(OFFSET($N$3,0,MATCH(AV$5,PayDedList,0)-1,1,1)),OFFSET($N$3,0,MATCH(AV$5,PayDedList,0)-1,1,1),IgnoreMin)))*IF(COUNTIFS(EmpNo,$C9,OFFSET(Emp!$R$4,1,MATCH(AV$5,DedListItem,0)-1,EmpCount,1),"<>")>0,VLOOKUP($C9,EmpAll,COLUMN(Emp!$R$4)+MATCH(AV$5,DedListItem,0)-1,0),OFFSET(Setup!$E$73,MATCH(AV$5,DedListItem,0),0,1,1))*AV$3))),IF(ISNUMBER(AV$4),AV$4,IgnoreMin))))) -> 0 | AW9: =-IF($F9="Terminated",0,IF($AA9=0,0,IF(ISNA(MATCH(AW$5,PayDedList,0)),0,MIN(IF(COUNTIFS(OverEmp,$C9,OverDeduct,AW$5,OverDate,"<"&DATE(YEAR($AC9),MONTH($AC9)+1,1),OverEnd,">="&DATE(YEAR($AC9),MONTH($AC9),1))>0,SUMPRODUCT((PayEmp=$C9)*(PayDate<=$AC9)*(OFFSET($N$6,1,MATCH(AW$5,PayDedList,0)-1,PayCount,1)))/$AA9*12*AW$3,IF(OR(AW$1="Fixed",AW$1="Not Used"),SUMPRODUCT((PayEmp=$C9)*(PayDate<=$AC9)*(OFFSET($N$6,1,MATCH(AW$5,PayDedList,0)-1,PayCount,1)))/$AA9*12*AW$3,IF(ISNA(MATCH(OFFSET($N$2,0,MATCH(AW$5,PayDedList,0)-1,1,1),EarnListItem,0))=FALSE,SUMPRODUCT((PayEmp=$C9)*(PayDate<=$AC9)*(OFFSET($N$6,1,MATCH(AW$5,PayDedList,0)-1,PayCount,1)))/$AA9*12*AW$3,(MIN(SUMPRODUCT((PayEmp=$C9)*(PayDate<=$AC9)*(ISERROR(SEARCH(PayEarnCode,AW$2)))*(PayEarnType="Monthly")*(PayEarnValues))/$AA9*12,IF(ISNUMBER(OFFSET($N$3,0,MATCH(AW$5,PayDedList,0)-1,1,1)),OFFSET($N$3,0,MATCH(AW$5,PayDedList,0)-1,1,1),IgnoreMin)))*IF(COUNTIFS(EmpNo,$C9,OFFSET(Emp!$R$4,1,MATCH(AW$5,DedListItem,0)-1,EmpCount,1),"<>")>0,VLOOKUP($C9,EmpAll,COLUMN(Emp!$R$4)+MATCH(AW$5,DedListItem,0)-1,0),OFFSET(Setup!$E$73,MATCH(AW$5,DedListItem,0),0,1,1))*AW$3))),IF(ISNUMBER(AW$4),AW$4,IgnoreMin))))) -> 0 | AX9: 180000 | AY9: 0 | AZ9: =IF(ISNUMBER($AL9),($AR9*$AL9)-$AI9-$AK9,MAX(0,IF($AL9="B",IF($AR9<Setup!$C$32,($AR9*Setup!$D$32)-$AI9-$AK9,(($AR9-VLOOKUP($AR9,TaxAll2,1,1))*OFFSET(Setup!$D$32,MATCH($AR9,TaxBracket2,1),0,1,1))+OFFSET(Setup!$E$31,MATCH($AR9,TaxBracket2,1),0,1,1)-$AI9-$AK9),IF($AR9<Setup!$C$21,($AR9*Setup!$D$21)-$AI9-$AK9,(($AR9-VLOOKUP($AR9,TaxAll1,1,1))*OFFSET(Setup!$D$21,MATCH($AR9,TaxBracket1,1),0,1,1))+OFFSET(Setup!$E$20,MATCH($AR9,TaxBracket1,1),0,1,1)-$AI9-$AK9)))) -> 10797 | BA9: =IF(ISNUMBER($AL9),($AX9*$AL9)-$AI9-$AK9,MAX(0,IF($AL9="B",IF($AX9<Setup!$C$32,($AX9*Setup!$D$32)-$AI9-$AK9,(($AX9-VLOOKUP($AX9,TaxAll2,1,1))*OFFSET(Setup!$D$32,MATCH($AX9,TaxBracket2,1),0,1,1))+OFFSET(Setup!$E$31,MATCH($AX9,TaxBracket2,1),0,1,1)-$AI9-$AK9),IF($AX9<Setup!$C$21,($AX9*Setup!$D$21)-$AI9-$AK9,(($AX9-VLOOKUP($AX9,TaxAll1,1,1))*OFFSET(Setup!$D$21,MATCH($AX9,TaxBracket1,1),0,1,1))+OFFSET(Setup!$E$20,MATCH($AX9,TaxBracket1,1),0,1,1)-$AI9-$AK9)))) -> 10797 | BB9: 0 | BC9: 1 | BD9: 0 | BE9: 180000
A10: =IF(ROW($A10)-ROW($A$6)>EmpCount*12,"-",TEXT($B10,"yyyy")&TEXT($B10,"mm")&"-"&$C10) -> 202303-EXS004 | B10: =IF(ROW($A10)-ROW($A$6)>EmpCount*12,Setup!$D$12,DATE(YEAR(Setup!$F$12),MONTH(Setup!$F$12)+ROUNDDOWN((ROW($A10)-ROW($A$6)-1)/EmpCount,0),IF(Setup!$C$14>DAY(DATE(YEAR(Setup!$F$12),MONTH(Setup!$F$12)+ROUNDDOWN((ROW($A10)-ROW($A$6)-1)/EmpCount,0)+1,0)),DAY(DATE(YEAR(Setup!$F$12),MONTH(Setup!$F$12)+ROUNDDOWN((ROW($A10)-ROW($A$6)-1)/EmpCount,0)+1,0)),Setup!$C$14))) -> 45010 | C10: =IF(ROW($A10)-ROW($A$6)>EmpCount*12,"-",OFFSET(Emp!$A$4,ROW($A10)-ROW($A$6)-IF(ROW($A10)-ROW($A$6)>EmpCount,ROUNDDOWN((ROW($A10)-ROW($A$6)-1)/EmpCount,0)*EmpCount,0),0,1,1)) -> EXS004 | D10: =IF(ISNA(VLOOKUP($C10,EmpAll,COLUMN(Emp!$B$4),0)),"-",VLOOKUP($C10,EmpAll,COLUMN(Emp!$B$4),0)) -> Osborne S | E10: =IF(ISNA(VLOOKUP($C10,EmpAll,COLUMN(Emp!$C$4),0)),"-",VLOOKUP($C10,EmpAll,COLUMN(Emp!$C$4),0)) -> S | F10: =IF(ISNA(VLOOKUP($C10,EmpAll,COLUMN(Emp!$A$4),0)),"-",IF(AND(VLOOKUP($C10,EmpAll,COLUMN(Emp!$E$4),0)<>0,VLOOKUP($C10,EmpAll,COLUMN(Emp!$E$4),0)>=DATE(YEAR($AC10),MONTH($AC10)+1,0)),"Inactive",IF(AND(VLOOKUP($C10,EmpAll,COLUMN(Emp!$F$4),0)<>0,VLOOKUP($C10,EmpAll,COLUMN(Emp!$F$4),0)<=DATE(YEAR($AC10),MONTH($AC10),0)),"Terminated","Active"))) -> Active | G10: =IF($F10<>"Active",0,IF(COUNTIFS(OverEmp,$C10,OverEarn,G$2,OverDate,"<"&DATE(YEAR($AC10),MONTH($AC10)+1,1),OverEnd,">="&DATE(YEAR($AC10),MONTH($AC10),1))>0,SUMIFS(OverValue,OverEmp,$C10,OverEarn,G$2,OverDate,"<"&DATE(YEAR($AC10),MONTH($AC10)+1,1),OverEnd,">="&DATE(YEAR($AC10),MONTH($AC10),1)),IF(AND($AC10>=Setup!$E$10,SUMIFS(EmpIncrease,EmpCode,$C10)>0),SUMIFS(EmpIncrease,EmpCode,$C10),SUMIFS(EmpSalary,EmpCode,$C10)))) -> 15000 | H10: =IF($F10<>"Active",0,IF(COUNTIFS(OverEmp,$C10,OverEarn,H$2,OverDate,"<"&DATE(YEAR($AC10),MONTH($AC10)+1,1),OverEnd,">="&DATE(YEAR($AC10),MONTH($AC10),1))>0,SUMIFS(OverValue,OverEmp,$C10,OverEarn,H$2,OverDate,"<"&DATE(YEAR($AC10),MONTH($AC10)+1,1),OverEnd,">="&DATE(YEAR($AC10),MONTH($AC10),1)),0)) -> 3600 | I10: =IF($F10<>"Active",0,IF(COUNTIFS(OverEmp,$C10,OverEarn,I$2,OverDate,"<"&DATE(YEAR($AC10),MONTH($AC10)+1,1),OverEnd,">="&DATE(YEAR($AC10),MONTH($AC10),1))>0,SUMIFS(OverValue,OverEmp,$C10,OverEarn,I$2,OverDate,"<"&DATE(YEAR($AC10),MONTH($AC10)+1,1),OverEnd,">="&DATE(YEAR($AC10),MONTH($AC10),1)),IF(MONTH(B10)=Setup!$C$15,SUMIFS(EmpBonus,EmpCode,$C10),0))) -> 0 | J10: =IF($F10<>"Active",0,IF(COUNTIFS(OverEmp,$C10,OverEarn,J$2,OverDate,"<"&DATE(YEAR($AC10),MONTH($AC10)+1,1),OverEnd,">="&DATE(YEAR($AC10),MONTH($AC10),1))>0,SUMIFS(OverValue,OverEmp,$C10,OverEarn,J$2,OverDate,"<"&DATE(YEAR($AC10),MONTH($AC10)+1,1),OverEnd,">="&DATE(YEAR($AC10),MONTH($AC10),1)),0)) -> 0 | K10: =IF($F10<>"Active",0,IF(COUNTIFS(OverEmp,$C10,OverEarn,K$2,OverDate,"<"&DATE(YEAR($AC10),MONTH($AC10)+1,1),OverEnd,">="&DATE(YEAR($AC10),MONTH($AC10),1))>0,SUMIFS(OverValue,OverEmp,$C10,OverEarn,K$2,OverDate,"<"&DATE(YEAR($AC10),MONTH($AC10)+1,1),OverEnd,">="&DATE(YEAR($AC10),MONTH($AC10),1)),0)) -> 0 | L10: 18600 | M10: =IF(COUNTIFS(OverEmp,$C10,OverTax,M$5,OverDate,"<"&DATE(YEAR($AC10),MONTH($AC10)+1,1),OverEnd,">="&DATE(YEAR($AC10),MONTH($AC10),1))>0,SUMIFS(OverValue,OverEmp,$C10,OverTax,M$5,OverDate,"<"&DATE(YEAR($AC10),MONTH($AC10)+1,1),OverEnd,">="&DATE(YEAR($AC10),MONTH($AC10),1)),(($BA10/12*$AA10)+(BB10*IF(1-$BC10=0,0,BD10/(1-$BC10))))-IF($F10="Terminated",0,SUMIFS(PayTaxDeduct,PayDate,"<"&$AC10,PayEmp,$C10))) -> 1547.75 | N10: =IF($F10="Terminated",0,IF($AA10=0,0,IF(ISNA(MATCH(N$5,DedListItem,0)),0,IF(COUNTIFS(OverEmp,$C10,OverDeduct,N$5,OverDate,"<"&DATE(YEAR($AC10),MONTH($AC10)+1,1),OverEnd,">="&DATE(YEAR($AC10),MONTH($AC10),1))>0,SUMIFS(OverValue,OverEmp,$C10,OverDeduct,N$5,OverDate,"<"&DATE(YEAR($AC10),MONTH($AC10)+1,1),OverEnd,">="&DATE(YEAR($AC10),MONTH($AC10),1)),IF(OR(N$2="Fixed",N$2="Not Used"),(IF(COUNTIFS(EmpNo,$C10,OFFSET(Emp!$R$4,1,MATCH(N$5,DedListItem,0)-1,EmpCount,1),"<>")>0,VLOOKUP($C10,EmpAll,COLUMN(Emp!$R$4)+MATCH(N$5,DedListItem,0)-1,0),OFFSET(Setup!$E$73,MATCH(N$5,DedListItem,0),0,1,1))*$AA10)-SUMIFS(OFFSET(N$6,1,0,PayCount,1),PayDate,"<"&$AC10,PayEmp,$C10),IF(ISNA(MATCH(N$2,EarnListItem,0))=FALSE,IF(OFFSET(Setup!$G$73,MATCH(N$5,DedListItem,0),0,1,1)="Taxable",SUMPRODUCT((PayEmp=$C10)*(PayDate<=$AC10)*(PayEarnCode=N$2)*(PayEarnTax)*(PayEarnValues)),SUMPRODUCT((PayEmp=$C10)*(PayDate<=$AC10)*(PayEarnCode=N$2)*(PayEarnValues)))*IF(COUNTIFS(EmpNo,$C10,OFFSET(Emp!$R$4,1,MATCH(N$5,DedListItem,0)-1,EmpCount,1),"<>")>0,VLOOKUP($C10,EmpAll,COLUMN(Emp!$R$4)+MATCH(N$5,DedListItem,0)-1,0),OFFSET(Setup!$E$73,MATCH(N$5,DedListItem,0),0,1,1)),(MIN(IF(OFFSET(Setup!$G$73,MATCH(N$5,DedListItem,0),0,1,1)="Taxable",SUMPRODUCT((PayEmp=$C10)*(PayDate<=$AC10)*(ISERROR(SEARCH(PayEarnCode,N$4)))*(PayEarnTax)*(PayEarnValues)),SUMPRODUCT((PayEmp=$C10)*(PayDate<=$AC10)*(ISERROR(SEARCH(PayEarnCode,N$4)))*(PayEarnValues))),IF(ISNUMBER(N$3),N$3/12*$AA10,IgnoreMin)))*IF(COUNTIFS(EmpNo,$C10,OFFSET(Emp!$R$4,1,MATCH(N$5,DedListItem,0)-1,EmpCount,1),"<>")>0,VLOOKUP($C10,EmpAll,COLUMN(Emp!$R$4)+MATCH(N$5,DedListItem,0)-1,0),OFFSET(Setup!$E$73,MATCH(N$5,DedListItem,0),0,1,1)))-SUMIFS(OFFSET(N$6,1,0,PayCount,1),PayDate,"<"&$AC10,PayEmp,$C10)))))) -> 177.12 | O10: =IF($F10="Terminated",0,IF($AA10=0,0,IF(ISNA(MATCH(O$5,DedListItem,0)),0,IF(COUNTIFS(OverEmp,$C10,OverDeduct,O$5,OverDate,"<"&DATE(YEAR($AC10),MONTH($AC10)+1,1),OverEnd,">="&DATE(YEAR($AC10),MONTH($AC10),1))>0,SUMIFS(OverValue,OverEmp,$C10,OverDeduct,O$5,OverDate,"<"&DATE(YEAR($AC10),MONTH($AC10)+1,1),OverEnd,">="&DATE(YEAR($AC10),MONTH($AC10),1)),IF(OR(O$2="Fixed",O$2="Not Used"),(IF(COUNTIFS(EmpNo,$C10,OFFSET(Emp!$R$4,1,MATCH(O$5,DedListItem,0)-1,EmpCount,1),"<>")>0,VLOOKUP($C10,EmpAll,COLUMN(Emp!$R$4)+MATCH(O$5,DedListItem,0)-1,0),OFFSET(Setup!$E$73,MATCH(O$5,DedListItem,0),0,1,1))*$AA10)-SUMIFS(OFFSET(O$6,1,0,PayCount,1),PayDate,"<"&$AC10,PayEmp,$C10),IF(ISNA(MATCH(O$2,EarnListItem,0))=FALSE,IF(OFFSET(Setup!$G$73,MATCH(O$5,DedListItem,0),0,1,1)="Taxable",SUMPRODUCT((PayEmp=$C10)*(PayDate<=$AC10)*(PayEarnCode=O$2)*(PayEarnTax)*(PayEarnValues)),SUMPRODUCT((PayEmp=$C10)*(PayDate<=$AC10)*(PayEarnCode=O$2)*(PayEarnValues)))*IF(COUNTIFS(EmpNo,$C10,OFFSET(Emp!$R$4,1,MATCH(O$5,DedListItem,0)-1,EmpCount,1),"<>")>0,VLOOKUP($C10,EmpAll,COLUMN(Emp!$R$4)+MATCH(O$5,DedListItem,0)-1,0),OFFSET(Setup!$E$73,MATCH(O$5,DedListItem,0),0,1,1)),(MIN(IF(OFFSET(Setup!$G$73,MATCH(O$5,DedListItem,0),0,1,1)="Taxable",SUMPRODUCT((PayEmp=$C10)*(PayDate<=$AC10)*(ISERROR(SEARCH(PayEarnCode,O$4)))*(PayEarnTax)*(PayEarnValues)),SUMPRODUCT((PayEmp=$C10)*(PayDate<=$AC10)*(ISERROR(SEARCH(PayEarnCode,O$4)))*(PayEarnValues))),IF(ISNUMBER(O$3),O$3/12*$AA10,IgnoreMin)))*IF(COUNTIFS(EmpNo,$C10,OFFSET(Emp!$R$4,1,MATCH(O$5,DedListItem,0)-1,EmpCount,1),"<>")>0,VLOOKUP($C10,EmpAll,COLUMN(Emp!$R$4)+MATCH(O$5,DedListItem,0)-1,0),OFFSET(Setup!$E$73,MATCH(O$5,DedListItem,0),0,1,1)))-SUMIFS(OFFSET(O$6,1,0,PayCount,1),PayDate,"<"&$AC10,PayEmp,$C10)))))) -> 0 | P10: =IF($F10="Terminated",0,IF($AA10=0,0,IF(ISNA(MATCH(P$5,DedListItem,0)),0,IF(COUNTIFS(OverEmp,$C10,OverDeduct,P$5,OverDate,"<"&DATE(YEAR($AC10),MONTH($AC10)+1,1),OverEnd,">="&DATE(YEAR($AC10),MONTH($AC10),1))>0,SUMIFS(OverValue,OverEmp,$C10,OverDeduct,P$5,OverDate,"<"&DATE(YEAR($AC10),MONTH($AC10)+1,1),OverEnd,">="&DATE(YEAR($AC10),MONTH($AC10),1)),IF(OR(P$2="Fixed",P$2="Not Used"),(IF(COUNTIFS(EmpNo,$C10,OFFSET(Emp!$R$4,1,MATCH(P$5,DedListItem,0)-1,EmpCount,1),"<>")>0,VLOOKUP($C10,EmpAll,COLUMN(Emp!$R$4)+MATCH(P$5,DedListItem,0)-1,0),OFFSET(Setup!$E$73,MATCH(P$5,DedListItem,0),0,1,1))*$AA10)-SUMIFS(OFFSET(P$6,1,0,PayCount,1),PayDate,"<"&$AC10,PayEmp,$C10),IF(ISNA(MATCH(P$2,EarnListItem,0))=FALSE,IF(OFFSET(Setup!$G$73,MATCH(P$5,DedListItem,0),0,1,1)="Taxable",SUMPRODUCT((PayEmp=$C10)*(PayDate<=$AC10)*(PayEarnCode=P$2)*(PayEarnTax)*(PayEarnValues)),SUMPRODUCT((PayEmp=$C10)*(PayDate<=$AC10)*(PayEarnCode=P$2)*(PayEarnValues)))*IF(COUNTIFS(EmpNo,$C10,OFFSET(Emp!$R$4,1,MATCH(P$5,DedListItem,0)-1,EmpCount,1),"<>")>0,VLOOKUP($C10,EmpAll,COLUMN(Emp!$R$4)+MATCH(P$5,DedListItem,0)-1,0),OFFSET(Setup!$E$73,MATCH(P$5,DedListItem,0),0,1,1)),(MIN(IF(OFFSET(Setup!$G$73,MATCH(P$5,DedListItem,0),0,1,1)="Taxable",SUMPRODUCT((PayEmp=$C10)*(PayDate<=$AC10)*(ISERROR(SEARCH(PayEarnCode,P$4)))*(PayEarnTax)*(PayEarnValues)),SUMPRODUCT((PayEmp=$C10)*(PayDate<=$AC10)*(ISERROR(SEARCH(PayEarnCode,P$4)))*(PayEarnValues))),IF(ISNUMBER(P$3),P$3/12*$AA10,IgnoreMin)))*IF(COUNTIFS(EmpNo,$C10,OFFSET(Emp!$R$4,1,MATCH(P$5,DedListItem,0)-1,EmpCount,1),"<>")>0,VLOOKUP($C10,EmpAll,COLUMN(Emp!$R$4)+MATCH(P$5,DedListItem,0)-1,0),OFFSET(Setup!$E$73,MATCH(P$5,DedListItem,0),0,1,1)))-SUMIFS(OFFSET(P$6,1,0,PayCount,1),PayDate,"<"&$AC10,PayEmp,$C10)))))) -> 500 | Q10: =IF($F10="Terminated",0,IF($AA10=0,0,IF(ISNA(MATCH(Q$5,DedListItem,0)),0,IF(COUNTIFS(OverEmp,$C10,OverDeduct,Q$5,OverDate,"<"&DATE(YEAR($AC10),MONTH($AC10)+1,1),OverEnd,">="&DATE(YEAR($AC10),MONTH($AC10),1))>0,SUMIFS(OverValue,OverEmp,$C10,OverDeduct,Q$5,OverDate,"<"&DATE(YEAR($AC10),MONTH($AC10)+1,1),OverEnd,">="&DATE(YEAR($AC10),MONTH($AC10),1)),IF(OR(Q$2="Fixed",Q$2="Not Used"),(IF(COUNTIFS(EmpNo,$C10,OFFSET(Emp!$R$4,1,MATCH(Q$5,DedListItem,0)-1,EmpCount,1),"<>")>0,VLOOKUP($C10,EmpAll,COLUMN(Emp!$R$4)+MATCH(Q$5,DedListItem,0)-1,0),OFFSET(Setup!$E$73,MATCH(Q$5,DedListItem,0),0,1,1))*$AA10)-SUMIFS(OFFSET(Q$6,1,0,PayCount,1),PayDate,"<"&$AC10,PayEmp,$C10),IF(ISNA(MATCH(Q$2,EarnListItem,0))=FALSE,IF(OFFSET(Setup!$G$73,MATCH(Q$5,DedListItem,0),0,1,1)="Taxable",SUMPRODUCT((PayEmp=$C10)*(PayDate<=$AC10)*(PayEarnCode=Q$2)*(PayEarnTax)*(PayEarnValues)),SUMPRODUCT((PayEmp=$C10)*(PayDate<=$AC10)*(PayEarnCode=Q$2)*(PayEarnValues)))*IF(COUNTIFS(EmpNo,$C10,OFFSET(Emp!$R$4,1,MATCH(Q$5,DedListItem,0)-1,EmpCount,1),"<>")>0,VLOOKUP($C10,EmpAll,COLUMN(Emp!$R$4)+MATCH(Q$5,DedListItem,0)-1,0),OFFSET(Setup!$E$73,MATCH(Q$5,DedListItem,0),0,1,1)),(MIN(IF(OFFSET(Setup!$G$73,MATCH(Q$5,DedListItem,0),0,1,1)="Taxable",SUMPRODUCT((PayEmp=$C10)*(PayDate<=$AC10)*(ISERROR(SEARCH(PayEarnCode,Q$4)))*(PayEarnTax)*(PayEarnValues)),SUMPRODUCT((PayEmp=$C10)*(PayDate<=$AC10)*(ISERROR(SEARCH(PayEarnCode,Q$4)))*(PayEarnValues))),IF(ISNUMBER(Q$3),Q$3/12*$AA10,IgnoreMin)))*IF(COUNTIFS(EmpNo,$C10,OFFSET(Emp!$R$4,1,MATCH(Q$5,DedListItem,0)-1,EmpCount,1),"<>")>0,VLOOKUP($C10,EmpAll,COLUMN(Emp!$R$4)+MATCH(Q$5,DedListItem,0)-1,0),OFFSET(Setup!$E$73,MATCH(Q$5,DedListItem,0),0,1,1)))-SUMIFS(OFFSET(Q$6,1,0,PayCount,1),PayDate,"<"&$AC10,PayEmp,$C10)))))) -> 0 | R10: 2224.87 | S10: 16375.13 | T10: =IF($F10="Terminated",0,IF($AA10=0,0,IF(ISNA(MATCH(T$5,CompListItem,0)),0,IF(COUNTIFS(OverEmp,$C10,OverComp,T$5,OverDate,"<"&DATE(YEAR($AC10),MONTH($AC10)+1,1),OverEnd,">="&DATE(YEAR($AC10),MONTH($AC10),1))>0,SUMIFS(OverValue,OverEmp,$C10,OverComp,T$5,OverDate,"<"&DATE(YEAR($AC10),MONTH($AC10)+1,1),OverEnd,">="&DATE(YEAR($AC10),MONTH($AC10),1)),IF(OR(T$2="Fixed",T$2="Not Used"),(OFFSET(Setup!$E$81,MATCH(T$5,CompListItem,0),0,1,1)*$AA10)-SUMIFS(OFFSET(T$6,1,0,PayCount,1),PayDate,"<"&$AC10,PayEmp,$C10),IF(ISNA(MATCH(T$2,DedListItem,0))=FALSE,(SUMPRODUCT((PayEmp=$C10)*(PayDate<=$AC10)*(PayDedList=T$2)*(PayDedValues))*OFFSET(Setup!$E$81,MATCH(T$5,CompListItem,0),0,1,1))-SUMIFS(OFFSET(T$6,1,0,PayCount,1),PayDate,"<"&$AC10,PayEmp,$C10),(MIN(IF(OFFSET(Setup!$G$81,MATCH(T$5,CompListItem,0),0,1,1)="Taxable",SUMPRODUCT((PayEmp=$C10)*(PayDate<=$AC10)*(ISERROR(SEARCH(PayEarnCode,T$4)))*(PayEarnTax)*(PayEarnValues)),SUMPRODUCT((PayEmp=$C10)*(PayDate<=$AC10)*(ISERROR(SEARCH(PayEarnCode,T$4)))*(PayEarnValues))),IF(ISNUMBER(T$3),T$3/12*$AA10,IgnoreMin)))*OFFSET(Setup!$E$81,MATCH(T$5,CompListItem,0),0,1,1)-SUMIFS(OFFSET(T$6,1,0,PayCount,1),PayDate,"<"&$AC10,PayEmp,$C10))))))) -> 177.12 | U10: =IF($F10="Terminated",0,IF($AA10=0,0,IF(ISNA(MATCH(U$5,CompListItem,0)),0,IF(COUNTIFS(OverEmp,$C10,OverComp,U$5,OverDate,"<"&DATE(YEAR($AC10),MONTH($AC10)+1,1),OverEnd,">="&DATE(YEAR($AC10),MONTH($AC10),1))>0,SUMIFS(OverValue,OverEmp,$C10,OverComp,U$5,OverDate,"<"&DATE(YEAR($AC10),MONTH($AC10)+1,1),OverEnd,">="&DATE(YEAR($AC10),MONTH($AC10),1)),IF(OR(U$2="Fixed",U$2="Not Used"),(OFFSET(Setup!$E$81,MATCH(U$5,CompListItem,0),0,1,1)*$AA10)-SUMIFS(OFFSET(U$6,1,0,PayCount,1),PayDate,"<"&$AC10,PayEmp,$C10),IF(ISNA(MATCH(U$2,DedListItem,0))=FALSE,(SUMPRODUCT((PayEmp=$C10)*(PayDate<=$AC10)*(PayDedList=U$2)*(PayDedValues))*OFFSET(Setup!$E$81,MATCH(U$5,CompListItem,0),0,1,1))-SUMIFS(OFFSET(U$6,1,0,PayCount,1),PayDate,"<"&$AC10,PayEmp,$C10),(MIN(IF(OFFSET(Setup!$G$81,MATCH(U$5,CompListItem,0),0,1,1)="Taxable",SUMPRODUCT((PayEmp=$C10)*(PayDate<=$AC10)*(ISERROR(SEARCH(PayEarnCode,U$4)))*(PayEarnTax)*(PayEarnValues)),SUMPRODUCT((PayEmp=$C10)*(PayDate<=$AC10)*(ISERROR(SEARCH(PayEarnCode,U$4)))*(PayEarnValues))),IF(ISNUMBER(U$3),U$3/12*$AA10,IgnoreMin)))*OFFSET(Setup!$E$81,MATCH(U$5,CompListItem,0),0,1,1)-SUMIFS(OFFSET(U$6,1,0,PayCount,1),PayDate,"<"&$AC10,PayEmp,$C10))))))) -> 186 | V10: =IF($F10="Terminated",0,IF($AA10=0,0,IF(ISNA(MATCH(V$5,CompListItem,0)),0,IF(COUNTIFS(OverEmp,$C10,OverComp,V$5,OverDate,"<"&DATE(YEAR($AC10),MONTH($AC10)+1,1),OverEnd,">="&DATE(YEAR($AC10),MONTH($AC10),1))>0,SUMIFS(OverValue,OverEmp,$C10,OverComp,V$5,OverDate,"<"&DATE(YEAR($AC10),MONTH($AC10)+1,1),OverEnd,">="&DATE(YEAR($AC10),MONTH($AC10),1)),IF(OR(V$2="Fixed",V$2="Not Used"),(OFFSET(Setup!$E$81,MATCH(V$5,CompListItem,0),0,1,1)*$AA10)-SUMIFS(OFFSET(V$6,1,0,PayCount,1),PayDate,"<"&$AC10,PayEmp,$C10),IF(ISNA(MATCH(V$2,DedListItem,0))=FALSE,(SUMPRODUCT((PayEmp=$C10)*(PayDate<=$AC10)*(PayDedList=V$2)*(PayDedValues))*OFFSET(Setup!$E$81,MATCH(V$5,CompListItem,0),0,1,1))-SUMIFS(OFFSET(V$6,1,0,PayCount,1),PayDate,"<"&$AC10,PayEmp,$C10),(MIN(IF(OFFSET(Setup!$G$81,MATCH(V$5,CompListItem,0),0,1,1)="Taxable",SUMPRODUCT((PayEmp=$C10)*(PayDate<=$AC10)*(ISERROR(SEARCH(PayEarnCode,V$4)))*(PayEarnTax)*(PayEarnValues)),SUMPRODUCT((PayEmp=$C10)*(PayDate<=$AC10)*(ISERROR(SEARCH(PayEarnCode,V$4)))*(PayEarnValues))),IF(ISNUMBER(V$3),V$3/12*$AA10,IgnoreMin)))*OFFSET(Setup!$E$81,MATCH(V$5,CompListItem,0),0,1,1)-SUMIFS(OFFSET(V$6,1,0,PayCount,1),PayDate,"<"&$AC10,PayEmp,$C10))))))) -> 0 | W10: =IF($F10="Terminated",0,IF($AA10=0,0,IF(ISNA(MATCH(W$5,CompListItem,0)),0,IF(COUNTIFS(OverEmp,$C10,OverComp,W$5,OverDate,"<"&DATE(YEAR($AC10),MONTH($AC10)+1,1),OverEnd,">="&DATE(YEAR($AC10),MONTH($AC10),1))>0,SUMIFS(OverValue,OverEmp,$C10,OverComp,W$5,OverDate,"<"&DATE(YEAR($AC10),MONTH($AC10)+1,1),OverEnd,">="&DATE(YEAR($AC10),MONTH($AC10),1)),IF(OR(W$2="Fixed",W$2="Not Used"),(OFFSET(Setup!$E$81,MATCH(W$5,CompListItem,0),0,1,1)*$AA10)-SUMIFS(OFFSET(W$6,1,0,PayCount,1),PayDate,"<"&$AC10,PayEmp,$C10),IF(ISNA(MATCH(W$2,DedListItem,0))=FALSE,(SUMPRODUCT((PayEmp=$C10)*(PayDate<=$AC10)*(PayDedList=W$2)*(PayDedValues))*OFFSET(Setup!$E$81,MATCH(W$5,CompListItem,0),0,1,1))-SUMIFS(OFFSET(W$6,1,0,PayCount,1),PayDate,"<"&$AC10,PayEmp,$C10),(MIN(IF(OFFSET(Setup!$G$81,MATCH(W$5,CompListItem,0),0,1,1)="Taxable",SUMPRODUCT((PayEmp=$C10)*(PayDate<=$AC10)*(ISERROR(SEARCH(PayEarnCode,W$4)))*(PayEarnTax)*(PayEarnValues)),SUMPRODUCT((PayEmp=$C10)*(PayDate<=$AC10)*(ISERROR(SEARCH(PayEarnCode,W$4)))*(PayEarnValues))),IF(ISNUMBER(W$3),W$3/12*$AA10,IgnoreMin)))*OFFSET(Setup!$E$81,MATCH(W$5,CompListItem,0),0,1,1)-SUMIFS(OFFSET(W$6,1,0,PayCount,1),PayDate,"<"&$AC10,PayEmp,$C10))))))) -> 0 | X10: 363.12 | Y10: 18963.12 | Z10: 2587.99 | AA10: =IF(OR($B10<=Setup!$E$12,$B10>=Setup!$D$12+1),0,IF($F10<>"Active",0,IF($AE10="Yes",$AB10,((YEAR($AC10)*12)+MONTH($AC10))-((YEAR($AD10)*12)+MONTH($AD10)-1)))) -> 1 | AB10: =IF(OR($B10<=Setup!$E$12,$B10>=Setup!$D$12+1),0,((YEAR($AC10)*12)+MONTH($AC10))-((YEAR(Setup!$E$12)*12)+MONTH(Setup!$E$12))) -> 1 | AC10: 45010 | AD10: =IF(ISNA(VLOOKUP($C10,EmpAll,COLUMN(Emp!$E$4),0)),$AC10,IF(VLOOKUP($C10,EmpAll,COLUMN(Emp!$E$4),0)<=Setup!$E$12,DATE(YEAR(Setup!$E$12),MONTH(Setup!$E$12)+1,1),VLOOKUP($C10,EmpAll,COLUMN(Emp!$E$4),0))) -> 2023-03-01 | AE10: =IF(ISNA(VLOOKUP($C10,EmpAll,COLUMN(Emp!$G$1),0)),"-",IF(VLOOKUP($C10,EmpAll,COLUMN(Emp!$G$1),0)=0,"-",VLOOKUP($C10,EmpAll,COLUMN(Emp!$G$1),0))) -> - | AF10: =IF(A10=PaySlip!$G$3,1,0) -> 0 | AG10: =IF(COUNTIFS(OverEmp,$C10,OverMed,"MED",OverDate,"<"&DATE(YEAR($AC10),MONTH($AC10)+1,1),OverEnd,">="&DATE(YEAR($AC10),MONTH($AC10),1))>0,SUMIFS(OverValue,OverEmp,$C10,OverMed,"MED",OverDate,"<"&DATE(YEAR($AC10),MONTH($AC10)+1,1),OverEnd,">="&DATE(YEAR($AC10),MONTH($AC10),1)),IF(ISNA(VLOOKUP($C10,EmpAll,COLUMN(Emp!$N$4),0)),0,VLOOKUP($C10,EmpAll,COLUMN(Emp!$N$4),0))) -> 1 | AH10: =VLOOKUP($AG10,MedList,COLUMN(Setup!$C$49),1) -> 364 | AI10: 4368 | AJ10: =IF(ISNA(VLOOKUP($C10,EmpAll,COLUMN(Emp!$L$4),0)),"None!",VLOOKUP($C10,EmpAll,COLUMN(Emp!$L$4),0)) -> A | AK10: 17235 | AL10: =IF(ISNA(VLOOKUP($C10,Employees[],COLUMN(Emp!$M$4),0))=TRUE,"Error!",IF(VLOOKUP($C10,Employees[],COLUMN(Emp!$M$4),0)=0,"Yes",VLOOKUP($C10,Employees[],COLUMN(Emp!$M$4),0))) -> A | AM10: 183600 | AN10: =-IF($F10="Terminated",0,IF($AA10=0,0,IF(ISNA(MATCH(AN$5,PayDedList,0)),0,MIN(IF(COUNTIFS(OverEmp,$C10,OverDeduct,AN$5,OverDate,"<"&DATE(YEAR($AC10),MONTH($AC10)+1,1),OverEnd,">="&DATE(YEAR($AC10),MONTH($AC10),1))>0,SUMPRODUCT((PayEmp=$C10)*(PayDate<=$AC10)*(OFFSET($N$6,1,MATCH(AN$5,PayDedList,0)-1,PayCount,1)))/$AA10*12*AN$3,IF(OR(AN$1="Fixed",AN$1="Not Used"),SUMPRODUCT((PayEmp=$C10)*(PayDate<=$AC10)*(OFFSET($N$6,1,MATCH(AN$5,PayDedList,0)-1,PayCount,1)))/$AA10*12*AN$3,IF(ISNA(MATCH(AN$1,EarnListItem,0))=FALSE,SUMPRODUCT((PayEmp=$C10)*(PayDate<=$AC10)*(OFFSET($N$6,1,MATCH(AN$5,PayDedList,0)-1,PayCount,1)))/$AA10*12*AN$3,(MIN(((SUMPRODUCT((PayEmp=$C10)*(PayDate<=$AC10)*(ISERROR(SEARCH(PayEarnCode,AN$2)))*(PayEarnType="Monthly")*(PayEarnValues))/$AA10*12)+(SUMPRODUCT((PayEmp=$C10)*(PayDate<=$AC10)*(ISERROR(SEARCH(PayEarnCode,AN$2)))*(PayEarnType="Quarterly")*(PayEarnValues))/MAX(1,ROUNDDOWN($AB10/3,0))*4)+(SUMPRODUCT((PayEmp=$C10)*(PayDate<=$AC10)*(ISERROR(SEARCH(PayEarnCode,AN$2)))*(PayEarnType="Bi-Annual")*(PayEarnValues))/MAX(1,ROUNDDOWN($AB10/6,0))*2)+(SUMPRODUCT((PayEmp=$C10)*(PayDate<=$AC10)*(ISERROR(SEARCH(PayEarnCode,AN$2)))*(PayEarnType="Annual")*(PayEarnValues)))),IF(ISNUMBER(OFFSET($N$3,0,MATCH(AN$5,PayDedList,0)-1,1,1)),OFFSET($N$3,0,MATCH(AN$5,PayDedList,0)-1,1,1),IgnoreMin)))*IF(COUNTIFS(EmpNo,$C10,OFFSET(Emp!$R$4,1,MATCH(AN$5,DedListItem,0)-1,EmpCount,1),"<>")>0,VLOOKUP($C10,EmpAll,COLUMN(Emp!$R$4)+MATCH(AN$5,DedListItem,0)-1,0),OFFSET(Setup!$E$73,MATCH(AN$5,DedListItem,0),0,1,1))*AN$3))),IF(ISNUMBER(AN$4),AN$4,IgnoreMin))))) -> 0 | AO10: =-IF($F10="Terminated",0,IF($AA10=0,0,IF(ISNA(MATCH(AO$5,PayDedList,0)),0,MIN(IF(COUNTIFS(OverEmp,$C10,OverDeduct,AO$5,OverDate,"<"&DATE(YEAR($AC10),MONTH($AC10)+1,1),OverEnd,">="&DATE(YEAR($AC10),MONTH($AC10),1))>0,SUMPRODUCT((PayEmp=$C10)*(PayDate<=$AC10)*(OFFSET($N$6,1,MATCH(AO$5,PayDedList,0)-1,PayCount,1)))/$AA10*12*AO$3,IF(OR(AO$1="Fixed",AO$1="Not Used"),SUMPRODUCT((PayEmp=$C10)*(PayDate<=$AC10)*(OFFSET($N$6,1,MATCH(AO$5,PayDedList,0)-1,PayCount,1)))/$AA10*12*AO$3,IF(ISNA(MATCH(AO$1,EarnListItem,0))=FALSE,SUMPRODUCT((PayEmp=$C10)*(PayDate<=$AC10)*(OFFSET($N$6,1,MATCH(AO$5,PayDedList,0)-1,PayCount,1)))/$AA10*12*AO$3,(MIN(((SUMPRODUCT((PayEmp=$C10)*(PayDate<=$AC10)*(ISERROR(SEARCH(PayEarnCode,AO$2)))*(PayEarnType="Monthly")*(PayEarnValues))/$AA10*12)+(SUMPRODUCT((PayEmp=$C10)*(PayDate<=$AC10)*(ISERROR(SEARCH(PayEarnCode,AO$2)))*(PayEarnType="Quarterly")*(PayEarnValues))/MAX(1,ROUNDDOWN($AB10/3,0))*4)+(SUMPRODUCT((PayEmp=$C10)*(PayDate<=$AC10)*(ISERROR(SEARCH(PayEarnCode,AO$2)))*(PayEarnType="Bi-Annual")*(PayEarnValues))/MAX(1,ROUNDDOWN($AB10/6,0))*2)+(SUMPRODUCT((PayEmp=$C10)*(PayDate<=$AC10)*(ISERROR(SEARCH(PayEarnCode,AO$2)))*(PayEarnType="Annual")*(PayEarnValues)))),IF(ISNUMBER(OFFSET($N$3,0,MATCH(AO$5,PayDedList,0)-1,1,1)),OFFSET($N$3,0,MATCH(AO$5,PayDedList,0)-1,1,1),IgnoreMin)))*IF(COUNTIFS(EmpNo,$C10,OFFSET(Emp!$R$4,1,MATCH(AO$5,DedListItem,0)-1,EmpCount,1),"<>")>0,VLOOKUP($C10,EmpAll,COLUMN(Emp!$R$4)+MATCH(AO$5,DedListItem,0)-1,0),OFFSET(Setup!$E$73,MATCH(AO$5,DedListItem,0),0,1,1))*AO$3))),IF(ISNUMBER(AO$4),AO$4,IgnoreMin))))) -> 0 | AP10: =-IF($F10="Terminated",0,IF($AA10=0,0,IF(ISNA(MATCH(AP$5,PayDedList,0)),0,MIN(IF(COUNTIFS(OverEmp,$C10,OverDeduct,AP$5,OverDate,"<"&DATE(YEAR($AC10),MONTH($AC10)+1,1),OverEnd,">="&DATE(YEAR($AC10),MONTH($AC10),1))>0,SUMPRODUCT((PayEmp=$C10)*(PayDate<=$AC10)*(OFFSET($N$6,1,MATCH(AP$5,PayDedList,0)-1,PayCount,1)))/$AA10*12*AP$3,IF(OR(AP$1="Fixed",AP$1="Not Used"),SUMPRODUCT((PayEmp=$C10)*(PayDate<=$AC10)*(OFFSET($N$6,1,MATCH(AP$5,PayDedList,0)-1,PayCount,1)))/$AA10*12*AP$3,IF(ISNA(MATCH(AP$1,EarnListItem,0))=FALSE,SUMPRODUCT((PayEmp=$C10)*(PayDate<=$AC10)*(OFFSET($N$6,1,MATCH(AP$5,PayDedList,0)-1,PayCount,1)))/$AA10*12*AP$3,(MIN(((SUMPRODUCT((PayEmp=$C10)*(PayDate<=$AC10)*(ISERROR(SEARCH(PayEarnCode,AP$2)))*(PayEarnType="Monthly")*(PayEarnValues))/$AA10*12)+(SUMPRODUCT((PayEmp=$C10)*(PayDate<=$AC10)*(ISERROR(SEARCH(PayEarnCode,AP$2)))*(PayEarnType="Quarterly")*(PayEarnValues))/MAX(1,ROUNDDOWN($AB10/3,0))*4)+(SUMPRODUCT((PayEmp=$C10)*(PayDate<=$AC10)*(ISERROR(SEARCH(PayEarnCode,AP$2)))*(PayEarnType="Bi-Annual")*(PayEarnValues))/MAX(1,ROUNDDOWN($AB10/6,0))*2)+(SUMPRODUCT((PayEmp=$C10)*(PayDate<=$AC10)*(ISERROR(SEARCH(PayEarnCode,AP$2)))*(PayEarnType="Annual")*(PayEarnValues)))),IF(ISNUMBER(OFFSET($N$3,0,MATCH(AP$5,PayDedList,0)-1,1,1)),OFFSET($N$3,0,MATCH(AP$5,PayDedList,0)-1,1,1),IgnoreMin)))*IF(COUNTIFS(EmpNo,$C10,OFFSET(Emp!$R$4,1,MATCH(AP$5,DedListItem,0)-1,EmpCount,1),"<>")>0,VLOOKUP($C10,EmpAll,COLUMN(Emp!$R$4)+MATCH(AP$5,DedListItem,0)-1,0),OFFSET(Setup!$E$73,MATCH(AP$5,DedListItem,0),0,1,1))*AP$3))),IF(ISNUMBER(AP$4),AP$4,IgnoreMin))))) -> 0 | AQ10: =-IF($F10="Terminated",0,IF($AA10=0,0,IF(ISNA(MATCH(AQ$5,PayDedList,0)),0,MIN(IF(COUNTIFS(OverEmp,$C10,OverDeduct,AQ$5,OverDate,"<"&DATE(YEAR($AC10),MONTH($AC10)+1,1),OverEnd,">="&DATE(YEAR($AC10),MONTH($AC10),1))>0,SUMPRODUCT((PayEmp=$C10)*(PayDate<=$AC10)*(OFFSET($N$6,1,MATCH(AQ$5,PayDedList,0)-1,PayCount,1)))/$AA10*12*AQ$3,IF(OR(AQ$1="Fixed",AQ$1="Not Used"),SUMPRODUCT((PayEmp=$C10)*(PayDate<=$AC10)*(OFFSET($N$6,1,MATCH(AQ$5,PayDedList,0)-1,PayCount,1)))/$AA10*12*AQ$3,IF(ISNA(MATCH(AQ$1,EarnListItem,0))=FALSE,SUMPRODUCT((PayEmp=$C10)*(PayDate<=$AC10)*(OFFSET($N$6,1,MATCH(AQ$5,PayDedList,0)-1,PayCount,1)))/$AA10*12*AQ$3,(MIN(((SUMPRODUCT((PayEmp=$C10)*(PayDate<=$AC10)*(ISERROR(SEARCH(PayEarnCode,AQ$2)))*(PayEarnType="Monthly")*(PayEarnValues))/$AA10*12)+(SUMPRODUCT((PayEmp=$C10)*(PayDate<=$AC10)*(ISERROR(SEARCH(PayEarnCode,AQ$2)))*(PayEarnType="Quarterly")*(PayEarnValues))/MAX(1,ROUNDDOWN($AB10/3,0))*4)+(SUMPRODUCT((PayEmp=$C10)*(PayDate<=$AC10)*(ISERROR(SEARCH(PayEarnCode,AQ$2)))*(PayEarnType="Bi-Annual")*(PayEarnValues))/MAX(1,ROUNDDOWN($AB10/6,0))*2)+(SUMPRODUCT((PayEmp=$C10)*(PayDate<=$AC10)*(ISERROR(SEARCH(PayEarnCode,AQ$2)))*(PayEarnType="Annual")*(PayEarnValues)))),IF(ISNUMBER(OFFSET($N$3,0,MATCH(AQ$5,PayDedList,0)-1,1,1)),OFFSET($N$3,0,MATCH(AQ$5,PayDedList,0)-1,1,1),IgnoreMin)))*IF(COUNTIFS(EmpNo,$C10,OFFSET(Emp!$R$4,1,MATCH(AQ$5,DedListItem,0)-1,EmpCount,1),"<>")>0,VLOOKUP($C10,EmpAll,COLUMN(Emp!$R$4)+MATCH(AQ$5,DedListItem,0)-1,0),OFFSET(Setup!$E$73,MATCH(AQ$5,DedListItem,0),0,1,1))*AQ$3))),IF(ISNUMBER(AQ$4),AQ$4,IgnoreMin))))) -> 0 | AR10: 183600 | AS10: 180000 | AT10: =-IF($F10="Terminated",0,IF($AA10=0,0,IF(ISNA(MATCH(AT$5,PayDedList,0)),0,MIN(IF(COUNTIFS(OverEmp,$C10,OverDeduct,AT$5,OverDate,"<"&DATE(YEAR($AC10),MONTH($AC10)+1,1),OverEnd,">="&DATE(YEAR($AC10),MONTH($AC10),1))>0,SUMPRODUCT((PayEmp=$C10)*(PayDate<=$AC10)*(OFFSET($N$6,1,MATCH(AT$5,PayDedList,0)-1,PayCount,1)))/$AA10*12*AT$3,IF(OR(AT$1="Fixed",AT$1="Not Used"),SUMPRODUCT((PayEmp=$C10)*(PayDate<=$AC10)*(OFFSET($N$6,1,MATCH(AT$5,PayDedList,0)-1,PayCount,1)))/$AA10*12*AT$3,IF(ISNA(MATCH(OFFSET($N$2,0,MATCH(AT$5,PayDedList,0)-1,1,1),EarnListItem,0))=FALSE,SUMPRODUCT((PayEmp=$C10)*(PayDate<=$AC10)*(OFFSET($N$6,1,MATCH(AT$5,PayDedList,0)-1,PayCount,1)))/$AA10*12*AT$3,(MIN(SUMPRODUCT((PayEmp=$C10)*(PayDate<=$AC10)*(ISERROR(SEARCH(PayEarnCode,AT$2)))*(PayEarnType="Monthly")*(PayEarnValues))/$AA10*12,IF(ISNUMBER(OFFSET($N$3,0,MATCH(AT$5,PayDedList,0)-1,1,1)),OFFSET($N$3,0,MATCH(AT$5,PayDedList,0)-1,1,1),IgnoreMin)))*IF(COUNTIFS(EmpNo,$C10,OFFSET(Emp!$R$4,1,MATCH(AT$5,DedListItem,0)-1,EmpCount,1),"<>")>0,VLOOKUP($C10,EmpAll,COLUMN(Emp!$R$4)+MATCH(AT$5,DedListItem,0)-1,0),OFFSET(Setup!$E$73,MATCH(AT$5,DedListItem,0),0,1,1))*AT$3))),IF(ISNUMBER(AT$4),AT$4,IgnoreMin))))) -> 0 | AU10: =-IF($F10="Terminated",0,IF($AA10=0,0,IF(ISNA(MATCH(AU$5,PayDedList,0)),0,MIN(IF(COUNTIFS(OverEmp,$C10,OverDeduct,AU$5,OverDate,"<"&DATE(YEAR($AC10),MONTH($AC10)+1,1),OverEnd,">="&DATE(YEAR($AC10),MONTH($AC10),1))>0,SUMPRODUCT((PayEmp=$C10)*(PayDate<=$AC10)*(OFFSET($N$6,1,MATCH(AU$5,PayDedList,0)-1,PayCount,1)))/$AA10*12*AU$3,IF(OR(AU$1="Fixed",AU$1="Not Used"),SUMPRODUCT((PayEmp=$C10)*(PayDate<=$AC10)*(OFFSET($N$6,1,MATCH(AU$5,PayDedList,0)-1,PayCount,1)))/$AA10*12*AU$3,IF(ISNA(MATCH(OFFSET($N$2,0,MATCH(AU$5,PayDedList,0)-1,1,1),EarnListItem,0))=FALSE,SUMPRODUCT((PayEmp=$C10)*(PayDate<=$AC10)*(OFFSET($N$6,1,MATCH(AU$5,PayDedList,0)-1,PayCount,1)))/$AA10*12*AU$3,(MIN(SUMPRODUCT((PayEmp=$C10)*(PayDate<=$AC10)*(ISERROR(SEARCH(PayEarnCode,AU$2)))*(PayEarnType="Monthly")*(PayEarnValues))/$AA10*12,IF(ISNUMBER(OFFSET($N$3,0,MATCH(AU$5,PayDedList,0)-1,1,1)),OFFSET($N$3,0,MATCH(AU$5,PayDedList,0)-1,1,1),IgnoreMin)))*IF(COUNTIFS(EmpNo,$C10,OFFSET(Emp!$R$4,1,MATCH(AU$5,DedListItem,0)-1,EmpCount,1),"<>")>0,VLOOKUP($C10,EmpAll,COLUMN(Emp!$R$4)+MATCH(AU$5,DedListItem,0)-1,0),OFFSET(Setup!$E$73,MATCH(AU$5,DedListItem,0),0,1,1))*AU$3))),IF(ISNUMBER(AU$4),AU$4,IgnoreMin))))) -> 0 | AV10: =-IF($F10="Terminated",0,IF($AA10=0,0,IF(ISNA(MATCH(AV$5,PayDedList,0)),0,MIN(IF(COUNTIFS(OverEmp,$C10,OverDeduct,AV$5,OverDate,"<"&DATE(YEAR($AC10),MONTH($AC10)+1,1),OverEnd,">="&DATE(YEAR($AC10),MONTH($AC10),1))>0,SUMPRODUCT((PayEmp=$C10)*(PayDate<=$AC10)*(OFFSET($N$6,1,MATCH(AV$5,PayDedList,0)-1,PayCount,1)))/$AA10*12*AV$3,IF(OR(AV$1="Fixed",AV$1="Not Used"),SUMPRODUCT((PayEmp=$C10)*(PayDate<=$AC10)*(OFFSET($N$6,1,MATCH(AV$5,PayDedList,0)-1,PayCount,1)))/$AA10*12*AV$3,IF(ISNA(MATCH(OFFSET($N$2,0,MATCH(AV$5,PayDedList,0)-1,1,1),EarnListItem,0))=FALSE,SUMPRODUCT((PayEmp=$C10)*(PayDate<=$AC10)*(OFFSET($N$6,1,MATCH(AV$5,PayDedList,0)-1,PayCount,1)))/$AA10*12*AV$3,(MIN(SUMPRODUCT((PayEmp=$C10)*(PayDate<=$AC10)*(ISERROR(SEARCH(PayEarnCode,AV$2)))*(PayEarnType="Monthly")*(PayEarnValues))/$AA10*12,IF(ISNUMBER(OFFSET($N$3,0,MATCH(AV$5,PayDedList,0)-1,1,1)),OFFSET($N$3,0,MATCH(AV$5,PayDedList,0)-1,1,1),IgnoreMin)))*IF(COUNTIFS(EmpNo,$C10,OFFSET(Emp!$R$4,1,MATCH(AV$5,DedListItem,0)-1,EmpCount,1),"<>")>0,VLOOKUP($C10,EmpAll,COLUMN(Emp!$R$4)+MATCH(AV$5,DedListItem,0)-1,0),OFFSET(Setup!$E$73,MATCH(AV$5,DedListItem,0),0,1,1))*AV$3))),IF(ISNUMBER(AV$4),AV$4,IgnoreMin))))) -> 0 | AW10: =-IF($F10="Terminated",0,IF($AA10=0,0,IF(ISNA(MATCH(AW$5,PayDedList,0)),0,MIN(IF(COUNTIFS(OverEmp,$C10,OverDeduct,AW$5,OverDate,"<"&DATE(YEAR($AC10),MONTH($AC10)+1,1),OverEnd,">="&DATE(YEAR($AC10),MONTH($AC10),1))>0,SUMPRODUCT((PayEmp=$C10)*(PayDate<=$AC10)*(OFFSET($N$6,1,MATCH(AW$5,PayDedList,0)-1,PayCount,1)))/$AA10*12*AW$3,IF(OR(AW$1="Fixed",AW$1="Not Used"),SUMPRODUCT((PayEmp=$C10)*(PayDate<=$AC10)*(OFFSET($N$6,1,MATCH(AW$5,PayDedList,0)-1,PayCount,1)))/$AA10*12*AW$3,IF(ISNA(MATCH(OFFSET($N$2,0,MATCH(AW$5,PayDedList,0)-1,1,1),EarnListItem,0))=FALSE,SUMPRODUCT((PayEmp=$C10)*(PayDate<=$AC10)*(OFFSET($N$6,1,MATCH(AW$5,PayDedList,0)-1,PayCount,1)))/$AA10*12*AW$3,(MIN(SUMPRODUCT((PayEmp=$C10)*(PayDate<=$AC10)*(ISERROR(SEARCH(PayEarnCode,AW$2)))*(PayEarnType="Monthly")*(PayEarnValues))/$AA10*12,IF(ISNUMBER(OFFSET($N$3,0,MATCH(AW$5,PayDedList,0)-1,1,1)),OFFSET($N$3,0,MATCH(AW$5,PayDedList,0)-1,1,1),IgnoreMin)))*IF(COUNTIFS(EmpNo,$C10,OFFSET(Emp!$R$4,1,MATCH(AW$5,DedListItem,0)-1,EmpCount,1),"<>")>0,VLOOKUP($C10,EmpAll,COLUMN(Emp!$R$4)+MATCH(AW$5,DedListItem,0)-1,0),OFFSET(Setup!$E$73,MATCH(AW$5,DedListItem,0),0,1,1))*AW$3))),IF(ISNUMBER(AW$4),AW$4,IgnoreMin))))) -> 0 | AX10: 180000 | AY10: 3600 | AZ10: =IF(ISNUMBER($AL10),($AR10*$AL10)-$AI10-$AK10,MAX(0,IF($AL10="B",IF($AR10<Setup!$C$32,($AR10*Setup!$D$32)-$AI10-$AK10,(($AR10-VLOOKUP($AR10,TaxAll2,1,1))*OFFSET(Setup!$D$32,MATCH($AR10,TaxBracket2,1),0,1,1))+OFFSET(Setup!$E$31,MATCH($AR10,TaxBracket2,1),0,1,1)-$AI10-$AK10),IF($AR10<Setup!$C$21,($AR10*Setup!$D$21)-$AI10-$AK10,(($AR10-VLOOKUP($AR10,TaxAll1,1,1))*OFFSET(Setup!$D$21,MATCH($AR10,TaxBracket1,1),0,1,1))+OFFSET(Setup!$E$20,MATCH($AR10,TaxBracket1,1),0,1,1)-$AI10-$AK10)))) -> 11445 | BA10: =IF(ISNUMBER($AL10),($AX10*$AL10)-$AI10-$AK10,MAX(0,IF($AL10="B",IF($AX10<Setup!$C$32,($AX10*Setup!$D$32)-$AI10-$AK10,(($AX10-VLOOKUP($AX10,TaxAll2,1,1))*OFFSET(Setup!$D$32,MATCH($AX10,TaxBracket2,1),0,1,1))+OFFSET(Setup!$E$31,MATCH($AX10,TaxBracket2,1),0,1,1)-$AI10-$AK10),IF($AX10<Setup!$C$21,($AX10*Setup!$D$21)-$AI10-$AK10,(($AX10-VLOOKUP($AX10,TaxAll1,1,1))*OFFSET(Setup!$D$21,MATCH($AX10,TaxBracket1,1),0,1,1))+OFFSET(Setup!$E$20,MATCH($AX10,TaxBracket1,1),0,1,1)-$AI10-$AK10)))) -> 10797 | BB10: 648 | BC10: 0.9803921569 | BD10: 0.01960784314 | BE10: 183600
A11: =IF(ROW($A11)-ROW($A$6)>EmpCount*12,"-",TEXT($B11,"yyyy")&TEXT($B11,"mm")&"-"&$C11) -> 202303-EXS005 | B11: =IF(ROW($A11)-ROW($A$6)>EmpCount*12,Setup!$D$12,DATE(YEAR(Setup!$F$12),MONTH(Setup!$F$12)+ROUNDDOWN((ROW($A11)-ROW($A$6)-1)/EmpCount,0),IF(Setup!$C$14>DAY(DATE(YEAR(Setup!$F$12),MONTH(Setup!$F$12)+ROUNDDOWN((ROW($A11)-ROW($A$6)-1)/EmpCount,0)+1,0)),DAY(DATE(YEAR(Setup!$F$12),MONTH(Setup!$F$12)+ROUNDDOWN((ROW($A11)-ROW($A$6)-1)/EmpCount,0)+1,0)),Setup!$C$14))) -> 45010 | C11: =IF(ROW($A11)-ROW($A$6)>EmpCount*12,"-",OFFSET(Emp!$A$4,ROW($A11)-ROW($A$6)-IF(ROW($A11)-ROW($A$6)>EmpCount,ROUNDDOWN((ROW($A11)-ROW($A$6)-1)/EmpCount,0)*EmpCount,0),0,1,1)) -> EXS005 | D11: =IF(ISNA(VLOOKUP($C11,EmpAll,COLUMN(Emp!$B$4),0)),"-",VLOOKUP($C11,EmpAll,COLUMN(Emp!$B$4),0)) -> Miller R | E11: =IF(ISNA(VLOOKUP($C11,EmpAll,COLUMN(Emp!$C$4),0)),"-",VLOOKUP($C11,EmpAll,COLUMN(Emp!$C$4),0)) -> S | F11: =IF(ISNA(VLOOKUP($C11,EmpAll,COLUMN(Emp!$A$4),0)),"-",IF(AND(VLOOKUP($C11,EmpAll,COLUMN(Emp!$E$4),0)<>0,VLOOKUP($C11,EmpAll,COLUMN(Emp!$E$4),0)>=DATE(YEAR($AC11),MONTH($AC11)+1,0)),"Inactive",IF(AND(VLOOKUP($C11,EmpAll,COLUMN(Emp!$F$4),0)<>0,VLOOKUP($C11,EmpAll,COLUMN(Emp!$F$4),0)<=DATE(YEAR($AC11),MONTH($AC11),0)),"Terminated","Active"))) -> Active | G11: =IF($F11<>"Active",0,IF(COUNTIFS(OverEmp,$C11,OverEarn,G$2,OverDate,"<"&DATE(YEAR($AC11),MONTH($AC11)+1,1),OverEnd,">="&DATE(YEAR($AC11),MONTH($AC11),1))>0,SUMIFS(OverValue,OverEmp,$C11,OverEarn,G$2,OverDate,"<"&DATE(YEAR($AC11),MONTH($AC11)+1,1),OverEnd,">="&DATE(YEAR($AC11),MONTH($AC11),1)),IF(AND($AC11>=Setup!$E$10,SUMIFS(EmpIncrease,EmpCode,$C11)>0),SUMIFS(EmpIncrease,EmpCode,$C11),SUMIFS(EmpSalary,EmpCode,$C11)))) -> 10000 | H11: =IF($F11<>"Active",0,IF(COUNTIFS(OverEmp,$C11,OverEarn,H$2,OverDate,"<"&DATE(YEAR($AC11),MONTH($AC11)+1,1),OverEnd,">="&DATE(YEAR($AC11),MONTH($AC11),1))>0,SUMIFS(OverValue,OverEmp,$C11,OverEarn,H$2,OverDate,"<"&DATE(YEAR($AC11),MONTH($AC11)+1,1),OverEnd,">="&DATE(YEAR($AC11),MONTH($AC11),1)),0)) -> 0 | I11: =IF($F11<>"Active",0,IF(COUNTIFS(OverEmp,$C11,OverEarn,I$2,OverDate,"<"&DATE(YEAR($AC11),MONTH($AC11)+1,1),OverEnd,">="&DATE(YEAR($AC11),MONTH($AC11),1))>0,SUMIFS(OverValue,OverEmp,$C11,OverEarn,I$2,OverDate,"<"&DATE(YEAR($AC11),MONTH($AC11)+1,1),OverEnd,">="&DATE(YEAR($AC11),MONTH($AC11),1)),IF(MONTH(B11)=Setup!$C$15,SUMIFS(EmpBonus,EmpCode,$C11),0))) -> 0 | J11: =IF($F11<>"Active",0,IF(COUNTIFS(OverEmp,$C11,OverEarn,J$2,OverDate,"<"&DATE(YEAR($AC11),MONTH($AC11)+1,1),OverEnd,">="&DATE(YEAR($AC11),MONTH($AC11),1))>0,SUMIFS(OverValue,OverEmp,$C11,OverEarn,J$2,OverDate,"<"&DATE(YEAR($AC11),MONTH($AC11)+1,1),OverEnd,">="&DATE(YEAR($AC11),MONTH($AC11),1)),0)) -> 0 | K11: =IF($F11<>"Active",0,IF(COUNTIFS(OverEmp,$C11,OverEarn,K$2,OverDate,"<"&DATE(YEAR($AC11),MONTH($AC11)+1,1),OverEnd,">="&DATE(YEAR($AC11),MONTH($AC11),1))>0,SUMIFS(OverValue,OverEmp,$C11,OverEarn,K$2,OverDate,"<"&DATE(YEAR($AC11),MONTH($AC11)+1,1),OverEnd,">="&DATE(YEAR($AC11),MONTH($AC11),1)),0)) -> 0 | L11: 10000 | M11: =IF(COUNTIFS(OverEmp,$C11,OverTax,M$5,OverDate,"<"&DATE(YEAR($AC11),MONTH($AC11)+1,1),OverEnd,">="&DATE(YEAR($AC11),MONTH($AC11),1))>0,SUMIFS(OverValue,OverEmp,$C11,OverTax,M$5,OverDate,"<"&DATE(YEAR($AC11),MONTH($AC11)+1,1),OverEnd,">="&DATE(YEAR($AC11),MONTH($AC11),1)),(($BA11/12*$AA11)+(BB11*IF(1-$BC11=0,0,BD11/(1-$BC11))))-IF($F11="Terminated",0,SUMIFS(PayTaxDeduct,PayDate,"<"&$AC11,PayEmp,$C11))) -> 0 | N11: =IF($F11="Terminated",0,IF($AA11=0,0,IF(ISNA(MATCH(N$5,DedListItem,0)),0,IF(COUNTIFS(OverEmp,$C11,OverDeduct,N$5,OverDate,"<"&DATE(YEAR($AC11),MONTH($AC11)+1,1),OverEnd,">="&DATE(YEAR($AC11),MONTH($AC11),1))>0,SUMIFS(OverValue,OverEmp,$C11,OverDeduct,N$5,OverDate,"<"&DATE(YEAR($AC11),MONTH($AC11)+1,1),OverEnd,">="&DATE(YEAR($AC11),MONTH($AC11),1)),IF(OR(N$2="Fixed",N$2="Not Used"),(IF(COUNTIFS(EmpNo,$C11,OFFSET(Emp!$R$4,1,MATCH(N$5,DedListItem,0)-1,EmpCount,1),"<>")>0,VLOOKUP($C11,EmpAll,COLUMN(Emp!$R$4)+MATCH(N$5,DedListItem,0)-1,0),OFFSET(Setup!$E$73,MATCH(N$5,DedListItem,0),0,1,1))*$AA11)-SUMIFS(OFFSET(N$6,1,0,PayCount,1),PayDate,"<"&$AC11,PayEmp,$C11),IF(ISNA(MATCH(N$2,EarnListItem,0))=FALSE,IF(OFFSET(Setup!$G$73,MATCH(N$5,DedListItem,0),0,1,1)="Taxable",SUMPRODUCT((PayEmp=$C11)*(PayDate<=$AC11)*(PayEarnCode=N$2)*(PayEarnTax)*(PayEarnValues)),SUMPRODUCT((PayEmp=$C11)*(PayDate<=$AC11)*(PayEarnCode=N$2)*(PayEarnValues)))*IF(COUNTIFS(EmpNo,$C11,OFFSET(Emp!$R$4,1,MATCH(N$5,DedListItem,0)-1,EmpCount,1),"<>")>0,VLOOKUP($C11,EmpAll,COLUMN(Emp!$R$4)+MATCH(N$5,DedListItem,0)-1,0),OFFSET(Setup!$E$73,MATCH(N$5,DedListItem,0),0,1,1)),(MIN(IF(OFFSET(Setup!$G$73,MATCH(N$5,DedListItem,0),0,1,1)="Taxable",SUMPRODUCT((PayEmp=$C11)*(PayDate<=$AC11)*(ISERROR(SEARCH(PayEarnCode,N$4)))*(PayEarnTax)*(PayEarnValues)),SUMPRODUCT((PayEmp=$C11)*(PayDate<=$AC11)*(ISERROR(SEARCH(PayEarnCode,N$4)))*(PayEarnValues))),IF(ISNUMBER(N$3),N$3/12*$AA11,IgnoreMin)))*IF(COUNTIFS(EmpNo,$C11,OFFSET(Emp!$R$4,1,MATCH(N$5,DedListItem,0)-1,EmpCount,1),"<>")>0,VLOOKUP($C11,EmpAll,COLUMN(Emp!$R$4)+MATCH(N$5,DedListItem,0)-1,0),OFFSET(Setup!$E$73,MATCH(N$5,DedListItem,0),0,1,1)))-SUMIFS(OFFSET(N$6,1,0,PayCount,1),PayDate,"<"&$AC11,PayEmp,$C11)))))) -> 100 | O11: =IF($F11="Terminated",0,IF($AA11=0,0,IF(ISNA(MATCH(O$5,DedListItem,0)),0,IF(COUNTIFS(OverEmp,$C11,OverDeduct,O$5,OverDate,"<"&DATE(YEAR($AC11),MONTH($AC11)+1,1),OverEnd,">="&DATE(YEAR($AC11),MONTH($AC11),1))>0,SUMIFS(OverValue,OverEmp,$C11,OverDeduct,O$5,OverDate,"<"&DATE(YEAR($AC11),MONTH($AC11)+1,1),OverEnd,">="&DATE(YEAR($AC11),MONTH($AC11),1)),IF(OR(O$2="Fixed",O$2="Not Used"),(IF(COUNTIFS(EmpNo,$C11,OFFSET(Emp!$R$4,1,MATCH(O$5,DedListItem,0)-1,EmpCount,1),"<>")>0,VLOOKUP($C11,EmpAll,COLUMN(Emp!$R$4)+MATCH(O$5,DedListItem,0)-1,0),OFFSET(Setup!$E$73,MATCH(O$5,DedListItem,0),0,1,1))*$AA11)-SUMIFS(OFFSET(O$6,1,0,PayCount,1),PayDate,"<"&$AC11,PayEmp,$C11),IF(ISNA(MATCH(O$2,EarnListItem,0))=FALSE,IF(OFFSET(Setup!$G$73,MATCH(O$5,DedListItem,0),0,1,1)="Taxable",SUMPRODUCT((PayEmp=$C11)*(PayDate<=$AC11)*(PayEarnCode=O$2)*(PayEarnTax)*(PayEarnValues)),SUMPRODUCT((PayEmp=$C11)*(PayDate<=$AC11)*(PayEarnCode=O$2)*(PayEarnValues)))*IF(COUNTIFS(EmpNo,$C11,OFFSET(Emp!$R$4,1,MATCH(O$5,DedListItem,0)-1,EmpCount,1),"<>")>0,VLOOKUP($C11,EmpAll,COLUMN(Emp!$R$4)+MATCH(O$5,DedListItem,0)-1,0),OFFSET(Setup!$E$73,MATCH(O$5,DedListItem,0),0,1,1)),(MIN(IF(OFFSET(Setup!$G$73,MATCH(O$5,DedListItem,0),0,1,1)="Taxable",SUMPRODUCT((PayEmp=$C11)*(PayDate<=$AC11)*(ISERROR(SEARCH(PayEarnCode,O$4)))*(PayEarnTax)*(PayEarnValues)),SUMPRODUCT((PayEmp=$C11)*(PayDate<=$AC11)*(ISERROR(SEARCH(PayEarnCode,O$4)))*(PayEarnValues))),IF(ISNUMBER(O$3),O$3/12*$AA11,IgnoreMin)))*IF(COUNTIFS(EmpNo,$C11,OFFSET(Emp!$R$4,1,MATCH(O$5,DedListItem,0)-1,EmpCount,1),"<>")>0,VLOOKUP($C11,EmpAll,COLUMN(Emp!$R$4)+MATCH(O$5,DedListItem,0)-1,0),OFFSET(Setup!$E$73,MATCH(O$5,DedListItem,0),0,1,1)))-SUMIFS(OFFSET(O$6,1,0,PayCount,1),PayDate,"<"&$AC11,PayEmp,$C11)))))) -> 0 | P11: =IF($F11="Terminated",0,IF($AA11=0,0,IF(ISNA(MATCH(P$5,DedListItem,0)),0,IF(COUNTIFS(OverEmp,$C11,OverDeduct,P$5,OverDate,"<"&DATE(YEAR($AC11),MONTH($AC11)+1,1),OverEnd,">="&DATE(YEAR($AC11),MONTH($AC11),1))>0,SUMIFS(OverValue,OverEmp,$C11,OverDeduct,P$5,OverDate,"<"&DATE(YEAR($AC11),MONTH($AC11)+1,1),OverEnd,">="&DATE(YEAR($AC11),MONTH($AC11),1)),IF(OR(P$2="Fixed",P$2="Not Used"),(IF(COUNTIFS(EmpNo,$C11,OFFSET(Emp!$R$4,1,MATCH(P$5,DedListItem,0)-1,EmpCount,1),"<>")>0,VLOOKUP($C11,EmpAll,COLUMN(Emp!$R$4)+MATCH(P$5,DedListItem,0)-1,0),OFFSET(Setup!$E$73,MATCH(P$5,DedListItem,0),0,1,1))*$AA11)-SUMIFS(OFFSET(P$6,1,0,PayCount,1),PayDate,"<"&$AC11,PayEmp,$C11),IF(ISNA(MATCH(P$2,EarnListItem,0))=FALSE,IF(OFFSET(Setup!$G$73,MATCH(P$5,DedListItem,0),0,1,1)="Taxable",SUMPRODUCT((PayEmp=$C11)*(PayDate<=$AC11)*(PayEarnCode=P$2)*(PayEarnTax)*(PayEarnValues)),SUMPRODUCT((PayEmp=$C11)*(PayDate<=$AC11)*(PayEarnCode=P$2)*(PayEarnValues)))*IF(COUNTIFS(EmpNo,$C11,OFFSET(Emp!$R$4,1,MATCH(P$5,DedListItem,0)-1,EmpCount,1),"<>")>0,VLOOKUP($C11,EmpAll,COLUMN(Emp!$R$4)+MATCH(P$5,DedListItem,0)-1,0),OFFSET(Setup!$E$73,MATCH(P$5,DedListItem,0),0,1,1)),(MIN(IF(OFFSET(Setup!$G$73,MATCH(P$5,DedListItem,0),0,1,1)="Taxable",SUMPRODUCT((PayEmp=$C11)*(PayDate<=$AC11)*(ISERROR(SEARCH(PayEarnCode,P$4)))*(PayEarnTax)*(PayEarnValues)),SUMPRODUCT((PayEmp=$C11)*(PayDate<=$AC11)*(ISERROR(SEARCH(PayEarnCode,P$4)))*(PayEarnValues))),IF(ISNUMBER(P$3),P$3/12*$AA11,IgnoreMin)))*IF(COUNTIFS(EmpNo,$C11,OFFSET(Emp!$R$4,1,MATCH(P$5,DedListItem,0)-1,EmpCount,1),"<>")>0,VLOOKUP($C11,EmpAll,COLUMN(Emp!$R$4)+MATCH(P$5,DedListItem,0)-1,0),OFFSET(Setup!$E$73,MATCH(P$5,DedListItem,0),0,1,1)))-SUMIFS(OFFSET(P$6,1,0,PayCount,1),PayDate,"<"&$AC11,PayEmp,$C11)))))) -> 0 | Q11: =IF($F11="Terminated",0,IF($AA11=0,0,IF(ISNA(MATCH(Q$5,DedListItem,0)),0,IF(COUNTIFS(OverEmp,$C11,OverDeduct,Q$5,OverDate,"<"&DATE(YEAR($AC11),MONTH($AC11)+1,1),OverEnd,">="&DATE(YEAR($AC11),MONTH($AC11),1))>0,SUMIFS(OverValue,OverEmp,$C11,OverDeduct,Q$5,OverDate,"<"&DATE(YEAR($AC11),MONTH($AC11)+1,1),OverEnd,">="&DATE(YEAR($AC11),MONTH($AC11),1)),IF(OR(Q$2="Fixed",Q$2="Not Used"),(IF(COUNTIFS(EmpNo,$C11,OFFSET(Emp!$R$4,1,MATCH(Q$5,DedListItem,0)-1,EmpCount,1),"<>")>0,VLOOKUP($C11,EmpAll,COLUMN(Emp!$R$4)+MATCH(Q$5,DedListItem,0)-1,0),OFFSET(Setup!$E$73,MATCH(Q$5,DedListItem,0),0,1,1))*$AA11)-SUMIFS(OFFSET(Q$6,1,0,PayCount,1),PayDate,"<"&$AC11,PayEmp,$C11),IF(ISNA(MATCH(Q$2,EarnListItem,0))=FALSE,IF(OFFSET(Setup!$G$73,MATCH(Q$5,DedListItem,0),0,1,1)="Taxable",SUMPRODUCT((PayEmp=$C11)*(PayDate<=$AC11)*(PayEarnCode=Q$2)*(PayEarnTax)*(PayEarnValues)),SUMPRODUCT((PayEmp=$C11)*(PayDate<=$AC11)*(PayEarnCode=Q$2)*(PayEarnValues)))*IF(COUNTIFS(EmpNo,$C11,OFFSET(Emp!$R$4,1,MATCH(Q$5,DedListItem,0)-1,EmpCount,1),"<>")>0,VLOOKUP($C11,EmpAll,COLUMN(Emp!$R$4)+MATCH(Q$5,DedListItem,0)-1,0),OFFSET(Setup!$E$73,MATCH(Q$5,DedListItem,0),0,1,1)),(MIN(IF(OFFSET(Setup!$G$73,MATCH(Q$5,DedListItem,0),0,1,1)="Taxable",SUMPRODUCT((PayEmp=$C11)*(PayDate<=$AC11)*(ISERROR(SEARCH(PayEarnCode,Q$4)))*(PayEarnTax)*(PayEarnValues)),SUMPRODUCT((PayEmp=$C11)*(PayDate<=$AC11)*(ISERROR(SEARCH(PayEarnCode,Q$4)))*(PayEarnValues))),IF(ISNUMBER(Q$3),Q$3/12*$AA11,IgnoreMin)))*IF(COUNTIFS(EmpNo,$C11,OFFSET(Emp!$R$4,1,MATCH(Q$5,DedListItem,0)-1,EmpCount,1),"<>")>0,VLOOKUP($C11,EmpAll,COLUMN(Emp!$R$4)+MATCH(Q$5,DedListItem,0)-1,0),OFFSET(Setup!$E$73,MATCH(Q$5,DedListItem,0),0,1,1)))-SUMIFS(OFFSET(Q$6,1,0,PayCount,1),PayDate,"<"&$AC11,PayEmp,$C11)))))) -> 0 | R11: 100 | S11: 9900 | T11: =IF($F11="Terminated",0,IF($AA11=0,0,IF(ISNA(MATCH(T$5,CompListItem,0)),0,IF(COUNTIFS(OverEmp,$C11,OverComp,T$5,OverDate,"<"&DATE(YEAR($AC11),MONTH($AC11)+1,1),OverEnd,">="&DATE(YEAR($AC11),MONTH($AC11),1))>0,SUMIFS(OverValue,OverEmp,$C11,OverComp,T$5,OverDate,"<"&DATE(YEAR($AC11),MONTH($AC11)+1,1),OverEnd,">="&DATE(YEAR($AC11),MONTH($AC11),1)),IF(OR(T$2="Fixed",T$2="Not Used"),(OFFSET(Setup!$E$81,MATCH(T$5,CompListItem,0),0,1,1)*$AA11)-SUMIFS(OFFSET(T$6,1,0,PayCount,1),PayDate,"<"&$AC11,PayEmp,$C11),IF(ISNA(MATCH(T$2,DedListItem,0))=FALSE,(SUMPRODUCT((PayEmp=$C11)*(PayDate<=$AC11)*(PayDedList=T$2)*(PayDedValues))*OFFSET(Setup!$E$81,MATCH(T$5,CompListItem,0),0,1,1))-SUMIFS(OFFSET(T$6,1,0,PayCount,1),PayDate,"<"&$AC11,PayEmp,$C11),(MIN(IF(OFFSET(Setup!$G$81,MATCH(T$5,CompListItem,0),0,1,1)="Taxable",SUMPRODUCT((PayEmp=$C11)*(PayDate<=$AC11)*(ISERROR(SEARCH(PayEarnCode,T$4)))*(PayEarnTax)*(PayEarnValues)),SUMPRODUCT((PayEmp=$C11)*(PayDate<=$AC11)*(ISERROR(SEARCH(PayEarnCode,T$4)))*(PayEarnValues))),IF(ISNUMBER(T$3),T$3/12*$AA11,IgnoreMin)))*OFFSET(Setup!$E$81,MATCH(T$5,CompListItem,0),0,1,1)-SUMIFS(OFFSET(T$6,1,0,PayCount,1),PayDate,"<"&$AC11,PayEmp,$C11))))))) -> 100 | U11: =IF($F11="Terminated",0,IF($AA11=0,0,IF(ISNA(MATCH(U$5,CompListItem,0)),0,IF(COUNTIFS(OverEmp,$C11,OverComp,U$5,OverDate,"<"&DATE(YEAR($AC11),MONTH($AC11)+1,1),OverEnd,">="&DATE(YEAR($AC11),MONTH($AC11),1))>0,SUMIFS(OverValue,OverEmp,$C11,OverComp,U$5,OverDate,"<"&DATE(YEAR($AC11),MONTH($AC11)+1,1),OverEnd,">="&DATE(YEAR($AC11),MONTH($AC11),1)),IF(OR(U$2="Fixed",U$2="Not Used"),(OFFSET(Setup!$E$81,MATCH(U$5,CompListItem,0),0,1,1)*$AA11)-SUMIFS(OFFSET(U$6,1,0,PayCount,1),PayDate,"<"&$AC11,PayEmp,$C11),IF(ISNA(MATCH(U$2,DedListItem,0))=FALSE,(SUMPRODUCT((PayEmp=$C11)*(PayDate<=$AC11)*(PayDedList=U$2)*(PayDedValues))*OFFSET(Setup!$E$81,MATCH(U$5,CompListItem,0),0,1,1))-SUMIFS(OFFSET(U$6,1,0,PayCount,1),PayDate,"<"&$AC11,PayEmp,$C11),(MIN(IF(OFFSET(Setup!$G$81,MATCH(U$5,CompListItem,0),0,1,1)="Taxable",SUMPRODUCT((PayEmp=$C11)*(PayDate<=$AC11)*(ISERROR(SEARCH(PayEarnCode,U$4)))*(PayEarnTax)*(PayEarnValues)),SUMPRODUCT((PayEmp=$C11)*(PayDate<=$AC11)*(ISERROR(SEARCH(PayEarnCode,U$4)))*(PayEarnValues))),IF(ISNUMBER(U$3),U$3/12*$AA11,IgnoreMin)))*OFFSET(Setup!$E$81,MATCH(U$5,CompListItem,0),0,1,1)-SUMIFS(OFFSET(U$6,1,0,PayCount,1),PayDate,"<"&$AC11,PayEmp,$C11))))))) -> 100 | V11: =IF($F11="Terminated",0,IF($AA11=0,0,IF(ISNA(MATCH(V$5,CompListItem,0)),0,IF(COUNTIFS(OverEmp,$C11,OverComp,V$5,OverDate,"<"&DATE(YEAR($AC11),MONTH($AC11)+1,1),OverEnd,">="&DATE(YEAR($AC11),MONTH($AC11),1))>0,SUMIFS(OverValue,OverEmp,$C11,OverComp,V$5,OverDate,"<"&DATE(YEAR($AC11),MONTH($AC11)+1,1),OverEnd,">="&DATE(YEAR($AC11),MONTH($AC11),1)),IF(OR(V$2="Fixed",V$2="Not Used"),(OFFSET(Setup!$E$81,MATCH(V$5,CompListItem,0),0,1,1)*$AA11)-SUMIFS(OFFSET(V$6,1,0,PayCount,1),PayDate,"<"&$AC11,PayEmp,$C11),IF(ISNA(MATCH(V$2,DedListItem,0))=FALSE,(SUMPRODUCT((PayEmp=$C11)*(PayDate<=$AC11)*(PayDedList=V$2)*(PayDedValues))*OFFSET(Setup!$E$81,MATCH(V$5,CompListItem,0),0,1,1))-SUMIFS(OFFSET(V$6,1,0,PayCount,1),PayDate,"<"&$AC11,PayEmp,$C11),(MIN(IF(OFFSET(Setup!$G$81,MATCH(V$5,CompListItem,0),0,1,1)="Taxable",SUMPRODUCT((PayEmp=$C11)*(PayDate<=$AC11)*(ISERROR(SEARCH(PayEarnCode,V$4)))*(PayEarnTax)*(PayEarnValues)),SUMPRODUCT((PayEmp=$C11)*(PayDate<=$AC11)*(ISERROR(SEARCH(PayEarnCode,V$4)))*(PayEarnValues))),IF(ISNUMBER(V$3),V$3/12*$AA11,IgnoreMin)))*OFFSET(Setup!$E$81,MATCH(V$5,CompListItem,0),0,1,1)-SUMIFS(OFFSET(V$6,1,0,PayCount,1),PayDate,"<"&$AC11,PayEmp,$C11))))))) -> 0 | W11: =IF($F11="Terminated",0,IF($AA11=0,0,IF(ISNA(MATCH(W$5,CompListItem,0)),0,IF(COUNTIFS(OverEmp,$C11,OverComp,W$5,OverDate,"<"&DATE(YEAR($AC11),MONTH($AC11)+1,1),OverEnd,">="&DATE(YEAR($AC11),MONTH($AC11),1))>0,SUMIFS(OverValue,OverEmp,$C11,OverComp,W$5,OverDate,"<"&DATE(YEAR($AC11),MONTH($AC11)+1,1),OverEnd,">="&DATE(YEAR($AC11),MONTH($AC11),1)),IF(OR(W$2="Fixed",W$2="Not Used"),(OFFSET(Setup!$E$81,MATCH(W$5,CompListItem,0),0,1,1)*$AA11)-SUMIFS(OFFSET(W$6,1,0,PayCount,1),PayDate,"<"&$AC11,PayEmp,$C11),IF(ISNA(MATCH(W$2,DedListItem,0))=FALSE,(SUMPRODUCT((PayEmp=$C11)*(PayDate<=$AC11)*(PayDedList=W$2)*(PayDedValues))*OFFSET(Setup!$E$81,MATCH(W$5,CompListItem,0),0,1,1))-SUMIFS(OFFSET(W$6,1,0,PayCount,1),PayDate,"<"&$AC11,PayEmp,$C11),(MIN(IF(OFFSET(Setup!$G$81,MATCH(W$5,CompListItem,0),0,1,1)="Taxable",SUMPRODUCT((PayEmp=$C11)*(PayDate<=$AC11)*(ISERROR(SEARCH(PayEarnCode,W$4)))*(PayEarnTax)*(PayEarnValues)),SUMPRODUCT((PayEmp=$C11)*(PayDate<=$AC11)*(ISERROR(SEARCH(PayEarnCode,W$4)))*(PayEarnValues))),IF(ISNUMBER(W$3),W$3/12*$AA11,IgnoreMin)))*OFFSET(Setup!$E$81,MATCH(W$5,CompListItem,0),0,1,1)-SUMIFS(OFFSET(W$6,1,0,PayCount,1),PayDate,"<"&$AC11,PayEmp,$C11))))))) -> 0 | X11: 200 | Y11: 10200 | Z11: 300 | AA11: =IF(OR($B11<=Setup!$E$12,$B11>=Setup!$D$12+1),0,IF($F11<>"Active",0,IF($AE11="Yes",$AB11,((YEAR($AC11)*12)+MONTH($AC11))-((YEAR($AD11)*12)+MONTH($AD11)-1)))) -> 1 | AB11: =IF(OR($B11<=Setup!$E$12,$B11>=Setup!$D$12+1),0,((YEAR($AC11)*12)+MONTH($AC11))-((YEAR(Setup!$E$12)*12)+MONTH(Setup!$E$12))) -> 1 | AC11: 45010 | AD11: =IF(ISNA(VLOOKUP($C11,EmpAll,COLUMN(Emp!$E$4),0)),$AC11,IF(VLOOKUP($C11,EmpAll,COLUMN(Emp!$E$4),0)<=Setup!$E$12,DATE(YEAR(Setup!$E$12),MONTH(Setup!$E$12)+1,1),VLOOKUP($C11,EmpAll,COLUMN(Emp!$E$4),0))) -> 2023-03-01 | AE11: =IF(ISNA(VLOOKUP($C11,EmpAll,COLUMN(Emp!$G$1),0)),"-",IF(VLOOKUP($C11,EmpAll,COLUMN(Emp!$G$1),0)=0,"-",VLOOKUP($C11,EmpAll,COLUMN(Emp!$G$1),0))) -> - | AF11: =IF(A11=PaySlip!$G$3,1,0) -> 0 | AG11: =IF(COUNTIFS(OverEmp,$C11,OverMed,"MED",OverDate,"<"&DATE(YEAR($AC11),MONTH($AC11)+1,1),OverEnd,">="&DATE(YEAR($AC11),MONTH($AC11),1))>0,SUMIFS(OverValue,OverEmp,$C11,OverMed,"MED",OverDate,"<"&DATE(YEAR($AC11),MONTH($AC11)+1,1),OverEnd,">="&DATE(YEAR($AC11),MONTH($AC11),1)),IF(ISNA(VLOOKUP($C11,EmpAll,COLUMN(Emp!$N$4),0)),0,VLOOKUP($C11,EmpAll,COLUMN(Emp!$N$4),0))) -> 1 | AH11: =VLOOKUP($AG11,MedList,COLUMN(Setup!$C$49),1) -> 364 | AI11: 4368 | AJ11: =IF(ISNA(VLOOKUP($C11,EmpAll,COLUMN(Emp!$L$4),0)),"None!",VLOOKUP($C11,EmpAll,COLUMN(Emp!$L$4),0)) -> A | AK11: 17235 | AL11: =IF(ISNA(VLOOKUP($C11,Employees[],COLUMN(Emp!$M$4),0))=TRUE,"Error!",IF(VLOOKUP($C11,Employees[],COLUMN(Emp!$M$4),0)=0,"Yes",VLOOKUP($C11,Employees[],COLUMN(Emp!$M$4),0))) -> A | AM11: 120000 | AN11: =-IF($F11="Terminated",0,IF($AA11=0,0,IF(ISNA(MATCH(AN$5,PayDedList,0)),0,MIN(IF(COUNTIFS(OverEmp,$C11,OverDeduct,AN$5,OverDate,"<"&DATE(YEAR($AC11),MONTH($AC11)+1,1),OverEnd,">="&DATE(YEAR($AC11),MONTH($AC11),1))>0,SUMPRODUCT((PayEmp=$C11)*(PayDate<=$AC11)*(OFFSET($N$6,1,MATCH(AN$5,PayDedList,0)-1,PayCount,1)))/$AA11*12*AN$3,IF(OR(AN$1="Fixed",AN$1="Not Used"),SUMPRODUCT((PayEmp=$C11)*(PayDate<=$AC11)*(OFFSET($N$6,1,MATCH(AN$5,PayDedList,0)-1,PayCount,1)))/$AA11*12*AN$3,IF(ISNA(MATCH(AN$1,EarnListItem,0))=FALSE,SUMPRODUCT((PayEmp=$C11)*(PayDate<=$AC11)*(OFFSET($N$6,1,MATCH(AN$5,PayDedList,0)-1,PayCount,1)))/$AA11*12*AN$3,(MIN(((SUMPRODUCT((PayEmp=$C11)*(PayDate<=$AC11)*(ISERROR(SEARCH(PayEarnCode,AN$2)))*(PayEarnType="Monthly")*(PayEarnValues))/$AA11*12)+(SUMPRODUCT((PayEmp=$C11)*(PayDate<=$AC11)*(ISERROR(SEARCH(PayEarnCode,AN$2)))*(PayEarnType="Quarterly")*(PayEarnValues))/MAX(1,ROUNDDOWN($AB11/3,0))*4)+(SUMPRODUCT((PayEmp=$C11)*(PayDate<=$AC11)*(ISERROR(SEARCH(PayEarnCode,AN$2)))*(PayEarnType="Bi-Annual")*(PayEarnValues))/MAX(1,ROUNDDOWN($AB11/6,0))*2)+(SUMPRODUCT((PayEmp=$C11)*(PayDate<=$AC11)*(ISERROR(SEARCH(PayEarnCode,AN$2)))*(PayEarnType="Annual")*(PayEarnValues)))),IF(ISNUMBER(OFFSET($N$3,0,MATCH(AN$5,PayDedList,0)-1,1,1)),OFFSET($N$3,0,MATCH(AN$5,PayDedList,0)-1,1,1),IgnoreMin)))*IF(COUNTIFS(EmpNo,$C11,OFFSET(Emp!$R$4,1,MATCH(AN$5,DedListItem,0)-1,EmpCount,1),"<>")>0,VLOOKUP($C11,EmpAll,COLUMN(Emp!$R$4)+MATCH(AN$5,DedListItem,0)-1,0),OFFSET(Setup!$E$73,MATCH(AN$5,DedListItem,0),0,1,1))*AN$3))),IF(ISNUMBER(AN$4),AN$4,IgnoreMin))))) -> 0 | AO11: =-IF($F11="Terminated",0,IF($AA11=0,0,IF(ISNA(MATCH(AO$5,PayDedList,0)),0,MIN(IF(COUNTIFS(OverEmp,$C11,OverDeduct,AO$5,OverDate,"<"&DATE(YEAR($AC11),MONTH($AC11)+1,1),OverEnd,">="&DATE(YEAR($AC11),MONTH($AC11),1))>0,SUMPRODUCT((PayEmp=$C11)*(PayDate<=$AC11)*(OFFSET($N$6,1,MATCH(AO$5,PayDedList,0)-1,PayCount,1)))/$AA11*12*AO$3,IF(OR(AO$1="Fixed",AO$1="Not Used"),SUMPRODUCT((PayEmp=$C11)*(PayDate<=$AC11)*(OFFSET($N$6,1,MATCH(AO$5,PayDedList,0)-1,PayCount,1)))/$AA11*12*AO$3,IF(ISNA(MATCH(AO$1,EarnListItem,0))=FALSE,SUMPRODUCT((PayEmp=$C11)*(PayDate<=$AC11)*(OFFSET($N$6,1,MATCH(AO$5,PayDedList,0)-1,PayCount,1)))/$AA11*12*AO$3,(MIN(((SUMPRODUCT((PayEmp=$C11)*(PayDate<=$AC11)*(ISERROR(SEARCH(PayEarnCode,AO$2)))*(PayEarnType="Monthly")*(PayEarnValues))/$AA11*12)+(SUMPRODUCT((PayEmp=$C11)*(PayDate<=$AC11)*(ISERROR(SEARCH(PayEarnCode,AO$2)))*(PayEarnType="Quarterly")*(PayEarnValues))/MAX(1,ROUNDDOWN($AB11/3,0))*4)+(SUMPRODUCT((PayEmp=$C11)*(PayDate<=$AC11)*(ISERROR(SEARCH(PayEarnCode,AO$2)))*(PayEarnType="Bi-Annual")*(PayEarnValues))/MAX(1,ROUNDDOWN($AB11/6,0))*2)+(SUMPRODUCT((PayEmp=$C11)*(PayDate<=$AC11)*(ISERROR(SEARCH(PayEarnCode,AO$2)))*(PayEarnType="Annual")*(PayEarnValues)))),IF(ISNUMBER(OFFSET($N$3,0,MATCH(AO$5,PayDedList,0)-1,1,1)),OFFSET($N$3,0,MATCH(AO$5,PayDedList,0)-1,1,1),IgnoreMin)))*IF(COUNTIFS(EmpNo,$C11,OFFSET(Emp!$R$4,1,MATCH(AO$5,DedListItem,0)-1,EmpCount,1),"<>")>0,VLOOKUP($C11,EmpAll,COLUMN(Emp!$R$4)+MATCH(AO$5,DedListItem,0)-1,0),OFFSET(Setup!$E$73,MATCH(AO$5,DedListItem,0),0,1,1))*AO$3))),IF(ISNUMBER(AO$4),AO$4,IgnoreMin))))) -> 0 | AP11: =-IF($F11="Terminated",0,IF($AA11=0,0,IF(ISNA(MATCH(AP$5,PayDedList,0)),0,MIN(IF(COUNTIFS(OverEmp,$C11,OverDeduct,AP$5,OverDate,"<"&DATE(YEAR($AC11),MONTH($AC11)+1,1),OverEnd,">="&DATE(YEAR($AC11),MONTH($AC11),1))>0,SUMPRODUCT((PayEmp=$C11)*(PayDate<=$AC11)*(OFFSET($N$6,1,MATCH(AP$5,PayDedList,0)-1,PayCount,1)))/$AA11*12*AP$3,IF(OR(AP$1="Fixed",AP$1="Not Used"),SUMPRODUCT((PayEmp=$C11)*(PayDate<=$AC11)*(OFFSET($N$6,1,MATCH(AP$5,PayDedList,0)-1,PayCount,1)))/$AA11*12*AP$3,IF(ISNA(MATCH(AP$1,EarnListItem,0))=FALSE,SUMPRODUCT((PayEmp=$C11)*(PayDate<=$AC11)*(OFFSET($N$6,1,MATCH(AP$5,PayDedList,0)-1,PayCount,1)))/$AA11*12*AP$3,(MIN(((SUMPRODUCT((PayEmp=$C11)*(PayDate<=$AC11)*(ISERROR(SEARCH(PayEarnCode,AP$2)))*(PayEarnType="Monthly")*(PayEarnValues))/$AA11*12)+(SUMPRODUCT((PayEmp=$C11)*(PayDate<=$AC11)*(ISERROR(SEARCH(PayEarnCode,AP$2)))*(PayEarnType="Quarterly")*(PayEarnValues))/MAX(1,ROUNDDOWN($AB11/3,0))*4)+(SUMPRODUCT((PayEmp=$C11)*(PayDate<=$AC11)*(ISERROR(SEARCH(PayEarnCode,AP$2)))*(PayEarnType="Bi-Annual")*(PayEarnValues))/MAX(1,ROUNDDOWN($AB11/6,0))*2)+(SUMPRODUCT((PayEmp=$C11)*(PayDate<=$AC11)*(ISERROR(SEARCH(PayEarnCode,AP$2)))*(PayEarnType="Annual")*(PayEarnValues)))),IF(ISNUMBER(OFFSET($N$3,0,MATCH(AP$5,PayDedList,0)-1,1,1)),OFFSET($N$3,0,MATCH(AP$5,PayDedList,0)-1,1,1),IgnoreMin)))*IF(COUNTIFS(EmpNo,$C11,OFFSET(Emp!$R$4,1,MATCH(AP$5,DedListItem,0)-1,EmpCount,1),"<>")>0,VLOOKUP($C11,EmpAll,COLUMN(Emp!$R$4)+MATCH(AP$5,DedListItem,0)-1,0),OFFSET(Setup!$E$73,MATCH(AP$5,DedListItem,0),0,1,1))*AP$3))),IF(ISNUMBER(AP$4),AP$4,IgnoreMin))))) -> 0 | AQ11: =-IF($F11="Terminated",0,IF($AA11=0,0,IF(ISNA(MATCH(AQ$5,PayDedList,0)),0,MIN(IF(COUNTIFS(OverEmp,$C11,OverDeduct,AQ$5,OverDate,"<"&DATE(YEAR($AC11),MONTH($AC11)+1,1),OverEnd,">="&DATE(YEAR($AC11),MONTH($AC11),1))>0,SUMPRODUCT((PayEmp=$C11)*(PayDate<=$AC11)*(OFFSET($N$6,1,MATCH(AQ$5,PayDedList,0)-1,PayCount,1)))/$AA11*12*AQ$3,IF(OR(AQ$1="Fixed",AQ$1="Not Used"),SUMPRODUCT((PayEmp=$C11)*(PayDate<=$AC11)*(OFFSET($N$6,1,MATCH(AQ$5,PayDedList,0)-1,PayCount,1)))/$AA11*12*AQ$3,IF(ISNA(MATCH(AQ$1,EarnListItem,0))=FALSE,SUMPRODUCT((PayEmp=$C11)*(PayDate<=$AC11)*(OFFSET($N$6,1,MATCH(AQ$5,PayDedList,0)-1,PayCount,1)))/$AA11*12*AQ$3,(MIN(((SUMPRODUCT((PayEmp=$C11)*(PayDate<=$AC11)*(ISERROR(SEARCH(PayEarnCode,AQ$2)))*(PayEarnType="Monthly")*(PayEarnValues))/$AA11*12)+(SUMPRODUCT((PayEmp=$C11)*(PayDate<=$AC11)*(ISERROR(SEARCH(PayEarnCode,AQ$2)))*(PayEarnType="Quarterly")*(PayEarnValues))/MAX(1,ROUNDDOWN($AB11/3,0))*4)+(SUMPRODUCT((PayEmp=$C11)*(PayDate<=$AC11)*(ISERROR(SEARCH(PayEarnCode,AQ$2)))*(PayEarnType="Bi-Annual")*(PayEarnValues))/MAX(1,ROUNDDOWN($AB11/6,0))*2)+(SUMPRODUCT((PayEmp=$C11)*(PayDate<=$AC11)*(ISERROR(SEARCH(PayEarnCode,AQ$2)))*(PayEarnType="Annual")*(PayEarnValues)))),IF(ISNUMBER(OFFSET($N$3,0,MATCH(AQ$5,PayDedList,0)-1,1,1)),OFFSET($N$3,0,MATCH(AQ$5,PayDedList,0)-1,1,1),IgnoreMin)))*IF(COUNTIFS(EmpNo,$C11,OFFSET(Emp!$R$4,1,MATCH(AQ$5,DedListItem,0)-1,EmpCount,1),"<>")>0,VLOOKUP($C11,EmpAll,COLUMN(Emp!$R$4)+MATCH(AQ$5,DedListItem,0)-1,0),OFFSET(Setup!$E$73,MATCH(AQ$5,DedListItem,0),0,1,1))*AQ$3))),IF(ISNUMBER(AQ$4),AQ$4,IgnoreMin))))) -> 0 | AR11: 120000 | AS11: 120000 | AT11: =-IF($F11="Terminated",0,IF($AA11=0,0,IF(ISNA(MATCH(AT$5,PayDedList,0)),0,MIN(IF(COUNTIFS(OverEmp,$C11,OverDeduct,AT$5,OverDate,"<"&DATE(YEAR($AC11),MONTH($AC11)+1,1),OverEnd,">="&DATE(YEAR($AC11),MONTH($AC11),1))>0,SUMPRODUCT((PayEmp=$C11)*(PayDate<=$AC11)*(OFFSET($N$6,1,MATCH(AT$5,PayDedList,0)-1,PayCount,1)))/$AA11*12*AT$3,IF(OR(AT$1="Fixed",AT$1="Not Used"),SUMPRODUCT((PayEmp=$C11)*(PayDate<=$AC11)*(OFFSET($N$6,1,MATCH(AT$5,PayDedList,0)-1,PayCount,1)))/$AA11*12*AT$3,IF(ISNA(MATCH(OFFSET($N$2,0,MATCH(AT$5,PayDedList,0)-1,1,1),EarnListItem,0))=FALSE,SUMPRODUCT((PayEmp=$C11)*(PayDate<=$AC11)*(OFFSET($N$6,1,MATCH(AT$5,PayDedList,0)-1,PayCount,1)))/$AA11*12*AT$3,(MIN(SUMPRODUCT((PayEmp=$C11)*(PayDate<=$AC11)*(ISERROR(SEARCH(PayEarnCode,AT$2)))*(PayEarnType="Monthly")*(PayEarnValues))/$AA11*12,IF(ISNUMBER(OFFSET($N$3,0,MATCH(AT$5,PayDedList,0)-1,1,1)),OFFSET($N$3,0,MATCH(AT$5,PayDedList,0)-1,1,1),IgnoreMin)))*IF(COUNTIFS(EmpNo,$C11,OFFSET(Emp!$R$4,1,MATCH(AT$5,DedListItem,0)-1,EmpCount,1),"<>")>0,VLOOKUP($C11,EmpAll,COLUMN(Emp!$R$4)+MATCH(AT$5,DedListItem,0)-1,0),OFFSET(Setup!$E$73,MATCH(AT$5,DedListItem,0),0,1,1))*AT$3))),IF(ISNUMBER(AT$4),AT$4,IgnoreMin))))) -> 0 | AU11: =-IF($F11="Terminated",0,IF($AA11=0,0,IF(ISNA(MATCH(AU$5,PayDedList,0)),0,MIN(IF(COUNTIFS(OverEmp,$C11,OverDeduct,AU$5,OverDate,"<"&DATE(YEAR($AC11),MONTH($AC11)+1,1),OverEnd,">="&DATE(YEAR($AC11),MONTH($AC11),1))>0,SUMPRODUCT((PayEmp=$C11)*(PayDate<=$AC11)*(OFFSET($N$6,1,MATCH(AU$5,PayDedList,0)-1,PayCount,1)))/$AA11*12*AU$3,IF(OR(AU$1="Fixed",AU$1="Not Used"),SUMPRODUCT((PayEmp=$C11)*(PayDate<=$AC11)*(OFFSET($N$6,1,MATCH(AU$5,PayDedList,0)-1,PayCount,1)))/$AA11*12*AU$3,IF(ISNA(MATCH(OFFSET($N$2,0,MATCH(AU$5,PayDedList,0)-1,1,1),EarnListItem,0))=FALSE,SUMPRODUCT((PayEmp=$C11)*(PayDate<=$AC11)*(OFFSET($N$6,1,MATCH(AU$5,PayDedList,0)-1,PayCount,1)))/$AA11*12*AU$3,(MIN(SUMPRODUCT((PayEmp=$C11)*(PayDate<=$AC11)*(ISERROR(SEARCH(PayEarnCode,AU$2)))*(PayEarnType="Monthly")*(PayEarnValues))/$AA11*12,IF(ISNUMBER(OFFSET($N$3,0,MATCH(AU$5,PayDedList,0)-1,1,1)),OFFSET($N$3,0,MATCH(AU$5,PayDedList,0)-1,1,1),IgnoreMin)))*IF(COUNTIFS(EmpNo,$C11,OFFSET(Emp!$R$4,1,MATCH(AU$5,DedListItem,0)-1,EmpCount,1),"<>")>0,VLOOKUP($C11,EmpAll,COLUMN(Emp!$R$4)+MATCH(AU$5,DedListItem,0)-1,0),OFFSET(Setup!$E$73,MATCH(AU$5,DedListItem,0),0,1,1))*AU$3))),IF(ISNUMBER(AU$4),AU$4,IgnoreMin))))) -> 0 | AV11: =-IF($F11="Terminated",0,IF($AA11=0,0,IF(ISNA(MATCH(AV$5,PayDedList,0)),0,MIN(IF(COUNTIFS(OverEmp,$C11,OverDeduct,AV$5,OverDate,"<"&DATE(YEAR($AC11),MONTH($AC11)+1,1),OverEnd,">="&DATE(YEAR($AC11),MONTH($AC11),1))>0,SUMPRODUCT((PayEmp=$C11)*(PayDate<=$AC11)*(OFFSET($N$6,1,MATCH(AV$5,PayDedList,0)-1,PayCount,1)))/$AA11*12*AV$3,IF(OR(AV$1="Fixed",AV$1="Not Used"),SUMPRODUCT((PayEmp=$C11)*(PayDate<=$AC11)*(OFFSET($N$6,1,MATCH(AV$5,PayDedList,0)-1,PayCount,1)))/$AA11*12*AV$3,IF(ISNA(MATCH(OFFSET($N$2,0,MATCH(AV$5,PayDedList,0)-1,1,1),EarnListItem,0))=FALSE,SUMPRODUCT((PayEmp=$C11)*(PayDate<=$AC11)*(OFFSET($N$6,1,MATCH(AV$5,PayDedList,0)-1,PayCount,1)))/$AA11*12*AV$3,(MIN(SUMPRODUCT((PayEmp=$C11)*(PayDate<=$AC11)*(ISERROR(SEARCH(PayEarnCode,AV$2)))*(PayEarnType="Monthly")*(PayEarnValues))/$AA11*12,IF(ISNUMBER(OFFSET($N$3,0,MATCH(AV$5,PayDedList,0)-1,1,1)),OFFSET($N$3,0,MATCH(AV$5,PayDedList,0)-1,1,1),IgnoreMin)))*IF(COUNTIFS(EmpNo,$C11,OFFSET(Emp!$R$4,1,MATCH(AV$5,DedListItem,0)-1,EmpCount,1),"<>")>0,VLOOKUP($C11,EmpAll,COLUMN(Emp!$R$4)+MATCH(AV$5,DedListItem,0)-1,0),OFFSET(Setup!$E$73,MATCH(AV$5,DedListItem,0),0,1,1))*AV$3))),IF(ISNUMBER(AV$4),AV$4,IgnoreMin))))) -> 0 | AW11: =-IF($F11="Terminated",0,IF($AA11=0,0,IF(ISNA(MATCH(AW$5,PayDedList,0)),0,MIN(IF(COUNTIFS(OverEmp,$C11,OverDeduct,AW$5,OverDate,"<"&DATE(YEAR($AC11),MONTH($AC11)+1,1),OverEnd,">="&DATE(YEAR($AC11),MONTH($AC11),1))>0,SUMPRODUCT((PayEmp=$C11)*(PayDate<=$AC11)*(OFFSET($N$6,1,MATCH(AW$5,PayDedList,0)-1,PayCount,1)))/$AA11*12*AW$3,IF(OR(AW$1="Fixed",AW$1="Not Used"),SUMPRODUCT((PayEmp=$C11)*(PayDate<=$AC11)*(OFFSET($N$6,1,MATCH(AW$5,PayDedList,0)-1,PayCount,1)))/$AA11*12*AW$3,IF(ISNA(MATCH(OFFSET($N$2,0,MATCH(AW$5,PayDedList,0)-1,1,1),EarnListItem,0))=FALSE,SUMPRODUCT((PayEmp=$C11)*(PayDate<=$AC11)*(OFFSET($N$6,1,MATCH(AW$5,PayDedList,0)-1,PayCount,1)))/$AA11*12*AW$3,(MIN(SUMPRODUCT((PayEmp=$C11)*(PayDate<=$AC11)*(ISERROR(SEARCH(PayEarnCode,AW$2)))*(PayEarnType="Monthly")*(PayEarnValues))/$AA11*12,IF(ISNUMBER(OFFSET($N$3,0,MATCH(AW$5,PayDedList,0)-1,1,1)),OFFSET($N$3,0,MATCH(AW$5,PayDedList,0)-1,1,1),IgnoreMin)))*IF(COUNTIFS(EmpNo,$C11,OFFSET(Emp!$R$4,1,MATCH(AW$5,DedListItem,0)-1,EmpCount,1),"<>")>0,VLOOKUP($C11,EmpAll,COLUMN(Emp!$R$4)+MATCH(AW$5,DedListItem,0)-1,0),OFFSET(Setup!$E$73,MATCH(AW$5,DedListItem,0),0,1,1))*AW$3))),IF(ISNUMBER(AW$4),AW$4,IgnoreMin))))) -> 0 | AX11: 120000 | AY11: 0 | AZ11: =IF(ISNUMBER($AL11),($AR11*$AL11)-$AI11-$AK11,MAX(0,IF($AL11="B",IF($AR11<Setup!$C$32,($AR11*Setup!$D$32)-$AI11-$AK11,(($AR11-VLOOKUP($AR11,TaxAll2,1,1))*OFFSET(Setup!$D$32,MATCH($AR11,TaxBracket2,1),0,1,1))+OFFSET(Setup!$E$31,MATCH($AR11,TaxBracket2,1),0,1,1)-$AI11-$AK11),IF($AR11<Setup!$C$21,($AR11*Setup!$D$21)-$AI11-$AK11,(($AR11-VLOOKUP($AR11,TaxAll1,1,1))*OFFSET(Setup!$D$21,MATCH($AR11,TaxBracket1,1),0,1,1))+OFFSET(Setup!$E$20,MATCH($AR11,TaxBracket1,1),0,1,1)-$AI11-$AK11)))) -> 0 | BA11: =IF(ISNUMBER($AL11),($AX11*$AL11)-$AI11-$AK11,MAX(0,IF($AL11="B",IF($AX11<Setup!$C$32,($AX11*Setup!$D$32)-$AI11-$AK11,(($AX11-VLOOKUP($AX11,TaxAll2,1,1))*OFFSET(Setup!$D$32,MATCH($AX11,TaxBracket2,1),0,1,1))+OFFSET(Setup!$E$31,MATCH($AX11,TaxBracket2,1),0,1,1)-$AI11-$AK11),IF($AX11<Setup!$C$21,($AX11*Setup!$D$21)-$AI11-$AK11,(($AX11-VLOOKUP($AX11,TaxAll1,1,1))*OFFSET(Setup!$D$21,MATCH($AX11,TaxBracket1,1),0,1,1))+OFFSET(Setup!$E$20,MATCH($AX11,TaxBracket1,1),0,1,1)-$AI11-$AK11)))) -> 0 | BB11: 0 | BC11: 1 | BD11: 0 | BE11: 120000
A12: =IF(ROW($A12)-ROW($A$6)>EmpCount*12,"-",TEXT($B12,"yyyy")&TEXT($B12,"mm")&"-"&$C12) -> 202303-EXS006 | B12: =IF(ROW($A12)-ROW($A$6)>EmpCount*12,Setup!$D$12,DATE(YEAR(Setup!$F$12),MONTH(Setup!$F$12)+ROUNDDOWN((ROW($A12)-ROW($A$6)-1)/EmpCount,0),IF(Setup!$C$14>DAY(DATE(YEAR(Setup!$F$12),MONTH(Setup!$F$12)+ROUNDDOWN((ROW($A12)-ROW($A$6)-1)/EmpCount,0)+1,0)),DAY(DATE(YEAR(Setup!$F$12),MONTH(Setup!$F$12)+ROUNDDOWN((ROW($A12)-ROW($A$6)-1)/EmpCount,0)+1,0)),Setup!$C$14))) -> 45010 | C12: =IF(ROW($A12)-ROW($A$6)>EmpCount*12,"-",OFFSET(Emp!$A$4,ROW($A12)-ROW($A$6)-IF(ROW($A12)-ROW($A$6)>EmpCount,ROUNDDOWN((ROW($A12)-ROW($A$6)-1)/EmpCount,0)*EmpCount,0),0,1,1)) -> EXS006 | D12: =IF(ISNA(VLOOKUP($C12,EmpAll,COLUMN(Emp!$B$4),0)),"-",VLOOKUP($C12,EmpAll,COLUMN(Emp!$B$4),0)) -> Andrews MS | E12: =IF(ISNA(VLOOKUP($C12,EmpAll,COLUMN(Emp!$C$4),0)),"-",VLOOKUP($C12,EmpAll,COLUMN(Emp!$C$4),0)) -> S | F12: =IF(ISNA(VLOOKUP($C12,EmpAll,COLUMN(Emp!$A$4),0)),"-",IF(AND(VLOOKUP($C12,EmpAll,COLUMN(Emp!$E$4),0)<>0,VLOOKUP($C12,EmpAll,COLUMN(Emp!$E$4),0)>=DATE(YEAR($AC12),MONTH($AC12)+1,0)),"Inactive",IF(AND(VLOOKUP($C12,EmpAll,COLUMN(Emp!$F$4),0)<>0,VLOOKUP($C12,EmpAll,COLUMN(Emp!$F$4),0)<=DATE(YEAR($AC12),MONTH($AC12),0)),"Terminated","Active"))) -> Active | G12: =IF($F12<>"Active",0,IF(COUNTIFS(OverEmp,$C12,OverEarn,G$2,OverDate,"<"&DATE(YEAR($AC12),MONTH($AC12)+1,1),OverEnd,">="&DATE(YEAR($AC12),MONTH($AC12),1))>0,SUMIFS(OverValue,OverEmp,$C12,OverEarn,G$2,OverDate,"<"&DATE(YEAR($AC12),MONTH($AC12)+1,1),OverEnd,">="&DATE(YEAR($AC12),MONTH($AC12),1)),IF(AND($AC12>=Setup!$E$10,SUMIFS(EmpIncrease,EmpCode,$C12)>0),SUMIFS(EmpIncrease,EmpCode,$C12),SUMIFS(EmpSalary,EmpCode,$C12)))) -> 10000 | H12: =IF($F12<>"Active",0,IF(COUNTIFS(OverEmp,$C12,OverEarn,H$2,OverDate,"<"&DATE(YEAR($AC12),MONTH($AC12)+1,1),OverEnd,">="&DATE(YEAR($AC12),MONTH($AC12),1))>0,SUMIFS(OverValue,OverEmp,$C12,OverEarn,H$2,OverDate,"<"&DATE(YEAR($AC12),MONTH($AC12)+1,1),OverEnd,">="&DATE(YEAR($AC12),MONTH($AC12),1)),0)) -> 0 | I12: =IF($F12<>"Active",0,IF(COUNTIFS(OverEmp,$C12,OverEarn,I$2,OverDate,"<"&DATE(YEAR($AC12),MONTH($AC12)+1,1),OverEnd,">="&DATE(YEAR($AC12),MONTH($AC12),1))>0,SUMIFS(OverValue,OverEmp,$C12,OverEarn,I$2,OverDate,"<"&DATE(YEAR($AC12),MONTH($AC12)+1,1),OverEnd,">="&DATE(YEAR($AC12),MONTH($AC12),1)),IF(MONTH(B12)=Setup!$C$15,SUMIFS(EmpBonus,EmpCode,$C12),0))) -> 0 | J12: =IF($F12<>"Active",0,IF(COUNTIFS(OverEmp,$C12,OverEarn,J$2,OverDate,"<"&DATE(YEAR($AC12),MONTH($AC12)+1,1),OverEnd,">="&DATE(YEAR($AC12),MONTH($AC12),1))>0,SUMIFS(OverValue,OverEmp,$C12,OverEarn,J$2,OverDate,"<"&DATE(YEAR($AC12),MONTH($AC12)+1,1),OverEnd,">="&DATE(YEAR($AC12),MONTH($AC12),1)),0)) -> 0 | K12: =IF($F12<>"Active",0,IF(COUNTIFS(OverEmp,$C12,OverEarn,K$2,OverDate,"<"&DATE(YEAR($AC12),MONTH($AC12)+1,1),OverEnd,">="&DATE(YEAR($AC12),MONTH($AC12),1))>0,SUMIFS(OverValue,OverEmp,$C12,OverEarn,K$2,OverDate,"<"&DATE(YEAR($AC12),MONTH($AC12)+1,1),OverEnd,">="&DATE(YEAR($AC12),MONTH($AC12),1)),0)) -> 0 | L12: 10000 | M12: =IF(COUNTIFS(OverEmp,$C12,OverTax,M$5,OverDate,"<"&DATE(YEAR($AC12),MONTH($AC12)+1,1),OverEnd,">="&DATE(YEAR($AC12),MONTH($AC12),1))>0,SUMIFS(OverValue,OverEmp,$C12,OverTax,M$5,OverDate,"<"&DATE(YEAR($AC12),MONTH($AC12)+1,1),OverEnd,">="&DATE(YEAR($AC12),MONTH($AC12),1)),(($BA12/12*$AA12)+(BB12*IF(1-$BC12=0,0,BD12/(1-$BC12))))-IF($F12="Terminated",0,SUMIFS(PayTaxDeduct,PayDate,"<"&$AC12,PayEmp,$C12))) -> 0 | N12: =IF($F12="Terminated",0,IF($AA12=0,0,IF(ISNA(MATCH(N$5,DedListItem,0)),0,IF(COUNTIFS(OverEmp,$C12,OverDeduct,N$5,OverDate,"<"&DATE(YEAR($AC12),MONTH($AC12)+1,1),OverEnd,">="&DATE(YEAR($AC12),MONTH($AC12),1))>0,SUMIFS(OverValue,OverEmp,$C12,OverDeduct,N$5,OverDate,"<"&DATE(YEAR($AC12),MONTH($AC12)+1,1),OverEnd,">="&DATE(YEAR($AC12),MONTH($AC12),1)),IF(OR(N$2="Fixed",N$2="Not Used"),(IF(COUNTIFS(EmpNo,$C12,OFFSET(Emp!$R$4,1,MATCH(N$5,DedListItem,0)-1,EmpCount,1),"<>")>0,VLOOKUP($C12,EmpAll,COLUMN(Emp!$R$4)+MATCH(N$5,DedListItem,0)-1,0),OFFSET(Setup!$E$73,MATCH(N$5,DedListItem,0),0,1,1))*$AA12)-SUMIFS(OFFSET(N$6,1,0,PayCount,1),PayDate,"<"&$AC12,PayEmp,$C12),IF(ISNA(MATCH(N$2,EarnListItem,0))=FALSE,IF(OFFSET(Setup!$G$73,MATCH(N$5,DedListItem,0),0,1,1)="Taxable",SUMPRODUCT((PayEmp=$C12)*(PayDate<=$AC12)*(PayEarnCode=N$2)*(PayEarnTax)*(PayEarnValues)),SUMPRODUCT((PayEmp=$C12)*(PayDate<=$AC12)*(PayEarnCode=N$2)*(PayEarnValues)))*IF(COUNTIFS(EmpNo,$C12,OFFSET(Emp!$R$4,1,MATCH(N$5,DedListItem,0)-1,EmpCount,1),"<>")>0,VLOOKUP($C12,EmpAll,COLUMN(Emp!$R$4)+MATCH(N$5,DedListItem,0)-1,0),OFFSET(Setup!$E$73,MATCH(N$5,DedListItem,0),0,1,1)),(MIN(IF(OFFSET(Setup!$G$73,MATCH(N$5,DedListItem,0),0,1,1)="Taxable",SUMPRODUCT((PayEmp=$C12)*(PayDate<=$AC12)*(ISERROR(SEARCH(PayEarnCode,N$4)))*(PayEarnTax)*(PayEarnValues)),SUMPRODUCT((PayEmp=$C12)*(PayDate<=$AC12)*(ISERROR(SEARCH(PayEarnCode,N$4)))*(PayEarnValues))),IF(ISNUMBER(N$3),N$3/12*$AA12,IgnoreMin)))*IF(COUNTIFS(EmpNo,$C12,OFFSET(Emp!$R$4,1,MATCH(N$5,DedListItem,0)-1,EmpCount,1),"<>")>0,VLOOKUP($C12,EmpAll,COLUMN(Emp!$R$4)+MATCH(N$5,DedListItem,0)-1,0),OFFSET(Setup!$E$73,MATCH(N$5,DedListItem,0),0,1,1)))-SUMIFS(OFFSET(N$6,1,0,PayCount,1),PayDate,"<"&$AC12,PayEmp,$C12)))))) -> 100 | O12: =IF($F12="Terminated",0,IF($AA12=0,0,IF(ISNA(MATCH(O$5,DedListItem,0)),0,IF(COUNTIFS(OverEmp,$C12,OverDeduct,O$5,OverDate,"<"&DATE(YEAR($AC12),MONTH($AC12)+1,1),OverEnd,">="&DATE(YEAR($AC12),MONTH($AC12),1))>0,SUMIFS(OverValue,OverEmp,$C12,OverDeduct,O$5,OverDate,"<"&DATE(YEAR($AC12),MONTH($AC12)+1,1),OverEnd,">="&DATE(YEAR($AC12),MONTH($AC12),1)),IF(OR(O$2="Fixed",O$2="Not Used"),(IF(COUNTIFS(EmpNo,$C12,OFFSET(Emp!$R$4,1,MATCH(O$5,DedListItem,0)-1,EmpCount,1),"<>")>0,VLOOKUP($C12,EmpAll,COLUMN(Emp!$R$4)+MATCH(O$5,DedListItem,0)-1,0),OFFSET(Setup!$E$73,MATCH(O$5,DedListItem,0),0,1,1))*$AA12)-SUMIFS(OFFSET(O$6,1,0,PayCount,1),PayDate,"<"&$AC12,PayEmp,$C12),IF(ISNA(MATCH(O$2,EarnListItem,0))=FALSE,IF(OFFSET(Setup!$G$73,MATCH(O$5,DedListItem,0),0,1,1)="Taxable",SUMPRODUCT((PayEmp=$C12)*(PayDate<=$AC12)*(PayEarnCode=O$2)*(PayEarnTax)*(PayEarnValues)),SUMPRODUCT((PayEmp=$C12)*(PayDate<=$AC12)*(PayEarnCode=O$2)*(PayEarnValues)))*IF(COUNTIFS(EmpNo,$C12,OFFSET(Emp!$R$4,1,MATCH(O$5,DedListItem,0)-1,EmpCount,1),"<>")>0,VLOOKUP($C12,EmpAll,COLUMN(Emp!$R$4)+MATCH(O$5,DedListItem,0)-1,0),OFFSET(Setup!$E$73,MATCH(O$5,DedListItem,0),0,1,1)),(MIN(IF(OFFSET(Setup!$G$73,MATCH(O$5,DedListItem,0),0,1,1)="Taxable",SUMPRODUCT((PayEmp=$C12)*(PayDate<=$AC12)*(ISERROR(SEARCH(PayEarnCode,O$4)))*(PayEarnTax)*(PayEarnValues)),SUMPRODUCT((PayEmp=$C12)*(PayDate<=$AC12)*(ISERROR(SEARCH(PayEarnCode,O$4)))*(PayEarnValues))),IF(ISNUMBER(O$3),O$3/12*$AA12,IgnoreMin)))*IF(COUNTIFS(EmpNo,$C12,OFFSET(Emp!$R$4,1,MATCH(O$5,DedListItem,0)-1,EmpCount,1),"<>")>0,VLOOKUP($C12,EmpAll,COLUMN(Emp!$R$4)+MATCH(O$5,DedListItem,0)-1,0),OFFSET(Setup!$E$73,MATCH(O$5,DedListItem,0),0,1,1)))-SUMIFS(OFFSET(O$6,1,0,PayCount,1),PayDate,"<"&$AC12,PayEmp,$C12)))))) -> 0 | P12: =IF($F12="Terminated",0,IF($AA12=0,0,IF(ISNA(MATCH(P$5,DedListItem,0)),0,IF(COUNTIFS(OverEmp,$C12,OverDeduct,P$5,OverDate,"<"&DATE(YEAR($AC12),MONTH($AC12)+1,1),OverEnd,">="&DATE(YEAR($AC12),MONTH($AC12),1))>0,SUMIFS(OverValue,OverEmp,$C12,OverDeduct,P$5,OverDate,"<"&DATE(YEAR($AC12),MONTH($AC12)+1,1),OverEnd,">="&DATE(YEAR($AC12),MONTH($AC12),1)),IF(OR(P$2="Fixed",P$2="Not Used"),(IF(COUNTIFS(EmpNo,$C12,OFFSET(Emp!$R$4,1,MATCH(P$5,DedListItem,0)-1,EmpCount,1),"<>")>0,VLOOKUP($C12,EmpAll,COLUMN(Emp!$R$4)+MATCH(P$5,DedListItem,0)-1,0),OFFSET(Setup!$E$73,MATCH(P$5,DedListItem,0),0,1,1))*$AA12)-SUMIFS(OFFSET(P$6,1,0,PayCount,1),PayDate,"<"&$AC12,PayEmp,$C12),IF(ISNA(MATCH(P$2,EarnListItem,0))=FALSE,IF(OFFSET(Setup!$G$73,MATCH(P$5,DedListItem,0),0,1,1)="Taxable",SUMPRODUCT((PayEmp=$C12)*(PayDate<=$AC12)*(PayEarnCode=P$2)*(PayEarnTax)*(PayEarnValues)),SUMPRODUCT((PayEmp=$C12)*(PayDate<=$AC12)*(PayEarnCode=P$2)*(PayEarnValues)))*IF(COUNTIFS(EmpNo,$C12,OFFSET(Emp!$R$4,1,MATCH(P$5,DedListItem,0)-1,EmpCount,1),"<>")>0,VLOOKUP($C12,EmpAll,COLUMN(Emp!$R$4)+MATCH(P$5,DedListItem,0)-1,0),OFFSET(Setup!$E$73,MATCH(P$5,DedListItem,0),0,1,1)),(MIN(IF(OFFSET(Setup!$G$73,MATCH(P$5,DedListItem,0),0,1,1)="Taxable",SUMPRODUCT((PayEmp=$C12)*(PayDate<=$AC12)*(ISERROR(SEARCH(PayEarnCode,P$4)))*(PayEarnTax)*(PayEarnValues)),SUMPRODUCT((PayEmp=$C12)*(PayDate<=$AC12)*(ISERROR(SEARCH(PayEarnCode,P$4)))*(PayEarnValues))),IF(ISNUMBER(P$3),P$3/12*$AA12,IgnoreMin)))*IF(COUNTIFS(EmpNo,$C12,OFFSET(Emp!$R$4,1,MATCH(P$5,DedListItem,0)-1,EmpCount,1),"<>")>0,VLOOKUP($C12,EmpAll,COLUMN(Emp!$R$4)+MATCH(P$5,DedListItem,0)-1,0),OFFSET(Setup!$E$73,MATCH(P$5,DedListItem,0),0,1,1)))-SUMIFS(OFFSET(P$6,1,0,PayCount,1),PayDate,"<"&$AC12,PayEmp,$C12)))))) -> 0 | Q12: =IF($F12="Terminated",0,IF($AA12=0,0,IF(ISNA(MATCH(Q$5,DedListItem,0)),0,IF(COUNTIFS(OverEmp,$C12,OverDeduct,Q$5,OverDate,"<"&DATE(YEAR($AC12),MONTH($AC12)+1,1),OverEnd,">="&DATE(YEAR($AC12),MONTH($AC12),1))>0,SUMIFS(OverValue,OverEmp,$C12,OverDeduct,Q$5,OverDate,"<"&DATE(YEAR($AC12),MONTH($AC12)+1,1),OverEnd,">="&DATE(YEAR($AC12),MONTH($AC12),1)),IF(OR(Q$2="Fixed",Q$2="Not Used"),(IF(COUNTIFS(EmpNo,$C12,OFFSET(Emp!$R$4,1,MATCH(Q$5,DedListItem,0)-1,EmpCount,1),"<>")>0,VLOOKUP($C12,EmpAll,COLUMN(Emp!$R$4)+MATCH(Q$5,DedListItem,0)-1,0),OFFSET(Setup!$E$73,MATCH(Q$5,DedListItem,0),0,1,1))*$AA12)-SUMIFS(OFFSET(Q$6,1,0,PayCount,1),PayDate,"<"&$AC12,PayEmp,$C12),IF(ISNA(MATCH(Q$2,EarnListItem,0))=FALSE,IF(OFFSET(Setup!$G$73,MATCH(Q$5,DedListItem,0),0,1,1)="Taxable",SUMPRODUCT((PayEmp=$C12)*(PayDate<=$AC12)*(PayEarnCode=Q$2)*(PayEarnTax)*(PayEarnValues)),SUMPRODUCT((PayEmp=$C12)*(PayDate<=$AC12)*(PayEarnCode=Q$2)*(PayEarnValues)))*IF(COUNTIFS(EmpNo,$C12,OFFSET(Emp!$R$4,1,MATCH(Q$5,DedListItem,0)-1,EmpCount,1),"<>")>0,VLOOKUP($C12,EmpAll,COLUMN(Emp!$R$4)+MATCH(Q$5,DedListItem,0)-1,0),OFFSET(Setup!$E$73,MATCH(Q$5,DedListItem,0),0,1,1)),(MIN(IF(OFFSET(Setup!$G$73,MATCH(Q$5,DedListItem,0),0,1,1)="Taxable",SUMPRODUCT((PayEmp=$C12)*(PayDate<=$AC12)*(ISERROR(SEARCH(PayEarnCode,Q$4)))*(PayEarnTax)*(PayEarnValues)),SUMPRODUCT((PayEmp=$C12)*(PayDate<=$AC12)*(ISERROR(SEARCH(PayEarnCode,Q$4)))*(PayEarnValues))),IF(ISNUMBER(Q$3),Q$3/12*$AA12,IgnoreMin)))*IF(COUNTIFS(EmpNo,$C12,OFFSET(Emp!$R$4,1,MATCH(Q$5,DedListItem,0)-1,EmpCount,1),"<>")>0,VLOOKUP($C12,EmpAll,COLUMN(Emp!$R$4)+MATCH(Q$5,DedListItem,0)-1,0),OFFSET(Setup!$E$73,MATCH(Q$5,DedListItem,0),0,1,1)))-SUMIFS(OFFSET(Q$6,1,0,PayCount,1),PayDate,"<"&$AC12,PayEmp,$C12)))))) -> 0 | R12: 100 | S12: 9900 | T12: =IF($F12="Terminated",0,IF($AA12=0,0,IF(ISNA(MATCH(T$5,CompListItem,0)),0,IF(COUNTIFS(OverEmp,$C12,OverComp,T$5,OverDate,"<"&DATE(YEAR($AC12),MONTH($AC12)+1,1),OverEnd,">="&DATE(YEAR($AC12),MONTH($AC12),1))>0,SUMIFS(OverValue,OverEmp,$C12,OverComp,T$5,OverDate,"<"&DATE(YEAR($AC12),MONTH($AC12)+1,1),OverEnd,">="&DATE(YEAR($AC12),MONTH($AC12),1)),IF(OR(T$2="Fixed",T$2="Not Used"),(OFFSET(Setup!$E$81,MATCH(T$5,CompListItem,0),0,1,1)*$AA12)-SUMIFS(OFFSET(T$6,1,0,PayCount,1),PayDate,"<"&$AC12,PayEmp,$C12),IF(ISNA(MATCH(T$2,DedListItem,0))=FALSE,(SUMPRODUCT((PayEmp=$C12)*(PayDate<=$AC12)*(PayDedList=T$2)*(PayDedValues))*OFFSET(Setup!$E$81,MATCH(T$5,CompListItem,0),0,1,1))-SUMIFS(OFFSET(T$6,1,0,PayCount,1),PayDate,"<"&$AC12,PayEmp,$C12),(MIN(IF(OFFSET(Setup!$G$81,MATCH(T$5,CompListItem,0),0,1,1)="Taxable",SUMPRODUCT((PayEmp=$C12)*(PayDate<=$AC12)*(ISERROR(SEARCH(PayEarnCode,T$4)))*(PayEarnTax)*(PayEarnValues)),SUMPRODUCT((PayEmp=$C12)*(PayDate<=$AC12)*(ISERROR(SEARCH(PayEarnCode,T$4)))*(PayEarnValues))),IF(ISNUMBER(T$3),T$3/12*$AA12,IgnoreMin)))*OFFSET(Setup!$E$81,MATCH(T$5,CompListItem,0),0,1,1)-SUMIFS(OFFSET(T$6,1,0,PayCount,1),PayDate,"<"&$AC12,PayEmp,$C12))))))) -> 100 | U12: =IF($F12="Terminated",0,IF($AA12=0,0,IF(ISNA(MATCH(U$5,CompListItem,0)),0,IF(COUNTIFS(OverEmp,$C12,OverComp,U$5,OverDate,"<"&DATE(YEAR($AC12),MONTH($AC12)+1,1),OverEnd,">="&DATE(YEAR($AC12),MONTH($AC12),1))>0,SUMIFS(OverValue,OverEmp,$C12,OverComp,U$5,OverDate,"<"&DATE(YEAR($AC12),MONTH($AC12)+1,1),OverEnd,">="&DATE(YEAR($AC12),MONTH($AC12),1)),IF(OR(U$2="Fixed",U$2="Not Used"),(OFFSET(Setup!$E$81,MATCH(U$5,CompListItem,0),0,1,1)*$AA12)-SUMIFS(OFFSET(U$6,1,0,PayCount,1),PayDate,"<"&$AC12,PayEmp,$C12),IF(ISNA(MATCH(U$2,DedListItem,0))=FALSE,(SUMPRODUCT((PayEmp=$C12)*(PayDate<=$AC12)*(PayDedList=U$2)*(PayDedValues))*OFFSET(Setup!$E$81,MATCH(U$5,CompListItem,0),0,1,1))-SUMIFS(OFFSET(U$6,1,0,PayCount,1),PayDate,"<"&$AC12,PayEmp,$C12),(MIN(IF(OFFSET(Setup!$G$81,MATCH(U$5,CompListItem,0),0,1,1)="Taxable",SUMPRODUCT((PayEmp=$C12)*(PayDate<=$AC12)*(ISERROR(SEARCH(PayEarnCode,U$4)))*(PayEarnTax)*(PayEarnValues)),SUMPRODUCT((PayEmp=$C12)*(PayDate<=$AC12)*(ISERROR(SEARCH(PayEarnCode,U$4)))*(PayEarnValues))),IF(ISNUMBER(U$3),U$3/12*$AA12,IgnoreMin)))*OFFSET(Setup!$E$81,MATCH(U$5,CompListItem,0),0,1,1)-SUMIFS(OFFSET(U$6,1,0,PayCount,1),PayDate,"<"&$AC12,PayEmp,$C12))))))) -> 100 | V12: =IF($F12="Terminated",0,IF($AA12=0,0,IF(ISNA(MATCH(V$5,CompListItem,0)),0,IF(COUNTIFS(OverEmp,$C12,OverComp,V$5,OverDate,"<"&DATE(YEAR($AC12),MONTH($AC12)+1,1),OverEnd,">="&DATE(YEAR($AC12),MONTH($AC12),1))>0,SUMIFS(OverValue,OverEmp,$C12,OverComp,V$5,OverDate,"<"&DATE(YEAR($AC12),MONTH($AC12)+1,1),OverEnd,">="&DATE(YEAR($AC12),MONTH($AC12),1)),IF(OR(V$2="Fixed",V$2="Not Used"),(OFFSET(Setup!$E$81,MATCH(V$5,CompListItem,0),0,1,1)*$AA12)-SUMIFS(OFFSET(V$6,1,0,PayCount,1),PayDate,"<"&$AC12,PayEmp,$C12),IF(ISNA(MATCH(V$2,DedListItem,0))=FALSE,(SUMPRODUCT((PayEmp=$C12)*(PayDate<=$AC12)*(PayDedList=V$2)*(PayDedValues))*OFFSET(Setup!$E$81,MATCH(V$5,CompListItem,0),0,1,1))-SUMIFS(OFFSET(V$6,1,0,PayCount,1),PayDate,"<"&$AC12,PayEmp,$C12),(MIN(IF(OFFSET(Setup!$G$81,MATCH(V$5,CompListItem,0),0,1,1)="Taxable",SUMPRODUCT((PayEmp=$C12)*(PayDate<=$AC12)*(ISERROR(SEARCH(PayEarnCode,V$4)))*(PayEarnTax)*(PayEarnValues)),SUMPRODUCT((PayEmp=$C12)*(PayDate<=$AC12)*(ISERROR(SEARCH(PayEarnCode,V$4)))*(PayEarnValues))),IF(ISNUMBER(V$3),V$3/12*$AA12,IgnoreMin)))*OFFSET(Setup!$E$81,MATCH(V$5,CompListItem,0),0,1,1)-SUMIFS(OFFSET(V$6,1,0,PayCount,1),PayDate,"<"&$AC12,PayEmp,$C12))))))) -> 0 | W12: =IF($F12="Terminated",0,IF($AA12=0,0,IF(ISNA(MATCH(W$5,CompListItem,0)),0,IF(COUNTIFS(OverEmp,$C12,OverComp,W$5,OverDate,"<"&DATE(YEAR($AC12),MONTH($AC12)+1,1),OverEnd,">="&DATE(YEAR($AC12),MONTH($AC12),1))>0,SUMIFS(OverValue,OverEmp,$C12,OverComp,W$5,OverDate,"<"&DATE(YEAR($AC12),MONTH($AC12)+1,1),OverEnd,">="&DATE(YEAR($AC12),MONTH($AC12),1)),IF(OR(W$2="Fixed",W$2="Not Used"),(OFFSET(Setup!$E$81,MATCH(W$5,CompListItem,0),0,1,1)*$AA12)-SUMIFS(OFFSET(W$6,1,0,PayCount,1),PayDate,"<"&$AC12,PayEmp,$C12),IF(ISNA(MATCH(W$2,DedListItem,0))=FALSE,(SUMPRODUCT((PayEmp=$C12)*(PayDate<=$AC12)*(PayDedList=W$2)*(PayDedValues))*OFFSET(Setup!$E$81,MATCH(W$5,CompListItem,0),0,1,1))-SUMIFS(OFFSET(W$6,1,0,PayCount,1),PayDate,"<"&$AC12,PayEmp,$C12),(MIN(IF(OFFSET(Setup!$G$81,MATCH(W$5,CompListItem,0),0,1,1)="Taxable",SUMPRODUCT((PayEmp=$C12)*(PayDate<=$AC12)*(ISERROR(SEARCH(PayEarnCode,W$4)))*(PayEarnTax)*(PayEarnValues)),SUMPRODUCT((PayEmp=$C12)*(PayDate<=$AC12)*(ISERROR(SEARCH(PayEarnCode,W$4)))*(PayEarnValues))),IF(ISNUMBER(W$3),W$3/12*$AA12,IgnoreMin)))*OFFSET(Setup!$E$81,MATCH(W$5,CompListItem,0),0,1,1)-SUMIFS(OFFSET(W$6,1,0,PayCount,1),PayDate,"<"&$AC12,PayEmp,$C12))))))) -> 0 | X12: 200 | Y12: 10200 | Z12: 300 | AA12: =IF(OR($B12<=Setup!$E$12,$B12>=Setup!$D$12+1),0,IF($F12<>"Active",0,IF($AE12="Yes",$AB12,((YEAR($AC12)*12)+MONTH($AC12))-((YEAR($AD12)*12)+MONTH($AD12)-1)))) -> 1 | AB12: =IF(OR($B12<=Setup!$E$12,$B12>=Setup!$D$12+1),0,((YEAR($AC12)*12)+MONTH($AC12))-((YEAR(Setup!$E$12)*12)+MONTH(Setup!$E$12))) -> 1 | AC12: 45010 | AD12: =IF(ISNA(VLOOKUP($C12,EmpAll,COLUMN(Emp!$E$4),0)),$AC12,IF(VLOOKUP($C12,EmpAll,COLUMN(Emp!$E$4),0)<=Setup!$E$12,DATE(YEAR(Setup!$E$12),MONTH(Setup!$E$12)+1,1),VLOOKUP($C12,EmpAll,COLUMN(Emp!$E$4),0))) -> 2023-03-01 | AE12: =IF(ISNA(VLOOKUP($C12,EmpAll,COLUMN(Emp!$G$1),0)),"-",IF(VLOOKUP($C12,EmpAll,COLUMN(Emp!$G$1),0)=0,"-",VLOOKUP($C12,EmpAll,COLUMN(Emp!$G$1),0))) -> - | AF12: =IF(A12=PaySlip!$G$3,1,0) -> 0 | AG12: =IF(COUNTIFS(OverEmp,$C12,OverMed,"MED",OverDate,"<"&DATE(YEAR($AC12),MONTH($AC12)+1,1),OverEnd,">="&DATE(YEAR($AC12),MONTH($AC12),1))>0,SUMIFS(OverValue,OverEmp,$C12,OverMed,"MED",OverDate,"<"&DATE(YEAR($AC12),MONTH($AC12)+1,1),OverEnd,">="&DATE(YEAR($AC12),MONTH($AC12),1)),IF(ISNA(VLOOKUP($C12,EmpAll,COLUMN(Emp!$N$4),0)),0,VLOOKUP($C12,EmpAll,COLUMN(Emp!$N$4),0))) -> 1 | AH12: =VLOOKUP($AG12,MedList,COLUMN(Setup!$C$49),1) -> 364 | AI12: 4368 | AJ12: =IF(ISNA(VLOOKUP($C12,EmpAll,COLUMN(Emp!$L$4),0)),"None!",VLOOKUP($C12,EmpAll,COLUMN(Emp!$L$4),0)) -> A | AK12: 17235 | AL12: =IF(ISNA(VLOOKUP($C12,Employees[],COLUMN(Emp!$M$4),0))=TRUE,"Error!",IF(VLOOKUP($C12,Employees[],COLUMN(Emp!$M$4),0)=0,"Yes",VLOOKUP($C12,Employees[],COLUMN(Emp!$M$4),0))) -> A | AM12: 120000 | AN12: =-IF($F12="Terminated",0,IF($AA12=0,0,IF(ISNA(MATCH(AN$5,PayDedList,0)),0,MIN(IF(COUNTIFS(OverEmp,$C12,OverDeduct,AN$5,OverDate,"<"&DATE(YEAR($AC12),MONTH($AC12)+1,1),OverEnd,">="&DATE(YEAR($AC12),MONTH($AC12),1))>0,SUMPRODUCT((PayEmp=$C12)*(PayDate<=$AC12)*(OFFSET($N$6,1,MATCH(AN$5,PayDedList,0)-1,PayCount,1)))/$AA12*12*AN$3,IF(OR(AN$1="Fixed",AN$1="Not Used"),SUMPRODUCT((PayEmp=$C12)*(PayDate<=$AC12)*(OFFSET($N$6,1,MATCH(AN$5,PayDedList,0)-1,PayCount,1)))/$AA12*12*AN$3,IF(ISNA(MATCH(AN$1,EarnListItem,0))=FALSE,SUMPRODUCT((PayEmp=$C12)*(PayDate<=$AC12)*(OFFSET($N$6,1,MATCH(AN$5,PayDedList,0)-1,PayCount,1)))/$AA12*12*AN$3,(MIN(((SUMPRODUCT((PayEmp=$C12)*(PayDate<=$AC12)*(ISERROR(SEARCH(PayEarnCode,AN$2)))*(PayEarnType="Monthly")*(PayEarnValues))/$AA12*12)+(SUMPRODUCT((PayEmp=$C12)*(PayDate<=$AC12)*(ISERROR(SEARCH(PayEarnCode,AN$2)))*(PayEarnType="Quarterly")*(PayEarnValues))/MAX(1,ROUNDDOWN($AB12/3,0))*4)+(SUMPRODUCT((PayEmp=$C12)*(PayDate<=$AC12)*(ISERROR(SEARCH(PayEarnCode,AN$2)))*(PayEarnType="Bi-Annual")*(PayEarnValues))/MAX(1,ROUNDDOWN($AB12/6,0))*2)+(SUMPRODUCT((PayEmp=$C12)*(PayDate<=$AC12)*(ISERROR(SEARCH(PayEarnCode,AN$2)))*(PayEarnType="Annual")*(PayEarnValues)))),IF(ISNUMBER(OFFSET($N$3,0,MATCH(AN$5,PayDedList,0)-1,1,1)),OFFSET($N$3,0,MATCH(AN$5,PayDedList,0)-1,1,1),IgnoreMin)))*IF(COUNTIFS(EmpNo,$C12,OFFSET(Emp!$R$4,1,MATCH(AN$5,DedListItem,0)-1,EmpCount,1),"<>")>0,VLOOKUP($C12,EmpAll,COLUMN(Emp!$R$4)+MATCH(AN$5,DedListItem,0)-1,0),OFFSET(Setup!$E$73,MATCH(AN$5,DedListItem,0),0,1,1))*AN$3))),IF(ISNUMBER(AN$4),AN$4,IgnoreMin))))) -> 0 | AO12: =-IF($F12="Terminated",0,IF($AA12=0,0,IF(ISNA(MATCH(AO$5,PayDedList,0)),0,MIN(IF(COUNTIFS(OverEmp,$C12,OverDeduct,AO$5,OverDate,"<"&DATE(YEAR($AC12),MONTH($AC12)+1,1),OverEnd,">="&DATE(YEAR($AC12),MONTH($AC12),1))>0,SUMPRODUCT((PayEmp=$C12)*(PayDate<=$AC12)*(OFFSET($N$6,1,MATCH(AO$5,PayDedList,0)-1,PayCount,1)))/$AA12*12*AO$3,IF(OR(AO$1="Fixed",AO$1="Not Used"),SUMPRODUCT((PayEmp=$C12)*(PayDate<=$AC12)*(OFFSET($N$6,1,MATCH(AO$5,PayDedList,0)-1,PayCount,1)))/$AA12*12*AO$3,IF(ISNA(MATCH(AO$1,EarnListItem,0))=FALSE,SUMPRODUCT((PayEmp=$C12)*(PayDate<=$AC12)*(OFFSET($N$6,1,MATCH(AO$5,PayDedList,0)-1,PayCount,1)))/$AA12*12*AO$3,(MIN(((SUMPRODUCT((PayEmp=$C12)*(PayDate<=$AC12)*(ISERROR(SEARCH(PayEarnCode,AO$2)))*(PayEarnType="Monthly")*(PayEarnValues))/$AA12*12)+(SUMPRODUCT((PayEmp=$C12)*(PayDate<=$AC12)*(ISERROR(SEARCH(PayEarnCode,AO$2)))*(PayEarnType="Quarterly")*(PayEarnValues))/MAX(1,ROUNDDOWN($AB12/3,0))*4)+(SUMPRODUCT((PayEmp=$C12)*(PayDate<=$AC12)*(ISERROR(SEARCH(PayEarnCode,AO$2)))*(PayEarnType="Bi-Annual")*(PayEarnValues))/MAX(1,ROUNDDOWN($AB12/6,0))*2)+(SUMPRODUCT((PayEmp=$C12)*(PayDate<=$AC12)*(ISERROR(SEARCH(PayEarnCode,AO$2)))*(PayEarnType="Annual")*(PayEarnValues)))),IF(ISNUMBER(OFFSET($N$3,0,MATCH(AO$5,PayDedList,0)-1,1,1)),OFFSET($N$3,0,MATCH(AO$5,PayDedList,0)-1,1,1),IgnoreMin)))*IF(COUNTIFS(EmpNo,$C12,OFFSET(Emp!$R$4,1,MATCH(AO$5,DedListItem,0)-1,EmpCount,1),"<>")>0,VLOOKUP($C12,EmpAll,COLUMN(Emp!$R$4)+MATCH(AO$5,DedListItem,0)-1,0),OFFSET(Setup!$E$73,MATCH(AO$5,DedListItem,0),0,1,1))*AO$3))),IF(ISNUMBER(AO$4),AO$4,IgnoreMin))))) -> 0 | AP12: =-IF($F12="Terminated",0,IF($AA12=0,0,IF(ISNA(MATCH(AP$5,PayDedList,0)),0,MIN(IF(COUNTIFS(OverEmp,$C12,OverDeduct,AP$5,OverDate,"<"&DATE(YEAR($AC12),MONTH($AC12)+1,1),OverEnd,">="&DATE(YEAR($AC12),MONTH($AC12),1))>0,SUMPRODUCT((PayEmp=$C12)*(PayDate<=$AC12)*(OFFSET($N$6,1,MATCH(AP$5,PayDedList,0)-1,PayCount,1)))/$AA12*12*AP$3,IF(OR(AP$1="Fixed",AP$1="Not Used"),SUMPRODUCT((PayEmp=$C12)*(PayDate<=$AC12)*(OFFSET($N$6,1,MATCH(AP$5,PayDedList,0)-1,PayCount,1)))/$AA12*12*AP$3,IF(ISNA(MATCH(AP$1,EarnListItem,0))=FALSE,SUMPRODUCT((PayEmp=$C12)*(PayDate<=$AC12)*(OFFSET($N$6,1,MATCH(AP$5,PayDedList,0)-1,PayCount,1)))/$AA12*12*AP$3,(MIN(((SUMPRODUCT((PayEmp=$C12)*(PayDate<=$AC12)*(ISERROR(SEARCH(PayEarnCode,AP$2)))*(PayEarnType="Monthly")*(PayEarnValues))/$AA12*12)+(SUMPRODUCT((PayEmp=$C12)*(PayDate<=$AC12)*(ISERROR(SEARCH(PayEarnCode,AP$2)))*(PayEarnType="Quarterly")*(PayEarnValues))/MAX(1,ROUNDDOWN($AB12/3,0))*4)+(SUMPRODUCT((PayEmp=$C12)*(PayDate<=$AC12)*(ISERROR(SEARCH(PayEarnCode,AP$2)))*(PayEarnType="Bi-Annual")*(PayEarnValues))/MAX(1,ROUNDDOWN($AB12/6,0))*2)+(SUMPRODUCT((PayEmp=$C12)*(PayDate<=$AC12)*(ISERROR(SEARCH(PayEarnCode,AP$2)))*(PayEarnType="Annual")*(PayEarnValues)))),IF(ISNUMBER(OFFSET($N$3,0,MATCH(AP$5,PayDedList,0)-1,1,1)),OFFSET($N$3,0,MATCH(AP$5,PayDedList,0)-1,1,1),IgnoreMin)))*IF(COUNTIFS(EmpNo,$C12,OFFSET(Emp!$R$4,1,MATCH(AP$5,DedListItem,0)-1,EmpCount,1),"<>")>0,VLOOKUP($C12,EmpAll,COLUMN(Emp!$R$4)+MATCH(AP$5,DedListItem,0)-1,0),OFFSET(Setup!$E$73,MATCH(AP$5,DedListItem,0),0,1,1))*AP$3))),IF(ISNUMBER(AP$4),AP$4,IgnoreMin))))) -> 0 | AQ12: =-IF($F12="Terminated",0,IF($AA12=0,0,IF(ISNA(MATCH(AQ$5,PayDedList,0)),0,MIN(IF(COUNTIFS(OverEmp,$C12,OverDeduct,AQ$5,OverDate,"<"&DATE(YEAR($AC12),MONTH($AC12)+1,1),OverEnd,">="&DATE(YEAR($AC12),MONTH($AC12),1))>0,SUMPRODUCT((PayEmp=$C12)*(PayDate<=$AC12)*(OFFSET($N$6,1,MATCH(AQ$5,PayDedList,0)-1,PayCount,1)))/$AA12*12*AQ$3,IF(OR(AQ$1="Fixed",AQ$1="Not Used"),SUMPRODUCT((PayEmp=$C12)*(PayDate<=$AC12)*(OFFSET($N$6,1,MATCH(AQ$5,PayDedList,0)-1,PayCount,1)))/$AA12*12*AQ$3,IF(ISNA(MATCH(AQ$1,EarnListItem,0))=FALSE,SUMPRODUCT((PayEmp=$C12)*(PayDate<=$AC12)*(OFFSET($N$6,1,MATCH(AQ$5,PayDedList,0)-1,PayCount,1)))/$AA12*12*AQ$3,(MIN(((SUMPRODUCT((PayEmp=$C12)*(PayDate<=$AC12)*(ISERROR(SEARCH(PayEarnCode,AQ$2)))*(PayEarnType="Monthly")*(PayEarnValues))/$AA12*12)+(SUMPRODUCT((PayEmp=$C12)*(PayDate<=$AC12)*(ISERROR(SEARCH(PayEarnCode,AQ$2)))*(PayEarnType="Quarterly")*(PayEarnValues))/MAX(1,ROUNDDOWN($AB12/3,0))*4)+(SUMPRODUCT((PayEmp=$C12)*(PayDate<=$AC12)*(ISERROR(SEARCH(PayEarnCode,AQ$2)))*(PayEarnType="Bi-Annual")*(PayEarnValues))/MAX(1,ROUNDDOWN($AB12/6,0))*2)+(SUMPRODUCT((PayEmp=$C12)*(PayDate<=$AC12)*(ISERROR(SEARCH(PayEarnCode,AQ$2)))*(PayEarnType="Annual")*(PayEarnValues)))),IF(ISNUMBER(OFFSET($N$3,0,MATCH(AQ$5,PayDedList,0)-1,1,1)),OFFSET($N$3,0,MATCH(AQ$5,PayDedList,0)-1,1,1),IgnoreMin)))*IF(COUNTIFS(EmpNo,$C12,OFFSET(Emp!$R$4,1,MATCH(AQ$5,DedListItem,0)-1,EmpCount,1),"<>")>0,VLOOKUP($C12,EmpAll,COLUMN(Emp!$R$4)+MATCH(AQ$5,DedListItem,0)-1,0),OFFSET(Setup!$E$73,MATCH(AQ$5,DedListItem,0),0,1,1))*AQ$3))),IF(ISNUMBER(AQ$4),AQ$4,IgnoreMin))))) -> 0 | AR12: 120000 | AS12: 120000 | AT12: =-IF($F12="Terminated",0,IF($AA12=0,0,IF(ISNA(MATCH(AT$5,PayDedList,0)),0,MIN(IF(COUNTIFS(OverEmp,$C12,OverDeduct,AT$5,OverDate,"<"&DATE(YEAR($AC12),MONTH($AC12)+1,1),OverEnd,">="&DATE(YEAR($AC12),MONTH($AC12),1))>0,SUMPRODUCT((PayEmp=$C12)*(PayDate<=$AC12)*(OFFSET($N$6,1,MATCH(AT$5,PayDedList,0)-1,PayCount,1)))/$AA12*12*AT$3,IF(OR(AT$1="Fixed",AT$1="Not Used"),SUMPRODUCT((PayEmp=$C12)*(PayDate<=$AC12)*(OFFSET($N$6,1,MATCH(AT$5,PayDedList,0)-1,PayCount,1)))/$AA12*12*AT$3,IF(ISNA(MATCH(OFFSET($N$2,0,MATCH(AT$5,PayDedList,0)-1,1,1),EarnListItem,0))=FALSE,SUMPRODUCT((PayEmp=$C12)*(PayDate<=$AC12)*(OFFSET($N$6,1,MATCH(AT$5,PayDedList,0)-1,PayCount,1)))/$AA12*12*AT$3,(MIN(SUMPRODUCT((PayEmp=$C12)*(PayDate<=$AC12)*(ISERROR(SEARCH(PayEarnCode,AT$2)))*(PayEarnType="Monthly")*(PayEarnValues))/$AA12*12,IF(ISNUMBER(OFFSET($N$3,0,MATCH(AT$5,PayDedList,0)-1,1,1)),OFFSET($N$3,0,MATCH(AT$5,PayDedList,0)-1,1,1),IgnoreMin)))*IF(COUNTIFS(EmpNo,$C12,OFFSET(Emp!$R$4,1,MATCH(AT$5,DedListItem,0)-1,EmpCount,1),"<>")>0,VLOOKUP($C12,EmpAll,COLUMN(Emp!$R$4)+MATCH(AT$5,DedListItem,0)-1,0),OFFSET(Setup!$E$73,MATCH(AT$5,DedListItem,0),0,1,1))*AT$3))),IF(ISNUMBER(AT$4),AT$4,IgnoreMin))))) -> 0 | AU12: =-IF($F12="Terminated",0,IF($AA12=0,0,IF(ISNA(MATCH(AU$5,PayDedList,0)),0,MIN(IF(COUNTIFS(OverEmp,$C12,OverDeduct,AU$5,OverDate,"<"&DATE(YEAR($AC12),MONTH($AC12)+1,1),OverEnd,">="&DATE(YEAR($AC12),MONTH($AC12),1))>0,SUMPRODUCT((PayEmp=$C12)*(PayDate<=$AC12)*(OFFSET($N$6,1,MATCH(AU$5,PayDedList,0)-1,PayCount,1)))/$AA12*12*AU$3,IF(OR(AU$1="Fixed",AU$1="Not Used"),SUMPRODUCT((PayEmp=$C12)*(PayDate<=$AC12)*(OFFSET($N$6,1,MATCH(AU$5,PayDedList,0)-1,PayCount,1)))/$AA12*12*AU$3,IF(ISNA(MATCH(OFFSET($N$2,0,MATCH(AU$5,PayDedList,0)-1,1,1),EarnListItem,0))=FALSE,SUMPRODUCT((PayEmp=$C12)*(PayDate<=$AC12)*(OFFSET($N$6,1,MATCH(AU$5,PayDedList,0)-1,PayCount,1)))/$AA12*12*AU$3,(MIN(SUMPRODUCT((PayEmp=$C12)*(PayDate<=$AC12)*(ISERROR(SEARCH(PayEarnCode,AU$2)))*(PayEarnType="Monthly")*(PayEarnValues))/$AA12*12,IF(ISNUMBER(OFFSET($N$3,0,MATCH(AU$5,PayDedList,0)-1,1,1)),OFFSET($N$3,0,MATCH(AU$5,PayDedList,0)-1,1,1),IgnoreMin)))*IF(COUNTIFS(EmpNo,$C12,OFFSET(Emp!$R$4,1,MATCH(AU$5,DedListItem,0)-1,EmpCount,1),"<>")>0,VLOOKUP($C12,EmpAll,COLUMN(Emp!$R$4)+MATCH(AU$5,DedListItem,0)-1,0),OFFSET(Setup!$E$73,MATCH(AU$5,DedListItem,0),0,1,1))*AU$3))),IF(ISNUMBER(AU$4),AU$4,IgnoreMin))))) -> 0 | AV12: =-IF($F12="Terminated",0,IF($AA12=0,0,IF(ISNA(MATCH(AV$5,PayDedList,0)),0,MIN(IF(COUNTIFS(OverEmp,$C12,OverDeduct,AV$5,OverDate,"<"&DATE(YEAR($AC12),MONTH($AC12)+1,1),OverEnd,">="&DATE(YEAR($AC12),MONTH($AC12),1))>0,SUMPRODUCT((PayEmp=$C12)*(PayDate<=$AC12)*(OFFSET($N$6,1,MATCH(AV$5,PayDedList,0)-1,PayCount,1)))/$AA12*12*AV$3,IF(OR(AV$1="Fixed",AV$1="Not Used"),SUMPRODUCT((PayEmp=$C12)*(PayDate<=$AC12)*(OFFSET($N$6,1,MATCH(AV$5,PayDedList,0)-1,PayCount,1)))/$AA12*12*AV$3,IF(ISNA(MATCH(OFFSET($N$2,0,MATCH(AV$5,PayDedList,0)-1,1,1),EarnListItem,0))=FALSE,SUMPRODUCT((PayEmp=$C12)*(PayDate<=$AC12)*(OFFSET($N$6,1,MATCH(AV$5,PayDedList,0)-1,PayCount,1)))/$AA12*12*AV$3,(MIN(SUMPRODUCT((PayEmp=$C12)*(PayDate<=$AC12)*(ISERROR(SEARCH(PayEarnCode,AV$2)))*(PayEarnType="Monthly")*(PayEarnValues))/$AA12*12,IF(ISNUMBER(OFFSET($N$3,0,MATCH(AV$5,PayDedList,0)-1,1,1)),OFFSET($N$3,0,MATCH(AV$5,PayDedList,0)-1,1,1),IgnoreMin)))*IF(COUNTIFS(EmpNo,$C12,OFFSET(Emp!$R$4,1,MATCH(AV$5,DedListItem,0)-1,EmpCount,1),"<>")>0,VLOOKUP($C12,EmpAll,COLUMN(Emp!$R$4)+MATCH(AV$5,DedListItem,0)-1,0),OFFSET(Setup!$E$73,MATCH(AV$5,DedListItem,0),0,1,1))*AV$3))),IF(ISNUMBER(AV$4),AV$4,IgnoreMin))))) -> 0 | AW12: =-IF($F12="Terminated",0,IF($AA12=0,0,IF(ISNA(MATCH(AW$5,PayDedList,0)),0,MIN(IF(COUNTIFS(OverEmp,$C12,OverDeduct,AW$5,OverDate,"<"&DATE(YEAR($AC12),MONTH($AC12)+1,1),OverEnd,">="&DATE(YEAR($AC12),MONTH($AC12),1))>0,SUMPRODUCT((PayEmp=$C12)*(PayDate<=$AC12)*(OFFSET($N$6,1,MATCH(AW$5,PayDedList,0)-1,PayCount,1)))/$AA12*12*AW$3,IF(OR(AW$1="Fixed",AW$1="Not Used"),SUMPRODUCT((PayEmp=$C12)*(PayDate<=$AC12)*(OFFSET($N$6,1,MATCH(AW$5,PayDedList,0)-1,PayCount,1)))/$AA12*12*AW$3,IF(ISNA(MATCH(OFFSET($N$2,0,MATCH(AW$5,PayDedList,0)-1,1,1),EarnListItem,0))=FALSE,SUMPRODUCT((PayEmp=$C12)*(PayDate<=$AC12)*(OFFSET($N$6,1,MATCH(AW$5,PayDedList,0)-1,PayCount,1)))/$AA12*12*AW$3,(MIN(SUMPRODUCT((PayEmp=$C12)*(PayDate<=$AC12)*(ISERROR(SEARCH(PayEarnCode,AW$2)))*(PayEarnType="Monthly")*(PayEarnValues))/$AA12*12,IF(ISNUMBER(OFFSET($N$3,0,MATCH(AW$5,PayDedList,0)-1,1,1)),OFFSET($N$3,0,MATCH(AW$5,PayDedList,0)-1,1,1),IgnoreMin)))*IF(COUNTIFS(EmpNo,$C12,OFFSET(Emp!$R$4,1,MATCH(AW$5,DedListItem,0)-1,EmpCount,1),"<>")>0,VLOOKUP($C12,EmpAll,COLUMN(Emp!$R$4)+MATCH(AW$5,DedListItem,0)-1,0),OFFSET(Setup!$E$73,MATCH(AW$5,DedListItem,0),0,1,1))*AW$3))),IF(ISNUMBER(AW$4),AW$4,IgnoreMin))))) -> 0 | AX12: 120000 | AY12: 0 | AZ12: =IF(ISNUMBER($AL12),($AR12*$AL12)-$AI12-$AK12,MAX(0,IF($AL12="B",IF($AR12<Setup!$C$32,($AR12*Setup!$D$32)-$AI12-$AK12,(($AR12-VLOOKUP($AR12,TaxAll2,1,1))*OFFSET(Setup!$D$32,MATCH($AR12,TaxBracket2,1),0,1,1))+OFFSET(Setup!$E$31,MATCH($AR12,TaxBracket2,1),0,1,1)-$AI12-$AK12),IF($AR12<Setup!$C$21,($AR12*Setup!$D$21)-$AI12-$AK12,(($AR12-VLOOKUP($AR12,TaxAll1,1,1))*OFFSET(Setup!$D$21,MATCH($AR12,TaxBracket1,1),0,1,1))+OFFSET(Setup!$E$20,MATCH($AR12,TaxBracket1,1),0,1,1)-$AI12-$AK12)))) -> 0 | BA12: =IF(ISNUMBER($AL12),($AX12*$AL12)-$AI12-$AK12,MAX(0,IF($AL12="B",IF($AX12<Setup!$C$32,($AX12*Setup!$D$32)-$AI12-$AK12,(($AX12-VLOOKUP($AX12,TaxAll2,1,1))*OFFSET(Setup!$D$32,MATCH($AX12,TaxBracket2,1),0,1,1))+OFFSET(Setup!$E$31,MATCH($AX12,TaxBracket2,1),0,1,1)-$AI12-$AK12),IF($AX12<Setup!$C$21,($AX12*Setup!$D$21)-$AI12-$AK12,(($AX12-VLOOKUP($AX12,TaxAll1,1,1))*OFFSET(Setup!$D$21,MATCH($AX12,TaxBracket1,1),0,1,1))+OFFSET(Setup!$E$20,MATCH($AX12,TaxBracket1,1),0,1,1)-$AI12-$AK12)))) -> 0 | BB12: 0 | BC12: 1 | BD12: 0 | BE12: 120000
